Workbook

Sheet RawAll
B11: Paste->
A12: =IF(C12="MESSAGE",E12,"") ->  | B12: =IF(A12="","",ROW()) -> 
C13: Table | D13: 01:00:00 | E13: MAINWAPP, | F13: adb
A15: =IF(C15="MESSAGE",E15,"") -> Objective | B15: =IF(A15="","",ROW()) -> 15 | C15: MESSAGE | D15: Int_V2 | E15: Objective
A16: =IF(C16="MESSAGE",E16,"") ->  | B16: =IF(A16="","",ROW()) ->  | C16: May | D16: 14, | E16: 2013 | F16: 17:15:00
D18: obj
C20: 2010 | D20: 260274600
C21: 2011 | D21: 0
C22: 2012 | D22: 0
C23: 2013 | D23: 0
C24: 2014 | D24: 0
C25: 2015 | D25: 0
C26: 2016 | D26: 0
C27: 2017 | D27: 0
C28: 2018 | D28: 0
C29: 2019 | D29: 0
C30: 2020 | D30: 0
C31: 2021 | D31: 0
C32: 2022 | D32: 0
C33: 2023 | D33: 0
C34: 2024 | D34: 0
C35: 2025 | D35: 0
C36: 2026 | D36: 0
C37: 2027 | D37: 0
C38: 2028 | D38: 0
C39: 2029 | D39: 0
C40: 2030 | D40: 0
C41: 2031 | D41: 0
C42: 2040 | D42: 0
C43: 2050 | D43: 0
C46: Table | D46: 02:00:00 | E46: MAINWAPP, | F46: adb
A48: TransmissionOutput | B48: 48 | C48: MESSAGE | D48: Int_V2 | E48: TransmissionOutput
C49: May | D49: 14, | E49: 2013 | F49: 17:15:00
D51: ELEXGHwCIwOut | E51: ELEXGHwTBwOut | F51: ELEXSEwMAwOut | G51: ELEXCIwBUwOut | H51: ELEXNGwTBwOut | I51: ELEXNGwNIwOut | J51: ELEXCIwGHwOut | K51: ELEXTBwGHwOut | L51: ELEXMAwSEwOut | M51: ELEXBUwCIwOut | N51: ELEXTBwNGwOut | O51: ELEXNIwNGwOut | P51: ELNCDorGHwTBwOut | Q51: ELNCDorCIwGHwOut | R51: ELNCDorTBwGHwOut | S51: ELNCDorGHwCIwOut | T51: ELNCCLSGCIwLIwOut | U51: ELNCCLSGLIwGUwOut | V51: ELNCCLSGLIwSIwOut | W51: ELNCCLSGSIwGUwOut | X51: ELNCCLSGLIwCIwOut | Y51: ELNCCLSGGUwLIwOut | Z51: ELNCCLSGSIwLIwOut | AA51: ELNCCLSGGUwSIwOut | AB51: ELNCOMVGSEwGUwOut | AC51: ELNCOMVGSEwGAwOut | AD51: ELNCOMVGGAwGBwOut | AE51: ELNCOMVGGBwGUwOut | AF51: ELNCOMVGGUwSEwOut | AG51: ELNCOMVGGAwSEwOut | AH51: ELNCOMVGGBwGAwOut | AI51: ELNCOMVGGUwGBwOut | AJ51: ELNUCoNNGwNIwOut | AK51: ELNUCoNNIwTBwOut | AL51: ELNUCoNNIwBUwOut | AM51: ELNUCoNNIwNGwOut | AN51: ELNUCoNTBwNIwOut | AO51: ELNUCoNBUwNIwOut | AP51: ELNChubGHwBUwOut | AQ51: ELNChubBUwMAwOut | AR51: ELNChubMAwCIwOut | AS51: ELNUhubGUwMAwOut | AT51: ELNChubBUwGHwOut | AU51: ELNChubMAwBUwOut | AV51: ELNChubCIwMAwOut | AW51: ELNUhubMAwGUwOut | AX51: ELNUDmeNGwTBwOut | AY51: ELNUDMeTBwGHwOut | AZ51: ELNUDMeTBwNGwOut | BA51: ELNUDMeGHwTBwOut | BB51: ELNUOMVGMAwSEwOut | BC51: ELNUOMVSSEwMAwOut | BD51: ELNULICILIwCIwOut | BE51: ELNULICICIwLIwOut | BF51: ELNUNGTBNGwTBwOut | BG51: ELNUNGTBTBwNGwOut | BH51: ELNUIngDRcNGwOut
C53: 2010 | D53: 0 | E53: 0 | F53: 21.36 | G53: 87.14 | H53: 223.12 | I53: 67 | J53: 0 | K53: 0 | L53: 0.86 | M53: 0 | N53: 0 | O53: 0 | P53: 0 | Q53: 0 | R53: 0 | S53: 0 | T53: 0 | U53: 0 | V53: 0 | W53: 0 | X53: 0 | Y53: 0 | Z53: 0 | AA53: 0 | AB53: 0 | AC53: 0 | AD53: 0 | AE53: 0 | AF53: 0 | AG53: 0 | AH53: 0 | AI53: 0 | AJ53: 0 | AK53: 0 | AL53: 0 | AM53: 0 | AN53: 0 | AO53: 0 | AP53: 0 | AQ53: 0 | AR53: 0 | AS53: 0 | AT53: 0 | AU53: 0 | AV53: 0 | AW53: 0 | AX53: 0 | AY53: 0 | AZ53: 0 | BA53: 0 | BB53: 0 | BC53: 0 | BD53: 0 | BE53: 0 | BF53: 0 | BG53: 0 | BH53: 0
C54: 2011 | D54: 0 | E54: 0 | F54: 0 | G54: 0 | H54: 567.99 | I54: 68.51 | J54: 124.2 | K54: 309.47 | L54: 2.8 | M54: 34.14 | N54: 0 | O54: 0 | P54: 0 | Q54: 0 | R54: 0 | S54: 0 | T54: 0 | U54: 0 | V54: 0 | W54: 0 | X54: 0 | Y54: 0 | Z54: 0 | AA54: 0 | AB54: 0 | AC54: 0 | AD54: 0 | AE54: 0 | AF54: 0 | AG54: 0 | AH54: 0 | AI54: 0 | AJ54: 0 | AK54: 0 | AL54: 0 | AM54: 0 | AN54: 0 | AO54: 0 | AP54: 0 | AQ54: 0 | AR54: 0 | AS54: 0 | AT54: 0 | AU54: 0 | AV54: 0 | AW54: 0 | AX54: 0 | AY54: 0 | AZ54: 0 | BA54: 0 | BB54: 0 | BC54: 0 | BD54: 0 | BE54: 0 | BF54: 0 | BG54: 0 | BH54: 0
C55: 2012 | D55: 0 | E55: 0 | F55: 0 | G55: 40.82 | H55: 596.73 | I55: 74.9 | J55: 13.13 | K55: 309.47 | L55: 14.12 | M55: 0 | N55: 0 | O55: 0 | P55: 0 | Q55: 0 | R55: 0 | S55: 0 | T55: 0 | U55: 0 | V55: 0 | W55: 0 | X55: 0 | Y55: 0 | Z55: 0 | AA55: 0 | AB55: 0 | AC55: 0 | AD55: 0 | AE55: 0 | AF55: 0 | AG55: 0 | AH55: 0 | AI55: 0 | AJ55: 0 | AK55: 0 | AL55: 0 | AM55: 0 | AN55: 0 | AO55: 0 | AP55: 0 | AQ55: 0 | AR55: 0 | AS55: 0 | AT55: 0 | AU55: 0 | AV55: 0 | AW55: 0 | AX55: 0 | AY55: 0 | AZ55: 0 | BA55: 0 | BB55: 0 | BC55: 0 | BD55: 0 | BE55: 0 | BF55: 0 | BG55: 0 | BH55: 0
C56: 2013 | D56: 6 | E56: 0 | F56: 0 | G56: 38.98 | H56: 685.04 | I56: 81.11 | J56: 0 | K56: 224.99 | L56: 38.95 | M56: 0 | N56: 0 | O56: 0 | P56: 0 | Q56: 0 | R56: 258.63 | S56: 0 | T56: 0 | U56: 0 | V56: 0 | W56: 0 | X56: 0 | Y56: 0 | Z56: 0 | AA56: 0 | AB56: 0 | AC56: 0 | AD56: 0 | AE56: 0 | AF56: 0 | AG56: 0 | AH56: 0 | AI56: 0 | AJ56: 0 | AK56: 0 | AL56: 0 | AM56: 0 | AN56: 0 | AO56: 0 | AP56: 68.58 | AQ56: 0 | AR56: 0 | AS56: 0 | AT56: 0 | AU56: 0 | AV56: 101.6 | AW56: 0 | AX56: 0 | AY56: 0 | AZ56: 0 | BA56: 0 | BB56: 0 | BC56: 0 | BD56: 0 | BE56: 0 | BF56: 0 | BG56: 0 | BH56: 0
C57: 2014 | D57: 0 | E57: 0 | F57: 0 | G57: 7.49 | H57: 596.91 | I57: 43.89 | J57: 0 | K57: 105.83 | L57: 94.38 | M57: 0 | N57: 0 | O57: 0 | P57: 0 | Q57: 0 | R57: 179.8 | S57: 0 | T57: 0 | U57: 0 | V57: 0 | W57: 0 | X57: 0 | Y57: 0 | Z57: 0 | AA57: 0 | AB57: 0 | AC57: 0 | AD57: 0 | AE57: 0 | AF57: 0 | AG57: 0 | AH57: 0 | AI57: 0 | AJ57: 0 | AK57: 0 | AL57: 0 | AM57: 0 | AN57: 0 | AO57: 0 | AP57: 99.03 | AQ57: 0 | AR57: 0 | AS57: 0 | AT57: 0 | AU57: 0 | AV57: 232.5 | AW57: 0 | AX57: 0 | AY57: 0 | AZ57: 0 | BA57: 0 | BB57: 0 | BC57: 0 | BD57: 0 | BE57: 0 | BF57: 0 | BG57: 0 | BH57: 0
C58: 2015 | D58: 0 | E58: 127.53 | F58: 0 | G58: 0 | H58: 0 | I58: 89.41 | J58: 0 | K58: 0 | L58: 97.81 | M58: 0 | N58: 212.46 | O58: 0 | P58: 44.61 | Q58: 0 | R58: 0 | S58: 0 | T58: 101.26 | U58: 80.73 | V58: 0 | W58: 0 | X58: 0 | Y58: 0 | Z58: 0 | AA58: 1.62 | AB58: 0 | AC58: 0 | AD58: 0 | AE58: 0 | AF58: 0 | AG58: 0 | AH58: 0 | AI58: 0 | AJ58: 0 | AK58: 0 | AL58: 0 | AM58: 0 | AN58: 0 | AO58: 0 | AP58: 115.98 | AQ58: 0 | AR58: 0 | AS58: 0 | AT58: 0 | AU58: 0 | AV58: 229.61 | AW58: 0 | AX58: 0 | AY58: 0 | AZ58: 0 | BA58: 0 | BB58: 0 | BC58: 0 | BD58: 0 | BE58: 0 | BF58: 0 | BG58: 0 | BH58: 0
C59: 2016 | D59: 0 | E59: 156.44 | F59: 24.63 | G59: 125.39 | H59: 0 | I59: 85.78 | J59: 308.46 | K59: 0 | L59: 0 | M59: 0 | N59: 503.17 | O59: 0 | P59: 347.56 | Q59: 0 | R59: 0 | S59: 0 | T59: 337.12 | U59: 252.12 | V59: 0 | W59: 0 | X59: 0 | Y59: 0 | Z59: 0 | AA59: 80.97 | AB59: 0 | AC59: 0 | AD59: 0 | AE59: 0 | AF59: 0 | AG59: 0 | AH59: 0 | AI59: 0 | AJ59: 0 | AK59: 0 | AL59: 0 | AM59: 0 | AN59: 0 | AO59: 0 | AP59: 0 | AQ59: 0 | AR59: 0 | AS59: 0 | AT59: 0 | AU59: 0 | AV59: 273.08 | AW59: 94.77 | AX59: 0 | AY59: 0 | AZ59: 0 | BA59: 0 | BB59: 0 | BC59: 0 | BD59: 0 | BE59: 0 | BF59: 0 | BG59: 0 | BH59: 0
C60: 2017 | D60: 0 | E60: 122.02 | F60: 0 | G60: 135.33 | H60: 0 | I60: 93.3 | J60: 0 | K60: 0 | L60: 0.07 | M60: 0 | N60: 622.58 | O60: 0 | P60: 512.57 | Q60: 535.37 | R60: 0 | S60: 0 | T60: 337.12 | U60: 337.12 | V60: 21.06 | W60: 0 | X60: 0 | Y60: 0 | Z60: 0 | AA60: 45.32 | AB60: 0 | AC60: 24.05 | AD60: 4.03 | AE60: 0 | AF60: 0 | AG60: 0 | AH60: 0 | AI60: 0.66 | AJ60: 0 | AK60: 0 | AL60: 0 | AM60: 0 | AN60: 0 | AO60: 0 | AP60: 0 | AQ60: 0 | AR60: 0 | AS60: 0 | AT60: 0 | AU60: 0 | AV60: 254.85 | AW60: 55.3 | AX60: 0 | AY60: 0 | AZ60: 0 | BA60: 0 | BB60: 0 | BC60: 0 | BD60: 0 | BE60: 0 | BF60: 0 | BG60: 0 | BH60: 0
C61: 2018 | D61: 0 | E61: 179.33 | F61: 0 | G61: 146.12 | H61: 0 | I61: 32.9 | J61: 0 | K61: 0 | L61: 2.68 | M61: 0 | N61: 514.63 | O61: 0 | P61: 388.08 | Q61: 565.23 | R61: 0 | S61: 0 | T61: 337.12 | U61: 337.12 | V61: 20.07 | W61: 0 | X61: 0 | Y61: 0 | Z61: 0 | AA61: 25.53 | AB61: 0 | AC61: 22.33 | AD61: 0 | AE61: 0 | AF61: 0 | AG61: 0 | AH61: 0 | AI61: 8.51 | AJ61: 0 | AK61: 0 | AL61: 0 | AM61: 0 | AN61: 0 | AO61: 0 | AP61: 0 | AQ61: 0 | AR61: 0 | AS61: 0 | AT61: 0 | AU61: 0 | AV61: 161.41 | AW61: 50.22 | AX61: 0 | AY61: 0 | AZ61: 0 | BA61: 0 | BB61: 0 | BC61: 0 | BD61: 0 | BE61: 0 | BF61: 0 | BG61: 0 | BH61: 0
C62: 2019 | D62: 0 | E62: 0 | F62: 0 | G62: 157.41 | H62: 457.66 | I62: 40.86 | J62: 0 | K62: 0 | L62: 97.81 | M62: 0 | N62: 0 | O62: 0 | P62: 0 | Q62: 337.71 | R62: 0 | S62: 0 | T62: 337.12 | U62: 337.12 | V62: 19.45 | W62: 0 | X62: 0 | Y62: 0 | Z62: 0 | AA62: 129 | AB62: 61.3 | AC62: 35.89 | AD62: 11.62 | AE62: 0 | AF62: 0 | AG62: 0 | AH62: 0 | AI62: 0 | AJ62: 0 | AK62: 0 | AL62: 0 | AM62: 0 | AN62: 0 | AO62: 0 | AP62: 0 | AQ62: 0 | AR62: 0 | AS62: 0 | AT62: 0 | AU62: 0 | AV62: 317.82 | AW62: 94.77 | AX62: 0 | AY62: 0 | AZ62: 0 | BA62: 0 | BB62: 0 | BC62: 0 | BD62: 0 | BE62: 0 | BF62: 0 | BG62: 0 | BH62: 0
C63: 2020 | D63: 0 | E63: 0 | F63: 0 | G63: 162.44 | H63: 662.06 | I63: 48.87 | J63: 0 | K63: 71.56 | L63: 62.04 | M63: 0 | N63: 0 | O63: 0 | P63: 0 | Q63: 297 | R63: 88.52 | S63: 0 | T63: 337.12 | U63: 313.48 | V63: 0 | W63: 0 | X63: 0 | Y63: 0 | Z63: 0 | AA63: 229.71 | AB63: 0 | AC63: 44.57 | AD63: 17.59 | AE63: 0 | AF63: 0 | AG63: 0 | AH63: 0 | AI63: 38.44 | AJ63: 0 | AK63: 0 | AL63: 0 | AM63: 0 | AN63: 0 | AO63: 0 | AP63: 0 | AQ63: 0 | AR63: 0 | AS63: 0 | AT63: 0 | AU63: 0 | AV63: 295.07 | AW63: 94.77 | AX63: 0 | AY63: 0 | AZ63: 0 | BA63: 0 | BB63: 0 | BC63: 0 | BD63: 0 | BE63: 0 | BF63: 0 | BG63: 0 | BH63: 0
C64: 2021 | D64: 0 | E64: 0 | F64: 0 | G64: 162.7 | H64: 685.04 | I64: 56.96 | J64: 0 | K64: 86.02 | L64: 61.3 | M64: 0 | N64: 0 | O64: 0 | P64: 0 | Q64: 433.29 | R64: 56.94 | S64: 0 | T64: 228.4 | U64: 206.1 | V64: 0 | W64: 0 | X64: 0 | Y64: 0 | Z64: 0 | AA64: 229.05 | AB64: 0 | AC64: 27.14 | AD64: 0 | AE64: 0 | AF64: 0 | AG64: 0 | AH64: 1.46 | AI64: 57.18 | AJ64: 0 | AK64: 0 | AL64: 0 | AM64: 0 | AN64: 0 | AO64: 0 | AP64: 0 | AQ64: 0 | AR64: 0 | AS64: 0 | AT64: 0 | AU64: 0 | AV64: 211.65 | AW64: 0 | AX64: 0 | AY64: 0 | AZ64: 0 | BA64: 0 | BB64: 0 | BC64: 0 | BD64: 0 | BE64: 0 | BF64: 0 | BG64: 0 | BH64: 0
C65: 2022 | D65: 0 | E65: 0 | F65: 0 | G65: 162.87 | H65: 685.04 | I65: 65.74 | J65: 1.9 | K65: 50.61 | L65: 47.06 | M65: 0 | N65: 0 | O65: 0 | P65: 0 | Q65: 594.33 | R65: 50.12 | S65: 0 | T65: 9.48 | U65: 0 | V65: 0 | W65: 0 | X65: 0 | Y65: 0 | Z65: 0 | AA65: 208.17 | AB65: 0 | AC65: 0 | AD65: 0 | AE65: 0 | AF65: 0.1 | AG65: 0 | AH65: 30.83 | AI65: 88.05 | AJ65: 0 | AK65: 0 | AL65: 0 | AM65: 0 | AN65: 0 | AO65: 0 | AP65: 0 | AQ65: 0 | AR65: 0 | AS65: 6.06 | AT65: 0 | AU65: 0 | AV65: 207.71 | AW65: 0 | AX65: 0 | AY65: 0 | AZ65: 0 | BA65: 0 | BB65: 0 | BC65: 0 | BD65: 0 | BE65: 0 | BF65: 0 | BG65: 0 | BH65: 0
C66: 2023 | D66: 0 | E66: 0 | F66: 0 | G66: 167.96 | H66: 685.04 | I66: 74.74 | J66: 0 | K66: 42.02 | L66: 58.07 | M66: 0 | N66: 0 | O66: 0 | P66: 0 | Q66: 576.85 | R66: 13.89 | S66: 0 | T66: 19.99 | U66: 0 | V66: 0 | W66: 0 | X66: 0 | Y66: 0 | Z66: 0 | AA66: 276.88 | AB66: 0 | AC66: 0 | AD66: 0 | AE66: 0 | AF66: 16.19 | AG66: 0 | AH66: 33.43 | AI66: 127.81 | AJ66: 0 | AK66: 0 | AL66: 0 | AM66: 0 | AN66: 0 | AO66: 0 | AP66: 0 | AQ66: 0 | AR66: 0 | AS66: 94.77 | AT66: 0 | AU66: 0 | AV66: 148.13 | AW66: 0 | AX66: 0 | AY66: 0 | AZ66: 0 | BA66: 0 | BB66: 0 | BC66: 0 | BD66: 0 | BE66: 0 | BF66: 0 | BG66: 0 | BH66: 0
C67: 2024 | D67: 0 | E67: 0 | F67: 0 | G67: 149.65 | H67: 685.04 | I67: 83.63 | J67: 0 | K67: 33.3 | L67: 64.8 | M67: 0 | N67: 0 | O67: 0 | P67: 0 | Q67: 538.33 | R67: 0 | S67: 0 | T67: 23.89 | U67: 0 | V67: 0 | W67: 0 | X67: 4.61 | Y67: 2.62 | Z67: 0 | AA67: 279.85 | AB67: 0 | AC67: 0 | AD67: 0 | AE67: 0 | AF67: 31.77 | AG67: 0 | AH67: 35.62 | AI67: 94.87 | AJ67: 0 | AK67: 0 | AL67: 0 | AM67: 0 | AN67: 0 | AO67: 0 | AP67: 0 | AQ67: 0 | AR67: 0 | AS67: 94.77 | AT67: 0 | AU67: 0 | AV67: 159.19 | AW67: 0 | AX67: 0 | AY67: 0 | AZ67: 0 | BA67: 0 | BB67: 0 | BC67: 0 | BD67: 0 | BE67: 0 | BF67: 0 | BG67: 0 | BH67: 0
C68: 2025 | D68: 0 | E68: 0 | F68: 0 | G68: 149.03 | H68: 685.04 | I68: 77.97 | J68: 0 | K68: 85.77 | L68: 95.63 | M68: 0 | N68: 0 | O68: 0 | P68: 0 | Q68: 414.99 | R68: 3.85 | S68: 0 | T68: 24.17 | U68: 0 | V68: 0 | W68: 0 | X68: 10.65 | Y68: 9.01 | Z68: 0 | AA68: 221.41 | AB68: 0 | AC68: 0 | AD68: 0 | AE68: 0 | AF68: 27.96 | AG68: 0 | AH68: 72.46 | AI68: 169.08 | AJ68: 0 | AK68: 0 | AL68: 0 | AM68: 0 | AN68: 0 | AO68: 0 | AP68: 0 | AQ68: 0 | AR68: 0 | AS68: 59.67 | AT68: 0 | AU68: 0 | AV68: 216.33 | AW68: 0 | AX68: 0 | AY68: 0 | AZ68: 0 | BA68: 0 | BB68: 0 | BC68: 0 | BD68: 0 | BE68: 0 | BF68: 0 | BG68: 0 | BH68: 0
C69: 2026 | D69: 0 | E69: 0 | F69: 0.47 | G69: 152.56 | H69: 609.52 | I69: 55.86 | J69: 0 | K69: 36.73 | L69: 0 | M69: 0 | N69: 0 | O69: 0 | P69: 0 | Q69: 602.65 | R69: 0.14 | S69: 0 | T69: 11.68 | U69: 0 | V69: 0 | W69: 0 | X69: 15.91 | Y69: 28.71 | Z69: 0 | AA69: 53.21 | AB69: 0 | AC69: 0 | AD69: 0 | AE69: 0 | AF69: 151.69 | AG69: 0 | AH69: 74.59 | AI69: 168.59 | AJ69: 0 | AK69: 0 | AL69: 0 | AM69: 0 | AN69: 0 | AO69: 0 | AP69: 0 | AQ69: 0 | AR69: 0 | AS69: 94.77 | AT69: 0 | AU69: 0 | AV69: 96.17 | AW69: 0 | AX69: 0 | AY69: 0 | AZ69: 0 | BA69: 0 | BB69: 0 | BC69: 0 | BD69: 0 | BE69: 0 | BF69: 0 | BG69: 0 | BH69: 0
C70: 2027 | D70: 0 | E70: 0 | F70: 0 | G70: 134.13 | H70: 572.97 | I70: 19.68 | J70: 0.15 | K70: 0 | L70: 0 | M70: 0 | N70: 0 | O70: 0 | P70: 0 | Q70: 600.5 | R70: 7.72 | S70: 0 | T70: 0 | U70: 0 | V70: 0 | W70: 0 | X70: 22.67 | Y70: 49.19 | Z70: 0 | AA70: 55.55 | AB70: 0 | AC70: 0 | AD70: 0 | AE70: 0 | AF70: 179.93 | AG70: 0.2 | AH70: 33.24 | AI70: 107.01 | AJ70: 0 | AK70: 0 | AL70: 0 | AM70: 0 | AN70: 0 | AO70: 0 | AP70: 0 | AQ70: 0 | AR70: 0 | AS70: 94.77 | AT70: 0 | AU70: 0 | AV70: 112.91 | AW70: 0 | AX70: 0 | AY70: 0 | AZ70: 0 | BA70: 0 | BB70: 0 | BC70: 0 | BD70: 0 | BE70: 0 | BF70: 0 | BG70: 0 | BH70: 0
C71: 2028 | D71: 0 | E71: 0 | F71: 0 | G71: 112.72 | H71: 567.09 | I71: 26.17 | J71: 103.39 | K71: 7.37 | L71: 0 | M71: 0 | N71: 0 | O71: 0 | P71: 0 | Q71: 652.12 | R71: 1.54 | S71: 0 | T71: 0 | U71: 0 | V71: 0 | W71: 0 | X71: 17.05 | Y71: 45.43 | Z71: 0 | AA71: 57.9 | AB71: 0 | AC71: 0 | AD71: 0 | AE71: 0 | AF71: 154.82 | AG71: 2.9 | AH71: 31.95 | AI71: 122.66 | AJ71: 0 | AK71: 0 | AL71: 0 | AM71: 0 | AN71: 0 | AO71: 0 | AP71: 0 | AQ71: 0 | AR71: 0 | AS71: 94.77 | AT71: 0 | AU71: 0 | AV71: 130.62 | AW71: 0 | AX71: 0 | AY71: 0 | AZ71: 0 | BA71: 0 | BB71: 0 | BC71: 0 | BD71: 0 | BE71: 0 | BF71: 0 | BG71: 0 | BH71: 0
C72: 2029 | D72: 0 | E72: 0 | F72: 0.15 | G72: 89.47 | H72: 479.36 | I72: 32.96 | J72: 43.14 | K72: 4.25 | L72: 0 | M72: 0 | N72: 0 | O72: 0 | P72: 83.3 | Q72: 652.12 | R72: 10.88 | S72: 0 | T72: 0 | U72: 0 | V72: 0 | W72: 0 | X72: 23.5 | Y72: 54.25 | Z72: 0.08 | AA72: 61.24 | AB72: 0 | AC72: 0 | AD72: 0 | AE72: 0 | AF72: 106.58 | AG72: 6.5 | AH72: 63.07 | AI72: 150.22 | AJ72: 0 | AK72: 0 | AL72: 0 | AM72: 0 | AN72: 0 | AO72: 0 | AP72: 0 | AQ72: 0 | AR72: 0 | AS72: 94.77 | AT72: 0 | AU72: 0 | AV72: 149.55 | AW72: 0 | AX72: 0 | AY72: 0 | AZ72: 0 | BA72: 0 | BB72: 0 | BC72: 0 | BD72: 0 | BE72: 0 | BF72: 0 | BG72: 0 | BH72: 0
C73: 2030 | D73: 0 | E73: 0 | F73: 3.54 | G73: 86.28 | H73: 516.8 | I73: 15.28 | J73: 190.11 | K73: 14.96 | L73: 1.51 | M73: 0 | N73: 0 | O73: 0 | P73: 0 | Q73: 652.12 | R73: 4.19 | S73: 0 | T73: 0 | U73: 0 | V73: 0 | W73: 0 | X73: 25.23 | Y73: 57.96 | Z73: 0.14 | AA73: 61.37 | AB73: 0 | AC73: 8.65 | AD73: 0 | AE73: 0 | AF73: 89.32 | AG73: 7.8 | AH73: 52.71 | AI73: 134.91 | AJ73: 0 | AK73: 0 | AL73: 0 | AM73: 0 | AN73: 0 | AO73: 0 | AP73: 0 | AQ73: 0 | AR73: 0 | AS73: 116.87 | AT73: 30.45 | AU73: 0 | AV73: 37.19 | AW73: 0 | AX73: 0 | AY73: 0 | AZ73: 0 | BA73: 0 | BB73: 0 | BC73: 0 | BD73: 0 | BE73: 0 | BF73: 0 | BG73: 0 | BH73: 0
C74: 2031 | D74: 0 | E74: 11.56 | F74: 20.64 | G74: 89.57 | H74: 491.07 | I74: 17.51 | J74: 110.07 | K74: 0 | L74: 2.17 | M74: 0 | N74: 0 | O74: 0 | P74: 0 | Q74: 650.85 | R74: 25.07 | S74: 0 | T74: 0 | U74: 0 | V74: 0 | W74: 0 | X74: 23.5 | Y74: 59.76 | Z74: 0.43 | AA74: 70.45 | AB74: 0 | AC74: 0 | AD74: 17.54 | AE74: 0 | AF74: 91.02 | AG74: 8.68 | AH74: 51.47 | AI74: 110.04 | AJ74: 0 | AK74: 0 | AL74: 0 | AM74: 0 | AN74: 0 | AO74: 0 | AP74: 0 | AQ74: 0 | AR74: 0 | AS74: 116.87 | AT74: 83.97 | AU74: 0 | AV74: 23.69 | AW74: 0 | AX74: 0 | AY74: 0 | AZ74: 0 | BA74: 0 | BB74: 0 | BC74: 0 | BD74: 0 | BE74: 0 | BF74: 0 | BG74: 0 | BH74: 0
C75: 2040 | D75: 0 | E75: 0 | F75: 56.95 | G75: 102.16 | H75: 680.71 | I75: 69.07 | J75: 161.02 | K75: 271.76 | L75: 0 | M75: 0 | N75: 0 | O75: 0 | P75: 0 | Q75: 386.3 | R75: 309.61 | S75: 0 | T75: 39.97 | U75: 0 | V75: 0 | W75: 0 | X75: 169 | Y75: 169 | Z75: 89.48 | AA75: 18.99 | AB75: 39.19 | AC75: 0 | AD75: 60.47 | AE75: 71.87 | AF75: 117.07 | AG75: 28.39 | AH75: 75.92 | AI75: 124.22 | AJ75: 0 | AK75: 52.37 | AL75: 0 | AM75: 0 | AN75: 0 | AO75: 0 | AP75: 9.26 | AQ75: 0 | AR75: 14.02 | AS75: 160.5 | AT75: 246.81 | AU75: 15.41 | AV75: 6.34 | AW75: 99.42 | AX75: 226.25 | AY75: 0 | AZ75: 0 | BA75: 0 | BB75: 21.5 | BC75: 89.49 | BD75: 133.2 | BE75: 0 | BF75: 222.34 | BG75: 0 | BH75: 0
C76: 2050 | D76: 0 | E76: 0 | F76: 51.1 | G76: 95.48 | H76: 652.67 | I76: 75.94 | J76: 67.68 | K76: 110.47 | L76: 26.01 | M76: 163.83 | N76: 0 | O76: 23.8 | P76: 0 | Q76: 453.72 | R76: 384.16 | S76: 0 | T76: 0 | U76: 0 | V76: 0 | W76: 0 | X76: 156.43 | Y76: 185.43 | Z76: 84.78 | AA76: 62.99 | AB76: 69.81 | AC76: 1.03 | AD76: 72.31 | AE76: 120.38 | AF76: 103.4 | AG76: 28.3 | AH76: 73.24 | AI76: 112.07 | AJ76: 0 | AK76: 119.54 | AL76: 0 | AM76: 0 | AN76: 50.63 | AO76: 0 | AP76: 181.61 | AQ76: 40.03 | AR76: 181.47 | AS76: 147.37 | AT76: 465.7 | AU76: 17.26 | AV76: 93.44 | AW76: 20.14 | AX76: 196.85 | AY76: 0 | AZ76: 0 | BA76: 0 | BB76: 106.1 | BC76: 188.79 | BD76: 116.07 | BE76: 0 | BF76: 270.48 | BG76: 0 | BH76: 0
C79: Table | D79: 03:00:00 | E79: MAINWAPP, | F79: adb
A80: =IF(C80="MESSAGE",E80,"") ->  | B80: =IF(A80="","",ROW()) -> 
A81: TransmissionInput | B81: 81 | C81: MESSAGE | D81: Int_V2 | E81: TransmissionInput
C82: May | D82: 14, | E82: 2013 | F82: 17:15:00
D84: ELEXGHwCIwInp | E84: ELEXGHwTBwInp | F84: ELEXSEwMAwInp | G84: ELEXCIwBUwInp | H84: ELEXNGwTBwInp | I84: ELEXNGwNIwInp | J84: ELEXCIwGHwInp | K84: ELEXTBwGHwInp | L84: ELEXMAwSEwInp | M84: ELEXBUwCIwInp | N84: ELEXTBwNGwInp | O84: ELEXNIwNGwInp | P84: ELNCDorGHwTBwInp | Q84: ELNCDorCIwGHwInp | R84: ELNCDorTBwGHwInp | S84: ELNCDorGHwCIwInp | T84: ELNCCLSGCIwLIwInp | U84: ELNCCLSGLIwGUwInp | V84: ELNCCLSGLIwSIwInp | W84: ELNCCLSGSIwGUwInp | X84: ELNCCLSGLIwCIwInp | Y84: ELNCCLSGGUwLIwInp | Z84: ELNCCLSGSIwLIwInp | AA84: ELNCCLSGGUwSIwInp | AB84: ELNCOMVGSEwGUwInp | AC84: ELNCOMVGSEwGAwInp | AD84: ELNCOMVGGAwGBwInp | AE84: ELNCOMVGGBwGUwInp | AF84: ELNCOMVGGUwSEwInp | AG84: ELNCOMVGGAwSEwInp | AH84: ELNCOMVGGBwGAwInp | AI84: ELNCOMVGGUwGBwInp | AJ84: ELNUCoNNGwNIwInp | AK84: ELNUCoNNIwTBwInp | AL84: ELNUCoNNIwBUwInp | AM84: ELNUCoNNIwNGwInp | AN84: ELNUCoNTBwNIwInp | AO84: ELNUCoNBUwNIwInp | AP84: ELNChubGHwBUwInp | AQ84: ELNChubBUwMAwInp | AR84: ELNChubMAwCIwInp | AS84: ELNUhubGUwMAwInp | AT84: ELNChubBUwGHwInp | AU84: ELNChubMAwBUwInp | AV84: ELNChubCIwMAwInp | AW84: ELNUhubMAwGUwInp | AX84: ELNUDmeNGwTBwInp | AY84: ELNUDMeTBwGHwInp | AZ84: ELNUDMeTBwNGwInp | BA84: ELNUDMeGHwTBwInp | BB84: ELNUOMVGMAwSEwInp | BC84: ELNUOMVSSEwMAwInp | BD84: ELNULICILIwCIwInp | BE84: ELNULICICIwLIwInp | BF84: ELNUNGTBNGwTBwInp | BG84: ELNUNGTBTBwNGwInp
C86: 2010 | D86: 0 | E86: 0 | F86: 22.6 | G86: 90.28 | H86: 228.84 | I86: 68.8 | J86: 0 | K86: 0 | L86: 0.91 | M86: 0 | N86: 0 | O86: 0 | P86: 0 | Q86: 0 | R86: 0 | S86: 0 | T86: 0 | U86: 0 | V86: 0 | W86: 0 | X86: 0 | Y86: 0 | Z86: 0 | AA86: 0 | AB86: 0 | AC86: 0 | AD86: 0 | AE86: 0 | AF86: 0 | AG86: 0 | AH86: 0 | AI86: 0 | AJ86: 0 | AK86: 0 | AL86: 0 | AM86: 0 | AN86: 0 | AO86: 0 | AP86: 0 | AQ86: 0 | AR86: 0 | AS86: 0 | AT86: 0 | AU86: 0 | AV86: 0 | AW86: 0 | AX86: 0 | AY86: 0 | AZ86: 0 | BA86: 0 | BB86: 0 | BC86: 0 | BD86: 0 | BE86: 0 | BF86: 0 | BG86: 0
C87: 2011 | D87: 0 | E87: 0 | F87: 0 | G87: 0 | H87: 582.55 | I87: 70.35 | J87: 128.08 | K87: 317.41 | L87: 2.96 | M87: 35.37 | N87: 0 | O87: 0 | P87: 0 | Q87: 0 | R87: 0 | S87: 0 | T87: 0 | U87: 0 | V87: 0 | W87: 0 | X87: 0 | Y87: 0 | Z87: 0 | AA87: 0 | AB87: 0 | AC87: 0 | AD87: 0 | AE87: 0 | AF87: 0 | AG87: 0 | AH87: 0 | AI87: 0 | AJ87: 0 | AK87: 0 | AL87: 0 | AM87: 0 | AN87: 0 | AO87: 0 | AP87: 0 | AQ87: 0 | AR87: 0 | AS87: 0 | AT87: 0 | AU87: 0 | AV87: 0 | AW87: 0 | AX87: 0 | AY87: 0 | AZ87: 0 | BA87: 0 | BB87: 0 | BC87: 0 | BD87: 0 | BE87: 0 | BF87: 0 | BG87: 0
C88: 2012 | D88: 0 | E88: 0 | F88: 0 | G88: 42.3 | H88: 612.03 | I88: 76.92 | J88: 13.54 | K88: 317.41 | L88: 14.93 | M88: 0 | N88: 0 | O88: 0 | P88: 0 | Q88: 0 | R88: 0 | S88: 0 | T88: 0 | U88: 0 | V88: 0 | W88: 0 | X88: 0 | Y88: 0 | Z88: 0 | AA88: 0 | AB88: 0 | AC88: 0 | AD88: 0 | AE88: 0 | AF88: 0 | AG88: 0 | AH88: 0 | AI88: 0 | AJ88: 0 | AK88: 0 | AL88: 0 | AM88: 0 | AN88: 0 | AO88: 0 | AP88: 0 | AQ88: 0 | AR88: 0 | AS88: 0 | AT88: 0 | AU88: 0 | AV88: 0 | AW88: 0 | AX88: 0 | AY88: 0 | AZ88: 0 | BA88: 0 | BB88: 0 | BC88: 0 | BD88: 0 | BE88: 0 | BF88: 0 | BG88: 0
C89: 2013 | D89: 6.19 | E89: 0 | F89: 0 | G89: 40.38 | H89: 702.61 | I89: 83.29 | J89: 0 | K89: 230.76 | L89: 41.2 | M89: 0 | N89: 0 | O89: 0 | P89: 0 | Q89: 0 | R89: 265.26 | S89: 0 | T89: 0 | U89: 0 | V89: 0 | W89: 0 | X89: 0 | Y89: 0 | Z89: 0 | AA89: 0 | AB89: 0 | AC89: 0 | AD89: 0 | AE89: 0 | AF89: 0 | AG89: 0 | AH89: 0 | AI89: 0 | AJ89: 0 | AK89: 0 | AL89: 0 | AM89: 0 | AN89: 0 | AO89: 0 | AP89: 70.34 | AQ89: 0 | AR89: 0 | AS89: 0 | AT89: 0 | AU89: 0 | AV89: 106.16 | AW89: 0 | AX89: 0 | AY89: 0 | AZ89: 0 | BA89: 0 | BB89: 0 | BC89: 0 | BD89: 0 | BE89: 0 | BF89: 0 | BG89: 0
C90: 2014 | D90: 0 | E90: 0 | F90: 0 | G90: 7.76 | H90: 612.22 | I90: 45.07 | J90: 0 | K90: 108.54 | L90: 99.84 | M90: 0 | N90: 0 | O90: 0 | P90: 0 | Q90: 0 | R90: 184.41 | S90: 0 | T90: 0 | U90: 0 | V90: 0 | W90: 0 | X90: 0 | Y90: 0 | Z90: 0 | AA90: 0 | AB90: 0 | AC90: 0 | AD90: 0 | AE90: 0 | AF90: 0 | AG90: 0 | AH90: 0 | AI90: 0 | AJ90: 0 | AK90: 0 | AL90: 0 | AM90: 0 | AN90: 0 | AO90: 0 | AP90: 101.57 | AQ90: 0 | AR90: 0 | AS90: 0 | AT90: 0 | AU90: 0 | AV90: 242.95 | AW90: 0 | AX90: 0 | AY90: 0 | AZ90: 0 | BA90: 0 | BB90: 0 | BC90: 0 | BD90: 0 | BE90: 0 | BF90: 0 | BG90: 0
C91: 2015 | D91: 0 | E91: 130.8 | F91: 0 | G91: 0 | H91: 0 | I91: 91.82 | J91: 0 | K91: 0 | L91: 103.46 | M91: 0 | N91: 217.91 | O91: 0 | P91: 45.76 | Q91: 0 | R91: 0 | S91: 0 | T91: 103.86 | U91: 82.8 | V91: 0 | W91: 0 | X91: 0 | Y91: 0 | Z91: 0 | AA91: 1.66 | AB91: 0 | AC91: 0 | AD91: 0 | AE91: 0 | AF91: 0 | AG91: 0 | AH91: 0 | AI91: 0 | AJ91: 0 | AK91: 0 | AL91: 0 | AM91: 0 | AN91: 0 | AO91: 0 | AP91: 118.96 | AQ91: 0 | AR91: 0 | AS91: 0 | AT91: 0 | AU91: 0 | AV91: 239.93 | AW91: 0 | AX91: 0 | AY91: 0 | AZ91: 0 | BA91: 0 | BB91: 0 | BC91: 0 | BD91: 0 | BE91: 0 | BF91: 0 | BG91: 0
C92: 2016 | D92: 0 | E92: 160.45 | F92: 26.05 | G92: 129.91 | H92: 0 | I92: 88.08 | J92: 318.1 | K92: 0 | L92: 0 | M92: 0 | N92: 516.07 | O92: 0 | P92: 356.47 | Q92: 0 | R92: 0 | S92: 0 | T92: 345.77 | U92: 258.59 | V92: 0 | W92: 0 | X92: 0 | Y92: 0 | Z92: 0 | AA92: 83.05 | AB92: 0 | AC92: 0 | AD92: 0 | AE92: 0 | AF92: 0 | AG92: 0 | AH92: 0 | AI92: 0 | AJ92: 0 | AK92: 0 | AL92: 0 | AM92: 0 | AN92: 0 | AO92: 0 | AP92: 0 | AQ92: 0 | AR92: 0 | AS92: 0 | AT92: 0 | AU92: 0 | AV92: 285.35 | AW92: 98.82 | AX92: 0 | AY92: 0 | AZ92: 0 | BA92: 0 | BB92: 0 | BC92: 0 | BD92: 0 | BE92: 0 | BF92: 0 | BG92: 0
C93: 2017 | D93: 0 | E93: 125.14 | F93: 0 | G93: 140.2 | H93: 0 | I93: 95.81 | J93: 0 | K93: 0 | L93: 0.07 | M93: 0 | N93: 638.55 | O93: 0 | P93: 525.72 | Q93: 546.3 | R93: 0 | S93: 0 | T93: 345.77 | U93: 345.77 | V93: 22.6 | W93: 0 | X93: 0 | Y93: 0 | Z93: 0 | AA93: 46.48 | AB93: 0 | AC93: 24.66 | AD93: 4.15 | AE93: 0 | AF93: 0 | AG93: 0 | AH93: 0 | AI93: 0.7 | AJ93: 0 | AK93: 0 | AL93: 0 | AM93: 0 | AN93: 0 | AO93: 0 | AP93: 0 | AQ93: 0 | AR93: 0 | AS93: 0 | AT93: 0 | AU93: 0 | AV93: 266.3 | AW93: 57.67 | AX93: 0 | AY93: 0 | AZ93: 0 | BA93: 0 | BB93: 0 | BC93: 0 | BD93: 0 | BE93: 0 | BF93: 0 | BG93: 0
C94: 2018 | D94: 0 | E94: 183.93 | F94: 0 | G94: 151.39 | H94: 0 | I94: 33.78 | J94: 0 | K94: 0 | L94: 2.83 | M94: 0 | N94: 527.82 | O94: 0 | P94: 398.03 | Q94: 576.77 | R94: 0 | S94: 0 | T94: 345.77 | U94: 345.77 | V94: 21.54 | W94: 0 | X94: 0 | Y94: 0 | Z94: 0 | AA94: 26.19 | AB94: 0 | AC94: 22.91 | AD94: 0 | AE94: 0 | AF94: 0 | AG94: 0 | AH94: 0 | AI94: 9.05 | AJ94: 0 | AK94: 0 | AL94: 0 | AM94: 0 | AN94: 0 | AO94: 0 | AP94: 0 | AQ94: 0 | AR94: 0 | AS94: 0 | AT94: 0 | AU94: 0 | AV94: 168.67 | AW94: 52.37 | AX94: 0 | AY94: 0 | AZ94: 0 | BA94: 0 | BB94: 0 | BC94: 0 | BD94: 0 | BE94: 0 | BF94: 0 | BG94: 0
C95: 2019 | D95: 0 | E95: 0 | F95: 0 | G95: 163.08 | H95: 469.39 | I95: 41.96 | J95: 0 | K95: 0 | L95: 103.46 | M95: 0 | N95: 0 | O95: 0 | P95: 0 | Q95: 344.61 | R95: 0 | S95: 0 | T95: 345.77 | U95: 345.77 | V95: 20.87 | W95: 0 | X95: 0 | Y95: 0 | Z95: 0 | AA95: 132.31 | AB95: 67.66 | AC95: 36.81 | AD95: 11.97 | AE95: 0 | AF95: 0 | AG95: 0 | AH95: 0 | AI95: 0 | AJ95: 0 | AK95: 0 | AL95: 0 | AM95: 0 | AN95: 0 | AO95: 0 | AP95: 0 | AQ95: 0 | AR95: 0 | AS95: 0 | AT95: 0 | AU95: 0 | AV95: 332.1 | AW95: 98.82 | AX95: 0 | AY95: 0 | AZ95: 0 | BA95: 0 | BB95: 0 | BC95: 0 | BD95: 0 | BE95: 0 | BF95: 0 | BG95: 0
C96: 2020 | D96: 0 | E96: 0 | F96: 0 | G96: 168.3 | H96: 679.04 | I96: 50.18 | J96: 0 | K96: 73.4 | L96: 65.62 | M96: 0 | N96: 0 | O96: 0 | P96: 0 | Q96: 303.06 | R96: 90.79 | S96: 0 | T96: 345.77 | U96: 321.52 | V96: 0 | W96: 0 | X96: 0 | Y96: 0 | Z96: 0 | AA96: 235.6 | AB96: 0 | AC96: 45.71 | AD96: 18.11 | AE96: 0 | AF96: 0 | AG96: 0 | AH96: 0 | AI96: 40.85 | AJ96: 0 | AK96: 0 | AL96: 0 | AM96: 0 | AN96: 0 | AO96: 0 | AP96: 0 | AQ96: 0 | AR96: 0 | AS96: 0 | AT96: 0 | AU96: 0 | AV96: 308.33 | AW96: 98.82 | AX96: 0 | AY96: 0 | AZ96: 0 | BA96: 0 | BB96: 0 | BC96: 0 | BD96: 0 | BE96: 0 | BF96: 0 | BG96: 0
C97: 2021 | D97: 0 | E97: 0 | F97: 0 | G97: 168.57 | H97: 702.61 | I97: 58.49 | J97: 0 | K97: 88.23 | L97: 64.84 | M97: 0 | N97: 0 | O97: 0 | P97: 0 | Q97: 442.13 | R97: 58.4 | S97: 0 | T97: 234.26 | U97: 211.38 | V97: 0 | W97: 0 | X97: 0 | Y97: 0 | Z97: 0 | AA97: 234.92 | AB97: 0 | AC97: 27.84 | AD97: 0 | AE97: 0 | AF97: 0 | AG97: 0 | AH97: 1.5 | AI97: 60.76 | AJ97: 0 | AK97: 0 | AL97: 0 | AM97: 0 | AN97: 0 | AO97: 0 | AP97: 0 | AQ97: 0 | AR97: 0 | AS97: 0 | AT97: 0 | AU97: 0 | AV97: 221.16 | AW97: 0 | AX97: 0 | AY97: 0 | AZ97: 0 | BA97: 0 | BB97: 0 | BC97: 0 | BD97: 0 | BE97: 0 | BF97: 0 | BG97: 0
C98: 2022 | D98: 0 | E98: 0 | F98: 0 | G98: 168.75 | H98: 702.61 | I98: 67.51 | J98: 1.96 | K98: 51.9 | L98: 49.78 | M98: 0 | N98: 0 | O98: 0 | P98: 0 | Q98: 606.46 | R98: 51.4 | S98: 0 | T98: 9.72 | U98: 0 | V98: 0 | W98: 0 | X98: 0 | Y98: 0 | Z98: 0 | AA98: 213.51 | AB98: 0 | AC98: 0 | AD98: 0 | AE98: 0 | AF98: 0.11 | AG98: 0 | AH98: 31.75 | AI98: 93.57 | AJ98: 0 | AK98: 0 | AL98: 0 | AM98: 0 | AN98: 0 | AO98: 0 | AP98: 0 | AQ98: 0 | AR98: 0 | AS98: 6.32 | AT98: 0 | AU98: 0 | AV98: 217.04 | AW98: 0 | AX98: 0 | AY98: 0 | AZ98: 0 | BA98: 0 | BB98: 0 | BC98: 0 | BD98: 0 | BE98: 0 | BF98: 0 | BG98: 0
C99: 2023 | D99: 0 | E99: 0 | F99: 0 | G99: 174.01 | H99: 702.61 | I99: 76.75 | J99: 0 | K99: 43.1 | L99: 61.42 | M99: 0 | N99: 0 | O99: 0 | P99: 0 | Q99: 588.62 | R99: 14.24 | S99: 0 | T99: 20.5 | U99: 0 | V99: 0 | W99: 0 | X99: 0 | Y99: 0 | Z99: 0 | AA99: 283.98 | AB99: 0 | AC99: 0 | AD99: 0 | AE99: 0 | AF99: 17.87 | AG99: 0 | AH99: 34.43 | AI99: 135.82 | AJ99: 0 | AK99: 0 | AL99: 0 | AM99: 0 | AN99: 0 | AO99: 0 | AP99: 0 | AQ99: 0 | AR99: 0 | AS99: 98.82 | AT99: 0 | AU99: 0 | AV99: 154.78 | AW99: 0 | AX99: 0 | AY99: 0 | AZ99: 0 | BA99: 0 | BB99: 0 | BC99: 0 | BD99: 0 | BE99: 0 | BF99: 0 | BG99: 0
C100: 2024 | D100: 0 | E100: 0 | F100: 0 | G100: 155.05 | H100: 702.61 | I100: 85.88 | J100: 0 | K100: 34.15 | L100: 68.54 | M100: 0 | N100: 0 | O100: 0 | P100: 0 | Q100: 549.31 | R100: 0 | S100: 0 | T100: 24.51 | U100: 0 | V100: 0 | W100: 0 | X100: 4.73 | Y100: 2.68 | Z100: 0 | AA100: 287.03 | AB100: 0 | AC100: 0 | AD100: 0 | AE100: 0 | AF100: 35.07 | AG100: 0 | AH100: 36.68 | AI100: 100.82 | AJ100: 0 | AK100: 0 | AL100: 0 | AM100: 0 | AN100: 0 | AO100: 0 | AP100: 0 | AQ100: 0 | AR100: 0 | AS100: 98.82 | AT100: 0 | AU100: 0 | AV100: 166.35 | AW100: 0 | AX100: 0 | AY100: 0 | AZ100: 0 | BA100: 0 | BB100: 0 | BC100: 0 | BD100: 0 | BE100: 0 | BF100: 0 | BG100: 0
C101: 2025 | D101: 0 | E101: 0 | F101: 0 | G101: 154.4 | H101: 702.61 | I101: 80.06 | J101: 0 | K101: 87.97 | L101: 101.15 | M101: 0 | N101: 0 | O101: 0 | P101: 0 | Q101: 423.46 | R101: 3.95 | S101: 0 | T101: 24.79 | U101: 0 | V101: 0 | W101: 0 | X101: 10.92 | Y101: 9.24 | Z101: 0 | AA101: 227.09 | AB101: 0 | AC101: 0 | AD101: 0 | AE101: 0 | AF101: 30.86 | AG101: 0 | AH101: 74.62 | AI101: 179.68 | AJ101: 0 | AK101: 0 | AL101: 0 | AM101: 0 | AN101: 0 | AO101: 0 | AP101: 0 | AQ101: 0 | AR101: 0 | AS101: 62.22 | AT101: 0 | AU101: 0 | AV101: 226.05 | AW101: 0 | AX101: 0 | AY101: 0 | AZ101: 0 | BA101: 0 | BB101: 0 | BC101: 0 | BD101: 0 | BE101: 0 | BF101: 0 | BG101: 0
C102: 2026 | D102: 0 | E102: 0 | F102: 0.49 | G102: 158.06 | H102: 625.14 | I102: 57.36 | J102: 0 | K102: 37.67 | L102: 0 | M102: 0 | N102: 0 | O102: 0 | P102: 0 | Q102: 614.95 | R102: 0.14 | S102: 0 | T102: 11.98 | U102: 0 | V102: 0 | W102: 0 | X102: 16.32 | Y102: 29.45 | Z102: 0 | AA102: 54.57 | AB102: 0 | AC102: 0 | AD102: 0 | AE102: 0 | AF102: 167.43 | AG102: 0 | AH102: 76.81 | AI102: 179.16 | AJ102: 0 | AK102: 0 | AL102: 0 | AM102: 0 | AN102: 0 | AO102: 0 | AP102: 0 | AQ102: 0 | AR102: 0 | AS102: 98.82 | AT102: 0 | AU102: 0 | AV102: 100.49 | AW102: 0 | AX102: 0 | AY102: 0 | AZ102: 0 | BA102: 0 | BB102: 0 | BC102: 0 | BD102: 0 | BE102: 0 | BF102: 0 | BG102: 0
C103: 2027 | D103: 0 | E103: 0 | F103: 0 | G103: 138.97 | H103: 587.67 | I103: 20.21 | J103: 0.15 | K103: 0 | L103: 0 | M103: 0 | N103: 0 | O103: 0 | P103: 0 | Q103: 612.75 | R103: 7.92 | S103: 0 | T103: 0 | U103: 0 | V103: 0 | W103: 0 | X103: 23.25 | Y103: 50.45 | Z103: 0 | AA103: 56.98 | AB103: 0 | AC103: 0 | AD103: 0 | AE103: 0 | AF103: 198.6 | AG103: 0.2 | AH103: 34.23 | AI103: 113.72 | AJ103: 0 | AK103: 0 | AL103: 0 | AM103: 0 | AN103: 0 | AO103: 0 | AP103: 0 | AQ103: 0 | AR103: 0 | AS103: 98.82 | AT103: 0 | AU103: 0 | AV103: 117.98 | AW103: 0 | AX103: 0 | AY103: 0 | AZ103: 0 | BA103: 0 | BB103: 0 | BC103: 0 | BD103: 0 | BE103: 0 | BF103: 0 | BG103: 0
C104: 2028 | D104: 0 | E104: 0 | F104: 0 | G104: 116.79 | H104: 581.63 | I104: 26.87 | J104: 106.62 | K104: 7.56 | L104: 0 | M104: 0 | N104: 0 | O104: 0 | P104: 0 | Q104: 665.43 | R104: 1.58 | S104: 0 | T104: 0 | U104: 0 | V104: 0 | W104: 0 | X104: 17.49 | Y104: 46.59 | Z104: 0 | AA104: 59.38 | AB104: 0 | AC104: 0 | AD104: 0 | AE104: 0 | AF104: 170.88 | AG104: 2.97 | AH104: 32.91 | AI104: 130.35 | AJ104: 0 | AK104: 0 | AL104: 0 | AM104: 0 | AN104: 0 | AO104: 0 | AP104: 0 | AQ104: 0 | AR104: 0 | AS104: 98.82 | AT104: 0 | AU104: 0 | AV104: 136.49 | AW104: 0 | AX104: 0 | AY104: 0 | AZ104: 0 | BA104: 0 | BB104: 0 | BC104: 0 | BD104: 0 | BE104: 0 | BF104: 0 | BG104: 0
C105: 2029 | D105: 0 | E105: 0 | F105: 0.15 | G105: 92.7 | H105: 491.66 | I105: 33.85 | J105: 44.49 | K105: 4.36 | L105: 0 | M105: 0 | N105: 0 | O105: 0 | P105: 85.44 | Q105: 665.43 | R105: 11.16 | S105: 0 | T105: 0 | U105: 0 | V105: 0 | W105: 0 | X105: 24.1 | Y105: 55.64 | Z105: 0.09 | AA105: 62.82 | AB105: 0 | AC105: 0 | AD105: 0 | AE105: 0 | AF105: 117.64 | AG105: 6.66 | AH105: 64.95 | AI105: 159.64 | AJ105: 0 | AK105: 0 | AL105: 0 | AM105: 0 | AN105: 0 | AO105: 0 | AP105: 0 | AQ105: 0 | AR105: 0 | AS105: 98.82 | AT105: 0 | AU105: 0 | AV105: 156.27 | AW105: 0 | AX105: 0 | AY105: 0 | AZ105: 0 | BA105: 0 | BB105: 0 | BC105: 0 | BD105: 0 | BE105: 0 | BF105: 0 | BG105: 0
C106: 2030 | D106: 0 | E106: 0 | F106: 3.74 | G106: 89.39 | H106: 530.05 | I106: 15.69 | J106: 196.05 | K106: 15.35 | L106: 1.6 | M106: 0 | N106: 0 | O106: 0 | P106: 0 | Q106: 665.43 | R106: 4.3 | S106: 0 | T106: 0 | U106: 0 | V106: 0 | W106: 0 | X106: 25.87 | Y106: 59.44 | Z106: 0.15 | AA106: 62.94 | AB106: 0 | AC106: 8.87 | AD106: 0 | AE106: 0 | AF106: 98.58 | AG106: 8 | AH106: 54.29 | AI106: 143.37 | AJ106: 0 | AK106: 0 | AL106: 0 | AM106: 0 | AN106: 0 | AO106: 0 | AP106: 0 | AQ106: 0 | AR106: 0 | AS106: 121.87 | AT106: 31.24 | AU106: 0 | AV106: 38.86 | AW106: 0 | AX106: 0 | AY106: 0 | AZ106: 0 | BA106: 0 | BB106: 0 | BC106: 0 | BD106: 0 | BE106: 0 | BF106: 0 | BG106: 0
C107: 2031 | D107: 0 | E107: 11.86 | F107: 21.83 | G107: 92.8 | H107: 503.66 | I107: 17.98 | J107: 113.51 | K107: 0 | L107: 2.3 | M107: 0 | N107: 0 | O107: 0 | P107: 0 | Q107: 664.13 | R107: 25.72 | S107: 0 | T107: 0 | U107: 0 | V107: 0 | W107: 0 | X107: 24.1 | Y107: 61.29 | Z107: 0.47 | AA107: 72.26 | AB107: 0 | AC107: 0 | AD107: 18.06 | AE107: 0 | AF107: 100.46 | AG107: 8.9 | AH107: 53.01 | AI107: 116.94 | AJ107: 0 | AK107: 0 | AL107: 0 | AM107: 0 | AN107: 0 | AO107: 0 | AP107: 0 | AQ107: 0 | AR107: 0 | AS107: 121.87 | AT107: 86.12 | AU107: 0 | AV107: 24.75 | AW107: 0 | AX107: 0 | AY107: 0 | AZ107: 0 | BA107: 0 | BB107: 0 | BC107: 0 | BD107: 0 | BE107: 0 | BF107: 0 | BG107: 0
C108: 2040 | D108: 0 | E108: 0 | F108: 60.24 | G108: 105.84 | H108: 698.16 | I108: 70.92 | J108: 166.05 | K108: 278.73 | L108: 0 | M108: 0 | N108: 0 | O108: 0 | P108: 0 | Q108: 394.18 | R108: 317.55 | S108: 0 | T108: 41 | U108: 0 | V108: 0 | W108: 0 | X108: 173.33 | Y108: 173.33 | Z108: 96.01 | AA108: 19.47 | AB108: 43.25 | AC108: 0 | AD108: 62.28 | AE108: 76.38 | AF108: 129.22 | AG108: 29.12 | AH108: 78.19 | AI108: 132.01 | AJ108: 0 | AK108: 54.38 | AL108: 0 | AM108: 0 | AN108: 0 | AO108: 0 | AP108: 9.5 | AQ108: 0 | AR108: 14.65 | AS108: 167.36 | AT108: 253.14 | AU108: 16.46 | AV108: 6.62 | AW108: 103.67 | AX108: 235.92 | AY108: 0 | AZ108: 0 | BA108: 0 | BB108: 22.14 | BC108: 92.16 | BD108: 137.18 | BE108: 0 | BF108: 228.98 | BG108: 0
C109: 2050 | D109: 0 | E109: 0 | F109: 54.05 | G109: 98.93 | H109: 669.41 | I109: 77.98 | J109: 69.8 | K109: 113.3 | L109: 27.51 | M109: 169.74 | N109: 0 | O109: 24.44 | P109: 0 | Q109: 462.98 | R109: 394.01 | S109: 0 | T109: 0 | U109: 0 | V109: 0 | W109: 0 | X109: 160.44 | Y109: 190.19 | Z109: 90.95 | AA109: 64.6 | AB109: 77.05 | AC109: 1.06 | AD109: 74.47 | AE109: 127.93 | AF109: 114.12 | AG109: 29.02 | AH109: 75.43 | AI109: 119.1 | AJ109: 0 | AK109: 124.13 | AL109: 0 | AM109: 0 | AN109: 52.58 | AO109: 0 | AP109: 186.27 | AQ109: 42.76 | AR109: 189.62 | AS109: 153.68 | AT109: 477.64 | AU109: 18.44 | AV109: 97.64 | AW109: 21 | AX109: 205.26 | AY109: 0 | AZ109: 0 | BA109: 0 | BB109: 109.27 | BC109: 194.43 | BD109: 119.54 | BE109: 0 | BF109: 278.56 | BG109: 0
C112: Table | D112: 04:00:00 | E112: MAINWAPP, | F112: adb
A114: TransmissionCapacity | B114: 114 | C114: MESSAGE | D114: Int_V2 | E114: TransmissionCapacity
C115: May | D115: 14, | E115: 2013 | F115: 17:15:00
D117: ELEXGHwCIwCap | E117: ELEXGHwTBwCap | F117: ELEXSEwMAwCap | G117: ELEXCIwBUwCap | H117: ELEXNGwTBwCap | I117: ELEXNGwNIwCap | J117: ELEXCIwGHwCap | K117: ELEXTBwGHwCap | L117: ELEXMAwSEwCap | M117: ELEXBUwCIwCap | N117: ELEXTBwNGwCap | O117: ELEXNIwNGwCap | P117: ELNCDorGHwTBwCap | Q117: ELNCDorCIwGHwCap | R117: ELNCDorTBwGHwCap | S117: ELNCDorGHwCIwCap | T117: ELNCCLSGCIwLIwCap | U117: ELNCCLSGLIwGUwCap | V117: ELNCCLSGLIwSIwCap | W117: ELNCCLSGSIwGUwCap | X117: ELNCCLSGLIwCIwCap | Y117: ELNCCLSGGUwLIwCap | Z117: ELNCCLSGSIwLIwCap | AA117: ELNCCLSGGUwSIwCap | AB117: ELNCOMVGSEwGUwCap | AC117: ELNCOMVGSEwGAwCap | AD117: ELNCOMVGGAwGBwCap | AE117: ELNCOMVGGBwGUwCap | AF117: ELNCOMVGGUwSEwCap | AG117: ELNCOMVGGAwSEwCap | AH117: ELNCOMVGGBwGAwCap | AI117: ELNCOMVGGUwGBwCap | AJ117: ELNUCoNNGwNIwCap | AK117: ELNUCoNNIwTBwCap | AL117: ELNUCoNNIwBUwCap | AM117: ELNUCoNNIwNGwCap | AN117: ELNUCoNTBwNIwCap | AO117: ELNUCoNBUwNIwCap | AP117: ELNChubGHwBUwCap | AQ117: ELNChubBUwMAwCap | AR117: ELNChubMAwCIwCap | AS117: ELNUhubGUwMAwCap | AT117: ELNChubBUwGHwCap | AU117: ELNChubMAwBUwCap | AV117: ELNChubCIwMAwCap | AW117: ELNUhubMAwGUwCap | AX117: ELNUDmeNGwTBwCap | AY117: ELNUDMeTBwGHwCap | AZ117: ELNUDMeTBwNGwCap | BA117: ELNUDMeGHwTBwCap | BB117: ELNUOMVGMAwSEwCap | BC117: ELNUOMVSSEwMAwCap | BD117: ELNULICILIwCIwCap | BE117: ELNULICICIwLIwCap | BF117: ELNUNGTBNGwTBwCap | BG117: ELNUNGTBTBwNGwCap | BH117: ELNUIngDRcNGwCap
C119: 2010 | D119: 327 | E119: 310 | F119: 100 | G119: 327 | H119: 686 | I119: 169.2 | J119: 327 | K119: 310 | L119: 100 | M119: 327 | N119: 686 | O119: 169.2 | P119: 0 | Q119: 0 | R119: 0 | S119: 0 | T119: 0 | U119: 0 | V119: 0 | W119: 0 | X119: 0 | Y119: 0 | Z119: 0 | AA119: 0 | AB119: 0 | AC119: 0 | AD119: 0 | AE119: 0 | AF119: 0 | AG119: 0 | AH119: 0 | AI119: 0 | AJ119: 0 | AK119: 0 | AL119: 0 | AM119: 0 | AN119: 0 | AO119: 0 | AP119: 0 | AQ119: 0 | AR119: 0 | AS119: 0 | AT119: 0 | AU119: 0 | AV119: 0 | AW119: 0 | AX119: 0 | AY119: 0 | AZ119: 0 | BA119: 0 | BB119: 0 | BC119: 0 | BD119: 0 | BE119: 0 | BF119: 0 | BG119: 0 | BH119: 0
C120: 2011 | D120: 327 | E120: 310 | F120: 100 | G120: 327 | H120: 686 | I120: 169.2 | J120: 327 | K120: 310 | L120: 100 | M120: 327 | N120: 686 | O120: 169.2 | P120: 0 | Q120: 0 | R120: 0 | S120: 0 | T120: 0 | U120: 0 | V120: 0 | W120: 0 | X120: 0 | Y120: 0 | Z120: 0 | AA120: 0 | AB120: 0 | AC120: 0 | AD120: 0 | AE120: 0 | AF120: 0 | AG120: 0 | AH120: 0 | AI120: 0 | AJ120: 0 | AK120: 0 | AL120: 0 | AM120: 0 | AN120: 0 | AO120: 0 | AP120: 0 | AQ120: 0 | AR120: 0 | AS120: 0 | AT120: 0 | AU120: 0 | AV120: 0 | AW120: 0 | AX120: 0 | AY120: 0 | AZ120: 0 | BA120: 0 | BB120: 0 | BC120: 0 | BD120: 0 | BE120: 0 | BF120: 0 | BG120: 0 | BH120: 0
C121: 2012 | D121: 327 | E121: 310 | F121: 100 | G121: 327 | H121: 686 | I121: 169.2 | J121: 327 | K121: 310 | L121: 100 | M121: 327 | N121: 686 | O121: 169.2 | P121: 0 | Q121: 0 | R121: 0 | S121: 0 | T121: 0 | U121: 0 | V121: 0 | W121: 0 | X121: 0 | Y121: 0 | Z121: 0 | AA121: 0 | AB121: 0 | AC121: 0 | AD121: 0 | AE121: 0 | AF121: 0 | AG121: 0 | AH121: 0 | AI121: 0 | AJ121: 0 | AK121: 0 | AL121: 0 | AM121: 0 | AN121: 0 | AO121: 0 | AP121: 0 | AQ121: 0 | AR121: 320 | AS121: 0 | AT121: 0 | AU121: 0 | AV121: 320 | AW121: 0 | AX121: 0 | AY121: 0 | AZ121: 0 | BA121: 0 | BB121: 0 | BC121: 0 | BD121: 0 | BE121: 0 | BF121: 0 | BG121: 0 | BH121: 0
C122: 2013 | D122: 327 | E122: 310 | F122: 100 | G122: 327 | H122: 686 | I122: 169.2 | J122: 327 | K122: 310 | L122: 100 | M122: 327 | N122: 686 | O122: 169.2 | P122: 655 | Q122: 0 | R122: 655 | S122: 0 | T122: 0 | U122: 0 | V122: 0 | W122: 0 | X122: 0 | Y122: 0 | Z122: 0 | AA122: 0 | AB122: 0 | AC122: 0 | AD122: 0 | AE122: 0 | AF122: 0 | AG122: 0 | AH122: 0 | AI122: 0 | AJ122: 0 | AK122: 0 | AL122: 0 | AM122: 0 | AN122: 0 | AO122: 0 | AP122: 332 | AQ122: 0 | AR122: 320 | AS122: 0 | AT122: 332 | AU122: 0 | AV122: 320 | AW122: 0 | AX122: 0 | AY122: 0 | AZ122: 0 | BA122: 0 | BB122: 0 | BC122: 0 | BD122: 0 | BE122: 0 | BF122: 0 | BG122: 0 | BH122: 0
C123: 2014 | D123: 327 | E123: 310 | F123: 100 | G123: 327 | H123: 686 | I123: 169.2 | J123: 327 | K123: 310 | L123: 100 | M123: 327 | N123: 686 | O123: 169.2 | P123: 655 | Q123: 0 | R123: 655 | S123: 0 | T123: 0 | U123: 0 | V123: 0 | W123: 0 | X123: 0 | Y123: 0 | Z123: 0 | AA123: 0 | AB123: 0 | AC123: 0 | AD123: 0 | AE123: 0 | AF123: 0 | AG123: 0 | AH123: 0 | AI123: 0 | AJ123: 0 | AK123: 0 | AL123: 0 | AM123: 0 | AN123: 0 | AO123: 0 | AP123: 332 | AQ123: 0 | AR123: 320 | AS123: 0 | AT123: 332 | AU123: 0 | AV123: 320 | AW123: 0 | AX123: 0 | AY123: 0 | AZ123: 0 | BA123: 0 | BB123: 0 | BC123: 0 | BD123: 0 | BE123: 0 | BF123: 0 | BG123: 0 | BH123: 0
C124: 2015 | D124: 327 | E124: 310 | F124: 100 | G124: 327 | H124: 686 | I124: 169.2 | J124: 327 | K124: 310 | L124: 100 | M124: 327 | N124: 686 | O124: 169.2 | P124: 655 | Q124: 0 | R124: 655 | S124: 0 | T124: 338 | U124: 338 | V124: 303 | W124: 334 | X124: 338 | Y124: 338 | Z124: 303 | AA124: 334 | AB124: 0 | AC124: 0 | AD124: 0 | AE124: 0 | AF124: 0 | AG124: 0 | AH124: 0 | AI124: 0 | AJ124: 0 | AK124: 0 | AL124: 0 | AM124: 0 | AN124: 0 | AO124: 0 | AP124: 664 | AQ124: 306 | AR124: 320 | AS124: 0 | AT124: 664 | AU124: 306 | AV124: 320 | AW124: 0 | AX124: 0 | AY124: 0 | AZ124: 0 | BA124: 0 | BB124: 0 | BC124: 0 | BD124: 0 | BE124: 0 | BF124: 0 | BG124: 0 | BH124: 0
C125: 2016 | D125: 327 | E125: 310 | F125: 100 | G125: 327 | H125: 686 | I125: 169.2 | J125: 327 | K125: 310 | L125: 100 | M125: 327 | N125: 686 | O125: 169.2 | P125: 655 | Q125: 0 | R125: 655 | S125: 0 | T125: 338 | U125: 338 | V125: 303 | W125: 334 | X125: 338 | Y125: 338 | Z125: 303 | AA125: 334 | AB125: 0 | AC125: 0 | AD125: 0 | AE125: 0 | AF125: 0 | AG125: 0 | AH125: 0 | AI125: 0 | AJ125: 0 | AK125: 0 | AL125: 0 | AM125: 0 | AN125: 0 | AO125: 0 | AP125: 664 | AQ125: 306 | AR125: 320 | AS125: 95.38 | AT125: 664 | AU125: 306 | AV125: 320 | AW125: 95.38 | AX125: 0 | AY125: 0 | AZ125: 0 | BA125: 0 | BB125: 0 | BC125: 0 | BD125: 0 | BE125: 0 | BF125: 0 | BG125: 0 | BH125: 0
... 131 more rows

Sheet TechCosts
G1: Discount | H1: 0.5
D2: 1 | E2: =D2+1 -> 2 | F2: =E2+1 -> 3 | G2: 4 | H2: 5 | I2: 6 | J2: 7 | K2: 8 | L2: 9 | M2: 10 | BJ2: CO2 price ($/ton) | BL2: 0 | BM2: 0 | BN2: 0 | BO2: 0 | BP2: 0 | BQ2: 0 | BR2: 0 | BS2: 0 | BT2: 0 | BU2: 0 | BV2: 0 | BW2: 0 | BX2: 0 | BY2: 0 | BZ2: 0 | CA2: 0 | CB2: 0 | CC2: 0 | CD2: 0 | CE2: 0 | CF2: 0 | CG2: 1 | CH2: 0 | CI2: 0
A3: Lookup string1 | B3: Country | C3: Tech | D3: Lookup String2 | E3: Efficiency | F3: Emission Factor | G3: Variable Costs | H3: Fixed Costs | I3: Life | J3: CRF | K3: Availability | L3: IDC | M3: Project Name | N3: Capital Costs | AL3: Fuel Costs ($/MWh)
F4: ton/MWh | G4: US$/MWh | H4: US$/kW | N4: US$/kW | BL4: LCOE ($/MWh)
A5: Existing | N5: 2010 | O5: =N5+1 -> 2011 | P5: =O5+1 -> 2012 | Q5: 2013 | R5: 2014 | S5: 2015 | T5: 2016 | U5: 2017 | V5: 2018 | W5: 2019 | X5: 2020 | Y5: 2021 | Z5: 2022 | AA5: 2023 | AB5: 2024 | AC5: =AB5+1 -> 2025 | AD5: 2026 | AE5: 2027 | AF5: 2028 | AG5: 2029 | AH5: 2030 | AI5: 2031 | AJ5: 2040 | AK5: 2050 | AM5: =N5 -> 2010 | AN5: 2011 | AO5: 2012 | AP5: 2013 | AQ5: 2014 | AR5: 2015 | AS5: 2016 | AT5: 2017 | AU5: 2018 | AV5: 2019 | AW5: 2020 | AX5: 2021 | AY5: 2022 | AZ5: 2023 | BA5: 2024 | BB5: 2025 | BC5: 2026 | BD5: 2027 | BE5: 2028 | BF5: 2029 | BG5: 2030 | BH5: 2031 | BI5: 2040 | BJ5: 2050 | BL5: =AM5 -> 2010 | BM5: 2011 | BN5: 2012 | BO5: 2013 | BP5: 2014 | BQ5: 2015 | BR5: 2016 | BS5: 2017 | BT5: 2018 | BU5: 2019 | BV5: 2020 | BW5: 2021 | BX5: 2022 | BY5: 2023 | BZ5: 2024 | CA5: 2025 | CB5: 2026 | CC5: 2027 | CD5: 2028 | CE5: 2029 | CF5: 2030 | CG5: 2031 | CH5: =BI5 -> 2040 | CI5: 2050
A6: =[2]TechCosts!A6 -> SENEPOHFEXST | B6: =[2]TechCosts!B6 -> SEN | C6: =[2]TechCosts!C6 -> EPOHFEXST | D6: =[2]TechCosts!D6 -> SEwEPOHFEXST | E6: =[2]TechCosts!E6 -> 0.2790697674 | F6: =[2]TechCosts!F6 -> 1.040643 | G6: =[2]TechCosts!G6 -> 0 | H6: =[2]TechCosts!H6 -> 129.0245011 | I6: =[2]TechCosts!I6 -> 0 | J6: =[2]TechCosts!J6 -> 0 | K6: =[2]TechCosts!K6 -> 0.8556210046 | L6: =[2]TechCosts!L6 -> 0 | M6: =[2]TechCosts!M6 -> 0 | N6: =[2]TechCosts!N6 -> 0 | O6: =[2]TechCosts!O6 -> 0 | P6: =[2]TechCosts!P6 -> 0 | Q6: =[2]TechCosts!Q6 -> 0 | R6: =[2]TechCosts!R6 -> 0 | S6: =[2]TechCosts!S6 -> 0 | T6: =[2]TechCosts!T6 -> 0 | U6: =[2]TechCosts!U6 -> 0 | V6: =[2]TechCosts!V6 -> 0 | W6: =[2]TechCosts!W6 -> 0 | X6: =[2]TechCosts!X6 -> 0 | Y6: =[2]TechCosts!Y6 -> 0 | Z6: =[2]TechCosts!Z6 -> 0 | AA6: =[2]TechCosts!AA6 -> 0 | AB6: =[2]TechCosts!AB6 -> 0 | AC6: =[2]TechCosts!AC6 -> 0 | AD6: =[2]TechCosts!AD6 -> 0 | AE6: =[2]TechCosts!AE6 -> 0 | AF6: =[2]TechCosts!AF6 -> 0 | AG6: =[2]TechCosts!AG6 -> 0 | AH6: =[2]TechCosts!AH6 -> 0 | AI6: =[2]TechCosts!AI6 -> 0 | AJ6: =[2]TechCosts!AJ6 -> 0 | AK6: =[2]TechCosts!AK6 -> 0 | AL6: =[2]TechCosts!AL6 -> OHFC | AM6: =[2]TechCosts!AM6 -> 166.4859209 | AN6: =[2]TechCosts!AN6 -> 169.8401826 | AO6: =[2]TechCosts!AO6 -> 173.1944444 | AP6: =[2]TechCosts!AP6 -> 176.5487062 | AQ6: =[2]TechCosts!AQ6 -> 179.902968 | AR6: =[2]TechCosts!AR6 -> 183.2572298 | AS6: =[2]TechCosts!AS6 -> 186.6114916 | AT6: =[2]TechCosts!AT6 -> 189.9657534 | AU6: =[2]TechCosts!AU6 -> 193.3200152 | AV6: =[2]TechCosts!AV6 -> 196.674277 | AW6: =[2]TechCosts!AW6 -> 199.7708333 | AX6: =[2]TechCosts!AX6 -> 202.2210807 | AY6: =[2]TechCosts!AY6 -> 204.671328 | AZ6: =[2]TechCosts!AZ6 -> 207.1215753 | BA6: =[2]TechCosts!BA6 -> 209.5718227 | BB6: =[2]TechCosts!BB6 -> 212.02207 | BC6: =[2]TechCosts!BC6 -> 214.4723174 | BD6: =[2]TechCosts!BD6 -> 216.9225647 | BE6: =[2]TechCosts!BE6 -> 219.372812 | BF6: =[2]TechCosts!BF6 -> 221.8230594 | BG6: =[2]TechCosts!BG6 -> 224.7928082 | BH6: =[2]TechCosts!BH6 -> 224.7928082 | BI6: =[2]TechCosts!BI6 -> 224.7928082 | BJ6: =[2]TechCosts!BJ6 -> 224.7928082 | BK6: =[2]TechCosts!BK6 -> 0 | BL6: =[2]TechCosts!BL6 ->  | BM6: =[2]TechCosts!BM6 ->  | BN6: =[2]TechCosts!BN6 ->  | BO6: =[2]TechCosts!BO6 ->  | BP6: =[2]TechCosts!BP6 ->  | BQ6: =[2]TechCosts!BQ6 ->  | BR6: =[2]TechCosts!BR6 ->  | BS6: =[2]TechCosts!BS6 ->  | BT6: =[2]TechCosts!BT6 ->  | BU6: =[2]TechCosts!BU6 ->  | BV6: =[2]TechCosts!BV6 ->  | BW6: =[2]TechCosts!BW6 ->  | BX6: =[2]TechCosts!BX6 ->  | BY6: =[2]TechCosts!BY6 ->  | BZ6: =[2]TechCosts!BZ6 ->  | CA6: =[2]TechCosts!CA6 ->  | CB6: =[2]TechCosts!CB6 ->  | CC6: =[2]TechCosts!CC6 ->  | CD6: =[2]TechCosts!CD6 ->  | CE6: =[2]TechCosts!CE6 ->  | CF6: =[2]TechCosts!CF6 ->  | CG6: =[2]TechCosts!CG6 ->  | CH6: =[2]TechCosts!CH6 ->  | CI6: =[2]TechCosts!CI6 -> 
A7: SENEPOHFEXDI | B7: SEN | C7: EPOHFEXDI | D7: SEwEPOHFEXDI | E7: 0.3998871059 | F7: 0.7262349691 | G7: 0 | H7: 75.1836672 | I7: 0 | J7: 0 | K7: 0.801369863 | L7: 0 | M7: 0 | N7: 0 | O7: 0 | P7: 0 | Q7: 0 | R7: 0 | S7: 0 | T7: 0 | U7: 0 | V7: 0 | W7: 0 | X7: 0 | Y7: 0 | Z7: 0 | AA7: 0 | AB7: 0 | AC7: 0 | AD7: 0 | AE7: 0 | AF7: 0 | AG7: 0 | AH7: 0 | AI7: 0 | AJ7: 0 | AK7: 0 | AL7: OHFC | AM7: 116.1857598 | AN7: 118.5266031 | AO7: 120.8674464 | AP7: 123.2082897 | AQ7: 125.549133 | AR7: 127.8899763 | AS7: 130.2308197 | AT7: 132.571663 | AU7: 134.9125063 | AV7: 137.2533496 | AW7: 139.4143477 | AX7: 141.1243051 | AY7: 142.8342626 | AZ7: 144.5442201 | BA7: 146.2541776 | BB7: 147.9641351 | BC7: 149.6740926 | BD7: 151.3840501 | BE7: 153.0940076 | BF7: 154.8039651 | BG7: 156.8764679 | BH7: 156.8764679 | BI7: 156.8764679 | BJ7: 156.8764679 | BK7: 0
A8: SENEPODSEXGT | B8: SEN | C8: EPODSEXGT | D8: SEwEPODSEXGT | E8: 0.2208588957 | F8: 1.207341 | G8: 0 | H8: 34.87645745 | I8: 0 | J8: 0 | K8: 0.8556210046 | L8: 0 | M8: 0 | N8: 0 | O8: 0 | P8: 0 | Q8: 0 | R8: 0 | S8: 0 | T8: 0 | U8: 0 | V8: 0 | W8: 0 | X8: 0 | Y8: 0 | Z8: 0 | AA8: 0 | AB8: 0 | AC8: 0 | AD8: 0 | AE8: 0 | AF8: 0 | AG8: 0 | AH8: 0 | AI8: 0 | AJ8: 0 | AK8: 0 | AL8: ODSC | AM8: 357.1569001 | AN8: 364.3930746 | AO8: 371.6292491 | AP8: 378.8654236 | AQ8: 386.1015982 | AR8: 393.3377727 | AS8: 400.5739472 | AT8: 407.8101218 | AU8: 415.0462963 | AV8: 422.2824708 | AW8: 429.0017757 | AX8: 434.1704718 | AY8: 439.3391679 | AZ8: 444.507864 | BA8: 449.6765601 | BB8: 454.8452562 | BC8: 460.0139523 | BD8: 465.1826484 | BE8: 470.3513445 | BF8: 475.5200406 | BG8: 481.7224759 | BH8: 481.7224759 | BI8: 481.7224759 | BJ8: 481.7224759 | BK8: 0
A9: SENEPGASEXCC | B9: SEN | C9: EPGASEXCC | D9: SEwEPGASEXCC | E9: 0.3913043478 | F9: 0.5163622527 | G9: 0 | H9: 52.69171437 | I9: 0 | J9: 0 | K9: 0.8556210046 | L9: 0 | M9: 0 | N9: 0 | O9: 0 | P9: 0 | Q9: 0 | R9: 0 | S9: 0 | T9: 0 | U9: 0 | V9: 0 | W9: 0 | X9: 0 | Y9: 0 | Z9: 0 | AA9: 0 | AB9: 0 | AC9: 0 | AD9: 0 | AE9: 0 | AF9: 0 | AG9: 0 | AH9: 0 | AI9: 0 | AJ9: 0 | AK9: 0 | AL9: GASLNG | AM9: 101.2303399 | AN9: 102.3972603 | AO9: 103.5641806 | AP9: 104.731101 | AQ9: 105.8980213 | AR9: 107.0649417 | AS9: 108.231862 | AT9: 109.3987823 | AU9: 110.5657027 | AV9: 111.732623 | AW9: 112.8995434 | AX9: 114.6499239 | AY9: 116.4003044 | AZ9: 118.1506849 | BA9: 119.9010654 | BB9: 121.651446 | BC9: 123.4018265 | BD9: 125.152207 | BE9: 126.9025875 | BF9: 128.652968 | BG9: 130.4033486 | BH9: 130.4033486 | BI9: 130.4033486 | BJ9: 130.4033486 | BK9: 0
A10: SENEPHYDEXMan | B10: SEN | C10: EPHYDEXMan | D10: SEwEPHYDEXMan | E10: 1 | F10: 0 | G10: 0 | H10: 120.0087085 | I10: 0 | J10: 0 | K10: 0.2784274418 | L10: 0 | M10: 0 | N10: 0 | O10: 0 | P10: 0 | Q10: 0 | R10: 0 | S10: 0 | T10: 0 | U10: 0 | V10: 0 | W10: 0 | X10: 0 | Y10: 0 | Z10: 0 | AA10: 0 | AB10: 0 | AC10: 0 | AD10: 0 | AE10: 0 | AF10: 0 | AG10: 0 | AH10: 0 | AI10: 0 | AJ10: 0 | AK10: 0 | AL10: HYD | AM10: 0 | AN10: 0 | AO10: 0 | AP10: 0 | AQ10: 0 | AR10: 0 | AS10: 0 | AT10: 0 | AU10: 0 | AV10: 0 | AW10: 0 | AX10: 0 | AY10: 0 | AZ10: 0 | BA10: 0 | BB10: 0 | BC10: 0 | BD10: 0 | BE10: 0 | BF10: 0 | BG10: 0 | BH10: 0 | BI10: 0 | BJ10: 0 | BK10: 0
A11: GAMEPODSEXDI | B11: GAM | C11: EPODSEXDI | D11: GAwEPODSEXDI | E11: 0.288 | F11: 0.925875 | G11: 0 | H11: 59.59001771 | I11: 0 | J11: 0 | K11: 0.801369863 | L11: 0 | M11: 0 | N11: 0 | O11: 0 | P11: 0 | Q11: 0 | R11: 0 | S11: 0 | T11: 0 | U11: 0 | V11: 0 | W11: 0 | X11: 0 | Y11: 0 | Z11: 0 | AA11: 0 | AB11: 0 | AC11: 0 | AD11: 0 | AE11: 0 | AF11: 0 | AG11: 0 | AH11: 0 | AI11: 0 | AJ11: 0 | AK11: 0 | AL11: ODSC | AM11: 273.8933283 | AN11: 279.4425419 | AO11: 284.9917555 | AP11: 290.5409691 | AQ11: 296.0901826 | AR11: 301.6393962 | AS11: 307.1886098 | AT11: 312.7378234 | AU11: 318.287037 | AV11: 323.8362506 | AW11: 328.9890918 | AX11: 332.9528158 | AY11: 336.9165398 | AZ11: 340.8802638 | BA11: 344.8439878 | BB11: 348.8077118 | BC11: 352.7714358 | BD11: 356.7351598 | BE11: 360.6988838 | BF11: 364.6626078 | BG11: 369.4190766 | BH11: 369.4190766 | BI11: 369.4190766 | BJ11: 369.4190766 | BK11: 0
A12: GAMEPOHFEXDI | B12: GAM | C12: EPOHFEXDI | D12: GAwEPOHFEXDI | E12: 0.3699309797 | F12: 0.7850437403 | G12: 0 | H12: 75.1836672 | I12: 0 | J12: 0 | K12: 0.801369863 | L12: 0 | M12: 0 | N12: 0 | O12: 0 | P12: 0 | Q12: 0 | R12: 0 | S12: 0 | T12: 0 | U12: 0 | V12: 0 | W12: 0 | X12: 0 | Y12: 0 | Z12: 0 | AA12: 0 | AB12: 0 | AC12: 0 | AD12: 0 | AE12: 0 | AF12: 0 | AG12: 0 | AH12: 0 | AI12: 0 | AJ12: 0 | AK12: 0 | AL12: OHFC | AM12: 125.5942048 | AN12: 128.124604 | AO12: 130.6550032 | AP12: 133.1854024 | AQ12: 135.7158016 | AR12: 138.2462008 | AS12: 140.7766 | AT12: 143.3069992 | AU12: 145.8373984 | AV12: 148.3677977 | AW12: 150.7037881 | AX12: 152.5522139 | AY12: 154.4006397 | AZ12: 156.2490654 | BA12: 158.0974912 | BB12: 159.945917 | BC12: 161.7943427 | BD12: 163.6427685 | BE12: 165.4911943 | BF12: 167.33962 | BG12: 169.5799491 | BH12: 169.5799491 | BI12: 169.5799491 | BJ12: 169.5799491 | BK12: 0
A13: GBIEPODSEXDI | B13: GBI | C13: EPODSEXDI | D13: GBwEPODSEXDI | E13: 0.3636363636 | F13: 0.733293 | G13: 0 | H13: 59.59001771 | I13: 0 | J13: 0 | K13: 0.6678082192 | L13: 0 | M13: 0 | N13: 0 | O13: 0 | P13: 0 | Q13: 0 | R13: 0 | S13: 0 | T13: 0 | U13: 0 | V13: 0 | W13: 0 | X13: 0 | Y13: 0 | Z13: 0 | AA13: 0 | AB13: 0 | AC13: 0 | AD13: 0 | AE13: 0 | AF13: 0 | AG13: 0 | AH13: 0 | AI13: 0 | AJ13: 0 | AK13: 0 | AL13: ODSC | AM13: 216.923516 | AN13: 221.3184932 | AO13: 225.7134703 | AP13: 230.1084475 | AQ13: 234.5034247 | AR13: 238.8984018 | AS13: 243.293379 | AT13: 247.6883562 | AU13: 252.0833333 | AV13: 256.4783105 | AW13: 260.5593607 | AX13: 263.6986301 | AY13: 266.8378995 | AZ13: 269.9771689 | BA13: 273.1164384 | BB13: 276.2557078 | BC13: 279.3949772 | BD13: 282.5342466 | BE13: 285.673516 | BF13: 288.8127854 | BG13: 292.5799087 | BH13: 292.5799087 | BI13: 292.5799087 | BJ13: 292.5799087 | BK13: 0
A14: GUIEPOHFEXDI | B14: GUI | C14: EPOHFEXDI | D14: GUwEPOHFEXDI | E14: 0.404494382 | F14: 0.717963 | G14: 0 | H14: 132.8509475 | I14: 0 | J14: 0 | K14: 0.801369863 | L14: 0 | M14: 0 | N14: 0 | O14: 0 | P14: 0 | Q14: 0 | R14: 0 | S14: 0 | T14: 0 | U14: 0 | V14: 0 | W14: 0 | X14: 0 | Y14: 0 | Z14: 0 | AA14: 0 | AB14: 0 | AC14: 0 | AD14: 0 | AE14: 0 | AF14: 0 | AG14: 0 | AH14: 0 | AI14: 0 | AJ14: 0 | AK14: 0 | AL14: OHFC | AM14: 114.8623795 | AN14: 117.1765601 | AO14: 119.4907407 | AP14: 121.8049214 | AQ14: 124.119102 | AR14: 126.4332826 | AS14: 128.7474632 | AT14: 131.0616438 | AU14: 133.3758245 | AV14: 135.6900051 | AW14: 137.8263889 | AX14: 139.5168696 | AY14: 141.2073503 | AZ14: 142.8978311 | BA14: 144.5883118 | BB14: 146.2787925 | BC14: 147.9692732 | BD14: 149.6597539 | BE14: 151.3502347 | BF14: 153.0407154 | BG14: 155.0896119 | BH14: 155.0896119 | BI14: 155.0896119 | BJ14: 155.0896119 | BK14: 0
A15: GUIEPHYDEXDABan | B15: GUI | C15: EPHYDEXDABan | D15: GUwEPHYDEXDABan | E15: 1 | F15: 0 | G15: 0 | H15: 130.9908463 | I15: 0 | J15: 0 | K15: 0.5552511416 | L15: 0 | M15: 0 | N15: 0 | O15: 0 | P15: 0 | Q15: 0 | R15: 0 | S15: 0 | T15: 0 | U15: 0 | V15: 0 | W15: 0 | X15: 0 | Y15: 0 | Z15: 0 | AA15: 0 | AB15: 0 | AC15: 0 | AD15: 0 | AE15: 0 | AF15: 0 | AG15: 0 | AH15: 0 | AI15: 0 | AJ15: 0 | AK15: 0 | AL15: HYD | AM15: 0 | AN15: 0 | AO15: 0 | AP15: 0 | AQ15: 0 | AR15: 0 | AS15: 0 | AT15: 0 | AU15: 0 | AV15: 0 | AW15: 0 | AX15: 0 | AY15: 0 | AZ15: 0 | BA15: 0 | BB15: 0 | BC15: 0 | BD15: 0 | BE15: 0 | BF15: 0 | BG15: 0 | BH15: 0 | BI15: 0 | BJ15: 0 | BK15: 0
A16: GUIEPHYDEXRODon | B16: GUI | C16: EPHYDEXRODon | D16: GUwEPHYDEXRODon | E16: 1 | F16: 0 | G16: 0 | H16: 121.6692056 | I16: 0 | J16: 0 | K16: 0.5759651308 | L16: 0 | M16: 0 | N16: 0 | O16: 0 | P16: 0 | Q16: 0 | R16: 0 | S16: 0 | T16: 0 | U16: 0 | V16: 0 | W16: 0 | X16: 0 | Y16: 0 | Z16: 0 | AA16: 0 | AB16: 0 | AC16: 0 | AD16: 0 | AE16: 0 | AF16: 0 | AG16: 0 | AH16: 0 | AI16: 0 | AJ16: 0 | AK16: 0 | AL16: HYD | AM16: 0 | AN16: 0 | AO16: 0 | AP16: 0 | AQ16: 0 | AR16: 0 | AS16: 0 | AT16: 0 | AU16: 0 | AV16: 0 | AW16: 0 | AX16: 0 | AY16: 0 | AZ16: 0 | BA16: 0 | BB16: 0 | BC16: 0 | BD16: 0 | BE16: 0 | BF16: 0 | BG16: 0 | BH16: 0 | BI16: 0 | BJ16: 0 | BK16: 0
A17: GUIEPHYDEXDAGra | B17: GUI | C17: EPHYDEXDAGra | D17: GUwEPHYDEXDAGra | E17: 1 | F17: 0 | G17: 0 | H17: 120.359357 | I17: 0 | J17: 0 | K17: 0.9 | L17: 0 | M17: 0 | N17: 0 | O17: 0 | P17: 0 | Q17: 0 | R17: 0 | S17: 0 | T17: 0 | U17: 0 | V17: 0 | W17: 0 | X17: 0 | Y17: 0 | Z17: 0 | AA17: 0 | AB17: 0 | AC17: 0 | AD17: 0 | AE17: 0 | AF17: 0 | AG17: 0 | AH17: 0 | AI17: 0 | AJ17: 0 | AK17: 0 | AL17: HYD | AM17: 0 | AN17: 0 | AO17: 0 | AP17: 0 | AQ17: 0 | AR17: 0 | AS17: 0 | AT17: 0 | AU17: 0 | AV17: 0 | AW17: 0 | AX17: 0 | AY17: 0 | AZ17: 0 | BA17: 0 | BB17: 0 | BC17: 0 | BD17: 0 | BE17: 0 | BF17: 0 | BG17: 0 | BH17: 0 | BI17: 0 | BJ17: 0 | BK17: 0
A18: GUIEPHYDEXDAGar | B18: GUI | C18: EPHYDEXDAGar | D18: GUwEPHYDEXDAGar | E18: 1 | F18: 0 | G18: 0 | H18: 120.0087085 | I18: 0 | J18: 0 | K18: 0.3105022831 | L18: 0 | M18: 0 | N18: 0 | O18: 0 | P18: 0 | Q18: 0 | R18: 0 | S18: 0 | T18: 0 | U18: 0 | V18: 0 | W18: 0 | X18: 0 | Y18: 0 | Z18: 0 | AA18: 0 | AB18: 0 | AC18: 0 | AD18: 0 | AE18: 0 | AF18: 0 | AG18: 0 | AH18: 0 | AI18: 0 | AJ18: 0 | AK18: 0 | AL18: HYD | AM18: 0 | AN18: 0 | AO18: 0 | AP18: 0 | AQ18: 0 | AR18: 0 | AS18: 0 | AT18: 0 | AU18: 0 | AV18: 0 | AW18: 0 | AX18: 0 | AY18: 0 | AZ18: 0 | BA18: 0 | BB18: 0 | BC18: 0 | BD18: 0 | BE18: 0 | BF18: 0 | BG18: 0 | BH18: 0 | BI18: 0 | BJ18: 0 | BK18: 0
A19: GUIEPHYDEXDAKin | B19: GUI | C19: EPHYDEXDAKin | D19: GUwEPHYDEXDAKin | E19: 1 | F19: 0 | G19: 0 | H19: 120.0087085 | I19: 0 | J19: 0 | K19: 0.3626107977 | L19: 0 | M19: 0 | N19: 0 | O19: 0 | P19: 0 | Q19: 0 | R19: 0 | S19: 0 | T19: 0 | U19: 0 | V19: 0 | W19: 0 | X19: 0 | Y19: 0 | Z19: 0 | AA19: 0 | AB19: 0 | AC19: 0 | AD19: 0 | AE19: 0 | AF19: 0 | AG19: 0 | AH19: 0 | AI19: 0 | AJ19: 0 | AK19: 0 | AL19: HYD | AM19: 0 | AN19: 0 | AO19: 0 | AP19: 0 | AQ19: 0 | AR19: 0 | AS19: 0 | AT19: 0 | AU19: 0 | AV19: 0 | AW19: 0 | AX19: 0 | AY19: 0 | AZ19: 0 | BA19: 0 | BB19: 0 | BC19: 0 | BD19: 0 | BE19: 0 | BF19: 0 | BG19: 0 | BH19: 0 | BI19: 0 | BJ19: 0 | BK19: 0
A20: GUIEPHYDEXROTin | B20: GUI | C20: EPHYDEXROTin | D20: GUwEPHYDEXROTin | E20: 1 | F20: 0 | G20: 0 | H20: 120.0087085 | I20: 0 | J20: 0 | K20: 0.3500761035 | L20: 0 | M20: 0 | N20: 0 | O20: 0 | P20: 0 | Q20: 0 | R20: 0 | S20: 0 | T20: 0 | U20: 0 | V20: 0 | W20: 0 | X20: 0 | Y20: 0 | Z20: 0 | AA20: 0 | AB20: 0 | AC20: 0 | AD20: 0 | AE20: 0 | AF20: 0 | AG20: 0 | AH20: 0 | AI20: 0 | AJ20: 0 | AK20: 0 | AL20: HYD | AM20: 0 | AN20: 0 | AO20: 0 | AP20: 0 | AQ20: 0 | AR20: 0 | AS20: 0 | AT20: 0 | AU20: 0 | AV20: 0 | AW20: 0 | AX20: 0 | AY20: 0 | AZ20: 0 | BA20: 0 | BB20: 0 | BC20: 0 | BD20: 0 | BE20: 0 | BF20: 0 | BG20: 0 | BH20: 0 | BI20: 0 | BJ20: 0 | BK20: 0
A21: SIEEPOHFEXDI | B21: SIE | C21: EPOHFEXDI | D21: SIwEPOHFEXDI | E21: 0.3789473684 | F21: 0.766365 | G21: 0 | H21: 75.1836672 | I21: 0 | J21: 0 | K21: 0.801369863 | L21: 0 | M21: 0 | N21: 0 | O21: 0 | P21: 0 | Q21: 0 | R21: 0 | S21: 0 | T21: 0 | U21: 0 | V21: 0 | W21: 0 | X21: 0 | Y21: 0 | Z21: 0 | AA21: 0 | AB21: 0 | AC21: 0 | AD21: 0 | AE21: 0 | AF21: 0 | AG21: 0 | AH21: 0 | AI21: 0 | AJ21: 0 | AK21: 0 | AL21: OHFC | AM21: 122.6059107 | AN21: 125.0761035 | AO21: 127.5462963 | AP21: 130.0164891 | AQ21: 132.4866819 | AR21: 134.9568747 | AS21: 137.4270675 | AT21: 139.8972603 | AU21: 142.3674531 | AV21: 144.8376459 | AW21: 147.1180556 | AX21: 148.9225013 | AY21: 150.726947 | AZ21: 152.5313927 | BA21: 154.3358384 | BB21: 156.1402841 | BC21: 157.9447298 | BD21: 159.7491755 | BE21: 161.5536213 | BF21: 163.358067 | BG21: 165.5450913 | BH21: 165.5450913 | BI21: 165.5450913 | BJ21: 165.5450913 | BK21: 0
A22: SIEEPODSEXDI | B22: SIE | C22: EPODSEXDI | D22: SIwEPODSEXDI | E22: 0.3461538462 | F22: 0.770328 | G22: 0 | H22: 59.59001771 | I22: 0 | J22: 0 | K22: 0.801369863 | L22: 0 | M22: 0 | N22: 0 | O22: 0 | P22: 0 | Q22: 0 | R22: 0 | S22: 0 | T22: 0 | U22: 0 | V22: 0 | W22: 0 | X22: 0 | Y22: 0 | Z22: 0 | AA22: 0 | AB22: 0 | AC22: 0 | AD22: 0 | AE22: 0 | AF22: 0 | AG22: 0 | AH22: 0 | AI22: 0 | AJ22: 0 | AK22: 0 | AL22: ODSC | AM22: 227.8792491 | AN22: 232.4961948 | AO22: 237.1131405 | AP22: 241.7300863 | AQ22: 246.347032 | AR22: 250.9639777 | AS22: 255.5809234 | AT22: 260.1978691 | AU22: 264.8148148 | AV22: 269.4317605 | AW22: 273.7189244 | AX22: 277.0167428 | AY22: 280.3145611 | AZ22: 283.6123795 | BA22: 286.9101979 | BB22: 290.2080162 | BC22: 293.5058346 | BD22: 296.803653 | BE22: 300.1014713 | BF22: 303.3992897 | BG22: 307.3566717 | BH22: 307.3566717 | BI22: 307.3566717 | BJ22: 307.3566717 | BK22: 0
A23: SIEEPHYDEXROGom | B23: SIE | C23: EPHYDEXROGom | D23: SIwEPHYDEXROGom | E23: 1 | F23: 0 | G23: 0 | H23: 120.0087085 | I23: 0 | J23: 0 | K23: 0.02663622527 | L23: 0 | M23: 0 | N23: 0 | O23: 0 | P23: 0 | Q23: 0 | R23: 0 | S23: 0 | T23: 0 | U23: 0 | V23: 0 | W23: 0 | X23: 0 | Y23: 0 | Z23: 0 | AA23: 0 | AB23: 0 | AC23: 0 | AD23: 0 | AE23: 0 | AF23: 0 | AG23: 0 | AH23: 0 | AI23: 0 | AJ23: 0 | AK23: 0 | AL23: HYD | AM23: 0 | AN23: 0 | AO23: 0 | AP23: 0 | AQ23: 0 | AR23: 0 | AS23: 0 | AT23: 0 | AU23: 0 | AV23: 0 | AW23: 0 | AX23: 0 | AY23: 0 | AZ23: 0 | BA23: 0 | BB23: 0 | BC23: 0 | BD23: 0 | BE23: 0 | BF23: 0 | BG23: 0 | BH23: 0 | BI23: 0 | BJ23: 0 | BK23: 0
A24: SIEEPHYDEXDABum | B24: SIE | C24: EPHYDEXDABum | D24: SIwEPHYDEXDABum | E24: 1 | F24: 0 | G24: 0 | H24: 120.0087085 | I24: 0 | J24: 0 | K24: 0.3584474886 | L24: 0 | M24: 0 | N24: 0 | O24: 0 | P24: 0 | Q24: 0 | R24: 0 | S24: 0 | T24: 0 | U24: 0 | V24: 0 | W24: 0 | X24: 0 | Y24: 0 | Z24: 0 | AA24: 0 | AB24: 0 | AC24: 0 | AD24: 0 | AE24: 0 | AF24: 0 | AG24: 0 | AH24: 0 | AI24: 0 | AJ24: 0 | AK24: 0 | AL24: HYD | AM24: 0 | AN24: 0 | AO24: 0 | AP24: 0 | AQ24: 0 | AR24: 0 | AS24: 0 | AT24: 0 | AU24: 0 | AV24: 0 | AW24: 0 | AX24: 0 | AY24: 0 | AZ24: 0 | BA24: 0 | BB24: 0 | BC24: 0 | BD24: 0 | BE24: 0 | BF24: 0 | BG24: 0 | BH24: 0 | BI24: 0 | BJ24: 0 | BK24: 0
A25: LIBEPODSEXDI | B25: LIB | C25: EPODSEXDI | D25: LIwEPODSEXDI | E25: 0.3050847458 | F25: 0.874026 | G25: 0 | H25: 59.59001771 | I25: 0 | J25: 0 | K25: 0.801369863 | L25: 0 | M25: 0 | N25: 0 | O25: 0 | P25: 0 | Q25: 0 | R25: 0 | S25: 0 | T25: 0 | U25: 0 | V25: 0 | W25: 0 | X25: 0 | Y25: 0 | Z25: 0 | AA25: 0 | AB25: 0 | AC25: 0 | AD25: 0 | AE25: 0 | AF25: 0 | AG25: 0 | AH25: 0 | AI25: 0 | AJ25: 0 | AK25: 0 | AL25: ODSC | AM25: 258.5553019 | AN25: 263.7937595 | AO25: 269.0322171 | AP25: 274.2706748 | AQ25: 279.5091324 | AR25: 284.7475901 | AS25: 289.9860477 | AT25: 295.2245053 | AU25: 300.462963 | AV25: 305.7014206 | AW25: 310.5657027 | AX25: 314.3074581 | AY25: 318.0492136 | AZ25: 321.7909691 | BA25: 325.5327245 | BB25: 329.27448 | BC25: 333.0162354 | BD25: 336.7579909 | BE25: 340.4997463 | BF25: 344.2415018 | BG25: 348.7316083 | BH25: 348.7316083 | BI25: 348.7316083 | BJ25: 348.7316083 | BK25: 0
A26: MALEPODSEXDI | B26: MAL | C26: EPODSEXDI | D26: MAwEPODSEXDI | E26: 0.3727665155 | F26: 0.7153324908 | G26: 0 | H26: 59.59001771 | I26: 0 | J26: 0 | K26: 0.801369863 | L26: 0 | M26: 0 | N26: 0 | O26: 0 | P26: 0 | Q26: 0 | R26: 0 | S26: 0 | T26: 0 | U26: 0 | V26: 0 | W26: 0 | X26: 0 | Y26: 0 | Z26: 0 | AA26: 0 | AB26: 0 | AC26: 0 | AD26: 0 | AE26: 0 | AF26: 0 | AG26: 0 | AH26: 0 | AI26: 0 | AJ26: 0 | AK26: 0 | AL26: ODSI | AM26: 243.4591652 | AN26: 248.3589722 | AO26: 253.2587793 | AP26: 258.1585864 | AQ26: 263.0583935 | AR26: 267.9582006 | AS26: 272.8580077 | AT26: 277.7578148 | AU26: 282.6576219 | AV26: 287.557429 | AW26: 292.1509982 | AX26: 295.8258535 | AY26: 299.5007088 | AZ26: 303.1755641 | BA26: 306.8504195 | BB26: 310.5252748 | BC26: 314.2001301 | BD26: 317.8749854 | BE26: 321.5498408 | BF26: 325.2246961 | BG26: 329.5120273 | BH26: 329.5120273 | BI26: 329.5120273 | BJ26: 329.5120273 | BK26: 0
A27: MALEPODSEXGT | B27: MAL | C27: EPODSEXGT | D27: MAwEPODSEXGT | E27: 0.2307692308 | F27: 1.155492 | G27: 0 | H27: 34.87645745 | I27: 0 | J27: 0 | K27: 0.8556210046 | L27: 0 | M27: 0 | N27: 0 | O27: 0 | P27: 0 | Q27: 0 | R27: 0 | S27: 0 | T27: 0 | U27: 0 | V27: 0 | W27: 0 | X27: 0 | Y27: 0 | Z27: 0 | AA27: 0 | AB27: 0 | AC27: 0 | AD27: 0 | AE27: 0 | AF27: 0 | AG27: 0 | AH27: 0 | AI27: 0 | AJ27: 0 | AK27: 0 | AL27: ODSI | AM27: 393.2648402 | AN27: 401.1796043 | AO27: 409.0943683 | AP27: 417.0091324 | AQ27: 424.9238965 | AR27: 432.8386606 | AS27: 440.7534247 | AT27: 448.6681887 | AU27: 456.5829528 | AV27: 464.4977169 | AW27: 471.9178082 | AX27: 477.8538813 | AY27: 483.7899543 | AZ27: 489.7260274 | BA27: 495.6621005 | BB27: 501.5981735 | BC27: 507.5342466 | BD27: 513.4703196 | BE27: 519.4063927 | BF27: 525.3424658 | BG27: 532.2678843 | BH27: 532.2678843 | BI27: 532.2678843 | BJ27: 532.2678843 | BK27: 0
A28: MALEPOHFEXDI | B28: MAL | C28: EPOHFEXDI | D28: MAwEPOHFEXDI | E28: 0.3829787234 | F28: 0.758298 | G28: 0 | H28: 75.1836672 | I28: 0 | J28: 0 | K28: 0.801369863 | L28: 0 | M28: 0 | N28: 0 | O28: 0 | P28: 0 | Q28: 0 | R28: 0 | S28: 0 | T28: 0 | U28: 0 | V28: 0 | W28: 0 | X28: 0 | Y28: 0 | Z28: 0 | AA28: 0 | AB28: 0 | AC28: 0 | AD28: 0 | AE28: 0 | AF28: 0 | AG28: 0 | AH28: 0 | AI28: 0 | AJ28: 0 | AK28: 0 | AL28: OHFI | AM28: 153.2090309 | AN28: 156.1897514 | AO28: 159.1704718 | AP28: 162.1511923 | AQ28: 165.1319127 | AR28: 168.1126332 | AS28: 171.0933536 | AT28: 174.0740741 | AU28: 177.0547945 | AV28: 180.035515 | AW28: 183.0162354 | AX28: 185.4008118 | AY28: 187.7853881 | AZ28: 190.1699645 | BA28: 192.5545408 | BB28: 194.9391172 | BC28: 197.3236936 | BD28: 199.7082699 | BE28: 202.0928463 | BF28: 204.4774226 | BG28: 207.160071 | BH28: 207.160071 | BI28: 207.160071 | BJ28: 207.160071 | BK28: 0
A29: MALEPHYDEXDASel | B29: MAL | C29: EPHYDEXDASel | D29: MAwEPHYDEXDASel | E29: 1 | F29: 0 | G29: 0 | H29: 120.0087085 | I29: 0 | J29: 0 | K29: 0.5190545803 | L29: 0 | M29: 0 | N29: 0 | O29: 0 | P29: 0 | Q29: 0 | R29: 0 | S29: 0 | T29: 0 | U29: 0 | V29: 0 | W29: 0 | X29: 0 | Y29: 0 | Z29: 0 | AA29: 0 | AB29: 0 | AC29: 0 | AD29: 0 | AE29: 0 | AF29: 0 | AG29: 0 | AH29: 0 | AI29: 0 | AJ29: 0 | AK29: 0 | AL29: HYD | AM29: 0 | AN29: 0 | AO29: 0 | AP29: 0 | AQ29: 0 | AR29: 0 | AS29: 0 | AT29: 0 | AU29: 0 | AV29: 0 | AW29: 0 | AX29: 0 | AY29: 0 | AZ29: 0 | BA29: 0 | BB29: 0 | BC29: 0 | BD29: 0 | BE29: 0 | BF29: 0 | BG29: 0 | BH29: 0 | BI29: 0 | BJ29: 0 | BK29: 0
A30: MALEPHYDEXROSot | B30: MAL | C30: EPHYDEXROSot | D30: MAwEPHYDEXROSot | E30: 1 | F30: 0 | G30: 0 | H30: 120.0087085 | I30: 0 | J30: 0 | K30: 0.7490186654 | L30: 0 | M30: 0 | N30: 0 | O30: 0 | P30: 0 | Q30: 0 | R30: 0 | S30: 0 | T30: 0 | U30: 0 | V30: 0 | W30: 0 | X30: 0 | Y30: 0 | Z30: 0 | AA30: 0 | AB30: 0 | AC30: 0 | AD30: 0 | AE30: 0 | AF30: 0 | AG30: 0 | AH30: 0 | AI30: 0 | AJ30: 0 | AK30: 0 | AL30: HYD | AM30: 0 | AN30: 0 | AO30: 0 | AP30: 0 | AQ30: 0 | AR30: 0 | AS30: 0 | AT30: 0 | AU30: 0 | AV30: 0 | AW30: 0 | AX30: 0 | AY30: 0 | AZ30: 0 | BA30: 0 | BB30: 0 | BC30: 0 | BD30: 0 | BE30: 0 | BF30: 0 | BG30: 0 | BH30: 0 | BI30: 0 | BJ30: 0 | BK30: 0
A31: MALEPHYDEXDAMan | B31: MAL | C31: EPHYDEXDAMan | D31: MAwEPHYDEXDAMan | E31: 1 | F31: 0 | G31: 0 | H31: 120.0087085 | I31: 0 | J31: 0 | K31: 0.2853881279 | L31: 0 | M31: 0 | N31: 0 | O31: 0 | P31: 0 | Q31: 0 | R31: 0 | S31: 0 | T31: 0 | U31: 0 | V31: 0 | W31: 0 | X31: 0 | Y31: 0 | Z31: 0 | AA31: 0 | AB31: 0 | AC31: 0 | AD31: 0 | AE31: 0 | AF31: 0 | AG31: 0 | AH31: 0 | AI31: 0 | AJ31: 0 | AK31: 0 | AL31: HYD | AM31: 0 | AN31: 0 | AO31: 0 | AP31: 0 | AQ31: 0 | AR31: 0 | AS31: 0 | AT31: 0 | AU31: 0 | AV31: 0 | AW31: 0 | AX31: 0 | AY31: 0 | AZ31: 0 | BA31: 0 | BB31: 0 | BC31: 0 | BD31: 0 | BE31: 0 | BF31: 0 | BG31: 0 | BH31: 0 | BI31: 0 | BJ31: 0 | BK31: 0
A32: CIVEPGASEXGTAz | B32: CIV | C32: EPGASEXGTAz | D32: CIwEPGASEXGTAz | E32: 0.3157894737 | F32: 0.6398401826 | G32: 0 | H32: 44.56696116 | I32: 0 | J32: 0 | K32: 0.8757710597 | L32: 0 | M32: 0 | N32: 0 | O32: 0 | P32: 0 | Q32: 0 | R32: 0 | S32: 0 | T32: 0 | U32: 0 | V32: 0 | W32: 0 | X32: 0 | Y32: 0 | Z32: 0 | AA32: 0 | AB32: 0 | AC32: 0 | AD32: 0 | AE32: 0 | AF32: 0 | AG32: 0 | AH32: 0 | AI32: 0 | AJ32: 0 | AK32: 0 | AL32: GASLOCal | AM32: 96.87975647 | AN32: 97.96423135 | AO32: 99.04870624 | AP32: 100.1331811 | AQ32: 101.217656 | AR32: 102.3021309 | AS32: 103.3866058 | AT32: 104.4710807 | AU32: 105.5555556 | AV32: 106.6400304 | AW32: 107.7245053 | AX32: 109.5319635 | AY32: 111.3394216 | AZ32: 113.1468798 | BA32: 114.9543379 | BB32: 116.761796 | BC32: 118.5692542 | BD32: 120.3767123 | BE32: 122.1841705 | BF32: 123.9916286 | BG32: 125.7990868 | BH32: 125.7990868 | BI32: 125.7990868 | BJ32: 125.7990868 | BK32: 0
A33: CIVEPHYDEXDAAy1 | B33: CIV | C33: EPHYDEXDAAy1 | D33: CIwEPHYDEXDAAy1 | E33: 1 | F33: 0 | G33: 0 | H33: 120.0087085 | I33: 0 | J33: 0 | K33: 0.2711187215 | L33: 0 | M33: 0 | N33: 0 | O33: 0 | P33: 0 | Q33: 0 | R33: 0 | S33: 0 | T33: 0 | U33: 0 | V33: 0 | W33: 0 | X33: 0 | Y33: 0 | Z33: 0 | AA33: 0 | AB33: 0 | AC33: 0 | AD33: 0 | AE33: 0 | AF33: 0 | AG33: 0 | AH33: 0 | AI33: 0 | AJ33: 0 | AK33: 0 | AL33: HYD | AM33: 0 | AN33: 0 | AO33: 0 | AP33: 0 | AQ33: 0 | AR33: 0 | AS33: 0 | AT33: 0 | AU33: 0 | AV33: 0 | AW33: 0 | AX33: 0 | AY33: 0 | AZ33: 0 | BA33: 0 | BB33: 0 | BC33: 0 | BD33: 0 | BE33: 0 | BF33: 0 | BG33: 0 | BH33: 0 | BI33: 0 | BJ33: 0 | BK33: 0
A34: CIVEPHYDEXDAAy2 | B34: CIV | C34: EPHYDEXDAAy2 | D34: CIwEPHYDEXDAAy2 | E34: 1 | F34: 0 | G34: 0 | H34: 120.0087085 | I34: 0 | J34: 0 | K34: 0.2568493151 | L34: 0 | M34: 0 | N34: 0 | O34: 0 | P34: 0 | Q34: 0 | R34: 0 | S34: 0 | T34: 0 | U34: 0 | V34: 0 | W34: 0 | X34: 0 | Y34: 0 | Z34: 0 | AA34: 0 | AB34: 0 | AC34: 0 | AD34: 0 | AE34: 0 | AF34: 0 | AG34: 0 | AH34: 0 | AI34: 0 | AJ34: 0 | AK34: 0 | AL34: HYD | AM34: 0 | AN34: 0 | AO34: 0 | AP34: 0 | AQ34: 0 | AR34: 0 | AS34: 0 | AT34: 0 | AU34: 0 | AV34: 0 | AW34: 0 | AX34: 0 | AY34: 0 | AZ34: 0 | BA34: 0 | BB34: 0 | BC34: 0 | BD34: 0 | BE34: 0 | BF34: 0 | BG34: 0 | BH34: 0 | BI34: 0 | BJ34: 0 | BK34: 0
A35: CIVEPHYDEXDABuy | B35: CIV | C35: EPHYDEXDABuy | D35: CIwEPHYDEXDABuy | E35: 1 | F35: 0 | G35: 0 | H35: 120.0087085 | I35: 0 | J35: 0 | K35: 0.4740873818 | L35: 0 | M35: 0 | N35: 0 | O35: 0 | P35: 0 | Q35: 0 | R35: 0 | S35: 0 | T35: 0 | U35: 0 | V35: 0 | W35: 0 | X35: 0 | Y35: 0 | Z35: 0 | AA35: 0 | AB35: 0 | AC35: 0 | AD35: 0 | AE35: 0 | AF35: 0 | AG35: 0 | AH35: 0 | AI35: 0 | AJ35: 0 | AK35: 0 | AL35: HYD | AM35: 0 | AN35: 0 | AO35: 0 | AP35: 0 | AQ35: 0 | AR35: 0 | AS35: 0 | AT35: 0 | AU35: 0 | AV35: 0 | AW35: 0 | AX35: 0 | AY35: 0 | AZ35: 0 | BA35: 0 | BB35: 0 | BC35: 0 | BD35: 0 | BE35: 0 | BF35: 0 | BG35: 0 | BH35: 0 | BI35: 0 | BJ35: 0 | BK35: 0
A36: CIVEPHYDEXDAKos | B36: CIV | C36: EPHYDEXDAKos | D36: CIwEPHYDEXDAKos | E36: 1 | F36: 0 | G36: 0 | H36: 120.0087085 | I36: 0 | J36: 0 | K36: 0.2496455008 | L36: 0 | M36: 0 | N36: 0 | O36: 0 | P36: 0 | Q36: 0 | R36: 0 | S36: 0 | T36: 0 | U36: 0 | V36: 0 | W36: 0 | X36: 0 | Y36: 0 | Z36: 0 | AA36: 0 | AB36: 0 | AC36: 0 | AD36: 0 | AE36: 0 | AF36: 0 | AG36: 0 | AH36: 0 | AI36: 0 | AJ36: 0 | AK36: 0 | AL36: HYD | AM36: 0 | AN36: 0 | AO36: 0 | AP36: 0 | AQ36: 0 | AR36: 0 | AS36: 0 | AT36: 0 | AU36: 0 | AV36: 0 | AW36: 0 | AX36: 0 | AY36: 0 | AZ36: 0 | BA36: 0 | BB36: 0 | BC36: 0 | BD36: 0 | BE36: 0 | BF36: 0 | BG36: 0 | BH36: 0 | BI36: 0 | BJ36: 0 | BK36: 0
A37: CIVEPHYDEXDATaa | B37: CIV | C37: EPHYDEXDATaa | D37: CIwEPHYDEXDATaa | E37: 1 | F37: 0 | G37: 0 | H37: 120.0087085 | I37: 0 | J37: 0 | K37: 0.3881278539 | L37: 0 | M37: 0 | N37: 0 | O37: 0 | P37: 0 | Q37: 0 | R37: 0 | S37: 0 | T37: 0 | U37: 0 | V37: 0 | W37: 0 | X37: 0 | Y37: 0 | Z37: 0 | AA37: 0 | AB37: 0 | AC37: 0 | AD37: 0 | AE37: 0 | AF37: 0 | AG37: 0 | AH37: 0 | AI37: 0 | AJ37: 0 | AK37: 0 | AL37: HYD | AM37: 0 | AN37: 0 | AO37: 0 | AP37: 0 | AQ37: 0 | AR37: 0 | AS37: 0 | AT37: 0 | AU37: 0 | AV37: 0 | AW37: 0 | AX37: 0 | AY37: 0 | AZ37: 0 | BA37: 0 | BB37: 0 | BC37: 0 | BD37: 0 | BE37: 0 | BF37: 0 | BG37: 0 | BH37: 0 | BI37: 0 | BJ37: 0 | BK37: 0
A38: CIVEPHYDEXROFay | B38: CIV | C38: EPHYDEXROFay | D38: CIwEPHYDEXROFay | E38: 1 | F38: 0 | G38: 0 | H38: 120.0087085 | I38: 0 | J38: 0 | K38: 0.3296803653 | L38: 0 | M38: 0 | N38: 0 | O38: 0 | P38: 0 | Q38: 0 | R38: 0 | S38: 0 | T38: 0 | U38: 0 | V38: 0 | W38: 0 | X38: 0 | Y38: 0 | Z38: 0 | AA38: 0 | AB38: 0 | AC38: 0 | AD38: 0 | AE38: 0 | AF38: 0 | AG38: 0 | AH38: 0 | AI38: 0 | AJ38: 0 | AK38: 0 | AL38: HYD | AM38: 0 | AN38: 0 | AO38: 0 | AP38: 0 | AQ38: 0 | AR38: 0 | AS38: 0 | AT38: 0 | AU38: 0 | AV38: 0 | AW38: 0 | AX38: 0 | AY38: 0 | AZ38: 0 | BA38: 0 | BB38: 0 | BC38: 0 | BD38: 0 | BE38: 0 | BF38: 0 | BG38: 0 | BH38: 0 | BI38: 0 | BJ38: 0 | BK38: 0
A39: GHAEPOLCEXCC | B39: GHA | C39: EPOLCEXCC | D39: GHwEPOLCEXCC | E39: 0.4137931034 | F39: 0.637971 | G39: 0 | H39: 52.69171437 | I39: 0 | J39: 0 | K39: 0.7177260274 | L39: 0 | M39: 0 | N39: 0 | O39: 0 | P39: 0 | Q39: 0 | R39: 0 | S39: 0 | T39: 0 | U39: 0 | V39: 0 | W39: 0 | X39: 0 | Y39: 0 | Z39: 0 | AA39: 0 | AB39: 0 | AC39: 0 | AD39: 0 | AE39: 0 | AF39: 0 | AG39: 0 | AH39: 0 | AI39: 0 | AJ39: 0 | AK39: 0 | AL39: OLCC | AM39: 154.7659817 | AN39: 157.8006088 | AO39: 160.8352359 | AP39: 163.869863 | AQ39: 166.9044901 | AR39: 169.9391172 | AS39: 172.9737443 | AT39: 176.0083714 | AU39: 179.0429985 | AV39: 182.0776256 | AW39: 184.8363775 | AX39: 187.043379 | AY39: 189.2503805 | AZ39: 191.457382 | BA39: 193.6643836 | BB39: 195.8713851 | BC39: 198.0783866 | BD39: 200.2853881 | BE39: 202.4923896 | BF39: 204.6993912 | BG39: 207.4581431 | BH39: 207.4581431 | BI39: 207.4581431 | BJ39: 207.4581431 | BK39: 0
A40: GHAEPOLCEXGT | B40: GHA | C40: EPOLCEXGT | D40: GHwEPOLCEXGT | E40: 0.2872340426 | F40: 0.9190693333 | G40: 0 | H40: 44.56696116 | I40: 0 | J40: 0 | K40: 0.8165315068 | L40: 0 | M40: 0 | N40: 0 | O40: 0 | P40: 0 | Q40: 0 | R40: 0 | S40: 0 | T40: 0 | U40: 0 | V40: 0 | W40: 0 | X40: 0 | Y40: 0 | Z40: 0 | AA40: 0 | AB40: 0 | AC40: 0 | AD40: 0 | AE40: 0 | AF40: 0 | AG40: 0 | AH40: 0 | AI40: 0 | AJ40: 0 | AK40: 0 | AL40: OLCC | AM40: 222.9578894 | AN40: 227.3296127 | AO40: 231.701336 | AP40: 236.0730594 | AQ40: 240.4447827 | AR40: 244.816506 | AS40: 249.1882293 | AT40: 253.5599526 | AU40: 257.931676 | AV40: 262.3033993 | AW40: 266.2776932 | AX40: 269.4571284 | AY40: 272.6365635 | AZ40: 275.8159986 | BA40: 278.9954338 | BB40: 282.1748689 | BC40: 285.3543041 | BD40: 288.5337392 | BE40: 291.7131744 | BF40: 294.8926095 | BG40: 298.8669034 | BH40: 298.8669034 | BI40: 298.8669034 | BJ40: 298.8669034 | BK40: 0
A41: GHAEPODSEXGT | B41: GHA | C41: EPODSEXGT | D41: GHwEPODSEXGT | E41: 0.2919847328 | F41: 0.9132395294 | G41: 0 | H41: 34.87645745 | I41: 0 | J41: 0 | K41: 0.8031223207 | L41: 0 | M41: 0 | N41: 0 | O41: 0 | P41: 0 | Q41: 0 | R41: 0 | S41: 0 | T41: 0 | U41: 0 | V41: 0 | W41: 0 | X41: 0 | Y41: 0 | Z41: 0 | AA41: 0 | AB41: 0 | AC41: 0 | AD41: 0 | AE41: 0 | AF41: 0 | AG41: 0 | AH41: 0 | AI41: 0 | AJ41: 0 | AK41: 0 | AL41: ODSC | AM41: 270.1554899 | AN41: 275.6289731 | AO41: 281.1024562 | AP41: 286.5759394 | AQ41: 292.0494225 | AR41: 297.5229057 | AS41: 302.9963888 | AT41: 308.469872 | AU41: 313.9433551 | AV41: 319.4168383 | AW41: 324.4993583 | AX41: 328.4089892 | AY41: 332.31862 | AZ41: 336.2282508 | BA41: 340.1378816 | BB41: 344.0475125 | BC41: 347.9571433 | BD41: 351.8667741 | BE41: 355.7764049 | BF41: 359.6860358 | BG41: 364.3775927 | BH41: 364.3775927 | BI41: 364.3775927 | BJ41: 364.3775927 | BK41: 0
A42: GHAEPGASEXCC | B42: GHA | C42: EPGASEXCC | D42: GHwEPGASEXCC | E42: 0.4390243902 | F42: 0.4602359209 | G42: 0 | H42: 52.69171437 | I42: 0 | J42: 0 | K42: 0.849890411 | L42: 0 | M42: 0 | N42: 0 | O42: 0 | P42: 0 | Q42: 0 | R42: 0 | S42: 0 | T42: 0 | U42: 0 | V42: 0 | W42: 0 | X42: 0 | Y42: 0 | Z42: 0 | AA42: 0 | AB42: 0 | AC42: 0 | AD42: 0 | AE42: 0 | AF42: 0 | AG42: 0 | AH42: 0 | AI42: 0 | AJ42: 0 | AK42: 0 | AL42: GASGOA | AM42: 84.50659564 | AN42: 85.54667681 | AO42: 86.58675799 | AP42: 87.62683917 | AQ42: 88.66692035 | AR42: 89.70700152 | AS42: 90.7470827 | AT42: 91.78716388 | AU42: 92.82724505 | AV42: 93.86732623 | AW42: 94.90740741 | AX42: 96.46752917 | AY42: 98.02765094 | AZ42: 99.5877727 | BA42: 101.1478945 | BB42: 102.7080162 | BC42: 104.268138 | BD42: 105.8282598 | BE42: 107.3883815 | BF42: 108.9485033 | BG42: 110.5086251 | BH42: 110.5086251 | BI42: 110.5086251 | BJ42: 110.5086251 | BK42: 0
A43: GHAEPHYDEXDAAko | B43: GHA | C43: EPHYDEXDAAko | D43: GHwEPHYDEXDAAko | E43: 1 | F43: 0 | G43: 0 | H43: 120.0087085 | I43: 0 | J43: 0 | K43: 0.3932014206 | L43: 0 | M43: 0 | N43: 0 | O43: 0 | P43: 0 | Q43: 0 | R43: 0 | S43: 0 | T43: 0 | U43: 0 | V43: 0 | W43: 0 | X43: 0 | Y43: 0 | Z43: 0 | AA43: 0 | AB43: 0 | AC43: 0 | AD43: 0 | AE43: 0 | AF43: 0 | AG43: 0 | AH43: 0 | AI43: 0 | AJ43: 0 | AK43: 0 | AL43: HYD | AM43: 0 | AN43: 0 | AO43: 0 | AP43: 0 | AQ43: 0 | AR43: 0 | AS43: 0 | AT43: 0 | AU43: 0 | AV43: 0 | AW43: 0 | AX43: 0 | AY43: 0 | AZ43: 0 | BA43: 0 | BB43: 0 | BC43: 0 | BD43: 0 | BE43: 0 | BF43: 0 | BG43: 0 | BH43: 0 | BI43: 0 | BJ43: 0 | BK43: 0
A44: GHAEPHYDEXROKpo | B44: GHA | C44: EPHYDEXROKpo | D44: GHwEPHYDEXROKpo | E44: 1 | F44: 0 | G44: 0 | H44: 120.0087085 | I44: 0 | J44: 0 | K44: 0.4930872653 | L44: 0 | M44: 0 | N44: 0 | O44: 0 | P44: 0 | Q44: 0 | R44: 0 | S44: 0 | T44: 0 | U44: 0 | V44: 0 | W44: 0 | X44: 0 | Y44: 0 | Z44: 0 | AA44: 0 | AB44: 0 | AC44: 0 | AD44: 0 | AE44: 0 | AF44: 0 | AG44: 0 | AH44: 0 | AI44: 0 | AJ44: 0 | AK44: 0 | AL44: HYD | AM44: 0 | AN44: 0 | AO44: 0 | AP44: 0 | AQ44: 0 | AR44: 0 | AS44: 0 | AT44: 0 | AU44: 0 | AV44: 0 | AW44: 0 | AX44: 0 | AY44: 0 | AZ44: 0 | BA44: 0 | BB44: 0 | BC44: 0 | BD44: 0 | BE44: 0 | BF44: 0 | BG44: 0 | BH44: 0 | BI44: 0 | BJ44: 0 | BK44: 0
A45: TBNEPGASEXGT | B45: TBN | C45: EPGASEXGT | D45: TBwEPGASEXGT | E45: 0.2706532736 | F45: 0.7465448018 | G45: 0 | H45: 34.2716631 | I45: 0 | J45: 0 | K45: 0.8556210046 | L45: 0 | M45: 0 | N45: 0 | O45: 0 | P45: 0 | Q45: 0 | R45: 0 | S45: 0 | T45: 0 | U45: 0 | V45: 0 | W45: 0 | X45: 0 | Y45: 0 | Z45: 0 | AA45: 0 | AB45: 0 | AC45: 0 | AD45: 0 | AE45: 0 | AF45: 0 | AG45: 0 | AH45: 0 | AI45: 0 | AJ45: 0 | AK45: 0 | AL45: GASGOA | AM45: 137.0774354 | AN45: 138.7645423 | AO45: 140.4516492 | AP45: 142.1387561 | AQ45: 143.825863 | AR45: 145.5129698 | AS45: 147.2000767 | AT45: 148.8871836 | AU45: 150.5742905 | AV45: 152.2613974 | AW45: 153.9485043 | AX45: 156.4791647 | AY45: 159.009825 | AZ45: 161.5404854 | BA45: 164.0711457 | BB45: 166.6018061 | BC45: 169.1324664 | BD45: 171.6631267 | BE45: 174.1937871 | BF45: 176.7244474 | BG45: 179.2551078 | BH45: 179.2551078 | BI45: 179.2551078 | BJ45: 179.2551078 | BK45: 0
A46: TBNEPODSEXDI | B46: TBN | C46: EPODSEXDI | D46: TBwEPODSEXDI | E46: 0.3380435774 | F46: 0.7888095437 | G46: 0 | H46: 56.95639688 | I46: 0 | J46: 0 | K46: 0.801369863 | L46: 0 | M46: 0 | N46: 0 | O46: 0 | P46: 0 | Q46: 0 | R46: 0 | S46: 0 | T46: 0 | U46: 0 | V46: 0 | W46: 0 | X46: 0 | Y46: 0 | Z46: 0 | AA46: 0 | AB46: 0 | AC46: 0 | AD46: 0 | AE46: 0 | AF46: 0 | AG46: 0 | AH46: 0 | AI46: 0 | AJ46: 0 | AK46: 0 | AL46: ODSC | AM46: 233.346479 | AN46: 238.0741935 | AO46: 242.801908 | AP46: 247.5296225 | AQ46: 252.257337 | AR46: 256.9850514 | AS46: 261.7127659 | AT46: 266.4404804 | AU46: 271.1681949 | AV46: 275.8959094 | AW46: 280.28593 | AX46: 283.6628689 | AY46: 287.0398078 | AZ46: 290.4167467 | BA46: 293.7936856 | BB46: 297.1706245 | BC46: 300.5475635 | BD46: 303.9245024 | BE46: 307.3014413 | BF46: 310.6783802 | BG46: 314.7307069 | BH46: 314.7307069 | BI46: 314.7307069 | BJ46: 314.7307069 | BK46: 0
A47: TBNEPOHFEXDI | B47: TBN | C47: EPOHFEXDI | D47: TBwEPOHFEXDI | E47: 0.2790697674 | F47: 1.040643 | G47: 0 | H47: 73.24439648 | I47: 0 | J47: 0 | K47: 0.801369863 | L47: 0 | M47: 0 | N47: 0 | O47: 0 | P47: 0 | Q47: 0 | R47: 0 | S47: 0 | T47: 0 | U47: 0 | V47: 0 | W47: 0 | X47: 0 | Y47: 0 | Z47: 0 | AA47: 0 | AB47: 0 | AC47: 0 | AD47: 0 | AE47: 0 | AF47: 0 | AG47: 0 | AH47: 0 | AI47: 0 | AJ47: 0 | AK47: 0 | AL47: OHFC | AM47: 166.4859209 | AN47: 169.8401826 | AO47: 173.1944444 | AP47: 176.5487062 | AQ47: 179.902968 | AR47: 183.2572298 | AS47: 186.6114916 | AT47: 189.9657534 | AU47: 193.3200152 | AV47: 196.674277 | AW47: 199.7708333 | AX47: 202.2210807 | AY47: 204.671328 | AZ47: 207.1215753 | BA47: 209.5718227 | BB47: 212.02207 | BC47: 214.4723174 | BD47: 216.9225647 | BE47: 219.372812 | BF47: 221.8230594 | BG47: 224.7928082 | BH47: 224.7928082 | BI47: 224.7928082 | BJ47: 224.7928082 | BK47: 0
A48: TBNEPHYDEXDANan | B48: TBN | C48: EPHYDEXDANan | D48: TBwEPHYDEXDANan | E48: 1 | F48: 0 | G48: 0 | H48: 120.0087085 | I48: 0 | J48: 0 | K48: 0.1598173516 | L48: 0 | M48: 0 | N48: 0 | O48: 0 | P48: 0 | Q48: 0 | R48: 0 | S48: 0 | T48: 0 | U48: 0 | V48: 0 | W48: 0 | X48: 0 | Y48: 0 | Z48: 0 | AA48: 0 | AB48: 0 | AC48: 0 | AD48: 0 | AE48: 0 | AF48: 0 | AG48: 0 | AH48: 0 | AI48: 0 | AJ48: 0 | AK48: 0 | AL48: HYD | AM48: 0 | AN48: 0 | AO48: 0 | AP48: 0 | AQ48: 0 | AR48: 0 | AS48: 0 | AT48: 0 | AU48: 0 | AV48: 0 | AW48: 0 | AX48: 0 | AY48: 0 | AZ48: 0 | BA48: 0 | BB48: 0 | BC48: 0 | BD48: 0 | BE48: 0 | BF48: 0 | BG48: 0 | BH48: 0 | BI48: 0 | BJ48: 0 | BK48: 0
A49: BUREPODSEXDI | B49: BUR | C49: EPODSEXDI | D49: BUwEPODSEXDI | E49: 0.3438183978 | F49: 0.7755605915 | G49: 0 | H49: 59.59001771 | I49: 0 | J49: 0 | K49: 0.7813004626 | L49: 0 | M49: 0 | N49: 0 | O49: 0 | P49: 0 | Q49: 0 | R49: 0 | S49: 0 | T49: 0 | U49: 0 | V49: 0 | W49: 0 | X49: 0 | Y49: 0 | Z49: 0 | AA49: 0 | AB49: 0 | AC49: 0 | AD49: 0 | AE49: 0 | AF49: 0 | AG49: 0 | AH49: 0 | AI49: 0 | AJ49: 0 | AK49: 0 | AL49: ODSI | AM49: 263.9574416 | AN49: 269.2697926 | AO49: 274.5821436 | AP49: 279.8944946 | AQ49: 285.2068457 | AR49: 290.5191967 | AS49: 295.8315477 | AT49: 301.1438987 | AU49: 306.4562498 | AV49: 311.7686008 | AW49: 316.7489299 | AX49: 320.7331931 | AY49: 324.7174564 | AZ49: 328.7017197 | BA49: 332.6859829 | BB49: 336.6702462 | BC49: 340.6545095 | BD49: 344.6387728 | BE49: 348.623036 | BF49: 352.6072993 | BG49: 357.2556064 | BH49: 357.2556064 | BI49: 357.2556064 | BJ49: 357.2556064 | BK49: 0
A50: BUREPOHFEXDI | B50: BUR | C50: EPOHFEXDI | D50: BUwEPOHFEXDI | E50: 0.3738872404 | F50: 0.7767368571 | G50: 0 | H50: 75.1836672 | I50: 0 | J50: 0 | K50: 0.7933295733 | L50: 0 | M50: 0 | N50: 0 | O50: 0 | P50: 0 | Q50: 0 | R50: 0 | S50: 0 | T50: 0 | U50: 0 | V50: 0 | W50: 0 | X50: 0 | Y50: 0 | Z50: 0 | AA50: 0 | AB50: 0 | AC50: 0 | AD50: 0 | AE50: 0 | AF50: 0 | AG50: 0 | AH50: 0 | AI50: 0 | AJ50: 0 | AK50: 0 | AL50: OHFI | AM50: 156.9344785 | AN50: 159.9876785 | AO50: 163.0408785 | AP50: 166.0940784 | AQ50: 169.1472784 | AR50: 172.2004784 | AS50: 175.2536783 | AT50: 178.3068783 | AU50: 181.3600783 | AV50: 184.4132782 | AW50: 187.4664782 | AX50: 189.9090382 | AY50: 192.3515982 | AZ50: 194.7941582 | BA50: 197.2367181 | BB50: 199.6792781 | BC50: 202.1218381 | BD50: 204.5643981 | BE50: 207.006958 | BF50: 209.449518 | BG50: 212.197398 | BH50: 212.197398 | BI50: 212.197398 | BJ50: 212.197398 | BK50: 0
A51: BUREPHYDEXDABag | B51: BUR | C51: EPHYDEXDABag | D51: BUwEPHYDEXDABag | E51: 1 | F51: 0 | G51: 0 | H51: 120.0087085 | I51: 0 | J51: 0 | K51: 0.2051227169 | L51: 0 | M51: 0 | N51: 0 | O51: 0 | P51: 0 | Q51: 0 | R51: 0 | S51: 0 | T51: 0 | U51: 0 | V51: 0 | W51: 0 | X51: 0 | Y51: 0 | Z51: 0 | AA51: 0 | AB51: 0 | AC51: 0 | AD51: 0 | AE51: 0 | AF51: 0 | AG51: 0 | AH51: 0 | AI51: 0 | AJ51: 0 | AK51: 0 | AL51: HYD | AM51: 0 | AN51: 0 | AO51: 0 | AP51: 0 | AQ51: 0 | AR51: 0 | AS51: 0 | AT51: 0 | AU51: 0 | AV51: 0 | AW51: 0 | AX51: 0 | AY51: 0 | AZ51: 0 | BA51: 0 | BB51: 0 | BC51: 0 | BD51: 0 | BE51: 0 | BF51: 0 | BG51: 0 | BH51: 0 | BI51: 0 | BJ51: 0 | BK51: 0
A52: BUREPHYDEXDAKom | B52: BUR | C52: EPHYDEXDAKom | D52: BUwEPHYDEXDAKom | E52: 1 | F52: 0 | G52: 0 | H52: 120.0087085 | I52: 0 | J52: 0 | K52: 0.1880665649 | L52: 0 | M52: 0 | N52: 0 | O52: 0 | P52: 0 | Q52: 0 | R52: 0 | S52: 0 | T52: 0 | U52: 0 | V52: 0 | W52: 0 | X52: 0 | Y52: 0 | Z52: 0 | AA52: 0 | AB52: 0 | AC52: 0 | AD52: 0 | AE52: 0 | AF52: 0 | AG52: 0 | AH52: 0 | AI52: 0 | AJ52: 0 | AK52: 0 | AL52: HYD | AM52: 0 | AN52: 0 | AO52: 0 | AP52: 0 | AQ52: 0 | AR52: 0 | AS52: 0 | AT52: 0 | AU52: 0 | AV52: 0 | AW52: 0 | AX52: 0 | AY52: 0 | AZ52: 0 | BA52: 0 | BB52: 0 | BC52: 0 | BD52: 0 | BE52: 0 | BF52: 0 | BG52: 0 | BH52: 0 | BI52: 0 | BJ52: 0 | BK52: 0
A53: BUREPHYDEXRONio | B53: BUR | C53: EPHYDEXRONio | D53: BUwEPHYDEXRONio | E53: 1 | F53: 0 | G53: 0 | H53: 120.0087085 | I53: 0 | J53: 0 | K53: 0.2378234399 | L53: 0 | M53: 0 | N53: 0 | O53: 0 | P53: 0 | Q53: 0 | R53: 0 | S53: 0 | T53: 0 | U53: 0 | V53: 0 | W53: 0 | X53: 0 | Y53: 0 | Z53: 0 | AA53: 0 | AB53: 0 | AC53: 0 | AD53: 0 | AE53: 0 | AF53: 0 | AG53: 0 | AH53: 0 | AI53: 0 | AJ53: 0 | AK53: 0 | AL53: HYD | AM53: 0 | AN53: 0 | AO53: 0 | AP53: 0 | AQ53: 0 | AR53: 0 | AS53: 0 | AT53: 0 | AU53: 0 | AV53: 0 | AW53: 0 | AX53: 0 | AY53: 0 | AZ53: 0 | BA53: 0 | BB53: 0 | BC53: 0 | BD53: 0 | BE53: 0 | BF53: 0 | BG53: 0 | BH53: 0 | BI53: 0 | BJ53: 0 | BK53: 0
A54: BUREPHYDEXROTou | B54: BUR | C54: EPHYDEXROTou | D54: BUwEPHYDEXROTou | E54: 1 | F54: 0 | G54: 0 | H54: 120.0087085 | I54: 0 | J54: 0 | K54: 0.1664764079 | L54: 0 | M54: 0 | N54: 0 | O54: 0 | P54: 0 | Q54: 0 | R54: 0 | S54: 0 | T54: 0 | U54: 0 | V54: 0 | W54: 0 | X54: 0 | Y54: 0 | Z54: 0 | AA54: 0 | AB54: 0 | AC54: 0 | AD54: 0 | AE54: 0 | AF54: 0 | AG54: 0 | AH54: 0 | AI54: 0 | AJ54: 0 | AK54: 0 | AL54: HYD | AM54: 0 | AN54: 0 | AO54: 0 | AP54: 0 | AQ54: 0 | AR54: 0 | AS54: 0 | AT54: 0 | AU54: 0 | AV54: 0 | AW54: 0 | AX54: 0 | AY54: 0 | AZ54: 0 | BA54: 0 | BB54: 0 | BC54: 0 | BD54: 0 | BE54: 0 | BF54: 0 | BG54: 0 | BH54: 0 | BI54: 0 | BJ54: 0 | BK54: 0
A55: NIGEPCOAEXST | B55: NIG | C55: EPCOAEXST | D55: NIwEPCOAEXST | E55: 0.3333333333 | F55: 1.04109589 | G55: 0 | H55: 129.0245011 | I55: 0 | J55: 0 | K55: 0.8556210046 | L55: 0 | M55: 0 | N55: 0 | O55: 0 | P55: 0 | Q55: 0 | R55: 0 | S55: 0 | T55: 0 | U55: 0 | V55: 0 | W55: 0 | X55: 0 | Y55: 0 | Z55: 0 | AA55: 0 | AB55: 0 | AC55: 0 | AD55: 0 | AE55: 0 | AF55: 0 | AG55: 0 | AH55: 0 | AI55: 0 | AJ55: 0 | AK55: 0 | AL55: COA | AM55: 49.65753425 | AN55: 50 | AO55: 50.34246575 | AP55: 50.68493151 | AQ55: 51.02739726 | AR55: 51.36986301 | AS55: 51.71232877 | AT55: 52.05479452 | AU55: 52.39726027 | AV55: 52.73972603 | AW55: 53.08219178 | AX55: 53.42465753 | AY55: 53.76712329 | AZ55: 54.10958904 | BA55: 54.45205479 | BB55: 54.79452055 | BC55: 55.1369863 | BD55: 55.47945205 | BE55: 55.82191781 | BF55: 56.16438356 | BG55: 56.84931507 | BH55: 56.84931507 | BI55: 56.84931507 | BJ55: 56.84931507 | BK55: 0
A56: NIGEPODSEXDI | B56: NIG | C56: EPODSEXDI | D56: NIwEPODSEXDI | E56: 0.3461538462 | F56: 0.770328 | G56: 0 | H56: 59.59001771 | I56: 0 | J56: 0 | K56: 0.801369863 | L56: 0 | M56: 0 | N56: 0 | O56: 0 | P56: 0 | Q56: 0 | R56: 0 | S56: 0 | T56: 0 | U56: 0 | V56: 0 | W56: 0 | X56: 0 | Y56: 0 | Z56: 0 | AA56: 0 | AB56: 0 | AC56: 0 | AD56: 0 | AE56: 0 | AF56: 0 | AG56: 0 | AH56: 0 | AI56: 0 | AJ56: 0 | AK56: 0 | AL56: ODSI | AM56: 262.1765601 | AN56: 267.4530695 | AO56: 272.7295789 | AP56: 278.0060883 | AQ56: 283.2825977 | AR56: 288.5591071 | AS56: 293.8356164 | AT56: 299.1121258 | AU56: 304.3886352 | AV56: 309.6651446 | AW56: 314.6118721 | AX56: 318.5692542 | AY56: 322.5266362 | AZ56: 326.4840183 | BA56: 330.4414003 | BB56: 334.3987823 | BC56: 338.3561644 | BD56: 342.3135464 | BE56: 346.2709285 | BF56: 350.2283105 | BG56: 354.8452562 | BH56: 354.8452562 | BI56: 354.8452562 | BJ56: 354.8452562 | BK56: 0
A57: NIGEPOHFEXDI | B57: NIG | C57: EPOHFEXDI | D57: NIwEPOHFEXDI | E57: 0.3789473684 | F57: 0.766365 | G57: 0 | H57: 75.1836672 | I57: 0 | J57: 0 | K57: 0.801369863 | L57: 0 | M57: 0 | N57: 0 | O57: 0 | P57: 0 | Q57: 0 | R57: 0 | S57: 0 | T57: 0 | U57: 0 | V57: 0 | W57: 0 | X57: 0 | Y57: 0 | Z57: 0 | AA57: 0 | AB57: 0 | AC57: 0 | AD57: 0 | AE57: 0 | AF57: 0 | AG57: 0 | AH57: 0 | AI57: 0 | AJ57: 0 | AK57: 0 | AL57: OHFI | AM57: 154.8389143 | AN57: 157.8513445 | AO57: 160.8637747 | AP57: 163.876205 | AQ57: 166.8886352 | AR57: 169.9010654 | AS57: 172.9134957 | AT57: 175.9259259 | AU57: 178.9383562 | AV57: 181.9507864 | AW57: 184.9632166 | AX57: 187.3731608 | AY57: 189.783105 | AZ57: 192.1930492 | BA57: 194.6029934 | BB57: 197.0129376 | BC57: 199.4228818 | BD57: 201.832826 | BE57: 204.2427702 | BF57: 206.6527144 | BG57: 209.3639016 | BH57: 209.3639016 | BI57: 209.3639016 | BJ57: 209.3639016 | BK57: 0
A58: NIGEPGASEXGT | B58: NIG | C58: EPGASEXGT | D58: NIwEPGASEXGT | E58: 0.2834645669 | F58: 0 | G58: 0 | H58: 34.87645745 | I58: 0 | J58: 0 | K58: 0.8556210046 | L58: 0 | M58: 0 | N58: 0 | O58: 0 | P58: 0 | Q58: 0 | R58: 0 | S58: 0 | T58: 0 | U58: 0 | V58: 0 | W58: 0 | X58: 0 | Y58: 0 | Z58: 0 | AA58: 0 | AB58: 0 | AC58: 0 | AD58: 0 | AE58: 0 | AF58: 0 | AG58: 0 | AH58: 0 | AI58: 0 | AJ58: 0 | AK58: 0 | AL58: GASNA | AM58: 153.7160705 | AN58: 155.4880137 | AO58: 157.2599569 | AP58: 159.0319001 | AQ58: 160.8038432 | AR58: 162.5757864 | AS58: 164.3477296 | AT58: 166.1196728 | AU58: 167.8916159 | AV58: 169.6635591 | AW58: 171.4355023 | AX58: 174.093417 | AY58: 176.7513318 | AZ58: 179.4092466 | BA58: 182.0671613 | BB58: 184.7250761 | BC58: 187.3829909 | BD58: 190.0409056 | BE58: 192.6988204 | BF58: 195.3567352 | BG58: 198.0146499 | BH58: 198.0146499 | BI58: 198.0146499 | BJ58: 198.0146499 | BK58: 0
A59: NGAEPGASEXGT | B59: NGA | C59: EPGASEXGT | D59: NGwEPGASEXGT | E59: 0.2834645669 | F59: 0.712804414 | G59: 0 | H59: 34.87645745 | I59: 0 | J59: 0 | K59: 0.8556210046 | L59: 0 | M59: 0 | N59: 0 | O59: 0 | P59: 0 | Q59: 0 | R59: 0 | S59: 0 | T59: 0 | U59: 0 | V59: 0 | W59: 0 | X59: 0 | Y59: 0 | Z59: 0 | AA59: 0 | AB59: 0 | AC59: 0 | AD59: 0 | AE59: 0 | AF59: 0 | AG59: 0 | AH59: 0 | AI59: 0 | AJ59: 0 | AK59: 0 | AL59: GASLOCal | AM59: 107.927448 | AN59: 109.1355911 | AO59: 110.3437341 | AP59: 111.5518772 | AQ59: 112.7600203 | AR59: 113.9681634 | AS59: 115.1763064 | AT59: 116.3844495 | AU59: 117.5925926 | AV59: 118.8007357 | AW59: 120.0088787 | AX59: 122.0224505 | AY59: 124.0360223 | AZ59: 126.0495941 | BA59: 128.0631659 | BB59: 130.0767377 | BC59: 132.0903095 | BD59: 134.1038813 | BE59: 136.1174531 | BF59: 138.1310249 | BG59: 140.1445967 | BH59: 140.1445967 | BI59: 140.1445967 | BJ59: 140.1445967 | BK59: 0
A60: NGAEPGASEXST | B60: NGA | C60: EPGASEXST | D60: NGwEPGASEXST | E60: 0.3404349361 | F60: 0.593519563 | G60: 0 | H60: 129.0245011 | I60: 0 | J60: 0 | K60: 0.8556210046 | L60: 0 | M60: 0 | N60: 0 | O60: 0 | P60: 0 | Q60: 0 | R60: 0 | S60: 0 | T60: 0 | U60: 0 | V60: 0 | W60: 0 | X60: 0 | Y60: 0 | Z60: 0 | AA60: 0 | AB60: 0 | AC60: 0 | AD60: 0 | AE60: 0 | AF60: 0 | AG60: 0 | AH60: 0 | AI60: 0 | AJ60: 0 | AK60: 0 | AL60: GASLOCal | AM60: 89.86623891 | AN60: 90.87220428 | AO60: 91.87816964 | AP60: 92.884135 | AQ60: 93.89010036 | AR60: 94.89606572 | AS60: 95.90203108 | AT60: 96.90799644 | AU60: 97.9139618 | AV60: 98.91992716 | AW60: 99.92589252 | AX60: 101.6025015 | AY60: 103.2791104 | AZ60: 104.9557193 | BA60: 106.6323283 | BB60: 108.3089372 | BC60: 109.9855461 | BD60: 111.6621551 | BE60: 113.338764 | BF60: 115.0153729 | BG60: 116.6919819 | BH60: 116.6919819 | BI60: 116.6919819 | BJ60: 116.6919819 | BK60: 0
A61: NGAEPHYDEXDAShi | B61: NGA | C61: EPHYDEXDAShi | D61: NGwEPHYDEXDAShi | E61: 1 | F61: 0 | G61: 0 | H61: 120.0087085 | I61: 0 | J61: 0 | K61: 0.462277667 | L61: 0 | M61: 0 | N61: 0 | O61: 0 | P61: 0 | Q61: 0 | R61: 0 | S61: 0 | T61: 0 | U61: 0 | V61: 0 | W61: 0 | X61: 0 | Y61: 0 | Z61: 0 | AA61: 0 | AB61: 0 | AC61: 0 | AD61: 0 | AE61: 0 | AF61: 0 | AG61: 0 | AH61: 0 | AI61: 0 | AJ61: 0 | AK61: 0 | AL61: HYD | AM61: 0 | AN61: 0 | AO61: 0 | AP61: 0 | AQ61: 0 | AR61: 0 | AS61: 0 | AT61: 0 | AU61: 0 | AV61: 0 | AW61: 0 | AX61: 0 | AY61: 0 | AZ61: 0 | BA61: 0 | BB61: 0 | BC61: 0 | BD61: 0 | BE61: 0 | BF61: 0 | BG61: 0 | BH61: 0 | BI61: 0 | BJ61: 0 | BK61: 0
A62: NGAEPHYDEXDAJeb | B62: NGA | C62: EPHYDEXDAJeb | D62: NGwEPHYDEXDAJeb | E62: 1 | F62: 0 | G62: 0 | H62: 120.0087085 | I62: 0 | J62: 0 | K62: 0.3491954298 | L62: 0 | M62: 0 | N62: 0 | O62: 0 | P62: 0 | Q62: 0 | R62: 0 | S62: 0 | T62: 0 | U62: 0 | V62: 0 | W62: 0 | X62: 0 | Y62: 0 | Z62: 0 | AA62: 0 | AB62: 0 | AC62: 0 | AD62: 0 | AE62: 0 | AF62: 0 | AG62: 0 | AH62: 0 | AI62: 0 | AJ62: 0 | AK62: 0 | AL62: HYD | AM62: 0 | AN62: 0 | AO62: 0 | AP62: 0 | AQ62: 0 | AR62: 0 | AS62: 0 | AT62: 0 | AU62: 0 | AV62: 0 | AW62: 0 | AX62: 0 | AY62: 0 | AZ62: 0 | BA62: 0 | BB62: 0 | BC62: 0 | BD62: 0 | BE62: 0 | BF62: 0 | BG62: 0 | BH62: 0 | BI62: 0 | BJ62: 0 | BK62: 0
A63: NGAEPHYDEXDAKai | B63: NGA | C63: EPHYDEXDAKai | D63: NGwEPHYDEXDAKai | E63: 1 | F63: 0 | G63: 0 | H63: 120.0087085 | I63: 0 | J63: 0 | K63: 0.3495325071 | L63: 0 | M63: 0 | N63: 0 | O63: 0 | P63: 0 | Q63: 0 | R63: 0 | S63: 0 | T63: 0 | U63: 0 | V63: 0 | W63: 0 | X63: 0 | Y63: 0 | Z63: 0 | AA63: 0 | AB63: 0 | AC63: 0 | AD63: 0 | AE63: 0 | AF63: 0 | AG63: 0 | AH63: 0 | AI63: 0 | AJ63: 0 | AK63: 0 | AL63: HYD | AM63: 0 | AN63: 0 | AO63: 0 | AP63: 0 | AQ63: 0 | AR63: 0 | AS63: 0 | AT63: 0 | AU63: 0 | AV63: 0 | AW63: 0 | AX63: 0 | AY63: 0 | AZ63: 0 | BA63: 0 | BB63: 0 | BC63: 0 | BD63: 0 | BE63: 0 | BF63: 0 | BG63: 0 | BH63: 0 | BI63: 0 | BJ63: 0 | BK63: 0
A64: 0 | B64: 0 | C64: 0 | D64: 0 | E64: 0 | F64: 0 | G64: 0 | H64: 0 | I64: 0 | J64: 0 | K64: 0 | L64: 0 | M64: 0 | N64: 0 | O64: 0 | P64: 0 | Q64: 0 | R64: 0 | S64: 0 | T64: 0 | U64: 0 | V64: 0 | W64: 0 | X64: 0 | Y64: 0 | Z64: 0 | AA64: 0 | AB64: 0 | AC64: 0 | AD64: 0 | AE64: 0 | AF64: 0 | AG64: 0 | AH64: 0 | AI64: 0 | AJ64: 0 | AK64: 0 | AL64: 0 | AM64: 0 | AN64: 0 | AO64: 0 | AP64: 0 | AQ64: 0 | AR64: 0 | AS64: 0 | AT64: 0 | AU64: 0 | AV64: 0 | AW64: 0 | AX64: 0 | AY64: 0 | AZ64: 0 | BA64: 0 | BB64: 0 | BC64: 0 | BD64: 0 | BE64: 0 | BF64: 0 | BG64: 0 | BH64: 0 | BI64: 0 | BJ64: 0 | BK64: 0 | BL64: 0 | BM64: 0 | BN64: 0 | BO64: 0 | BP64: 0 | BQ64: 0 | BR64: 0 | BS64: 0 | BT64: 0 | BU64: 0 | BV64: 0 | BW64: 0 | BX64: 0 | BY64: 0 | BZ64: 0 | CA64: 0 | CB64: 0 | CC64: 0 | CD64: 0 | CE64: 0 | CF64: 0 | CG64: 0 | CH64: 0 | CI64: 0
A65: SiteSpecific | B65: 0 | C65: 0 | D65: 0 | E65: 0 | F65: 0 | G65: 0 | H65: 0 | I65: 0 | J65: 0 | K65: 0 | L65: 0 | M65: 0 | N65: 0 | O65: 0 | P65: 0 | Q65: 0 | R65: 0 | S65: 0 | T65: 0 | U65: 0 | V65: 0 | W65: 0 | X65: 0 | Y65: 0 | Z65: 0 | AA65: 0 | AB65: 0 | AC65: 0 | AD65: 0 | AE65: 0 | AF65: 0 | AG65: 0 | AH65: 0 | AI65: 0 | AJ65: 0 | AK65: 0 | AL65: 0 | AM65: 0 | AN65: 0 | AO65: 0 | AP65: 0 | AQ65: 0 | AR65: 0 | AS65: 0 | AT65: 0 | AU65: 0 | AV65: 0 | AW65: 0 | AX65: 0 | AY65: 0 | AZ65: 0 | BA65: 0 | BB65: 0 | BC65: 0 | BD65: 0 | BE65: 0 | BF65: 0 | BG65: 0 | BH65: 0 | BI65: 0 | BJ65: 0 | BK65: 0 | BL65: 0 | BM65: 0 | BN65: 0 | BO65: 0 | BP65: 0 | BQ65: 0 | BR65: 0 | BS65: 0 | BT65: 0 | BU65: 0 | BV65: 0 | BW65: 0 | BX65: 0 | BY65: 0 | BZ65: 0 | CA65: 0 | CB65: 0 | CC65: 0 | CD65: 0 | CE65: 0 | CF65: 0 | CG65: 0 | CH65: 0 | CI65: 0
A66: SENEPODSNCLoc | B66: SEN | C66: EPODSNCLoc | D66: SEwEPODSNCLoc | E66: 0.3461538462 | F66: 0.770328 | G66: 87.6 | H66: 0 | I66: 30 | J66: 0.09643568023 | K66: 0.801369863 | L66: 0 | M66: Location | N66: 1123.5 | O66: 1123.5 | P66: 1123.5 | Q66: 1123.5 | R66: 1123.5 | S66: 1123.5 | T66: 1123.5 | U66: 1123.5 | V66: 1123.5 | W66: 1123.5 | X66: 1123.5 | Y66: 1123.5 | Z66: 1123.5 | AA66: 1123.5 | AB66: 1123.5 | AC66: 1123.5 | AD66: 1123.5 | AE66: 1123.5 | AF66: 1123.5 | AG66: 1123.5 | AH66: 1123.5 | AI66: 1123.5 | AJ66: 1123.5 | AK66: 1123.5 | AL66: ODSC | AM66: 227.8792491 | AN66: 232.4961948 | AO66: 237.1131405 | AP66: 241.7300863 | AQ66: 246.347032 | AR66: 250.9639777 | AS66: 255.5809234 | AT66: 260.1978691 | AU66: 264.8148148 | AV66: 269.4317605 | AW66: 273.7189244 | AX66: 277.0167428 | AY66: 280.3145611 | AZ66: 283.6123795 | BA66: 286.9101979 | BB66: 290.2080162 | BC66: 293.5058346 | BD66: 296.803653 | BE66: 300.1014713 | BF66: 303.3992897 | BG66: 307.3566717 | BH66: 307.3566717 | BI66: 307.3566717 | BJ66: 307.3566717 | BK66: 0
A67: SENEPOHFNUnew | B67: SEN | C67: EPOHFNUnew | D67: SEwEPOHFNUnew | E67: 0.3789473684 | F67: 0.766365 | G67: 87.6 | H67: 0 | I67: 30 | J67: 0.09643568023 | K67: 0.801369863 | L67: 0 | M67: new mobile | N67: 1417.5 | O67: 1417.5 | P67: 1417.5 | Q67: 1417.5 | R67: 1417.5 | S67: 1417.5 | T67: 1417.5 | U67: 1417.5 | V67: 1417.5 | W67: 1417.5 | X67: 1417.5 | Y67: 1417.5 | Z67: 1417.5 | AA67: 1417.5 | AB67: 1417.5 | AC67: 1417.5 | AD67: 1417.5 | AE67: 1417.5 | AF67: 1417.5 | AG67: 1417.5 | AH67: 1417.5 | AI67: 1417.5 | AJ67: 1417.5 | AK67: 1417.5 | AL67: OHFC | AM67: 122.6059107 | AN67: 125.0761035 | AO67: 127.5462963 | AP67: 130.0164891 | AQ67: 132.4866819 | AR67: 134.9568747 | AS67: 137.4270675 | AT67: 139.8972603 | AU67: 142.3674531 | AV67: 144.8376459 | AW67: 147.1180556 | AX67: 148.9225013 | AY67: 150.726947 | AZ67: 152.5313927 | BA67: 154.3358384 | BB67: 156.1402841 | BC67: 157.9447298 | BD67: 159.7491755 | BE67: 161.5536213 | BF67: 163.358067 | BG67: 165.5450913 | BH67: 165.5450913 | BI67: 165.5450913 | BJ67: 165.5450913 | BK67: 0
A68: SENEPOHFNUrel | B68: SEN | C68: EPOHFNUrel | D68: SEwEPOHFNUrel | E68: 0.3789473684 | F68: 0.766365 | G68: 87.6 | H68: 0 | I68: 30 | J68: 0.09643568023 | K68: 0.801369863 | L68: 0 | M68: relocation | N68: 1417.5 | O68: 1417.5 | P68: 1417.5 | Q68: 1417.5 | R68: 1417.5 | S68: 1417.5 | T68: 1417.5 | U68: 1417.5 | V68: 1417.5 | W68: 1417.5 | X68: 1417.5 | Y68: 1417.5 | Z68: 1417.5 | AA68: 1417.5 | AB68: 1417.5 | AC68: 1417.5 | AD68: 1417.5 | AE68: 1417.5 | AF68: 1417.5 | AG68: 1417.5 | AH68: 1417.5 | AI68: 1417.5 | AJ68: 1417.5 | AK68: 1417.5 | AL68: OHFC | AM68: 122.6059107 | AN68: 125.0761035 | AO68: 127.5462963 | AP68: 130.0164891 | AQ68: 132.4866819 | AR68: 134.9568747 | AS68: 137.4270675 | AT68: 139.8972603 | AU68: 142.3674531 | AV68: 144.8376459 | AW68: 147.1180556 | AX68: 148.9225013 | AY68: 150.726947 | AZ68: 152.5313927 | BA68: 154.3358384 | BB68: 156.1402841 | BC68: 157.9447298 | BD68: 159.7491755 | BE68: 161.5536213 | BF68: 163.358067 | BG68: 165.5450913 | BH68: 165.5450913 | BI68: 165.5450913 | BJ68: 165.5450913 | BK68: 0
A69: SENEPOHFNUIPP | B69: SEN | C69: EPOHFNUIPP | D69: SEwEPOHFNUIPP | E69: 0.3789473684 | F69: 0.766365 | G69: 87.6 | H69: 0 | I69: 30 | J69: 0.09643568023 | K69: 0.801369863 | L69: 0 | M69: IPP Tou | N69: 1417.5 | O69: 1417.5 | P69: 1417.5 | Q69: 1417.5 | R69: 1417.5 | S69: 1417.5 | T69: 1417.5 | U69: 1417.5 | V69: 1417.5 | W69: 1417.5 | X69: 1417.5 | Y69: 1417.5 | Z69: 1417.5 | AA69: 1417.5 | AB69: 1417.5 | AC69: 1417.5 | AD69: 1417.5 | AE69: 1417.5 | AF69: 1417.5 | AG69: 1417.5 | AH69: 1417.5 | AI69: 1417.5 | AJ69: 1417.5 | AK69: 1417.5 | AL69: OHFC | AM69: 122.6059107 | AN69: 125.0761035 | AO69: 127.5462963 | AP69: 130.0164891 | AQ69: 132.4866819 | AR69: 134.9568747 | AS69: 137.4270675 | AT69: 139.8972603 | AU69: 142.3674531 | AV69: 144.8376459 | AW69: 147.1180556 | AX69: 148.9225013 | AY69: 150.726947 | AZ69: 152.5313927 | BA69: 154.3358384 | BB69: 156.1402841 | BC69: 157.9447298 | BD69: 159.7491755 | BE69: 161.5536213 | BF69: 163.358067 | BG69: 165.5450913 | BH69: 165.5450913 | BI69: 165.5450913 | BJ69: 165.5450913 | BK69: 0
A70: SENEPOHFNCbel | B70: SEN | C70: EPOHFNCbel | D70: SEwEPOHFNCbel | E70: 0.3789473684 | F70: 0.766365 | G70: 87.6 | H70: 0 | I70: 30 | J70: 0.09643568023 | K70: 0.801369863 | L70: 0 | M70: belair | N70: 1417.5 | O70: 1417.5 | P70: 1417.5 | Q70: 1417.5 | R70: 1417.5 | S70: 1417.5 | T70: 1417.5 | U70: 1417.5 | V70: 1417.5 | W70: 1417.5 | X70: 1417.5 | Y70: 1417.5 | Z70: 1417.5 | AA70: 1417.5 | AB70: 1417.5 | AC70: 1417.5 | AD70: 1417.5 | AE70: 1417.5 | AF70: 1417.5 | AG70: 1417.5 | AH70: 1417.5 | AI70: 1417.5 | AJ70: 1417.5 | AK70: 1417.5 | AL70: OHFC | AM70: 122.6059107 | AN70: 125.0761035 | AO70: 127.5462963 | AP70: 130.0164891 | AQ70: 132.4866819 | AR70: 134.9568747 | AS70: 137.4270675 | AT70: 139.8972603 | AU70: 142.3674531 | AV70: 144.8376459 | AW70: 147.1180556 | AX70: 148.9225013 | AY70: 150.726947 | AZ70: 152.5313927 | BA70: 154.3358384 | BB70: 156.1402841 | BC70: 157.9447298 | BD70: 159.7491755 | BE70: 161.5536213 | BF70: 163.358067 | BG70: 165.5450913 | BH70: 165.5450913 | BI70: 165.5450913 | BJ70: 165.5450913 | BK70: 0
A71: SENEPOHFNUunk | B71: SEN | C71: EPOHFNUunk | D71: SEwEPOHFNUunk | E71: 0.3789473684 | F71: 0.766365 | G71: 87.6 | H71: 0 | I71: 30 | J71: 0.09643568023 | K71: 0.801369863 | L71: 0 | M71: unknown | N71: 1417.5 | O71: 1417.5 | P71: 1417.5 | Q71: 1417.5 | R71: 1417.5 | S71: 1417.5 | T71: 1417.5 | U71: 1417.5 | V71: 1417.5 | W71: 1417.5 | X71: 1417.5 | Y71: 1417.5 | Z71: 1417.5 | AA71: 1417.5 | AB71: 1417.5 | AC71: 1417.5 | AD71: 1417.5 | AE71: 1417.5 | AF71: 1417.5 | AG71: 1417.5 | AH71: 1417.5 | AI71: 1417.5 | AJ71: 1417.5 | AK71: 1417.5 | AL71: OHFC | AM71: 122.6059107 | AN71: 125.0761035 | AO71: 127.5462963 | AP71: 130.0164891 | AQ71: 132.4866819 | AR71: 134.9568747 | AS71: 137.4270675 | AT71: 139.8972603 | AU71: 142.3674531 | AV71: 144.8376459 | AW71: 147.1180556 | AX71: 148.9225013 | AY71: 150.726947 | AZ71: 152.5313927 | BA71: 154.3358384 | BB71: 156.1402841 | BC71: 157.9447298 | BD71: 159.7491755 | BE71: 161.5536213 | BF71: 163.358067 | BG71: 165.5450913 | BH71: 165.5450913 | BI71: 165.5450913 | BJ71: 165.5450913 | BK71: 0
A72: SENEPCOANCSen | B72: SEN | C72: EPCOANCSen | D72: SEwEPCOANCSen | E72: 0.3333333333 | F72: 1.04109589 | G72: 27.156 | H72: 0 | I72: 35 | J72: 0.09426336829 | K72: 0.8556210046 | L72: 0 | M72: Sendou | N72: 971 | O72: 971 | P72: 971 | Q72: 971 | R72: 971 | S72: 971 | T72: 971 | U72: 971 | V72: 971 | W72: 971 | X72: 971 | Y72: 971 | Z72: 971 | AA72: 971 | AB72: 971 | AC72: 971 | AD72: 971 | AE72: 971 | AF72: 971 | AG72: 971 | AH72: 971 | AI72: 971 | AJ72: 971 | AK72: 971 | AL72: COA | AM72: 49.65753425 | AN72: 50 | AO72: 50.34246575 | AP72: 50.68493151 | AQ72: 51.02739726 | AR72: 51.36986301 | AS72: 51.71232877 | AT72: 52.05479452 | AU72: 52.39726027 | AV72: 52.73972603 | AW72: 53.08219178 | AX72: 53.42465753 | AY72: 53.76712329 | AZ72: 54.10958904 | BA72: 54.45205479 | BB72: 54.79452055 | BC72: 55.1369863 | BD72: 55.47945205 | BE72: 55.82191781 | BF72: 56.16438356 | BG72: 56.84931507 | BH72: 56.84931507 | BI72: 56.84931507 | BJ72: 56.84931507 | BK72: 0
A73: SENEPCOANUKay | B73: SEN | C73: EPCOANUKay | D73: SEwEPCOANUKay | E73: 0.3333333333 | F73: 1.04109589 | G73: 27.156 | H73: 0 | I73: 35 | J73: 0.09426336829 | K73: 0.8556210046 | L73: 0 | M73: Kayar | N73: 2488.6656 | O73: 2488.6656 | P73: 2488.6656 | Q73: 2488.6656 | R73: 2488.6656 | S73: 2488.6656 | T73: 2488.6656 | U73: 2488.6656 | V73: 2488.6656 | W73: 2488.6656 | X73: 2488.6656 | Y73: 2488.6656 | Z73: 2488.6656 | AA73: 2488.6656 | AB73: 2488.6656 | AC73: 2488.6656 | AD73: 2488.6656 | AE73: 2488.6656 | AF73: 2488.6656 | AG73: 2488.6656 | AH73: 2488.6656 | AI73: 2488.6656 | AJ73: 2488.6656 | AK73: 2488.6656 | AL73: COA | AM73: 49.65753425 | AN73: 50 | AO73: 50.34246575 | AP73: 50.68493151 | AQ73: 51.02739726 | AR73: 51.36986301 | AS73: 51.71232877 | AT73: 52.05479452 | AU73: 52.39726027 | AV73: 52.73972603 | AW73: 53.08219178 | AX73: 53.42465753 | AY73: 53.76712329 | AZ73: 54.10958904 | BA73: 54.45205479 | BB73: 54.79452055 | BC73: 55.1369863 | BD73: 55.47945205 | BE73: 55.82191781 | BF73: 56.16438356 | BG73: 56.84931507 | BH73: 56.84931507 | BI73: 56.84931507 | BJ73: 56.84931507 | BK73: 0
A74: SENEPCOANUSt | B74: SEN | C74: EPCOANUSt | D74: SEwEPCOANUSt | E74: 0.3333333333 | F74: 1.04109589 | G74: 27.156 | H74: 0 | I74: 35 | J74: 0.09426336829 | K74: 0.8556210046 | L74: 0 | M74: St Louis | N74: 2488.6656 | O74: 2488.6656 | P74: 2488.6656 | Q74: 2488.6656 | R74: 2488.6656 | S74: 2488.6656 | T74: 2488.6656 | U74: 2488.6656 | V74: 2488.6656 | W74: 2488.6656 | X74: 2488.6656 | Y74: 2488.6656 | Z74: 2488.6656 | AA74: 2488.6656 | AB74: 2488.6656 | AC74: 2488.6656 | AD74: 2488.6656 | AE74: 2488.6656 | AF74: 2488.6656 | AG74: 2488.6656 | AH74: 2488.6656 | AI74: 2488.6656 | AJ74: 2488.6656 | AK74: 2488.6656 | AL74: COA | AM74: 49.65753425 | AN74: 50 | AO74: 50.34246575 | AP74: 50.68493151 | AQ74: 51.02739726 | AR74: 51.36986301 | AS74: 51.71232877 | AT74: 52.05479452 | AU74: 52.39726027 | AV74: 52.73972603 | AW74: 53.08219178 | AX74: 53.42465753 | AY74: 53.76712329 | AZ74: 54.10958904 | BA74: 54.45205479 | BB74: 54.79452055 | BC74: 55.1369863 | BD74: 55.47945205 | BE74: 55.82191781 | BF74: 56.16438356 | BG74: 56.84931507 | BH74: 56.84931507 | BI74: 56.84931507 | BJ74: 56.84931507 | BK74: 0
A75: SENEPBIONCros | B75: SEN | C75: EPBIONCros | D75: SEwEPBIONCros | E75: 0.375 | F75: 0 | G75: 0 | H75: 129.6 | I75: 30 | J75: 0.09643568023 | K75: 0.8556 | L75: 0 | M75: ross betio | N75: 3910 | O75: 3910 | P75: 3910 | Q75: 3910 | R75: 3910 | S75: 3910 | T75: 3910 | U75: 3910 | V75: 3910 | W75: 3910 | X75: 3910 | Y75: 3910 | Z75: 3910 | AA75: 3910 | AB75: 3910 | AC75: 3910 | AD75: 3910 | AE75: 3910 | AF75: 3910 | AG75: 3910 | AH75: 3910 | AI75: 3910 | AJ75: 3910 | AK75: 3910 | AL75: BIO | AM75: 14.30745814 | AN75: 14.30745814 | AO75: 14.30745814 | AP75: 14.30745814 | AQ75: 14.30745814 | AR75: 14.30745814 | AS75: 14.30745814 | AT75: 14.30745814 | AU75: 14.30745814 | AV75: 14.30745814 | AW75: 14.30745814 | AX75: 14.30745814 | AY75: 14.30745814 | AZ75: 14.30745814 | BA75: 14.30745814 | BB75: 14.30745814 | BC75: 14.30745814 | BD75: 14.30745814 | BE75: 14.30745814 | BF75: 14.30745814 | BG75: 14.30745814 | BH75: 14.30745814 | BI75: 14.30745814 | BJ75: 14.30745814 | BK75: 0
A76: SENEPWNDNUSt | B76: SEN | C76: EPWNDNUSt | D76: SEwEPWNDNUSt | E76: 1 | F76: 0 | G76: 87.6 | H76: 17 | I76: 20 | J76: 0.1067814771 | K76: 0.3 | L76: 0 | M76: St Louis WP | N76: 1934 | O76: 1934 | P76: 1934 | Q76: 1934 | R76: 1934 | S76: 1934 | T76: 1934 | U76: 1934 | V76: 1934 | W76: 1934 | X76: 1934 | Y76: 1934 | Z76: 1934 | AA76: 1934 | AB76: 1934 | AC76: 1934 | AD76: 1934 | AE76: 1934 | AF76: 1934 | AG76: 1934 | AH76: 1934 | AI76: 1934 | AJ76: 1934 | AK76: 1934 | AL76: WND | AM76: 0 | AN76: 0 | AO76: 0 | AP76: 0 | AQ76: 0 | AR76: 0 | AS76: 0 | AT76: 0 | AU76: 0 | AV76: 0 | AW76: 0 | AX76: 0 | AY76: 0 | AZ76: 0 | BA76: 0 | BB76: 0 | BC76: 0 | BD76: 0 | BE76: 0 | BF76: 0 | BG76: 0 | BH76: 0 | BI76: 0 | BJ76: 0 | BK76: 0
A77: SENEPSOLNUzig | B77: SEN | C77: EPSOLNUzig | D77: SEwEPSOLNUzig | E77: 1 | F77: 0 | G77: 0 | H77: 20 | I77: 20 | J77: 0.1067814771 | K77: 0.25 | L77: 0 | M77: ziguinchor | N77: 5030 | O77: 5030 | P77: 5030 | Q77: 5030 | R77: 5030 | S77: 5030 | T77: 5030 | U77: 5030 | V77: 5030 | W77: 5030 | X77: 5030 | Y77: 5030 | Z77: 5030 | AA77: 5030 | AB77: 5030 | AC77: 5030 | AD77: 5030 | AE77: 5030 | AF77: 5030 | AG77: 5030 | AH77: 5030 | AI77: 5030 | AJ77: 5030 | AK77: 5030 | AL77: SOL | AM77: 0 | AN77: 0 | AO77: 0 | AP77: 0 | AQ77: 0 | AR77: 0 | AS77: 0 | AT77: 0 | AU77: 0 | AV77: 0 | AW77: 0 | AX77: 0 | AY77: 0 | AZ77: 0 | BA77: 0 | BB77: 0 | BC77: 0 | BD77: 0 | BE77: 0 | BF77: 0 | BG77: 0 | BH77: 0 | BI77: 0 | BJ77: 0 | BK77: 0
A78: SENEPWNDNUtai | B78: SEN | C78: EPWNDNUtai | D78: SEwEPWNDNUtai | E78: 1 | F78: 0 | G78: 87.6 | H78: 17 | I78: 20 | J78: 0.1067814771 | K78: 0.3 | L78: 0 | M78: taiba ndiaye | N78: 1934 | O78: 1934 | P78: 1934 | Q78: 1934 | R78: 1934 | S78: 1934 | T78: 1934 | U78: 1934 | V78: 1934 | W78: 1934 | X78: 1934 | Y78: 1934 | Z78: 1934 | AA78: 1934 | AB78: 1934 | AC78: 1934 | AD78: 1934 | AE78: 1934 | AF78: 1934 | AG78: 1934 | AH78: 1934 | AI78: 1934 | AJ78: 1934 | AK78: 1934 | AL78: WND | AM78: 0 | AN78: 0 | AO78: 0 | AP78: 0 | AQ78: 0 | AR78: 0 | AS78: 0 | AT78: 0 | AU78: 0 | AV78: 0 | AW78: 0 | AX78: 0 | AY78: 0 | AZ78: 0 | BA78: 0 | BB78: 0 | BC78: 0 | BD78: 0 | BE78: 0 | BF78: 0 | BG78: 0 | BH78: 0 | BI78: 0 | BJ78: 0 | BK78: 0
A79: SENEPHYDNUDASam | B79: SEN | C79: EPHYDNUDASam | D79: SEwEPHYDNUDASam | E79: 1 | F79: 0 | G79: 2 | H79: 0 | I79: 50 | J79: 0.09169015822 | K79: 0.1855022831 | L79: 0 | M79: Sambangalou(OMVG)partSénégal40% | N79: 3386 | O79: 3386 | P79: 3386 | Q79: 3386 | R79: 3386 | S79: 3386 | T79: 3386 | U79: 3386 | V79: 3386 | W79: 3386 | X79: 3386 | Y79: 3386 | Z79: 3386 | AA79: 3386 | AB79: 3386 | AC79: 3386 | AD79: 3386 | AE79: 3386 | AF79: 3386 | AG79: 3386 | AH79: 3386 | AI79: 3386 | AJ79: 3386 | AK79: 3386 | AL79: HYD | AM79: 0 | AN79: 0 | AO79: 0 | AP79: 0 | AQ79: 0 | AR79: 0 | AS79: 0 | AT79: 0 | AU79: 0 | AV79: 0 | AW79: 0 | AX79: 0 | AY79: 0 | AZ79: 0 | BA79: 0 | BB79: 0 | BC79: 0 | BD79: 0 | BE79: 0 | BF79: 0 | BG79: 0 | BH79: 0 | BI79: 0 | BJ79: 0 | BK79: 0
A80: SENEPHYDNUROKal | B80: SEN | C80: EPHYDNUROKal | D80: SEwEPHYDNUROKal | E80: 1 | F80: 0 | G80: 2 | H80: 0 | I80: 50 | J80: 0.09169015822 | K80: 0.1079718417 | L80: 0 | M80: Kaleta(OMVG)partSénégal40% | N80: 1114 | O80: 1114 | P80: 1114 | Q80: 1114 | R80: 1114 | S80: 1114 | T80: 1114 | U80: 1114 | V80: 1114 | W80: 1114 | X80: 1114 | Y80: 1114 | Z80: 1114 | AA80: 1114 | AB80: 1114 | AC80: 1114 | AD80: 1114 | AE80: 1114 | AF80: 1114 | AG80: 1114 | AH80: 1114 | AI80: 1114 | AJ80: 1114 | AK80: 1114 | AL80: HYD | AM80: 0 | AN80: 0 | AO80: 0 | AP80: 0 | AQ80: 0 | AR80: 0 | AS80: 0 | AT80: 0 | AU80: 0 | AV80: 0 | AW80: 0 | AX80: 0 | AY80: 0 | AZ80: 0 | BA80: 0 | BB80: 0 | BC80: 0 | BD80: 0 | BE80: 0 | BF80: 0 | BG80: 0 | BH80: 0 | BI80: 0 | BJ80: 0 | BK80: 0
A81: SENEPHYDNURODig | B81: SEN | C81: EPHYDNURODig | D81: SEwEPHYDNURODig | E81: 1 | F81: 0 | G81: 2 | H81: 0 | I81: 50 | J81: 0.09169015822 | K81: 0.02899763614 | L81: 0 | M81: Digan(OMVG)partSénégal40% | N81: 1201 | O81: 1201 | P81: 1201 | Q81: 1201 | R81: 1201 | S81: 1201 | T81: 1201 | U81: 1201 | V81: 1201 | W81: 1201 | X81: 1201 | Y81: 1201 | Z81: 1201 | AA81: 1201 | AB81: 1201 | AC81: 1201 | AD81: 1201 | AE81: 1201 | AF81: 1201 | AG81: 1201 | AH81: 1201 | AI81: 1201 | AJ81: 1201 | AK81: 1201 | AL81: HYD | AM81: 0 | AN81: 0 | AO81: 0 | AP81: 0 | AQ81: 0 | AR81: 0 | AS81: 0 | AT81: 0 | AU81: 0 | AV81: 0 | AW81: 0 | AX81: 0 | AY81: 0 | AZ81: 0 | BA81: 0 | BB81: 0 | BC81: 0 | BD81: 0 | BE81: 0 | BF81: 0 | BG81: 0 | BH81: 0 | BI81: 0 | BJ81: 0 | BK81: 0
A82: SENEPHYDNUDAFel | B82: SEN | C82: EPHYDNUDAFel | D82: SEwEPHYDNUDAFel | E82: 1 | F82: 0 | G82: 2 | H82: 0 | I82: 50 | J82: 0.09169015822 | K82: 0.3981512418 | L82: 0 | M82: FelloSounga(OMVG)partSénégal40% | N82: 3474 | O82: 3474 | P82: 3474 | Q82: 3474 | R82: 3474 | S82: 3474 | T82: 3474 | U82: 3474 | V82: 3474 | W82: 3474 | X82: 3474 | Y82: 3474 | Z82: 3474 | AA82: 3474 | AB82: 3474 | AC82: 3474 | AD82: 3474 | AE82: 3474 | AF82: 3474 | AG82: 3474 | AH82: 3474 | AI82: 3474 | AJ82: 3474 | AK82: 3474 | AL82: HYD | AM82: 0 | AN82: 0 | AO82: 0 | AP82: 0 | AQ82: 0 | AR82: 0 | AS82: 0 | AT82: 0 | AU82: 0 | AV82: 0 | AW82: 0 | AX82: 0 | AY82: 0 | AZ82: 0 | BA82: 0 | BB82: 0 | BC82: 0 | BD82: 0 | BE82: 0 | BF82: 0 | BG82: 0 | BH82: 0 | BI82: 0 | BJ82: 0 | BK82: 0
A83: SENEPHYDNUROSal | B83: SEN | C83: EPHYDNUROSal | D83: SEwEPHYDNUROSal | E83: 1 | F83: 0 | G83: 2 | H83: 0 | I83: 50 | J83: 0.09169015822 | K83: 0.1352739726 | L83: 0 | M83: Saltinho(OMVG)partSénégal40% | N83: 4273 | O83: 4273 | P83: 4273 | Q83: 4273 | R83: 4273 | S83: 4273 | T83: 4273 | U83: 4273 | V83: 4273 | W83: 4273 | X83: 4273 | Y83: 4273 | Z83: 4273 | AA83: 4273 | AB83: 4273 | AC83: 4273 | AD83: 4273 | AE83: 4273 | AF83: 4273 | AG83: 4273 | AH83: 4273 | AI83: 4273 | AJ83: 4273 | AK83: 4273 | AL83: HYD | AM83: 0 | AN83: 0 | AO83: 0 | AP83: 0 | AQ83: 0 | AR83: 0 | AS83: 0 | AT83: 0 | AU83: 0 | AV83: 0 | AW83: 0 | AX83: 0 | AY83: 0 | AZ83: 0 | BA83: 0 | BB83: 0 | BC83: 0 | BD83: 0 | BE83: 0 | BF83: 0 | BG83: 0 | BH83: 0 | BI83: 0 | BJ83: 0 | BK83: 0
A84: SENEPHYDNUROFel | B84: SEN | C84: EPHYDNUROFel | D84: SEwEPHYDNUROFel | E84: 1 | F84: 0 | G84: 2 | H84: 0 | I84: 50 | J84: 0.09169015822 | K84: 0.6088280061 | L84: 0 | M84: Felou(OMVS)partSénégal15% | N84: 2400 | O84: 2400 | P84: 2400 | Q84: 2400 | R84: 2400 | S84: 2400 | T84: 2400 | U84: 2400 | V84: 2400 | W84: 2400 | X84: 2400 | Y84: 2400 | Z84: 2400 | AA84: 2400 | AB84: 2400 | AC84: 2400 | AD84: 2400 | AE84: 2400 | AF84: 2400 | AG84: 2400 | AH84: 2400 | AI84: 2400 | AJ84: 2400 | AK84: 2400 | AL84: HYD | AM84: 0 | AN84: 0 | AO84: 0 | AP84: 0 | AQ84: 0 | AR84: 0 | AS84: 0 | AT84: 0 | AU84: 0 | AV84: 0 | AW84: 0 | AX84: 0 | AY84: 0 | AZ84: 0 | BA84: 0 | BB84: 0 | BC84: 0 | BD84: 0 | BE84: 0 | BF84: 0 | BG84: 0 | BH84: 0 | BI84: 0 | BJ84: 0 | BK84: 0
A85: SENEPHYDNUROGou | B85: SEN | C85: EPHYDNUROGou | D85: SEwEPHYDNUROGou | E85: 1 | F85: 0 | G85: 2 | H85: 0 | I85: 50 | J85: 0.09169015822 | K85: 0.1850945858 | L85: 0 | M85: Gouina(OMVS)partSénégal25% | N85: 2347 | O85: 2347 | P85: 2347 | Q85: 2347 | R85: 2347 | S85: 2347 | T85: 2347 | U85: 2347 | V85: 2347 | W85: 2347 | X85: 2347 | Y85: 2347 | Z85: 2347 | AA85: 2347 | AB85: 2347 | AC85: 2347 | AD85: 2347 | AE85: 2347 | AF85: 2347 | AG85: 2347 | AH85: 2347 | AI85: 2347 | AJ85: 2347 | AK85: 2347 | AL85: HYD | AM85: 0 | AN85: 0 | AO85: 0 | AP85: 0 | AQ85: 0 | AR85: 0 | AS85: 0 | AT85: 0 | AU85: 0 | AV85: 0 | AW85: 0 | AX85: 0 | AY85: 0 | AZ85: 0 | BA85: 0 | BB85: 0 | BC85: 0 | BD85: 0 | BE85: 0 | BF85: 0 | BG85: 0 | BH85: 0 | BI85: 0 | BJ85: 0 | BK85: 0
A86: SENEPHYDNUDADAM | B86: SEN | C86: EPHYDNUDADAM | D86: SEwEPHYDNUDADAM | E86: 1 | F86: 0 | G86: 2 | H86: 0 | I86: 50 | J86: 0.09169015822 | K86: 0.2942783325 | L86: 0 | M86: DAMEnvisagée | N86: 4311 | O86: 4311 | P86: 4311 | Q86: 4311 | R86: 4311 | S86: 4311 | T86: 4311 | U86: 4311 | V86: 4311 | W86: 4311 | X86: 4311 | Y86: 4311 | Z86: 4311 | AA86: 4311 | AB86: 4311 | AC86: 4311 | AD86: 4311 | AE86: 4311 | AF86: 4311 | AG86: 4311 | AH86: 4311 | AI86: 4311 | AJ86: 4311 | AK86: 4311 | AL86: HYD | AM86: 0 | AN86: 0 | AO86: 0 | AP86: 0 | AQ86: 0 | AR86: 0 | AS86: 0 | AT86: 0 | AU86: 0 | AV86: 0 | AW86: 0 | AX86: 0 | AY86: 0 | AZ86: 0 | BA86: 0 | BB86: 0 | BC86: 0 | BD86: 0 | BE86: 0 | BF86: 0 | BG86: 0 | BH86: 0 | BI86: 0 | BJ86: 0 | BK86: 0
A87: GAMEPOHFNCBri | B87: GAM | C87: EPOHFNCBri | D87: GAwEPOHFNCBri | E87: 0.3789473684 | F87: 0.766365 | G87: 87.6 | H87: 0 | I87: 30 | J87: 0.09643568023 | K87: 0.801369863 | L87: 0 | M87: Brikama | N87: 1417.5 | O87: 1417.5 | P87: 1417.5 | Q87: 1417.5 | R87: 1417.5 | S87: 1417.5 | T87: 1417.5 | U87: 1417.5 | V87: 1417.5 | W87: 1417.5 | X87: 1417.5 | Y87: 1417.5 | Z87: 1417.5 | AA87: 1417.5 | AB87: 1417.5 | AC87: 1417.5 | AD87: 1417.5 | AE87: 1417.5 | AF87: 1417.5 | AG87: 1417.5 | AH87: 1417.5 | AI87: 1417.5 | AJ87: 1417.5 | AK87: 1417.5 | AL87: OHFC | AM87: 122.6059107 | AN87: 125.0761035 | AO87: 127.5462963 | AP87: 130.0164891 | AQ87: 132.4866819 | AR87: 134.9568747 | AS87: 137.4270675 | AT87: 139.8972603 | AU87: 142.3674531 | AV87: 144.8376459 | AW87: 147.1180556 | AX87: 148.9225013 | AY87: 150.726947 | AZ87: 152.5313927 | BA87: 154.3358384 | BB87: 156.1402841 | BC87: 157.9447298 | BD87: 159.7491755 | BE87: 161.5536213 | BF87: 163.358067 | BG87: 165.5450913 | BH87: 165.5450913 | BI87: 165.5450913 | BJ87: 165.5450913 | BK87: 0
A88: GAMEPWNDNCBat | B88: GAM | C88: EPWNDNCBat | D88: GAwEPWNDNCBat | E88: 1 | F88: 0 | G88: 87.6 | H88: 17 | I88: 20 | J88: 0.1067814771 | K88: 0.3 | L88: 0 | M88: Batokunku | N88: 1750 | O88: 1750 | P88: 1750 | Q88: 1750 | R88: 1750 | S88: 1750 | T88: 1750 | U88: 1750 | V88: 1750 | W88: 1750 | X88: 1750 | Y88: 1750 | Z88: 1750 | AA88: 1750 | AB88: 1750 | AC88: 1750 | AD88: 1750 | AE88: 1750 | AF88: 1750 | AG88: 1750 | AH88: 1750 | AI88: 1750 | AJ88: 1750 | AK88: 1750 | AL88: WND | AM88: 0 | AN88: 0 | AO88: 0 | AP88: 0 | AQ88: 0 | AR88: 0 | AS88: 0 | AT88: 0 | AU88: 0 | AV88: 0 | AW88: 0 | AX88: 0 | AY88: 0 | AZ88: 0 | BA88: 0 | BB88: 0 | BC88: 0 | BD88: 0 | BE88: 0 | BF88: 0 | BG88: 0 | BH88: 0 | BI88: 0 | BJ88: 0 | BK88: 0
A89: GAMEPHYDNUDASam | B89: GAM | C89: EPHYDNUDASam | D89: GAwEPHYDNUDASam | E89: 1 | F89: 0 | G89: 2 | H89: 0 | I89: 50 | J89: 0.09169015822 | K89: 0.185020459 | L89: 0 | M89: Sambangalou(OMVG)partGambie12% | N89: 3386 | O89: 3386 | P89: 3386 | Q89: 3386 | R89: 3386 | S89: 3386 | T89: 3386 | U89: 3386 | V89: 3386 | W89: 3386 | X89: 3386 | Y89: 3386 | Z89: 3386 | AA89: 3386 | AB89: 3386 | AC89: 3386 | AD89: 3386 | AE89: 3386 | AF89: 3386 | AG89: 3386 | AH89: 3386 | AI89: 3386 | AJ89: 3386 | AK89: 3386 | AL89: HYD | AM89: 0 | AN89: 0 | AO89: 0 | AP89: 0 | AQ89: 0 | AR89: 0 | AS89: 0 | AT89: 0 | AU89: 0 | AV89: 0 | AW89: 0 | AX89: 0 | AY89: 0 | AZ89: 0 | BA89: 0 | BB89: 0 | BC89: 0 | BD89: 0 | BE89: 0 | BF89: 0 | BG89: 0 | BH89: 0 | BI89: 0 | BJ89: 0 | BK89: 0
A90: GAMEPHYDNUROKal | B90: GAM | C90: EPHYDNUROKal | D90: GAwEPHYDNUROKal | E90: 1 | F90: 0 | G90: 2 | H90: 0 | I90: 50 | J90: 0.09169015822 | K90: 0.1079718417 | L90: 0 | M90: Kaleta(OMVG)partGambie12% | N90: 1114 | O90: 1114 | P90: 1114 | Q90: 1114 | R90: 1114 | S90: 1114 | T90: 1114 | U90: 1114 | V90: 1114 | W90: 1114 | X90: 1114 | Y90: 1114 | Z90: 1114 | AA90: 1114 | AB90: 1114 | AC90: 1114 | AD90: 1114 | AE90: 1114 | AF90: 1114 | AG90: 1114 | AH90: 1114 | AI90: 1114 | AJ90: 1114 | AK90: 1114 | AL90: HYD | AM90: 0 | AN90: 0 | AO90: 0 | AP90: 0 | AQ90: 0 | AR90: 0 | AS90: 0 | AT90: 0 | AU90: 0 | AV90: 0 | AW90: 0 | AX90: 0 | AY90: 0 | AZ90: 0 | BA90: 0 | BB90: 0 | BC90: 0 | BD90: 0 | BE90: 0 | BF90: 0 | BG90: 0 | BH90: 0 | BI90: 0 | BJ90: 0 | BK90: 0
A91: GAMEPHYDNURODig | B91: GAM | C91: EPHYDNURODig | D91: GAwEPHYDNURODig | E91: 1 | F91: 0 | G91: 2 | H91: 0 | I91: 50 | J91: 0.09169015822 | K91: 0.02894651011 | L91: 0 | M91: Digan(OMVG)partGambie12% | N91: 1201 | O91: 1201 | P91: 1201 | Q91: 1201 | R91: 1201 | S91: 1201 | T91: 1201 | U91: 1201 | V91: 1201 | W91: 1201 | X91: 1201 | Y91: 1201 | Z91: 1201 | AA91: 1201 | AB91: 1201 | AC91: 1201 | AD91: 1201 | AE91: 1201 | AF91: 1201 | AG91: 1201 | AH91: 1201 | AI91: 1201 | AJ91: 1201 | AK91: 1201 | AL91: HYD | AM91: 0 | AN91: 0 | AO91: 0 | AP91: 0 | AQ91: 0 | AR91: 0 | AS91: 0 | AT91: 0 | AU91: 0 | AV91: 0 | AW91: 0 | AX91: 0 | AY91: 0 | AZ91: 0 | BA91: 0 | BB91: 0 | BC91: 0 | BD91: 0 | BE91: 0 | BF91: 0 | BG91: 0 | BH91: 0 | BI91: 0 | BJ91: 0 | BK91: 0
A92: GAMEPHYDNUDAFel | B92: GAM | C92: EPHYDNUDAFel | D92: GAwEPHYDNUDAFel | E92: 1 | F92: 0 | G92: 2 | H92: 0 | I92: 50 | J92: 0.09169015822 | K92: 0.3997763489 | L92: 0 | M92: FelloSounga(OMVG)partGambie12% | N92: 3474 | O92: 3474 | P92: 3474 | Q92: 3474 | R92: 3474 | S92: 3474 | T92: 3474 | U92: 3474 | V92: 3474 | W92: 3474 | X92: 3474 | Y92: 3474 | Z92: 3474 | AA92: 3474 | AB92: 3474 | AC92: 3474 | AD92: 3474 | AE92: 3474 | AF92: 3474 | AG92: 3474 | AH92: 3474 | AI92: 3474 | AJ92: 3474 | AK92: 3474 | AL92: HYD | AM92: 0 | AN92: 0 | AO92: 0 | AP92: 0 | AQ92: 0 | AR92: 0 | AS92: 0 | AT92: 0 | AU92: 0 | AV92: 0 | AW92: 0 | AX92: 0 | AY92: 0 | AZ92: 0 | BA92: 0 | BB92: 0 | BC92: 0 | BD92: 0 | BE92: 0 | BF92: 0 | BG92: 0 | BH92: 0 | BI92: 0 | BJ92: 0 | BK92: 0
A93: GAMEPHYDNUROSal | B93: GAM | C93: EPHYDNUROSal | D93: GAwEPHYDNUROSal | E93: 1 | F93: 0 | G93: 2 | H93: 0 | I93: 50 | J93: 0.09169015822 | K93: 0.1352739726 | L93: 0 | M93: Saltinho(OMVG)partGambie12% | N93: 4273 | O93: 4273 | P93: 4273 | Q93: 4273 | R93: 4273 | S93: 4273 | T93: 4273 | U93: 4273 | V93: 4273 | W93: 4273 | X93: 4273 | Y93: 4273 | Z93: 4273 | AA93: 4273 | AB93: 4273 | AC93: 4273 | AD93: 4273 | AE93: 4273 | AF93: 4273 | AG93: 4273 | AH93: 4273 | AI93: 4273 | AJ93: 4273 | AK93: 4273 | AL93: HYD | AM93: 0 | AN93: 0 | AO93: 0 | AP93: 0 | AQ93: 0 | AR93: 0 | AS93: 0 | AT93: 0 | AU93: 0 | AV93: 0 | AW93: 0 | AX93: 0 | AY93: 0 | AZ93: 0 | BA93: 0 | BB93: 0 | BC93: 0 | BD93: 0 | BE93: 0 | BF93: 0 | BG93: 0 | BH93: 0 | BI93: 0 | BJ93: 0 | BK93: 0
A94: GBIEPOHFNCBis | B94: GBI | C94: EPOHFNCBis | D94: GBwEPOHFNCBis | E94: 0.3789473684 | F94: 0.766365 | G94: 87.6 | H94: 0 | I94: 30 | J94: 0.09643568023 | K94: 0.801369863 | L94: 0 | M94: Bissau | N94: 1123.5 | O94: 1123.5 | P94: 1123.5 | Q94: 1123.5 | R94: 1123.5 | S94: 1123.5 | T94: 1123.5 | U94: 1123.5 | V94: 1123.5 | W94: 1123.5 | X94: 1123.5 | Y94: 1123.5 | Z94: 1123.5 | AA94: 1123.5 | AB94: 1123.5 | AC94: 1123.5 | AD94: 1123.5 | AE94: 1123.5 | AF94: 1123.5 | AG94: 1123.5 | AH94: 1123.5 | AI94: 1123.5 | AJ94: 1123.5 | AK94: 1123.5 | AL94: OHFC | AM94: 122.6059107 | AN94: 125.0761035 | AO94: 127.5462963 | AP94: 130.0164891 | AQ94: 132.4866819 | AR94: 134.9568747 | AS94: 137.4270675 | AT94: 139.8972603 | AU94: 142.3674531 | AV94: 144.8376459 | AW94: 147.1180556 | AX94: 148.9225013 | AY94: 150.726947 | AZ94: 152.5313927 | BA94: 154.3358384 | BB94: 156.1402841 | BC94: 157.9447298 | BD94: 159.7491755 | BE94: 161.5536213 | BF94: 163.358067 | BG94: 165.5450913 | BH94: 165.5450913 | BI94: 165.5450913 | BJ94: 165.5450913 | BK94: 0
A95: GBIEPHYDNUDASam | B95: GBI | C95: EPHYDNUDASam | D95: GBwEPHYDNUDASam | E95: 1 | F95: 0 | G95: 2 | H95: 0 | I95: 50 | J95: 0.09169015822 | K95: 0.1837531301 | L95: 0 | M95: Sambangalou(OMVG)partGuinéeBissau8% | N95: 3386 | O95: 3386 | P95: 3386 | Q95: 3386 | R95: 3386 | S95: 3386 | T95: 3386 | U95: 3386 | V95: 3386 | W95: 3386 | X95: 3386 | Y95: 3386 | Z95: 3386 | AA95: 3386 | AB95: 3386 | AC95: 3386 | AD95: 3386 | AE95: 3386 | AF95: 3386 | AG95: 3386 | AH95: 3386 | AI95: 3386 | AJ95: 3386 | AK95: 3386 | AL95: HYD | AM95: 0 | AN95: 0 | AO95: 0 | AP95: 0 | AQ95: 0 | AR95: 0 | AS95: 0 | AT95: 0 | AU95: 0 | AV95: 0 | AW95: 0 | AX95: 0 | AY95: 0 | AZ95: 0 | BA95: 0 | BB95: 0 | BC95: 0 | BD95: 0 | BE95: 0 | BF95: 0 | BG95: 0 | BH95: 0 | BI95: 0 | BJ95: 0 | BK95: 0
A96: GBIEPHYDNUROKal | B96: GBI | C96: EPHYDNUROKal | D96: GBwEPHYDNUROKal | E96: 1 | F96: 0 | G96: 2 | H96: 0 | I96: 50 | J96: 0.09169015822 | K96: 0.1072665722 | L96: 0 | M96: Kaleta(OMVG)partGuinéeBissau8% | N96: 1114 | O96: 1114 | P96: 1114 | Q96: 1114 | R96: 1114 | S96: 1114 | T96: 1114 | U96: 1114 | V96: 1114 | W96: 1114 | X96: 1114 | Y96: 1114 | Z96: 1114 | AA96: 1114 | AB96: 1114 | AC96: 1114 | AD96: 1114 | AE96: 1114 | AF96: 1114 | AG96: 1114 | AH96: 1114 | AI96: 1114 | AJ96: 1114 | AK96: 1114 | AL96: HYD | AM96: 0 | AN96: 0 | AO96: 0 | AP96: 0 | AQ96: 0 | AR96: 0 | AS96: 0 | AT96: 0 | AU96: 0 | AV96: 0 | AW96: 0 | AX96: 0 | AY96: 0 | AZ96: 0 | BA96: 0 | BB96: 0 | BC96: 0 | BD96: 0 | BE96: 0 | BF96: 0 | BG96: 0 | BH96: 0 | BI96: 0 | BJ96: 0 | BK96: 0
A97: GBIEPHYDNURODig | B97: GBI | C97: EPHYDNURODig | D97: GBwEPHYDNURODig | E97: 1 | F97: 0 | G97: 2 | H97: 0 | I97: 50 | J97: 0.09169015822 | K97: 0.0295765878 | L97: 0 | M97: Digan(OMVG)partGuinéeBissau8% | N97: 1201 | O97: 1201 | P97: 1201 | Q97: 1201 | R97: 1201 | S97: 1201 | T97: 1201 | U97: 1201 | V97: 1201 | W97: 1201 | X97: 1201 | Y97: 1201 | Z97: 1201 | AA97: 1201 | AB97: 1201 | AC97: 1201 | AD97: 1201 | AE97: 1201 | AF97: 1201 | AG97: 1201 | AH97: 1201 | AI97: 1201 | AJ97: 1201 | AK97: 1201 | AL97: HYD | AM97: 0 | AN97: 0 | AO97: 0 | AP97: 0 | AQ97: 0 | AR97: 0 | AS97: 0 | AT97: 0 | AU97: 0 | AV97: 0 | AW97: 0 | AX97: 0 | AY97: 0 | AZ97: 0 | BA97: 0 | BB97: 0 | BC97: 0 | BD97: 0 | BE97: 0 | BF97: 0 | BG97: 0 | BH97: 0 | BI97: 0 | BJ97: 0 | BK97: 0
A98: GBIEPHYDNUDAFel | B98: GBI | C98: EPHYDNUDAFel | D98: GBwEPHYDNUDAFel | E98: 1 | F98: 0 | G98: 2 | H98: 0 | I98: 50 | J98: 0.09169015822 | K98: 0.3915525114 | L98: 0 | M98: FelloSounga(OMVG)partGuinéeBissau8% | N98: 3474 | O98: 3474 | P98: 3474 | Q98: 3474 | R98: 3474 | S98: 3474 | T98: 3474 | U98: 3474 | V98: 3474 | W98: 3474 | X98: 3474 | Y98: 3474 | Z98: 3474 | AA98: 3474 | AB98: 3474 | AC98: 3474 | AD98: 3474 | AE98: 3474 | AF98: 3474 | AG98: 3474 | AH98: 3474 | AI98: 3474 | AJ98: 3474 | AK98: 3474 | AL98: HYD | AM98: 0 | AN98: 0 | AO98: 0 | AP98: 0 | AQ98: 0 | AR98: 0 | AS98: 0 | AT98: 0 | AU98: 0 | AV98: 0 | AW98: 0 | AX98: 0 | AY98: 0 | AZ98: 0 | BA98: 0 | BB98: 0 | BC98: 0 | BD98: 0 | BE98: 0 | BF98: 0 | BG98: 0 | BH98: 0 | BI98: 0 | BJ98: 0 | BK98: 0
A99: GBIEPHYDNUROSal | B99: GBI | C99: EPHYDNUROSal | D99: GBwEPHYDNUROSal | E99: 1 | F99: 0 | G99: 2 | H99: 0 | I99: 50 | J99: 0.09169015822 | K99: 0.1301369863 | L99: 0 | M99: Saltinho(OMVG)partGuinéeBissau8% | N99: 4273 | O99: 4273 | P99: 4273 | Q99: 4273 | R99: 4273 | S99: 4273 | T99: 4273 | U99: 4273 | V99: 4273 | W99: 4273 | X99: 4273 | Y99: 4273 | Z99: 4273 | AA99: 4273 | AB99: 4273 | AC99: 4273 | AD99: 4273 | AE99: 4273 | AF99: 4273 | AG99: 4273 | AH99: 4273 | AI99: 4273 | AJ99: 4273 | AK99: 4273 | AL99: HYD | AM99: 0 | AN99: 0 | AO99: 0 | AP99: 0 | AQ99: 0 | AR99: 0 | AS99: 0 | AT99: 0 | AU99: 0 | AV99: 0 | AW99: 0 | AX99: 0 | AY99: 0 | AZ99: 0 | BA99: 0 | BB99: 0 | BC99: 0 | BD99: 0 | BE99: 0 | BF99: 0 | BG99: 0 | BH99: 0 | BI99: 0 | BJ99: 0 | BK99: 0
A100: GUIEPOHFNCT12 | B100: GUI | C100: EPOHFNCT12 | D100: GUwEPOHFNCT12 | E100: 0.3913043478 | F100: 0.742164 | G100: 87.6 | H100: 0 | I100: 30 | J100: 0.09643568023 | K100: 0.801369863 | L100: 0 | M100: Tombo 3 (Rehab.)2012 | N100: 1123.5 | O100: 1123.5 | P100: 1123.5 | Q100: 1123.5 | R100: 1123.5 | S100: 1123.5 | T100: 1123.5 | U100: 1123.5 | V100: 1123.5 | W100: 1123.5 | X100: 1123.5 | Y100: 1123.5 | Z100: 1123.5 | AA100: 1123.5 | AB100: 1123.5 | AC100: 1123.5 | AD100: 1123.5 | AE100: 1123.5 | AF100: 1123.5 | AG100: 1123.5 | AH100: 1123.5 | AI100: 1123.5 | AJ100: 1123.5 | AK100: 1123.5 | AL100: OHFC | AM100: 118.7341451 | AN100: 121.1263318 | AO100: 123.5185185 | AP100: 125.9107052 | AQ100: 128.3028919 | AR100: 130.6950786 | AS100: 133.0872653 | AT100: 135.4794521 | AU100: 137.8716388 | AV100: 140.2638255 | AW100: 142.4722222 | AX100: 144.2196854 | AY100: 145.9671487 | AZ100: 147.7146119 | BA100: 149.4620751 | BB100: 151.2095383 | BC100: 152.9570015 | BD100: 154.7044647 | BE100: 156.451928 | BF100: 158.1993912 | BG100: 160.3173516 | BH100: 160.3173516 | BI100: 160.3173516 | BJ100: 160.3173516 | BK100: 0
A101: GUIEPOHFNCT13 | B101: GUI | C101: EPOHFNCT13 | D101: GUwEPOHFNCT13 | E101: 0.3913043478 | F101: 0.742164 | G101: 87.6 | H101: 0 | I101: 30 | J101: 0.09643568023 | K101: 0.801369863 | L101: 0 | M101: Tombo 3 (Rehab.)2013 | N101: 1123.5 | O101: 1123.5 | P101: 1123.5 | Q101: 1123.5 | R101: 1123.5 | S101: 1123.5 | T101: 1123.5 | U101: 1123.5 | V101: 1123.5 | W101: 1123.5 | X101: 1123.5 | Y101: 1123.5 | Z101: 1123.5 | AA101: 1123.5 | AB101: 1123.5 | AC101: 1123.5 | AD101: 1123.5 | AE101: 1123.5 | AF101: 1123.5 | AG101: 1123.5 | AH101: 1123.5 | AI101: 1123.5 | AJ101: 1123.5 | AK101: 1123.5 | AL101: OHFC | AM101: 118.7341451 | AN101: 121.1263318 | AO101: 123.5185185 | AP101: 125.9107052 | AQ101: 128.3028919 | AR101: 130.6950786 | AS101: 133.0872653 | AT101: 135.4794521 | AU101: 137.8716388 | AV101: 140.2638255 | AW101: 142.4722222 | AX101: 144.2196854 | AY101: 145.9671487 | AZ101: 147.7146119 | BA101: 149.4620751 | BB101: 151.2095383 | BC101: 152.9570015 | BD101: 154.7044647 | BE101: 156.451928 | BF101: 158.1993912 | BG101: 160.3173516 | BH101: 160.3173516 | BI101: 160.3173516 | BJ101: 160.3173516 | BK101: 0
A102: GUIEPOHFNCMan | B102: GUI | C102: EPOHFNCMan | D102: GUwEPOHFNCMan | E102: 0.3789473684 | F102: 0.766365 | G102: 87.6 | H102: 0 | I102: 30 | J102: 0.09643568023 | K102: 0.801369863 | L102: 0 | M102: Maneah | N102: 1123.5 | O102: 1123.5 | P102: 1123.5 | Q102: 1123.5 | R102: 1123.5 | S102: 1123.5 | T102: 1123.5 | U102: 1123.5 | V102: 1123.5 | W102: 1123.5 | X102: 1123.5 | Y102: 1123.5 | Z102: 1123.5 | AA102: 1123.5 | AB102: 1123.5 | AC102: 1123.5 | AD102: 1123.5 | AE102: 1123.5 | AF102: 1123.5 | AG102: 1123.5 | AH102: 1123.5 | AI102: 1123.5 | AJ102: 1123.5 | AK102: 1123.5 | AL102: OHFC | AM102: 122.6059107 | AN102: 125.0761035 | AO102: 127.5462963 | AP102: 130.0164891 | AQ102: 132.4866819 | AR102: 134.9568747 | AS102: 137.4270675 | AT102: 139.8972603 | AU102: 142.3674531 | AV102: 144.8376459 | AW102: 147.1180556 | AX102: 148.9225013 | AY102: 150.726947 | AZ102: 152.5313927 | BA102: 154.3358384 | BB102: 156.1402841 | BC102: 157.9447298 | BD102: 159.7491755 | BE102: 161.5536213 | BF102: 163.358067 | BG102: 165.5450913 | BH102: 165.5450913 | BI102: 165.5450913 | BJ102: 165.5450913 | BK102: 0
A103: GUIEPHYDNUDABan | B103: GUI | C103: EPHYDNUDABan | D103: GUwEPHYDNUDABan | E103: 1 | F103: 0 | G103: 2 | H103: 0 | I103: 50 | J103: 0.09169015822 | K103: 0.1110502283 | L103: 0 | M103: Baneah(Rehab) | N103: 2400 | O103: 2400 | P103: 2400 | Q103: 2400 | R103: 2400 | S103: 2400 | T103: 2400 | U103: 2400 | V103: 2400 | W103: 2400 | X103: 2400 | Y103: 2400 | Z103: 2400 | AA103: 2400 | AB103: 2400 | AC103: 2400 | AD103: 2400 | AE103: 2400 | AF103: 2400 | AG103: 2400 | AH103: 2400 | AI103: 2400 | AJ103: 2400 | AK103: 2400 | AL103: HYD | AM103: 0 | AN103: 0 | AO103: 0 | AP103: 0 | AQ103: 0 | AR103: 0 | AS103: 0 | AT103: 0 | AU103: 0 | AV103: 0 | AW103: 0 | AX103: 0 | AY103: 0 | AZ103: 0 | BA103: 0 | BB103: 0 | BC103: 0 | BD103: 0 | BE103: 0 | BF103: 0 | BG103: 0 | BH103: 0 | BI103: 0 | BJ103: 0 | BK103: 0
A104: GUIEPHYDNUDADon | B104: GUI | C104: EPHYDNUDADon | D104: GUwEPHYDNUDADon | E104: 1 | F104: 0 | G104: 2 | H104: 0 | I104: 50 | J104: 0.09169015822 | K104: 0.4223744292 | L104: 0 | M104: Donkéa(Réhab) | N104: 2400 | O104: 2400 | P104: 2400 | Q104: 2400 | R104: 2400 | S104: 2400 | T104: 2400 | U104: 2400 | V104: 2400 | W104: 2400 | X104: 2400 | Y104: 2400 | Z104: 2400 | AA104: 2400 | AB104: 2400 | AC104: 2400 | AD104: 2400 | AE104: 2400 | AF104: 2400 | AG104: 2400 | AH104: 2400 | AI104: 2400 | AJ104: 2400 | AK104: 2400 | AL104: HYD | AM104: 0 | AN104: 0 | AO104: 0 | AP104: 0 | AQ104: 0 | AR104: 0 | AS104: 0 | AT104: 0 | AU104: 0 | AV104: 0 | AW104: 0 | AX104: 0 | AY104: 0 | AZ104: 0 | BA104: 0 | BB104: 0 | BC104: 0 | BD104: 0 | BE104: 0 | BF104: 0 | BG104: 0 | BH104: 0 | BI104: 0 | BJ104: 0 | BK104: 0
A105: GUIEPHYDNUDAGra | B105: GUI | C105: EPHYDNUDAGra | D105: GUwEPHYDNUDAGra | E105: 1 | F105: 0 | G105: 2 | H105: 0 | I105: 50 | J105: 0.09169015822 | K105: 0.4194148486 | L105: 0 | M105: GrandesChutes(Réhab) | N105: 2400 | O105: 2400 | P105: 2400 | Q105: 2400 | R105: 2400 | S105: 2400 | T105: 2400 | U105: 2400 | V105: 2400 | W105: 2400 | X105: 2400 | Y105: 2400 | Z105: 2400 | AA105: 2400 | AB105: 2400 | AC105: 2400 | AD105: 2400 | AE105: 2400 | AF105: 2400 | AG105: 2400 | AH105: 2400 | AI105: 2400 | AJ105: 2400 | AK105: 2400 | AL105: HYD | AM105: 0 | AN105: 0 | AO105: 0 | AP105: 0 | AQ105: 0 | AR105: 0 | AS105: 0 | AT105: 0 | AU105: 0 | AV105: 0 | AW105: 0 | AX105: 0 | AY105: 0 | AZ105: 0 | BA105: 0 | BB105: 0 | BC105: 0 | BD105: 0 | BE105: 0 | BF105: 0 | BG105: 0 | BH105: 0 | BI105: 0 | BJ105: 0 | BK105: 0
A106: GUIEPHYDNUDASam | B106: GUI | C106: EPHYDNUDASam | D106: GUwEPHYDNUDASam | E106: 1 | F106: 0 | G106: 2 | H106: 0 | I106: 50 | J106: 0.09169015822 | K106: 0.1855022831 | L106: 0 | M106: Sambangalou(OMVG)partGuinée40% | N106: 3386 | O106: 3386 | P106: 3386 | Q106: 3386 | R106: 3386 | S106: 3386 | T106: 3386 | U106: 3386 | V106: 3386 | W106: 3386 | X106: 3386 | Y106: 3386 | Z106: 3386 | AA106: 3386 | AB106: 3386 | AC106: 3386 | AD106: 3386 | AE106: 3386 | AF106: 3386 | AG106: 3386 | AH106: 3386 | AI106: 3386 | AJ106: 3386 | AK106: 3386 | AL106: HYD | AM106: 0 | AN106: 0 | AO106: 0 | AP106: 0 | AQ106: 0 | AR106: 0 | AS106: 0 | AT106: 0 | AU106: 0 | AV106: 0 | AW106: 0 | AX106: 0 | AY106: 0 | AZ106: 0 | BA106: 0 | BB106: 0 | BC106: 0 | BD106: 0 | BE106: 0 | BF106: 0 | BG106: 0 | BH106: 0 | BI106: 0 | BJ106: 0 | BK106: 0
A107: GUIEPHYDNUDAKal | B107: GUI | C107: EPHYDNUDAKal | D107: GUwEPHYDNUDAKal | E107: 1 | F107: 0 | G107: 2 | H107: 0 | I107: 50 | J107: 0.09169015822 | K107: 0.1079718417 | L107: 0 | M107: Kaleta(OMVG)partGuinée40% | N107: 1114 | O107: 1114 | P107: 1114 | Q107: 1114 | R107: 1114 | S107: 1114 | T107: 1114 | U107: 1114 | V107: 1114 | W107: 1114 | X107: 1114 | Y107: 1114 | Z107: 1114 | AA107: 1114 | AB107: 1114 | AC107: 1114 | AD107: 1114 | AE107: 1114 | AF107: 1114 | AG107: 1114 | AH107: 1114 | AI107: 1114 | AJ107: 1114 | AK107: 1114 | AL107: HYD | AM107: 0 | AN107: 0 | AO107: 0 | AP107: 0 | AQ107: 0 | AR107: 0 | AS107: 0 | AT107: 0 | AU107: 0 | AV107: 0 | AW107: 0 | AX107: 0 | AY107: 0 | AZ107: 0 | BA107: 0 | BB107: 0 | BC107: 0 | BD107: 0 | BE107: 0 | BF107: 0 | BG107: 0 | BH107: 0 | BI107: 0 | BJ107: 0 | BK107: 0
A108: GUIEPHYDNUDADig | B108: GUI | C108: EPHYDNUDADig | D108: GUwEPHYDNUDADig | E108: 1 | F108: 0 | G108: 2 | H108: 0 | I108: 50 | J108: 0.09169015822 | K108: 0.02899763614 | L108: 0 | M108: Digan(OMVG)partGuinée40% | N108: 1201 | O108: 1201 | P108: 1201 | Q108: 1201 | R108: 1201 | S108: 1201 | T108: 1201 | U108: 1201 | V108: 1201 | W108: 1201 | X108: 1201 | Y108: 1201 | Z108: 1201 | AA108: 1201 | AB108: 1201 | AC108: 1201 | AD108: 1201 | AE108: 1201 | AF108: 1201 | AG108: 1201 | AH108: 1201 | AI108: 1201 | AJ108: 1201 | AK108: 1201 | AL108: HYD | AM108: 0 | AN108: 0 | AO108: 0 | AP108: 0 | AQ108: 0 | AR108: 0 | AS108: 0 | AT108: 0 | AU108: 0 | AV108: 0 | AW108: 0 | AX108: 0 | AY108: 0 | AZ108: 0 | BA108: 0 | BB108: 0 | BC108: 0 | BD108: 0 | BE108: 0 | BF108: 0 | BG108: 0 | BH108: 0 | BI108: 0 | BJ108: 0 | BK108: 0
A109: GUIEPHYDNUDAFel | B109: GUI | C109: EPHYDNUDAFel | D109: GUwEPHYDNUDAFel | E109: 1 | F109: 0 | G109: 2 | H109: 0 | I109: 50 | J109: 0.09169015822 | K109: 0.3981512418 | L109: 0 | M109: FelloSounga(OMVG)partGuinée40% | N109: 3474 | O109: 3474 | P109: 3474 | Q109: 3474 | R109: 3474 | S109: 3474 | T109: 3474 | U109: 3474 | V109: 3474 | W109: 3474 | X109: 3474 | Y109: 3474 | Z109: 3474 | AA109: 3474 | AB109: 3474 | AC109: 3474 | AD109: 3474 | AE109: 3474 | AF109: 3474 | AG109: 3474 | AH109: 3474 | AI109: 3474 | AJ109: 3474 | AK109: 3474 | AL109: HYD | AM109: 0 | AN109: 0 | AO109: 0 | AP109: 0 | AQ109: 0 | AR109: 0 | AS109: 0 | AT109: 0 | AU109: 0 | AV109: 0 | AW109: 0 | AX109: 0 | AY109: 0 | AZ109: 0 | BA109: 0 | BB109: 0 | BC109: 0 | BD109: 0 | BE109: 0 | BF109: 0 | BG109: 0 | BH109: 0 | BI109: 0 | BJ109: 0 | BK109: 0
A110: GUIEPHYDNUDADAM | B110: GUI | C110: EPHYDNUDADAM | D110: GUwEPHYDNUDADAM | E110: 1 | F110: 0 | G110: 2 | H110: 0 | I110: 50 | J110: 0.09169015822 | K110: 0.4040565434 | L110: 0 | M110: DAMEnvisagée | N110: 2400 | O110: 2400 | P110: 2400 | Q110: 2400 | R110: 2400 | S110: 2400 | T110: 2400 | U110: 2400 | V110: 2400 | W110: 2400 | X110: 2400 | Y110: 2400 | Z110: 2400 | AA110: 2400 | AB110: 2400 | AC110: 2400 | AD110: 2400 | AE110: 2400 | AF110: 2400 | AG110: 2400 | AH110: 2400 | AI110: 2400 | AJ110: 2400 | AK110: 2400 | AL110: HYD | AM110: 0 | AN110: 0 | AO110: 0 | AP110: 0 | AQ110: 0 | AR110: 0 | AS110: 0 | AT110: 0 | AU110: 0 | AV110: 0 | AW110: 0 | AX110: 0 | AY110: 0 | AZ110: 0 | BA110: 0 | BB110: 0 | BC110: 0 | BD110: 0 | BE110: 0 | BF110: 0 | BG110: 0 | BH110: 0 | BI110: 0 | BJ110: 0 | BK110: 0
A111: GUIEPHYDNUDASal | B111: GUI | C111: EPHYDNUDASal | D111: GUwEPHYDNUDASal | E111: 1 | F111: 0 | G111: 2 | H111: 0 | I111: 50 | J111: 0.09169015822 | K111: 0.1352739726 | L111: 0 | M111: Saltinho(OMVG)partGuinée40% | N111: 4273 | O111: 4273 | P111: 4273 | Q111: 4273 | R111: 4273 | S111: 4273 | T111: 4273 | U111: 4273 | V111: 4273 | W111: 4273 | X111: 4273 | Y111: 4273 | Z111: 4273 | AA111: 4273 | AB111: 4273 | AC111: 4273 | AD111: 4273 | AE111: 4273 | AF111: 4273 | AG111: 4273 | AH111: 4273 | AI111: 4273 | AJ111: 4273 | AK111: 4273 | AL111: HYD | AM111: 0 | AN111: 0 | AO111: 0 | AP111: 0 | AQ111: 0 | AR111: 0 | AS111: 0 | AT111: 0 | AU111: 0 | AV111: 0 | AW111: 0 | AX111: 0 | AY111: 0 | AZ111: 0 | BA111: 0 | BB111: 0 | BC111: 0 | BD111: 0 | BE111: 0 | BF111: 0 | BG111: 0 | BH111: 0 | BI111: 0 | BJ111: 0 | BK111: 0
A112: SIEEPBIONUEne | B112: SIE | C112: EPBIONUEne | D112: SIwEPBIONUEne | E112: 0.3333333333 | F112: 0 | G112: 27.156 | H112: 0 | I112: 35 | J112: 0.09426336829 | K112: 0.8556210046 | L112: 0 | M112: Energeon | N112: 2488.6656 | O112: 2488.6656 | P112: 2488.6656 | Q112: 2488.6656 | R112: 2488.6656 | S112: 2488.6656 | T112: 2488.6656 | U112: 2488.6656 | V112: 2488.6656 | W112: 2488.6656 | X112: 2488.6656 | Y112: 2488.6656 | Z112: 2488.6656 | AA112: 2488.6656 | AB112: 2488.6656 | AC112: 2488.6656 | AD112: 2488.6656 | AE112: 2488.6656 | AF112: 2488.6656 | AG112: 2488.6656 | AH112: 2488.6656 | AI112: 2488.6656 | AJ112: 2488.6656 | AK112: 2488.6656 | AL112: BIO | AM112: 16.09589041 | AN112: 16.09589041 | AO112: 16.09589041 | AP112: 16.09589041 | AQ112: 16.09589041 | AR112: 16.09589041 | AS112: 16.09589041 | AT112: 16.09589041 | AU112: 16.09589041 | AV112: 16.09589041 | AW112: 16.09589041 | AX112: 16.09589041 | AY112: 16.09589041 | AZ112: 16.09589041 | BA112: 16.09589041 | BB112: 16.09589041 | BC112: 16.09589041 | BD112: 16.09589041 | BE112: 16.09589041 | BF112: 16.09589041 | BG112: 16.09589041 | BH112: 16.09589041 | BI112: 16.09589041 | BJ112: 16.09589041 | BK112: 0
A113: SIEEPSOLNUNaa | B113: SIE | C113: EPSOLNUNaa | D113: SIwEPSOLNUNaa | E113: 1 | F113: 0 | G113: 0 | H113: 20 | I113: 20 | J113: 0.1067814771 | K113: 0.25 | L113: 0 | M113: Naanovo | N113: 3660 | O113: 3660 | P113: 3660 | Q113: 3660 | R113: 3660 | S113: 3660 | T113: 3660 | U113: 3660 | V113: 3660 | W113: 3660 | X113: 3660 | Y113: 3660 | Z113: 3660 | AA113: 3660 | AB113: 3660 | AC113: 3660 | AD113: 3660 | AE113: 3660 | AF113: 3660 | AG113: 3660 | AH113: 3660 | AI113: 3660 | AJ113: 3660 | AK113: 3660 | AL113: SOL | AM113: 0 | AN113: 0 | AO113: 0 | AP113: 0 | AQ113: 0 | AR113: 0 | AS113: 0 | AT113: 0 | AU113: 0 | AV113: 0 | AW113: 0 | AX113: 0 | AY113: 0 | AZ113: 0 | BA113: 0 | BB113: 0 | BC113: 0 | BD113: 0 | BE113: 0 | BF113: 0 | BG113: 0 | BH113: 0 | BI113: 0 | BJ113: 0 | BK113: 0
A114: SIEEPBIONUAdd | B114: SIE | C114: EPBIONUAdd | D114: SIwEPBIONUAdd | E114: 0.375 | F114: 0 | G114: 0 | H114: 129.6 | I114: 30 | J114: 0.09643568023 | K114: 0.8556 | L114: 0 | M114: Addax | N114: 3603.528 | O114: 3603.528 | P114: 3603.528 | Q114: 3603.528 | R114: 3603.528 | S114: 3603.528 | T114: 3603.528 | U114: 3603.528 | V114: 3603.528 | W114: 3603.528 | X114: 3603.528 | Y114: 3603.528 | Z114: 3603.528 | AA114: 3603.528 | AB114: 3603.528 | AC114: 3603.528 | AD114: 3603.528 | AE114: 3603.528 | AF114: 3603.528 | AG114: 3603.528 | AH114: 3603.528 | AI114: 3603.528 | AJ114: 3603.528 | AK114: 3603.528 | AL114: BIO | AM114: 14.30745814 | AN114: 14.30745814 | AO114: 14.30745814 | AP114: 14.30745814 | AQ114: 14.30745814 | AR114: 14.30745814 | AS114: 14.30745814 | AT114: 14.30745814 | AU114: 14.30745814 | AV114: 14.30745814 | AW114: 14.30745814 | AX114: 14.30745814 | AY114: 14.30745814 | AZ114: 14.30745814 | BA114: 14.30745814 | BB114: 14.30745814 | BC114: 14.30745814 | BD114: 14.30745814 | BE114: 14.30745814 | BF114: 14.30745814 | BG114: 14.30745814 | BH114: 14.30745814 | BI114: 14.30745814 | BJ114: 14.30745814 | BK114: 0
A115: SIEEPHYDNUROGom | B115: SIE | C115: EPHYDNUROGom | D115: SIwEPHYDNUROGom | E115: 1 | F115: 0 | G115: 2 | H115: 0 | I115: 50 | J115: 0.09169015822 | K115: 0.02663622527 | L115: 0 | M115: Goma2(Bo‐Kenema) | N115: 6709 | O115: 6709 | P115: 6709 | Q115: 6709 | R115: 6709 | S115: 6709 | T115: 6709 | U115: 6709 | V115: 6709 | W115: 6709 | X115: 6709 | Y115: 6709 | Z115: 6709 | AA115: 6709 | AB115: 6709 | AC115: 6709 | AD115: 6709 | AE115: 6709 | AF115: 6709 | AG115: 6709 | AH115: 6709 | AI115: 6709 | AJ115: 6709 | AK115: 6709 | AL115: HYD | AM115: 0 | AN115: 0 | AO115: 0 | AP115: 0 | AQ115: 0 | AR115: 0 | AS115: 0 | AT115: 0 | AU115: 0 | AV115: 0 | AW115: 0 | AX115: 0 | AY115: 0 | AZ115: 0 | BA115: 0 | BB115: 0 | BC115: 0 | BD115: 0 | BE115: 0 | BF115: 0 | BG115: 0 | BH115: 0 | BI115: 0 | BJ115: 0 | BK115: 0
A116: SIEEPHYDNUDABu2 | B116: SIE | C116: EPHYDNUDABu2 | D116: SIwEPHYDNUDABu2 | E116: 1 | F116: 0 | G116: 2 | H116: 0 | I116: 50 | J116: 0.09169015822 | K116: 0.676369863 | L116: 0 | M116: Bumbuna2 | N116: 1950 | O116: 1950 | P116: 1950 | Q116: 1950 | R116: 1950 | S116: 1950 | T116: 1950 | U116: 1950 | V116: 1950 | W116: 1950 | X116: 1950 | Y116: 1950 | Z116: 1950 | AA116: 1950 | AB116: 1950 | AC116: 1950 | AD116: 1950 | AE116: 1950 | AF116: 1950 | AG116: 1950 | AH116: 1950 | AI116: 1950 | AJ116: 1950 | AK116: 1950 | AL116: HYD | AM116: 0 | AN116: 0 | AO116: 0 | AP116: 0 | AQ116: 0 | AR116: 0 | AS116: 0 | AT116: 0 | AU116: 0 | AV116: 0 | AW116: 0 | AX116: 0 | AY116: 0 | AZ116: 0 | BA116: 0 | BB116: 0 | BC116: 0 | BD116: 0 | BE116: 0 | BF116: 0 | BG116: 0 | BH116: 0 | BI116: 0 | BJ116: 0 | BK116: 0
A117: SIEEPHYDNUDABu3 | B117: SIE | C117: EPHYDNUDABu3 | D117: SIwEPHYDNUDABu3 | E117: 1 | F117: 0 | G117: 2 | H117: 0 | I117: 50 | J117: 0.09169015822 | K117: 0.4020801624 | L117: 0 | M117: Bumbuna3(Yiben) | N117: 1950 | O117: 1950 | P117: 1950 | Q117: 1950 | R117: 1950 | S117: 1950 | T117: 1950 | U117: 1950 | V117: 1950 | W117: 1950 | X117: 1950 | Y117: 1950 | Z117: 1950 | AA117: 1950 | AB117: 1950 | AC117: 1950 | AD117: 1950 | AE117: 1950 | AF117: 1950 | AG117: 1950 | AH117: 1950 | AI117: 1950 | AJ117: 1950 | AK117: 1950 | AL117: HYD | AM117: 0 | AN117: 0 | AO117: 0 | AP117: 0 | AQ117: 0 | AR117: 0 | AS117: 0 | AT117: 0 | AU117: 0 | AV117: 0 | AW117: 0 | AX117: 0 | AY117: 0 | AZ117: 0 | BA117: 0 | BB117: 0 | BC117: 0 | BD117: 0 | BE117: 0 | BF117: 0 | BG117: 0 | BH117: 0 | BI117: 0 | BJ117: 0 | BK117: 0
A118: SIEEPHYDNUDABu4 | B118: SIE | C118: EPHYDNUDABu4 | D118: SIwEPHYDNUDABu4 | E118: 1 | F118: 0 | G118: 2 | H118: 0 | I118: 50 | J118: 0.09169015822 | K118: 0.556356645 | L118: 0 | M118: Bumbuna4&5 | N118: 1950 | O118: 1950 | P118: 1950 | Q118: 1950 | R118: 1950 | S118: 1950 | T118: 1950 | U118: 1950 | V118: 1950 | W118: 1950 | X118: 1950 | Y118: 1950 | Z118: 1950 | AA118: 1950 | AB118: 1950 | AC118: 1950 | AD118: 1950 | AE118: 1950 | AF118: 1950 | AG118: 1950 | AH118: 1950 | AI118: 1950 | AJ118: 1950 | AK118: 1950 | AL118: HYD | AM118: 0 | AN118: 0 | AO118: 0 | AP118: 0 | AQ118: 0 | AR118: 0 | AS118: 0 | AT118: 0 | AU118: 0 | AV118: 0 | AW118: 0 | AX118: 0 | AY118: 0 | AZ118: 0 | BA118: 0 | BB118: 0 | BC118: 0 | BD118: 0 | BE118: 0 | BF118: 0 | BG118: 0 | BH118: 0 | BI118: 0 | BJ118: 0 | BK118: 0
A119: SIEEPHYDNUDABe1 | B119: SIE | C119: EPHYDNUDABe1 | D119: SIwEPHYDNUDABe1 | E119: 1 | F119: 0 | G119: 2 | H119: 0 | I119: 50 | J119: 0.09169015822 | K119: 0.6550805647 | L119: 0 | M119: Benkongor1 | N119: 2447 | O119: 2447 | P119: 2447 | Q119: 2447 | R119: 2447 | S119: 2447 | T119: 2447 | U119: 2447 | V119: 2447 | W119: 2447 | X119: 2447 | Y119: 2447 | Z119: 2447 | AA119: 2447 | AB119: 2447 | AC119: 2447 | AD119: 2447 | AE119: 2447 | AF119: 2447 | AG119: 2447 | AH119: 2447 | AI119: 2447 | AJ119: 2447 | AK119: 2447 | AL119: HYD | AM119: 0 | AN119: 0 | AO119: 0 | AP119: 0 | AQ119: 0 | AR119: 0 | AS119: 0 | AT119: 0 | AU119: 0 | AV119: 0 | AW119: 0 | AX119: 0 | AY119: 0 | AZ119: 0 | BA119: 0 | BB119: 0 | BC119: 0 | BD119: 0 | BE119: 0 | BF119: 0 | BG119: 0 | BH119: 0 | BI119: 0 | BJ119: 0 | BK119: 0
A120: SIEEPHYDNUDABe2 | B120: SIE | C120: EPHYDNUDABe2 | D120: SIwEPHYDNUDABe2 | E120: 1 | F120: 0 | G120: 2 | H120: 0 | I120: 50 | J120: 0.09169015822 | K120: 0.4827340183 | L120: 0 | M120: Benkongor2 | N120: 2447 | O120: 2447 | P120: 2447 | Q120: 2447 | R120: 2447 | S120: 2447 | T120: 2447 | U120: 2447 | V120: 2447 | W120: 2447 | X120: 2447 | Y120: 2447 | Z120: 2447 | AA120: 2447 | AB120: 2447 | AC120: 2447 | AD120: 2447 | AE120: 2447 | AF120: 2447 | AG120: 2447 | AH120: 2447 | AI120: 2447 | AJ120: 2447 | AK120: 2447 | AL120: HYD | AM120: 0 | AN120: 0 | AO120: 0 | AP120: 0 | AQ120: 0 | AR120: 0 | AS120: 0 | AT120: 0 | AU120: 0 | AV120: 0 | AW120: 0 | AX120: 0 | AY120: 0 | AZ120: 0 | BA120: 0 | BB120: 0 | BC120: 0 | BD120: 0 | BE120: 0 | BF120: 0 | BG120: 0 | BH120: 0 | BI120: 0 | BJ120: 0 | BK120: 0
A121: SIEEPHYDNUDABe3 | B121: SIE | C121: EPHYDNUDABe3 | D121: SIwEPHYDNUDABe3 | E121: 1 | F121: 0 | G121: 2 | H121: 0 | I121: 50 | J121: 0.09169015822 | K121: 0.5622313012 | L121: 0 | M121: Benkongor3 | N121: 2447 | O121: 2447 | P121: 2447 | Q121: 2447 | R121: 2447 | S121: 2447 | T121: 2447 | U121: 2447 | V121: 2447 | W121: 2447 | X121: 2447 | Y121: 2447 | Z121: 2447 | AA121: 2447 | AB121: 2447 | AC121: 2447 | AD121: 2447 | AE121: 2447 | AF121: 2447 | AG121: 2447 | AH121: 2447 | AI121: 2447 | AJ121: 2447 | AK121: 2447 | AL121: HYD | AM121: 0 | AN121: 0 | AO121: 0 | AP121: 0 | AQ121: 0 | AR121: 0 | AS121: 0 | AT121: 0 | AU121: 0 | AV121: 0 | AW121: 0 | AX121: 0 | AY121: 0 | AZ121: 0 | BA121: 0 | BB121: 0 | BC121: 0 | BD121: 0 | BE121: 0 | BF121: 0 | BG121: 0 | BH121: 0 | BI121: 0 | BJ121: 0 | BK121: 0
A122: SIEEPHYDNUDADAM | B122: SIE | C122: EPHYDNUDADAM | D122: SIwEPHYDNUDADAM | E122: 1 | F122: 0 | G122: 2 | H122: 0 | I122: 50 | J122: 0.09169015822 | K122: 0.5261236915 | L122: 0 | M122: DAMEnvisagée | N122: 2561 | O122: 2561 | P122: 2561 | Q122: 2561 | R122: 2561 | S122: 2561 | T122: 2561 | U122: 2561 | V122: 2561 | W122: 2561 | X122: 2561 | Y122: 2561 | Z122: 2561 | AA122: 2561 | AB122: 2561 | AC122: 2561 | AD122: 2561 | AE122: 2561 | AF122: 2561 | AG122: 2561 | AH122: 2561 | AI122: 2561 | AJ122: 2561 | AK122: 2561 | AL122: HYD | AM122: 0 | AN122: 0 | AO122: 0 | AP122: 0 | AQ122: 0 | AR122: 0 | AS122: 0 | AT122: 0 | AU122: 0 | AV122: 0 | AW122: 0 | AX122: 0 | AY122: 0 | AZ122: 0 | BA122: 0 | BB122: 0 | BC122: 0 | BD122: 0 | BE122: 0 | BF122: 0 | BG122: 0 | BH122: 0 | BI122: 0 | BJ122: 0 | BK122: 0
A123: LIBEPODSNCBus | B123: LIB | C123: EPODSNCBus | D123: LIwEPODSNCBus | E123: 0.3050847458 | F123: 0.874026 | G123: 87.6 | H123: 0 | I123: 30 | J123: 0.09643568023 | K123: 0.801369863 | L123: 0 | M123: Bushrod | N123: 1123.5 | O123: 1123.5 | P123: 1123.5 | Q123: 1123.5 | R123: 1123.5 | S123: 1123.5 | T123: 1123.5 | U123: 1123.5 | V123: 1123.5 | W123: 1123.5 | X123: 1123.5 | Y123: 1123.5 | Z123: 1123.5 | AA123: 1123.5 | AB123: 1123.5 | AC123: 1123.5 | AD123: 1123.5 | AE123: 1123.5 | AF123: 1123.5 | AG123: 1123.5 | AH123: 1123.5 | AI123: 1123.5 | AJ123: 1123.5 | AK123: 1123.5 | AL123: ODSC | AM123: 258.5553019 | AN123: 263.7937595 | AO123: 269.0322171 | AP123: 274.2706748 | AQ123: 279.5091324 | AR123: 284.7475901 | AS123: 289.9860477 | AT123: 295.2245053 | AU123: 300.462963 | AV123: 305.7014206 | AW123: 310.5657027 | AX123: 314.3074581 | AY123: 318.0492136 | AZ123: 321.7909691 | BA123: 325.5327245 | BB123: 329.27448 | BC123: 333.0162354 | BD123: 336.7579909 | BE123: 340.4997463 | BF123: 344.2415018 | BG123: 348.7316083 | BH123: 348.7316083 | BI123: 348.7316083 | BJ123: 348.7316083 | BK123: 0
A124: LIBEPOHFNCBu2 | B124: LIB | C124: EPOHFNCBu2 | D124: LIwEPOHFNCBu2 | E124: 0.3789473684 | F124: 0.766365 | G124: 87.6 | H124: 0 | I124: 30 | J124: 0.09643568023 | K124: 0.801369863 | L124: 0 | M124: Bushrod 2 | N124: 1123.5 | O124: 1123.5 | P124: 1123.5 | Q124: 1123.5 | R124: 1123.5 | S124: 1123.5 | T124: 1123.5 | U124: 1123.5 | V124: 1123.5 | W124: 1123.5 | X124: 1123.5 | Y124: 1123.5 | Z124: 1123.5 | AA124: 1123.5 | AB124: 1123.5 | AC124: 1123.5 | AD124: 1123.5 | AE124: 1123.5 | AF124: 1123.5 | AG124: 1123.5 | AH124: 1123.5 | AI124: 1123.5 | AJ124: 1123.5 | AK124: 1123.5 | AL124: OHFC | AM124: 122.6059107 | AN124: 125.0761035 | AO124: 127.5462963 | AP124: 130.0164891 | AQ124: 132.4866819 | AR124: 134.9568747 | AS124: 137.4270675 | AT124: 139.8972603 | AU124: 142.3674531 | AV124: 144.8376459 | AW124: 147.1180556 | AX124: 148.9225013 | AY124: 150.726947 | AZ124: 152.5313927 | BA124: 154.3358384 | BB124: 156.1402841 | BC124: 157.9447298 | BD124: 159.7491755 | BE124: 161.5536213 | BF124: 163.358067 | BG124: 165.5450913 | BH124: 165.5450913 | BI124: 165.5450913 | BJ124: 165.5450913 | BK124: 0
A125: LIBEPBIONUKak | B125: LIB | C125: EPBIONUKak | D125: LIwEPBIONUKak | E125: 0.375 | F125: 0 | G125: 0 | H125: 129.6 | I125: 30 | J125: 0.09643568023 | K125: 0.8556 | L125: 0 | M125: Kakata (Buchanan) | N125: 3603.528 | O125: 3603.528 | P125: 3603.528 | Q125: 3603.528 | R125: 3603.528 | S125: 3603.528 | T125: 3603.528 | U125: 3603.528 | V125: 3603.528 | W125: 3603.528 | X125: 3603.528 | Y125: 3603.528 | Z125: 3603.528 | AA125: 3603.528 | AB125: 3603.528 | AC125: 3603.528 | AD125: 3603.528 | AE125: 3603.528 | AF125: 3603.528 | AG125: 3603.528 | AH125: 3603.528 | AI125: 3603.528 | AJ125: 3603.528 | AK125: 3603.528 | AL125: BIO | AM125: 14.30745814 | AN125: 14.30745814 | AO125: 14.30745814 | AP125: 14.30745814 | AQ125: 14.30745814 | AR125: 14.30745814 | AS125: 14.30745814 | AT125: 14.30745814 | AU125: 14.30745814 | AV125: 14.30745814 | AW125: 14.30745814 | AX125: 14.30745814 | AY125: 14.30745814 | AZ125: 14.30745814 | BA125: 14.30745814 | BB125: 14.30745814 | BC125: 14.30745814 | BD125: 14.30745814 | BE125: 14.30745814 | BF125: 14.30745814 | BG125: 14.30745814 | BH125: 14.30745814 | BI125: 14.30745814 | BJ125: 14.30745814 | BK125: 0
... 156 more rows

Sheet OtherParams
C3: CO2Tax | E3: Discount Rate | G3: Transmission line life
B4: 2010 | C4: 0 | E4: 0.1 | G4: 50 | J4: Language | K4: 0 | L4: 0 = English
B5: =B4+1 -> 2011 | C5: 0 | L5: 1 = Français
B6: 2012 | C6: 0
B7: 2013 | C7: 0
B8: 2014 | C8: 0
B9: 2015 | C9: 0
B10: 2016 | C10: 0
B11: 2017 | C11: 0
B12: 2018 | C12: 0
B13: 2019 | C13: 0
B14: 2020 | C14: 0
B15: 2021 | C15: 0
B16: 2022 | C16: 0
B17: 2023 | C17: 0
B18: 2024 | C18: 0
B19: 2025 | C19: 0
B20: 2026 | C20: 0
B21: 2027 | C21: 0
B22: 2028 | C22: 0
B23: 2029 | C23: 0
B24: 2030 | C24: 0
B25: 2031
B26: 2040
B27: 2050 | F27: RE Resource Potential (MW)
F28: Mini Hydro | G28: Solar Conc | H28: Solar PV | I28: Biomass | J28: Wind 25 | K28: Wind 30
B29: 1 | C29: BUR | D29: BUw | E29: Burkina | F29: =[2]NameConvs!K57 -> 140 | G29: =[2]NameConvs!L57 -> 5907.400552 | H29: =[2]NameConvs!M57 -> 2067.590193 | I29: =[2]NameConvs!N57 -> 44189.49604 | J29: =[2]NameConvs!O57 -> 8837.899209 | K29: =[2]NameConvs!P57 -> 250
B30: 2 | C30: CIV | D30: CIw | E30: Cote d'Ivoire | F30: =[2]NameConvs!K58 -> 242.13 | G30: =[2]NameConvs!L58 -> 720.3316695 | H30: =[2]NameConvs!M58 -> 252.1160843 | I30: =[2]NameConvs!N58 -> 58930.53853 | J30: =[2]NameConvs!O58 -> 11786.10771 | K30: =[2]NameConvs!P58 -> 1350
B31: 3 | C31: GAM | D31: GAw | E31: Gambia | F31: =[2]NameConvs!K59 -> 11.68 | G31: =[2]NameConvs!L59 -> 1030.301752 | H31: =[2]NameConvs!M59 -> 360.6056133 | I31: =[2]NameConvs!N59 -> 2707.14611 | J31: =[2]NameConvs!O59 -> 541.429222 | K31: =[2]NameConvs!P59 -> 12.5
B32: 4 | C32: GHA | D32: GHw | E32: Ghana | F32: =[2]NameConvs!K60 -> 1 | G32: =[2]NameConvs!L60 -> 748.2102764 | H32: =[2]NameConvs!M60 -> 261.8735968 | I32: =[2]NameConvs!N60 -> 43631.73429 | J32: =[2]NameConvs!O60 -> 8726.346858 | K32: =[2]NameConvs!P60 -> 1000
B33: 5 | C33: GUI | D33: GUw | E33: Guinea | F33: =[2]NameConvs!K61 -> 346.0195 | G33: =[2]NameConvs!L61 -> 1524.179965 | H33: =[2]NameConvs!M61 -> 533.4629878 | I33: =[2]NameConvs!N61 -> 29703.04725 | J33: =[2]NameConvs!O61 -> 5940.60945 | K33: =[2]NameConvs!P61 -> 656
B34: 6 | C34: GBI | D34: GBw | E34: Guinea-Bissau | F34: =[2]NameConvs!K62 -> 1.7272 | G34: =[2]NameConvs!L62 -> 2953.700276 | H34: =[2]NameConvs!M62 -> 1033.795097 | I34: =[2]NameConvs!N62 -> 8519.251529 | J34: =[2]NameConvs!O62 -> 1703.850306 | K34: =[2]NameConvs!P62 -> 37.5
B35: 7 | C35: LIB | D35: LIw | E35: Liberia | F35: =[2]NameConvs!K63 -> 1000 | G35: =[2]NameConvs!L63 -> 0 | H35: =[2]NameConvs!M63 -> 0 | I35: =[2]NameConvs!N63 -> 3808.499694 | J35: =[2]NameConvs!O63 -> 761.6999387 | K35: =[2]NameConvs!P63 -> 405
B36: 8 | C36: MAL | D36: MAw | E36: Mali | F36: =[2]NameConvs!K64 -> 72.1405 | G36: =[2]NameConvs!L64 -> 11814.8011 | H36: =[2]NameConvs!M64 -> 4135.180386 | I36: =[2]NameConvs!N64 -> 45127.94315 | J36: =[2]NameConvs!O64 -> 9025.588631 | K36: =[2]NameConvs!P64 -> 250
B37: 9 | C37: NIG | D37: NIw | E37: Niger | F37: =[2]NameConvs!K65 -> 50 | G37: =[2]NameConvs!L65 -> 28797.44059 | H37: =[2]NameConvs!M65 -> 10079.10421 | I37: =[2]NameConvs!N65 -> 89434.84429 | J37: =[2]NameConvs!O65 -> 17886.96886 | K37: =[2]NameConvs!P65 -> 250
B38: 10 | C38: NGA | D38: NGw | E38: Nigeria | F38: =[2]NameConvs!K66 -> 3500 | G38: =[2]NameConvs!L66 -> 32762.53181 | H38: =[2]NameConvs!M66 -> 11466.88614 | I38: =[2]NameConvs!N66 -> 185252.0396 | J38: =[2]NameConvs!O66 -> 37050.40793 | K38: =[2]NameConvs!P66 -> 10000
B39: 11 | C39: SEN | D39: SEw | E39: Senegal | F39: =[2]NameConvs!K67 -> 104.097 | G39: =[2]NameConvs!L67 -> 5013.20124 | H39: =[2]NameConvs!M67 -> 1754.620434 | I39: =[2]NameConvs!N67 -> 42914.22281 | J39: =[2]NameConvs!O67 -> 8582.844561 | K39: =[2]NameConvs!P67 -> 250
B40: 12 | C40: SIE | D40: SIw | E40: Sierra Leone | F40: =[2]NameConvs!K68 -> 85.438 | G40: =[2]NameConvs!L68 -> 642.7913922 | H40: =[2]NameConvs!M68 -> 224.9769873 | I40: =[2]NameConvs!N68 -> 8555.799823 | J40: =[2]NameConvs!O68 -> 1711.159965 | K40: =[2]NameConvs!P68 -> 250
B41: 13 | C41: TBN | D41: TBw | E41: Togo/Benin | F41: =[2]NameConvs!K69 -> 336 | G41: =[2]NameConvs!L69 -> 0 | H41: =[2]NameConvs!M69 -> 0 | I41: =[2]NameConvs!N69 -> 29426.8362 | J41: =[2]NameConvs!O69 -> 5885.367241 | K41: =[2]NameConvs!P69 -> 957
B45: =Single!B10 -> 2010 | C45: =Single!A10 -> 4
B46: =Single!B11 -> 2011 | C46: =Single!A11 -> 5
B47: =Single!B12 -> 2012 | C47: =Single!A12 -> 6
B48: =Single!B13 -> 2013 | C48: =Single!A13 -> 7
B49: =Single!B14 -> 2014 | C49: =Single!A14 -> 8
B50: =Single!B15 -> 2015 | C50: =Single!A15 -> 9
B51: =Single!B16 -> 2016 | C51: =Single!A16 -> 10
B52: =Single!B17 -> 2017 | C52: =Single!A17 -> 11
B53: =Single!B18 -> 2018 | C53: =Single!A18 -> 12
B54: =Single!B19 -> 2019 | C54: =Single!A19 -> 13
B55: =Single!B20 -> 2020 | C55: =Single!A20 -> 14
B56: =Single!B21 -> 2021 | C56: =Single!A21 -> 15
B57: =Single!B22 -> 2022 | C57: =Single!A22 -> 16
B58: =Single!B23 -> 2023 | C58: =Single!A23 -> 17
B59: =Single!B24 -> 2024 | C59: =Single!A24 -> 18
B60: =Single!B25 -> 2025 | C60: =Single!A25 -> 19
B61: =Single!B26 -> 2026 | C61: =Single!A26 -> 20
B62: =Single!B27 -> 2027 | C62: =Single!A27 -> 21
B63: =Single!B28 -> 2028 | C63: =Single!A28 -> 22
B64: =Single!B29 -> 2029 | C64: =Single!A29 -> 23
B65: =Single!B30 -> 2030 | C65: =Single!A30 -> 24
B66: =Single!B31 -> 2031 | C66: =Single!A31 -> 25
B67: =Single!B32 -> 2040 | C67: =Single!A32 -> 26
B68: =Single!B33 -> 2050 | C68: =Single!A33 -> 27

Sheet Single
C1: C | D1: O | E1: G | F1: N | G1: H | H1: B | I1: S | J1: T | K1: W | L1: Total | M1: I | N1: Exp | P1: * | Q1: O | R1: B | S1: H | T1: S | V1: Z | Z1: eps | AA1: 1e-08
B2: RE | C2: 0 | D2: 0 | E2: 0 | F2: 0 | G2: 1 | H2: 1 | I2: 1 | J2: 1 | K2: 1 | Q2: 0 | R2: 1 | S2: 1 | T2: 1
B3: =VLOOKUP($B$4,OtherParams!$B$29:$E$41,4,FALSE) -> Senegal | I3: Burkina | J3: Cote d'Ivoire | K3: Gambia | L3: Ghana | M3: Guinea | N3: Guinea-Bissau | O3: Liberia | P3: Mali | Q3: Niger | R3: Nigeria | S3: Senegal | T3: Sierra Leone | U3: Togo/Benin
B4: 11 | C4: =VLOOKUP($B$4,OtherParams!$B$29:$E$41,3,FALSE) -> SEw | I4: 1 | J4: 2 | K4: 3 | L4: 4 | M4: 5 | N4: 6 | O4: 7 | P4: 8 | Q4: 9 | R4: 10 | S4: 11 | T4: 12 | U4: 13
C5: Electricity Energy Balance
A6: English | C6: Coal | D6: Oil | E6: Gas | F6: Nuclear | G6: Hydro | H6: Biomass | I6: Solar PV | J6: Solar Thermal | K6: Wind | L6: Total Cent. | M6: Imports | N6: Exports | O6: Net Imports | P6: dom. System dmd | Q6: Dist. Oil | R6: Dist. Biomass | S6: Mini Hydro | T6: Dist.Solar PV | U6: Total Decent | V6: Unserved Energy | W6: Losses (GWh) | X6: Losses (%) | Y6: RE share | Z6: w RE | AA6: W Dom share
A7: French | C7: Charbon | D7: Petrole | E7: Gaz | F7: Nucleaire | G7: Hydro | H7: Biomasse | I7: Solaire PV | J7: Solaire Thermique | K7: Eolienne | L7: Total Cent. | M7: Imports | N7: Exports | O7: Imports Net | P7: dom. System dmd | Q7: Dist. Petrole | R7: Dist. Biomasse | S7: Mini Hydro | T7: Dist. Solaire PV | U7: Total Decent | V7: non desservie | W7: Pertes (GWh) | X7: Pertes (%) | Y7: RE share | Z7: w RE | AA7: W Dom share | AN7: 1000
C8: Cent. | D8: =C4&"SecElcOut" -> SEwSecElcOut | E8: =SUMIF(INDIRECT("Raw"&$C$4&"!$A$12:$A$540"),D8,INDIRECT("Raw"&$C$4&"!$B$12:$B$540")) -> 280 | F8: 1 | M8: =C4&"FinaleElc" -> SEwFinaleElc | N8: =SUMIF(INDIRECT("Raw"&$C$4&"!$A$12:$A$550"),M8,INDIRECT("Raw"&$C$4&"!$B$12:$B$550")) -> 478 | O8: 3 | Q8: Decent. | R8: =$C$4&"TerElcOut" -> SEwTerElcOut | S8: =SUMIF(INDIRECT("Raw"&$C$4&"!$A$12:$A$540"),R8,INDIRECT("Raw"&$C$4&"!$B$12:$B$540")) -> 313 | T8: 2 | AM8: Summary years
A9: GWh | C9: =OFFSET(C$6,lang,0) -> Coal | D9: Oil | E9: Gas | F9: Nuclear | G9: Hydro | H9: Biomass | I9: Solar PV | J9: Solar Thermal | K9: Wind | L9: Total Cent. | M9: Imports | N9: Exports | O9: Net Imports | P9: dom. System dmd | Q9: Dist. Oil | R9: Dist. Biomass | S9: Mini Hydro | T9: Dist.Solar PV | U9: Total Decent | V9: Unserved Energy | W9: Losses (GWh) | X9: Losses (%) | Y9: RE share | Z9: w RE | AA9: W Dom share | AN9: =C9 -> Coal | AO9: =D9 -> Oil | AP9: Gas | AQ9: Nuclear | AR9: Hydro | AS9: Biomass | AT9: Solar PV | AU9: =J9 -> Solar Thermal | AV9: =K9 -> Wind | AW9: =O9 -> Net Imports | AX9: =Q9 -> Dist. Oil | AY9: =R9 -> Dist. Biomass | AZ9: =S9 -> Mini Hydro | BA9: =T9 -> Dist.Solar PV
A10: 4 | B10: =OFFSET(INDIRECT("Raw"&$C$4&"!$C$1"),$E$8+A10,0) -> 2010 | C10: =SUMIF(OFFSET(INDIRECT("Raw"&$C$4&"!$C$1"),$F$8,1,1,50),C$1,OFFSET(INDIRECT("Raw"&$C$4&"!$C$1"),$E$8+$A10,1,1,50))*8.76 -> 0 | D10: 2130.7824 | E10: 367.2192 | F10: 0 | G10: 164.9508 | H10: 0 | I10: 0 | J10: 0 | K10: 0 | L10: =SUM(C10:K10) -> 2662.9524 | M10: =SUMIF(TransRaw!$DD$8:$DQ$8,$C$4,TransRaw!$DD9:$DQ9)*8.76 -> 7.5336 | N10: =SUMIF(TransRaw!$DD$8:$DQ$8,$C$4,TransRaw!$DD36:$DQ36)*8.76 -> 197.976 | O10: =M10-N10 -> -190.4424 | P10: =SUMIF(OFFSET(INDIRECT("Raw"&$C$4&"!$C$1"),$O$8,1,1,50),P$1,OFFSET(INDIRECT("Raw"&$C$4&"!$C$1"),$N$8+$A10,1,1,50))*8.76 -> 1925.448 | Q10: =SUMIF(OFFSET(INDIRECT("Raw"&$C$4&"!$C$1"),$T$8,1,1,50),Q$1,OFFSET(INDIRECT("Raw"&$C$4&"!$C$1"),$S$8+$A10,1,1,50))*8.76 -> 16.2936 | R10: 0 | S10: 0 | T10: 0 | U10: =SUM(Q10:T10) -> 16.2936 | V10: =SUMIF(OFFSET(INDIRECT("Raw"&$C$4&"!$C$1"),$F$8,1,1,50),V$1,OFFSET(INDIRECT("Raw"&$C$4&"!$C$1"),$E$8+$A10,1,1,50))*8.76 -> 0 | W10: =U10+L10+O10-P10 -> 563.3556 | X10: =W10/(L10+O10) -> 0.2278476528 | Y10: =SUMPRODUCT($C$2:$T$2,C10:T10)/(L10+U10) -> 0.06156612719 | Z10: =(SUMPRODUCT($C$2:$K$2,C10:K10)*(1-X10)+SUMPRODUCT($Q$2:$T$2,Q10:T10))/P10 -> 0.06614935713 | AA10: =(L10*(1-X10)+U10)/P10 -> 1.07637212 | AM10: 2010 | AN10: =SUMIF($B$10:$B$33,$AM10,C$10:C$33) -> 0 | AO10: =SUMIF($B$10:$B$33,$AM10,D$10:D$33) -> 2130.7824 | AP10: 367.2192 | AQ10: 0 | AR10: 164.9508 | AS10: 0 | AT10: 0 | AU10: 0 | AV10: 0 | AW10: =SUMIF($B$10:$B$33,$AM10,O$10:O$33) -> -190.4424 | AX10: =SUMIF($B$10:$B$33,$AM10,Q$10:Q$33) -> 16.2936 | AY10: 0 | AZ10: 0 | BA10: 0
A11: =A10+1 -> 5 | B11: 2011 | C11: 0 | D11: 2077.6092 | E11: 367.2192 | F11: 0 | G11: 164.9508 | H11: 0 | I11: 0 | J11: 0 | K11: 0 | L11: =SUM(C11:K11) -> 2609.7792 | M11: =SUMIF(TransRaw!$DD$8:$DQ$8,$C$4,TransRaw!$DD10:$DQ10)*8.76 -> 24.528 | N11: =SUMIF(TransRaw!$DD$8:$DQ$8,$C$4,TransRaw!$DD37:$DQ37)*8.76 -> 0 | O11: 24.528 | P11: 2080.5 | Q11: 14.6292 | R11: 0 | S11: 0 | T11: 0 | U11: =SUM(Q11:T11) -> 14.6292 | V11: =SUMIF(OFFSET(INDIRECT("Raw"&$C$4&"!$C$1"),$F$8,1,1,50),V$1,OFFSET(INDIRECT("Raw"&$C$4&"!$C$1"),$E$8+$A11,1,1,50))*8.76 -> 0 | W11: =U11+L11+O11-P11 -> 568.4364 | X11: =W11/(L11+O11) -> 0.2157821229 | Y11: 0.06285256517 | Z11: 0.06217609527 | AA11: =(L11*(1-X11)+U11)/P11 -> 0.990754484 | AM11: 2020 | AN11: =SUMIF($B$10:$B$33,$AM11,C$10:C$33) -> 1873.764 | AO11: 0 | AP11: 0 | AQ11: 0 | AR11: 384.7392 | AS11: 1320.6576 | AT11: 343.1292 | AU11: 0 | AV11: 953.6136 | AW11: =SUMIF($B$10:$B$33,$AM11,O$10:O$33) -> 143.0508 | AX11: 50.8956 | AY11: 0 | AZ11: 172.3968 | BA11: 0
A12: =A11+1 -> 6 | B12: 2012 | C12: 0 | D12: 2293.5432 | E12: 367.2192 | F12: 0 | G12: 164.9508 | H12: 0 | I12: 0 | J12: 0 | K12: 0 | L12: 2825.7132 | M12: =SUMIF(TransRaw!$DD$8:$DQ$8,$C$4,TransRaw!$DD11:$DQ11)*8.76 -> 123.6912 | N12: =SUMIF(TransRaw!$DD$8:$DQ$8,$C$4,TransRaw!$DD38:$DQ38)*8.76 -> 0 | O12: 123.6912 | P12: 2380.092 | Q12: 32.0616 | R12: 0 | S12: 0 | T12: 0 | U12: 32.0616 | V12: 0 | W12: 601.374 | X12: 0.2038967596 | Y12: 0.05772001349 | Z12: 0.05517344136 | AA12: 0.9586272442 | AM12: 2030 | AN12: 1873.764 | AO12: 0 | AP12: 0 | AQ12: 0 | AR12: 387.192 | AS12: 1320.6576 | AT12: 794.0064 | AU12: 1641.0108 | AV12: 1588.0128 | AW12: =SUMIF($B$10:$B$33,$AM12,O$10:O$33) -> 753.5352 | AX12: 76.2996 | AY12: 0 | AZ12: 418.5528 | BA12: 0
A13: 7 | B13: 2013 | C13: 0 | D13: 2143.6596 | E13: 367.2192 | F13: 0 | G13: 244.9296 | H13: 0 | I13: 0 | J13: 0 | K13: 0 | L13: 2755.8084 | M13: =SUMIF(TransRaw!$DD$8:$DQ$8,$C$4,TransRaw!$DD12:$DQ12)*8.76 -> 341.202 | N13: =SUMIF(TransRaw!$DD$8:$DQ$8,$C$4,TransRaw!$DD39:$DQ39)*8.76 -> 0 | O13: 341.202 | P13: 2539.524 | Q13: 38.6316 | R13: 0 | S13: 0 | T13: 0 | U13: 38.6316 | V13: 0 | W13: 596.118 | X13: 0.192481756 | Y13: 0.08764890282 | Z13: 0.07788275303 | AA13: 0.891504534 | AM13: 2040 | AN13: 1873.764 | AO13: 0 | AP13: 0 | AQ13: 0 | AR13: 589.986 | AS13: 1185.7536 | AT13: 1329.9432 | AU13: 6611.4348 | AV13: 2659.8864 | AW13: =SUMIF($B$10:$B$33,$AM13,O$10:O$33) -> -251.3244 | AX13: 125.7936 | AY13: 0 | AZ13: 453.768 | BA13: 149.4456
A14: 8 | B14: 2014 | C14: 0 | D14: 665.1468 | E14: 367.2192 | F14: 0 | G14: 244.9296 | H14: 494.8524 | I14: 0 | J14: 0 | K14: 609.6084 | L14: 2381.7564 | M14: =SUMIF(TransRaw!$DD$8:$DQ$8,$C$4,TransRaw!$DD13:$DQ13)*8.76 -> 826.7688 | N14: =SUMIF(TransRaw!$DD$8:$DQ$8,$C$4,TransRaw!$DD40:$DQ40)*8.76 -> 0 | O14: 826.7688 | P14: 2714.724 | Q14: 35.1276 | R14: 0 | S14: 48.618 | T14: 0 | U14: 83.7456 | V14: 0 | W14: 577.5468 | X14: 0.1800038223 | Y14: 0.5670278913 | Z14: 0.4254992295 | AA14: 0.7502702832 | AM14: 2050 | AN14: 100.74 | AO14: 0 | AP14: 3551.1288 | AQ14: 0 | AR14: 589.986 | AS14: 1095.7884 | AT14: 1632.9516 | AU14: 7502.3268 | AV14: 3265.8156 | AW14: =SUMIF($B$10:$B$33,$AM14,O$10:O$33) -> -549.9528 | AX14: 83.9208 | AY14: 0 | AZ14: 438.3504 | BA14: 5979.7512
A15: 9 | B15: 2015 | C15: 0 | D15: 329.376 | E15: 367.2192 | F15: 0 | G15: 244.9296 | H15: 784.1076 | I15: 343.1292 | J15: 0 | K15: 686.2584 | L15: 2755.02 | M15: =SUMIF(TransRaw!$DD$8:$DQ$8,$C$4,TransRaw!$DD14:$DQ14)*8.76 -> 856.8156 | N15: =SUMIF(TransRaw!$DD$8:$DQ$8,$C$4,TransRaw!$DD41:$DQ41)*8.76 -> 0 | O15: 856.8156 | P15: 3101.04 | Q15: 38.7192 | R15: 0 | S15: 61.6704 | T15: 0 | U15: 100.3896 | V15: 0 | W15: 611.1852 | X15: 0.1692173365 | Y15: 0.7424837403 | Z15: 0.5713483341 | AA15: 0.7704552194
A16: 10 | B16: 2016 | C16: 1873.764 | D16: 0 | E16: 20.586 | F16: 0 | G16: 245.0172 | H16: 1092.7224 | I16: 343.1292 | J16: 0 | K16: 785.0712 | L16: 4360.29 | M16: =SUMIF(TransRaw!$DD$8:$DQ$8,$C$4,TransRaw!$DD15:$DQ15)*8.76 -> 0 | N16: =SUMIF(TransRaw!$DD$8:$DQ$8,$C$4,TransRaw!$DD42:$DQ42)*8.76 -> 228.198 | O16: -228.198 | P16: 3612.624 | Q16: 43.7124 | R16: 0 | S16: 92.418 | T16: 0 | U16: 136.1304 | V16: 0 | W16: 655.5984 | X16: 0.1586601654 | Y16: 0.5689766019 | Z16: 0.5998718803 | AA16: 1.053144769
A17: 11 | B17: 2017 | C17: 1873.764 | D17: 0 | E17: 26.5428 | F17: 0 | G17: 384.7392 | H17: 1097.4528 | I17: 343.1292 | J17: 0 | K17: 823.3524 | L17: 4548.9804 | M17: =SUMIF(TransRaw!$DD$8:$DQ$8,$C$4,TransRaw!$DD16:$DQ16)*8.76 -> 0.6132 | N17: =SUMIF(TransRaw!$DD$8:$DQ$8,$C$4,TransRaw!$DD43:$DQ43)*8.76 -> 216.0216 | O17: -215.4084 | P17: 3844.764 | Q17: 45.3768 | R17: 0 | S17: 110.2008 | T17: 0 | U17: 155.5776 | V17: 0 | W17: 644.3856 | X17: 0.1486961795 | Y17: 0.5864258449 | Z17: 0.6151292394 | AA17: 1.047695514
A18: 12 | B18: 2018 | C18: 1873.764 | D18: 0 | E18: 0 | F18: 0 | G18: 384.7392 | H18: 1256.9724 | I18: 343.1292 | J18: 0 | K18: 863.5608 | L18: 4722.1656 | M18: =SUMIF(TransRaw!$DD$8:$DQ$8,$C$4,TransRaw!$DD17:$DQ17)*8.76 -> 23.4768 | N18: =SUMIF(TransRaw!$DD$8:$DQ$8,$C$4,TransRaw!$DD44:$DQ44)*8.76 -> 200.6916 | O18: -177.2148 | P18: 4088.292 | Q18: 47.1288 | R18: 0 | S18: 128.9472 | T18: 0 | U18: 176.076 | V18: 0 | W18: 632.7348 | X18: 0.1392170846 | Y18: 0.6078403319 | Z18: 0.6312667083 | AA18: 1.037312274
A19: 13 | B19: 2019 | C19: 1873.764 | D19: 0 | E19: 0 | F19: 0 | G19: 384.8268 | H19: 1320.6576 | I19: 343.1292 | J19: 0 | K19: 906.3972 | L19: 4828.7748 | M19: =SUMIF(TransRaw!$DD$8:$DQ$8,$C$4,TransRaw!$DD18:$DQ18)*8.76 -> 856.8156 | N19: =SUMIF(TransRaw!$DD$8:$DQ$8,$C$4,TransRaw!$DD45:$DQ45)*8.76 -> 915.1572 | O19: -58.3416 | P19: 4347.588 | Q19: 48.8808 | R19: 0 | S19: 149.1828 | T19: 0 | U19: 198.0636 | V19: 0 | W19: 620.9088 | X19: 0.1301577391 | Y19: 0.6175240485 | Z19: 0.6255367517 | AA19: 1.011672677
A20: 14 | B20: 2020 | C20: =SUMIF(OFFSET(INDIRECT("Raw"&$C$4&"!$C$1"),$F$8,1,1,50),C$1,OFFSET(INDIRECT("Raw"&$C$4&"!$C$1"),$E$8+$A20,1,1,50))*8.76 -> 1873.764 | D20: 0 | E20: 0 | F20: 0 | G20: 384.7392 | H20: 1320.6576 | I20: 343.1292 | J20: 0 | K20: 953.6136 | L20: 4875.9036 | M20: =SUMIF(TransRaw!$DD$8:$DQ$8,$C$4,TransRaw!$DD19:$DQ19)*8.76 -> 543.4704 | N20: =SUMIF(TransRaw!$DD$8:$DQ$8,$C$4,TransRaw!$DD46:$DQ46)*8.76 -> 400.4196 | O20: 143.0508 | P20: 4632.288 | Q20: 50.8956 | R20: 0 | S20: 172.3968 | T20: 0 | U20: 223.2924 | V20: 0 | W20: 609.9588 | X20: 0.1215310504 | Y20: 0.6225562618 | Z20: 0.6065432937 | AA20: 0.9728717891
A21: 15 | B21: 2021 | C21: 1873.764 | D21: 0 | E21: 0 | F21: 0 | G21: 384.7392 | H21: 1320.6576 | I21: 425.6484 | J21: 0 | K21: 1008.1008 | L21: 5012.91 | M21: =SUMIF(TransRaw!$DD$8:$DQ$8,$C$4,TransRaw!$DD20:$DQ20)*8.76 -> 536.988 | N21: =SUMIF(TransRaw!$DD$8:$DQ$8,$C$4,TransRaw!$DD47:$DQ47)*8.76 -> 243.8784 | O21: 293.1096 | P21: 4923.12 | Q21: 53.2608 | R21: 0 | S21: 194.1216 | T21: 0 | U21: 247.3824 | V21: 0 | W21: 630.282 | X21: 0.1187862178 | Y21: 0.6336658396 | Z21: 0.6013219908 | AA21: 0.947534852
A22: 16 | B22: 2022 | C22: 1873.764 | D22: 0 | E22: 0 | F22: 0 | G22: 384.8268 | H22: 1320.6576 | I22: 530.418 | J22: 0 | K22: 1060.9236 | L22: 5170.59 | M22: =SUMIF(TransRaw!$DD$8:$DQ$8,$C$4,TransRaw!$DD21:$DQ21)*8.76 -> 413.1216 | N22: =SUMIF(TransRaw!$DD$8:$DQ$8,$C$4,TransRaw!$DD48:$DQ48)*8.76 -> 0 | O22: 413.1216 | P22: 5206.944 | Q22: 55.5384 | R22: 0 | S22: 215.8464 | T22: 0 | U22: 271.3848 | V22: 0 | W22: 648.1524 | X22: 0.1160791327 | Y22: 0.6454775204 | Z22: 0.6011164509 | AA22: =(L22*(1-X22)+U22)/P22 -> 0.9298692663
A23: 17 | B23: 2023 | C23: 1873.764 | D23: 0 | E23: 0 | F23: 0 | G23: 384.7392 | H23: 1320.57 | I23: 530.418 | J23: 0 | K23: 1116.5496 | L23: 5226.0408 | M23: =SUMIF(TransRaw!$DD$8:$DQ$8,$C$4,TransRaw!$DD22:$DQ22)*8.76 -> 650.5176 | N23: =SUMIF(TransRaw!$DD$8:$DQ$8,$C$4,TransRaw!$DD49:$DQ49)*8.76 -> 0 | O23: 650.5176 | P23: 5508.288 | Q23: 57.9912 | R23: 0 | S23: 239.8488 | T23: 0 | U23: 297.84 | V23: 0 | W23: 666.1104 | X23: 0.1133504263 | Y23: 0.650290209 | Z23: 0.5831473582 | AA23: 0.8952884902
A24: 18 | B24: 2024 | C24: 1873.764 | D24: 0 | E24: 0 | F24: 0 | G24: 384.7392 | H24: 1320.6576 | I24: 587.9712 | J24: 0 | K24: 1175.8548 | L24: 5342.9868 | M24: =SUMIF(TransRaw!$DD$8:$DQ$8,$C$4,TransRaw!$DD23:$DQ23)*8.76 -> 845.9532 | N24: =SUMIF(TransRaw!$DD$8:$DQ$8,$C$4,TransRaw!$DD50:$DQ50)*8.76 -> 0 | O24: 845.9532 | P24: 5831.532 | Q24: 60.5316 | R24: 0 | S24: 266.8296 | T24: 0 | U24: 327.3612 | V24: 0 | W24: 684.7692 | X24: 0.1106440198 | Y24: 0.6588753283 | Z24: 0.5748409927 | AA24: 0.8709852681
A25: 19 | B25: 2025 | C25: 1873.764 | D25: 0 | E25: 0 | F25: 0 | G25: 384.7392 | H25: 1320.57 | I25: 619.4196 | J25: 0 | K25: 1238.8392 | L25: 5437.332 | M25: =SUMIF(TransRaw!$DD$8:$DQ$8,$C$4,TransRaw!$DD24:$DQ24)*8.76 -> 1082.6484 | N25: =SUMIF(TransRaw!$DD$8:$DQ$8,$C$4,TransRaw!$DD51:$DQ51)*8.76 -> 0 | O25: 1082.6484 | P25: 6174.924 | Q25: 63.072 | R25: 0 | S25: 295.2996 | T25: 0 | U25: 358.3716 | V25: 0 | W25: 703.428 | X25: 0.1078880544 | Y25: 0.6658152084 | Z25: 0.5626629869 | AA25: 0.8435861606
A26: 20 | B26: 2026 | C26: 1873.764 | D26: 0 | E26: 0 | F26: 0 | G26: 384.7392 | H26: 1320.6576 | I26: 651.5688 | J26: 0 | K26: 1303.05 | L26: 5533.7796 | M26: =SUMIF(TransRaw!$DD$8:$DQ$8,$C$4,TransRaw!$DD25:$DQ25)*8.76 -> 1328.8044 | N26: =SUMIF(TransRaw!$DD$8:$DQ$8,$C$4,TransRaw!$DD52:$DQ52)*8.76 -> 4.2924 | O26: 1324.512 | P26: 6527.952 | Q26: 65.7876 | R26: 0 | S26: 325.2588 | T26: 0 | U26: 391.0464 | V26: 0 | W26: 721.386 | X26: 0.105184504 | Y26: 0.6726399054 | Z26: 0.5515202126 | AA26: 0.8184432327
A27: 21 | B27: 2027 | C27: 1873.764 | D27: 0 | E27: 0 | F27: 0 | G27: 384.8268 | H27: 1320.6576 | I27: 685.2072 | J27: 0 | K27: 1370.4144 | L27: 5634.87 | M27: =SUMIF(TransRaw!$DD$8:$DQ$8,$C$4,TransRaw!$DD26:$DQ26)*8.76 -> 1577.9388 | N27: =SUMIF(TransRaw!$DD$8:$DQ$8,$C$4,TransRaw!$DD53:$DQ53)*8.76 -> 0 | O27: 1577.9388 | P27: 6896.748 | Q27: 64.824 | R27: 0 | S27: 358.284 | T27: 0 | U27: 423.108 | V27: 0 | W27: 739.1688 | X27: 0.1024800214 | Y27: 0.6799942159 | Z27: 0.5414075992 | AA27: 0.7946522625
A28: 22 | B28: 2028 | C28: 1873.764 | D28: 0 | E28: 0 | F28: 0 | G28: 384.7392 | H28: 1320.6576 | I28: 720.4224 | J28: 461.3892 | K28: 1440.8448 | L28: 6201.8172 | M28: =SUMIF(TransRaw!$DD$8:$DQ$8,$C$4,TransRaw!$DD27:$DQ27)*8.76 -> 1381.6272 | N28: =SUMIF(TransRaw!$DD$8:$DQ$8,$C$4,TransRaw!$DD54:$DQ54)*8.76 -> 0 | O28: 1381.6272 | P28: 7283.064 | Q28: 71.1312 | R28: 0 | S28: 386.0532 | T28: 0 | U28: 457.1844 | V28: 0 | W28: 757.5648 | X28: 0.09989719184 | Y28: 0.7079299095 | Z28: 0.5879044917 | AA28: 0.8292467947
A29: 23 | B29: 2029 | C29: 1873.764 | D29: 0 | E29: 0 | F29: 0 | G29: 384.7392 | H29: 1320.6576 | I29: 758.9664 | J29: 1144.056 | K29: 1518.0204 | L29: 7000.2036 | M29: =SUMIF(TransRaw!$DD$8:$DQ$8,$C$4,TransRaw!$DD28:$DQ28)*8.76 -> 990.5808 | N29: =SUMIF(TransRaw!$DD$8:$DQ$8,$C$4,TransRaw!$DD55:$DQ55)*8.76 -> 1.314 | O29: 989.2668 | P29: 7685.148 | Q29: 72.4452 | R29: 0 | S29: 403.3104 | T29: 0 | U29: 475.7556 | V29: 0 | W29: 780.078 | X29: 0.09763826148 | Y29: 0.7396709709 | Z29: 0.6544068312 | AA29: 0.8838439403
A30: 24 | B30: 2030 | C30: 1873.764 | D30: 0 | E30: 0 | F30: 0 | G30: 387.192 | H30: 1320.6576 | I30: 794.0064 | J30: 1641.0108 | K30: 1588.0128 | L30: 7604.6436 | M30: =SUMIF(TransRaw!$DD$8:$DQ$8,$C$4,TransRaw!$DD29:$DQ29)*8.76 -> 863.9988 | N30: =SUMIF(TransRaw!$DD$8:$DQ$8,$C$4,TransRaw!$DD56:$DQ56)*8.76 -> 110.4636 | O30: 753.5352 | P30: 8055.696 | Q30: 76.2996 | R30: 0 | S30: 418.5528 | T30: 0 | U30: 494.8524 | V30: 0 | W30: 797.3352 | X30: 0.0953958056 | Y30: 0.7592364266 | Z30: 0.6954992497 | AA30: 0.9153827177
A31: 25 | B31: 2031 | C31: 1873.764 | D31: 0 | E31: 0 | F31: 0 | G31: 589.986 | H31: 1320.6576 | I31: 836.7552 | J31: 1812.444 | K31: 1673.598 | L31: 8107.2048 | M31: =SUMIF(TransRaw!$DD$8:$DQ$8,$C$4,TransRaw!$DD30:$DQ30)*8.76 -> 892.3812 | N31: =SUMIF(TransRaw!$DD$8:$DQ$8,$C$4,TransRaw!$DD57:$DQ57)*8.76 -> 191.2308 | O31: =M31-N31 -> 701.1504 | P31: 8474.424 | Q31: 80.2416 | R31: 0 | S31: 428.2764 | T31: 0 | U31: 508.518 | V31: 0 | W31: 842.4492 | X31: 0.09564205585 | Y31: 0.7732046811 | Z31: 0.7157463571 | AA31: =(L31*(1-X31)+U31)/P31 -> 0.9251759253
A32: 26 | B32: 2040 | C32: 1873.764 | D32: 0 | E32: 0 | F32: 0 | G32: 589.986 | H32: 1185.7536 | I32: 1329.9432 | J32: 6611.4348 | K32: 2659.8864 | L32: 14250.768 | M32: =SUMIF(TransRaw!$DD$8:$DQ$8,$C$4,TransRaw!$DD31:$DQ31)*8.76 -> 1462.5696 | N32: =SUMIF(TransRaw!$DD$8:$DQ$8,$C$4,TransRaw!$DD58:$DQ58)*8.76 -> 1713.894 | O32: -251.3244 | P32: 13375.644 | Q32: 125.7936 | R32: 0 | S32: 453.768 | T32: 149.4456 | U32: 729.0072 | V32: 0 | W32: 1352.8068 | X32: 0.09663289761 | Y32: 0.8665161811 | Z32: 0.8810186515 | AA32: 1.016974001
A33: 27 | B33: 2050 | C33: 100.74 | D33: 0 | E33: 3551.1288 | F33: 0 | G33: 589.986 | H33: 1095.7884 | I33: 1632.9516 | J33: 7502.3268 | K33: 3265.8156 | L33: 17738.7372 | M33: =SUMIF(TransRaw!$DD$8:$DQ$8,$C$4,TransRaw!$DD32:$DQ32)*8.76 -> 2310.9756 | N33: =SUMIF(TransRaw!$DD$8:$DQ$8,$C$4,TransRaw!$DD59:$DQ59)*8.76 -> 2860.9284 | O33: -549.9528 | P33: 22207.476 | Q33: 83.9208 | R33: 0 | S33: 438.3504 | T33: 5979.7512 | U33: 6502.0224 | V33: 0 | W33: 1483.3308 | X33: 0.08629643409 | Y33: 0.8458880967 | Z33: 0.8685959399 | AA33: 1.022627238
C36: Capacity Balance
A37: English | C37: Coal | D37: Oil | E37: Gas | F37: Nuclear | G37: Hydro | H37: Biomass | I37: Solar PV | J37: Solar Thermal | K37: Wind | L37: Total Cent. Cap | M37: Imports Cap | N37: Exports Cap | O37: Sytem peak | P37: Reserve Margin | Q37: Oil | R37: Biomass | S37: Mini Hydro | T37: Dist.Solar PV | U37: Total Decent | V37: Backstop
A38: French | C38: Charbon | D38: Petrole | E38: Gaz | F38: Nucleaire | G38: Hydro | H38: Biomasse | I38: Solaire PV | J38: Solaire Thermique | K38: Eolienne | L38: Total Cent. Cap | M38: Imports Cap | N38: Exports Cap | O38: Pointe | P38: Marge de reserve | Q38: Petrole | R38: Biomasse | S38: Mini Hydro | T38: Dist. Solaire PV | U38: Total Decent | V38: Backstop
C39: Cent. | D39: =$C$4&"SecTotCap" -> SEwSecTotCap | E39: =SUMIF(INDIRECT("Raw"&$C$4&"!$A$12:$A$540"),D39,INDIRECT("Raw"&$C$4&"!$B$12:$B$540")) -> 346 | F39: 1 | N39: =$C$4&"TerTotCap" -> SEwTerTotCap | O39: =SUMIF(INDIRECT("Raw"&$C$4&"!$A$12:$A$540"),N39,INDIRECT("Raw"&$C$4&"!$B$12:$B$540")) -> 379 | P39: 2 | Q39: Decent.
A40: MW | C40: =OFFSET(C$37,lang,0) -> Coal | D40: Oil | E40: Gas | F40: Nuclear | G40: Hydro | H40: =OFFSET(H$6,lang,0) -> Biomass | I40: Solar PV | J40: Solar Thermal | K40: Wind | L40: Total Cent. Cap | M40: Imports Cap | N40: Exports Cap | O40: Sytem peak | P40: Reserve Margin | Q40: Oil | R40: Biomass | S40: Mini Hydro | T40: Dist.Solar PV | U40: Total Decent | V40: Backstop
A41: 4 | B41: =OFFSET(INDIRECT("Raw"&$C$4&"!$C$1"),$E$39+A41,0) -> 2010 | C41: =SUMIF(OFFSET(INDIRECT("Raw"&$C$4&"!$C$1"),$F$39,1,1,50),C$1,OFFSET(INDIRECT("Raw"&$C$4&"!$C$1"),$E$39+$A41,1,1,50)) -> 0 | D41: 356.5 | E41: 49 | F41: 0 | G41: 67.65 | H41: 0 | I41: 0 | J41: 0 | K41: 0 | L41: =SUM(C41:K41) -> 473.15 | M41: =SUMIF(TransRaw!$DD$8:$DQ$8,$C$4,TransRaw!$DD63:$DQ63) -> 100 | N41: =M41 -> 100 | O41: =OFFSET(INDIRECT("Raw"&$C$4&"!$C$1"),$O$39+$A41,1)/(1-X10) -> 529.1572336 | P41: =L41/O41-1 -> -0.1058423283 | Q41: =SUMIF(OFFSET(INDIRECT("Raw"&$C$4&"!$C$1"),$P$39,1,1,50),Q$1,OFFSET(INDIRECT("Raw"&$C$4&"!$C$1"),$O$39+$A41,1,1,50)) -> 46.39 | R41: 0 | S41: 0 | T41: 0 | U41: =SUM(Q41:T41) -> 46.39 | V41: =SUMIF(OFFSET(INDIRECT("Raw"&$C$4&"!$C$1"),$P$39,1,1,50),V$1,OFFSET(INDIRECT("Raw"&$C$4&"!$C$1"),$O$39+$A41,1,1,50)) -> 0
A42: =A41+1 -> 5 | B42: 2011 | C42: 0 | D42: 493.5 | E42: 49 | F42: 0 | G42: 67.65 | H42: 0 | I42: 0 | J42: 0 | K42: 0 | L42: =SUM(C42:K42) -> 610.15 | M42: =SUMIF(TransRaw!$DD$8:$DQ$8,$C$4,TransRaw!$DD64:$DQ64) -> 100 | N42: =M42 -> 100 | O42: 560.8007836 | P42: =L42/O42-1 -> 0.08799776646 | Q42: 41.75 | R42: 0 | S42: 0 | T42: 0 | U42: =SUM(Q42:T42) -> 41.75 | V42: 0
A43: =A42+1 -> 6 | B43: 2012 | C43: 0 | D43: 523.5 | E43: 49 | F43: 0 | G43: 67.65 | H43: 0 | I43: 0 | J43: 0 | K43: 0 | L43: 640.15 | M43: =SUMIF(TransRaw!$DD$8:$DQ$8,$C$4,TransRaw!$DD65:$DQ65) -> 100 | N43: 100 | O43: 563.3314591 | P43: 0.1363647275 | Q43: 86.26 | R43: 0 | S43: 0 | T43: 0 | U43: 86.26 | V43: 0
A44: 7 | B44: 2013 | C44: 0 | D44: 503.5 | E44: 49 | F44: 0 | G44: 82.65 | H44: 0 | I44: 0 | J44: 0 | K44: 0 | L44: 635.15 | M44: =SUMIF(TransRaw!$DD$8:$DQ$8,$C$4,TransRaw!$DD66:$DQ66) -> 100 | N44: 100 | O44: 570.711564 | P44: 0.112908937 | Q44: 97.32 | R44: 0 | S44: 0 | T44: 0 | U44: 97.32 | V44: 0
A45: 8 | B45: 2014 | C45: 0 | D45: 503.5 | E45: 49 | F45: 0 | G45: 82.65 | H45: 91.6 | I45: 0 | J45: 0 | K45: 231.98 | L45: 958.73 | M45: =SUMIF(TransRaw!$DD$8:$DQ$8,$C$4,TransRaw!$DD67:$DQ67) -> 100 | N45: 100 | O45: 583.3929633 | P45: 0.643369153 | Q45: 100.4 | R45: 0 | S45: 11.47 | T45: 0 | U45: 111.87 | V45: 0
A46: 9 | B46: 2015 | C46: 0 | D46: 503.5 | E46: 49 | F46: 0 | G46: 82.65 | H46: 157.6 | I46: 156.79 | J46: 0 | K46: 261.14 | L46: 1210.68 | M46: =SUMIF(TransRaw!$DD$8:$DQ$8,$C$4,TransRaw!$DD68:$DQ68) -> 100 | N46: 100 | O46: 644.9340165 | P46: 0.877215295 | Q46: 110.33 | R46: 0 | S46: 15.13 | T46: 0 | U46: 125.46 | V46: 0
A47: 10 | B47: 2016 | C47: 250 | D47: 503.5 | E47: 49 | F47: 0 | G47: 82.65 | H47: 228 | I47: 156.79 | J47: 0 | K47: 298.74 | L47: 1568.68 | M47: =SUMIF(TransRaw!$DD$8:$DQ$8,$C$4,TransRaw!$DD69:$DQ69) -> 100 | N47: 100 | O47: 724.7131003 | P47: 1.164553117 | Q47: 124.46 | R47: 0 | S47: 25.5 | T47: 0 | U47: 149.96 | V47: 0
A48: 11 | B48: 2017 | C48: 250 | D48: 503.5 | E48: 49 | F48: 0 | G48: 168.85 | H48: 229.09 | I48: 156.79 | J48: 0 | K48: 313.31 | L48: 1670.54 | M48: =SUMIF(TransRaw!$DD$8:$DQ$8,$C$4,TransRaw!$DD70:$DQ70) -> 727 | N48: 727 | O48: 746.9248753 | P48: 1.236556922 | Q48: 129.36 | R48: 0 | S48: 30.73 | T48: 0 | U48: 160.09 | V48: 0
A49: 12 | B49: 2018 | C49: 250 | D49: 503.5 | E49: 49 | F49: 0 | G49: 168.85 | H49: 265.48 | I49: 156.79 | J49: 0 | K49: 328.59 | L49: 1722.21 | M49: =SUMIF(TransRaw!$DD$8:$DQ$8,$C$4,TransRaw!$DD71:$DQ71) -> 727 | N49: 727 | O49: 770.4613883 | P49: 1.235296961 | Q49: 134.29 | R49: 0 | S49: 35.96 | T49: 0 | U49: 170.25 | V49: 0
A50: 13 | B50: 2019 | C50: 250 | D50: 467.5 | E50: 49 | F50: 0 | G50: 168.85 | H50: 280 | I50: 156.79 | J50: 0 | K50: 344.89 | L50: 1717.03 | M50: =SUMIF(TransRaw!$DD$8:$DQ$8,$C$4,TransRaw!$DD72:$DQ72) -> 727 | N50: 727 | O50: 795.7534729 | P50: 1.157741133 | Q50: 134.73 | R50: 0 | S50: 41.6 | T50: 0 | U50: 176.33 | V50: 0
A51: 14 | B51: 2020 | C51: =SUMIF(OFFSET(INDIRECT("Raw"&$C$4&"!$C$1"),$F$39,1,1,50),C$1,OFFSET(INDIRECT("Raw"&$C$4&"!$C$1"),$E$39+$A51,1,1,50)) -> 250 | D51: 449.5 | E51: 49 | F51: 0 | G51: 168.85 | H51: 280 | I51: 156.79 | J51: 0 | K51: 362.86 | L51: 1717 | M51: =SUMIF(TransRaw!$DD$8:$DQ$8,$C$4,TransRaw!$DD73:$DQ73) -> 727 | N51: 727 | O51: 824.3319247 | P51: 1.082898828 | Q51: 144.88 | R51: 0 | S51: 48.08 | T51: 0 | U51: 192.96 | V51: 0
A52: 15 | B52: 2021 | C52: 250 | D52: 449.5 | E52: 49 | F52: 0 | G52: 168.85 | H52: 280 | I52: 194.48 | J52: 0 | K52: 383.62 | L52: 1775.45 | M52: =SUMIF(TransRaw!$DD$8:$DQ$8,$C$4,TransRaw!$DD74:$DQ74) -> 727 | N52: 727 | O52: 866.5774588 | P52: 1.048807042 | Q52: 102.73 | R52: 0 | S52: 54.15 | T52: 0 | U52: 156.88 | V52: 0
A53: 16 | B53: 2022 | C53: 250 | D53: 449.5 | E53: 49 | F53: 0 | G53: 168.85 | H53: 280 | I53: 242.37 | J53: 0 | K53: 403.69 | L53: 1843.41 | M53: =SUMIF(TransRaw!$DD$8:$DQ$8,$C$4,TransRaw!$DD75:$DQ75) -> 727 | N53: 727 | O53: 906.7666911 | P53: 1.032948517 | Q53: 142.72 | R53: 0 | S53: 60.21 | T53: 0 | U53: 202.93 | V53: 0
A54: 17 | B54: 2023 | C54: 250 | D54: 449.5 | E54: 49 | F54: 0 | G54: 168.85 | H54: 280 | I54: 242.37 | J54: 0 | K54: 424.87 | L54: 1864.59 | M54: =SUMIF(TransRaw!$DD$8:$DQ$8,$C$4,TransRaw!$DD76:$DQ76) -> 727 | N54: 727 | O54: 948.9205488 | P54: 0.9649590289 | Q54: 157.49 | R54: 0 | S54: 66.9 | T54: 0 | U54: 224.39 | V54: 0
A55: 18 | B55: 2024 | C55: 250 | D55: 419.5 | E55: 49 | F55: 0 | G55: 168.85 | H55: 280 | I55: 268.65 | J55: 0 | K55: 447.45 | L55: 1883.45 | M55: =SUMIF(TransRaw!$DD$8:$DQ$8,$C$4,TransRaw!$DD77:$DQ77) -> 727 | N55: 727 | O55: 993.741561 | P55: 0.8953116927 | Q55: 157.86 | R55: 0 | S55: 74.43 | T55: 0 | U55: 232.29 | V55: 0
A56: 19 | B56: 2025 | C56: 250 | D56: 419.5 | E56: 0 | F56: 0 | G56: 168.85 | H56: 280 | I56: 283.02 | J56: 0 | K56: 471.39 | L56: 1872.76 | M56: =SUMIF(TransRaw!$DD$8:$DQ$8,$C$4,TransRaw!$DD78:$DQ78) -> 727 | N56: 727 | O56: 1040.878339 | P56: 0.7992112336 | Q56: 161.15 | R56: 0 | S56: 82.37 | T56: 0 | U56: 243.52 | V56: 0
A57: 20 | B57: 2026 | C57: 250 | D57: 419.5 | E57: 0 | F57: 0 | G57: 168.85 | H57: 280 | I57: 297.7 | J57: 0 | K57: 495.84 | L57: 1911.89 | M57: =SUMIF(TransRaw!$DD$8:$DQ$8,$C$4,TransRaw!$DD79:$DQ79) -> 727 | N57: 727 | O57: 1088.604304 | P57: 0.7562763563 | Q57: 177.83 | R57: 0 | S57: 90.73 | T57: 0 | U57: 268.56 | V57: 0
A58: 21 | B58: 2027 | C58: 250 | D58: 401.5 | E58: 0 | F58: 0 | G58: 168.85 | H58: 280 | I58: 313.09 | J58: 0 | K58: 521.47 | L58: 1934.91 | M58: =SUMIF(TransRaw!$DD$8:$DQ$8,$C$4,TransRaw!$DD80:$DQ80) -> 727 | N58: 727 | O58: 1149.032918 | P58: 0.6839465342 | Q58: 175.15 | R58: 0 | S58: 99.93 | T58: 0 | U58: 275.08 | V58: 0
A59: 22 | B59: 2028 | C59: 250 | D59: 401.5 | E59: 0 | F59: 0 | G59: 168.85 | H59: 280 | I59: 329.18 | J59: 146.85 | K59: 548.27 | L59: 2124.65 | M59: =SUMIF(TransRaw!$DD$8:$DQ$8,$C$4,TransRaw!$DD81:$DQ81) -> 727 | N59: 727 | O59: 1192.630431 | P59: 0.7814822973 | Q59: 193.12 | R59: 0 | S59: 104.1 | T59: 0 | U59: 297.22 | V59: 0
A60: 23 | B60: 2029 | C60: 250 | D60: 401.5 | E60: 0 | F60: 0 | G60: 168.85 | H60: 280 | I60: 346.8 | J60: 364.13 | K60: 577.62 | L60: 2388.9 | M60: =SUMIF(TransRaw!$DD$8:$DQ$8,$C$4,TransRaw!$DD82:$DQ82) -> 727 | N60: 727 | O60: 1257.079009 | P60: 0.9003578796 | Q60: 196.45 | R60: 0 | S60: 104.1 | T60: 0 | U60: 300.55 | V60: 0
A61: 24 | B61: 2030 | C61: 250 | D61: 401.5 | E61: 0 | F61: 0 | G61: 171.43 | H61: 280 | I61: 362.81 | J61: 522.3 | K61: 604.27 | L61: 2592.31 | M61: =SUMIF(TransRaw!$DD$8:$DQ$8,$C$4,TransRaw!$DD83:$DQ83) -> 727 | N61: 727 | O61: 1306.306125 | P61: 0.9844582752 | Q61: 210.44 | R61: 0 | S61: 104.1 | T61: 0 | U61: 314.54 | V61: 0
A62: 25 | B62: 2031 | C62: 250 | D62: 328.06 | E62: 0 | F62: 0 | G62: 297.65 | H62: 280 | I62: 225.56 | J62: 576.86 | K62: 607.66 | L62: =SUM(C62:K62) -> 2565.79 | M62: =SUMIF(TransRaw!$DD$8:$DQ$8,$C$4,TransRaw!$DD84:$DQ84) -> 727 | N62: 727 | O62: 1378.281695 | P62: =L62/O62-1 -> 0.8615860674 | Q62: 207.74 | R62: 0 | S62: 104.1 | T62: 0 | U62: =SUM(Q62:T62) -> 311.84 | V62: 0
A63: 26 | B63: 2040 | C63: 250 | D63: 21 | E63: 0 | F63: 0 | G63: 297.65 | H63: 262 | I63: 593.31 | J63: 1677.38 | K63: 988.18 | L63: 4089.52 | M63: =SUMIF(TransRaw!$DD$8:$DQ$8,$C$4,TransRaw!$DD85:$DQ85) -> 872.75 | N63: 872.75 | O63: 2185.678441 | P63: 0.8710529066 | Q63: 12.91 | R63: 0 | S63: 97.62 | T63: 68.77 | U63: 179.3 | V63: 0
A64: 27 | B64: 2050 | C64: 25 | D64: 0 | E64: 817.89 | F64: 0 | G64: 297.65 | H64: 250 | I64: 746.12 | J64: 1788.33 | K64: 1242.71 | L64: 5167.7 | M64: =SUMIF(TransRaw!$DD$8:$DQ$8,$C$4,TransRaw!$DD86:$DQ86) -> 1056 | N64: 1056 | O64: 3055.214081 | P64: 0.6914363 | Q64: 0 | R64: 0 | S64: 104.1 | T64: 2923.66 | U64: 3027.76 | V64: 0
C66: New Capacity
C67: Cent. | D67: =$C$4&"SecNewCap" -> SEwSecNewCap | E67: =SUMIF(INDIRECT("Raw"&$C$4&"!$A$12:$A$540"),D67,INDIRECT("Raw"&$C$4&"!$B$12:$B$540")) -> 412 | F67: 1 | Q67: Decent. | R67: =$C$4&"TerNewCap" -> SEwTerNewCap | S67: =SUMIF(INDIRECT("Raw"&$C$4&"!$A$12:$A$550"),R67,INDIRECT("Raw"&$C$4&"!$B$12:$B$550")) -> 445 | T67: 2
C68: =OFFSET(C$37,lang,0) -> Coal | D68: Oil | E68: Gas | F68: Nuclear | G68: Hydro | H68: Biomass | I68: Solar PV | J68: Solar Thermal | K68: Wind | L68: Total Cent. Cap | M68: Imports Cap | N68: multiplier | Q68: =OFFSET(Q$37,lang,0) -> Oil | R68: Biomass | S68: Mini Hydro | T68: Dist.Solar PV | U68: Total Decent | V68: Backstop
A69: 4 | B69: =OFFSET(INDIRECT("Raw"&$C$4&"!$C$1"),$E$39+A69,0) -> 2010 | C69: =SUMIF(OFFSET(INDIRECT("Raw"&$C$4&"!$C$1"),$F$67,1,1,50),C$1,OFFSET(INDIRECT("Raw"&$C$4&"!$C$1"),$E$67+$A69,1,1,50))*$N69 -> 0 | D69: =SUMIF(OFFSET(INDIRECT("Raw"&$C$4&"!$C$1"),$F$67,1,1,50),D$1,OFFSET(INDIRECT("Raw"&$C$4&"!$C$1"),$E$67+$A69,1,1,50))*$N69 -> 0 | E69: =SUMIF(OFFSET(INDIRECT("Raw"&$C$4&"!$C$1"),$F$67,1,1,50),E$1,OFFSET(INDIRECT("Raw"&$C$4&"!$C$1"),$E$67+$A69,1,1,50))*$N69 -> 0 | F69: 0 | G69: 0 | H69: 0 | I69: 0 | J69: 0 | K69: 0 | L69: =SUM(C69:K69) -> 0 | M69: =SUMIF(OFFSET(INDIRECT("Raw"&$C$4&"!$C$1"),$F$67,1,1,50),#REF!,OFFSET(INDIRECT("Raw"&$C$4&"!$C$1"),$E$67+$A69,1,1,50)) -> 0 | N69: 1 | P69: =OFFSET(INDIRECT("Raw"&$C$4&"!$C$1"),$E$39+A69,0) -> 2010 | Q69: =SUMIF(OFFSET(INDIRECT("Raw"&$C$4&"!$C$1"),$T$67,1,1,50),Q$1,OFFSET(INDIRECT("Raw"&$C$4&"!$C$1"),$S$67+$A69,1,1,50))*$N69 -> 4.63 | R69: =SUMIF(OFFSET(INDIRECT("Raw"&$C$4&"!$C$1"),$T$67,1,1,50),R$1,OFFSET(INDIRECT("Raw"&$C$4&"!$C$1"),$S$67+$A69,1,1,50))*$N69 -> 0 | S69: 0 | T69: 0 | U69: =SUM(Q69:T69) -> 4.63 | V69: =SUMIF(OFFSET(INDIRECT("Raw"&$C$4&"!$C$1"),$T$67,1,1,50),V$1,OFFSET(INDIRECT("Raw"&$C$4&"!$C$1"),$S$67+$A69,1,1,50)) -> 0
A70: =A69+1 -> 5 | B70: 2011 | C70: =SUMIF(OFFSET(INDIRECT("Raw"&$C$4&"!$C$1"),$F$67,1,1,50),C$1,OFFSET(INDIRECT("Raw"&$C$4&"!$C$1"),$E$67+$A70,1,1,50))*$N70 -> 0 | D70: 150 | E70: 0 | F70: 0 | G70: 0 | H70: 0 | I70: 0 | J70: 0 | K70: 0 | L70: =SUM(C70:K70) -> 150 | M70: =SUMIF(OFFSET(INDIRECT("Raw"&$C$4&"!$C$1"),$F$67,1,1,50),#REF!,OFFSET(INDIRECT("Raw"&$C$4&"!$C$1"),$E$67+$A70,1,1,50)) -> 0 | N70: =B70-B69 -> 1 | P70: 2011 | Q70: =SUMIF(OFFSET(INDIRECT("Raw"&$C$4&"!$C$1"),$T$67,1,1,50),Q$1,OFFSET(INDIRECT("Raw"&$C$4&"!$C$1"),$S$67+$A70,1,1,50))*$N70 -> 0 | R70: 0 | S70: 0 | T70: 0 | U70: =SUM(Q70:T70) -> 0 | V70: 0
A71: =A70+1 -> 6 | B71: 2012 | C71: 0 | D71: 30 | E71: 0 | F71: 0 | G71: 0 | H71: 0 | I71: 0 | J71: 0 | K71: 0 | L71: 30 | M71: =SUMIF(OFFSET(INDIRECT("Raw"&$C$4&"!$C$1"),$F$67,1,1,50),#REF!,OFFSET(INDIRECT("Raw"&$C$4&"!$C$1"),$E$67+$A71,1,1,50)) -> 0 | N71: =B71-B70 -> 1 | P71: 2012 | Q71: 49.16 | R71: 0 | S71: 0 | T71: 0 | U71: 49.16 | V71: 0
A72: 7 | B72: 2013 | C72: 0 | D72: 0 | E72: 0 | F72: 0 | G72: 15 | H72: 0 | I72: 0 | J72: 0 | K72: 0 | L72: 15 | M72: =SUMIF(OFFSET(INDIRECT("Raw"&$C$4&"!$C$1"),$F$67,1,1,50),#REF!,OFFSET(INDIRECT("Raw"&$C$4&"!$C$1"),$E$67+$A72,1,1,50)) -> 0 | N72: 1 | P72: 2013 | Q72: 15.68 | R72: 0 | S72: 0 | T72: 0 | U72: 15.68 | V72: 0
A73: 8 | B73: 2014 | C73: 0 | D73: 0 | E73: 0 | F73: 0 | G73: 0 | H73: 91.6 | I73: 0 | J73: 0 | K73: 231.98 | L73: 323.58 | M73: =SUMIF(OFFSET(INDIRECT("Raw"&$C$4&"!$C$1"),$F$67,1,1,50),#REF!,OFFSET(INDIRECT("Raw"&$C$4&"!$C$1"),$E$67+$A73,1,1,50)) -> 0 | N73: 1 | P73: 2014 | Q73: 7.72 | R73: 0 | S73: 11.47 | T73: 0 | U73: 19.19 | V73: 0
A74: 9 | B74: 2015 | C74: 0 | D74: 0 | E74: 0 | F74: 0 | G74: 0 | H74: 66 | I74: 156.79 | J74: 0 | K74: 29.16 | L74: 251.95 | M74: =SUMIF(OFFSET(INDIRECT("Raw"&$C$4&"!$C$1"),$F$67,1,1,50),#REF!,OFFSET(INDIRECT("Raw"&$C$4&"!$C$1"),$E$67+$A74,1,1,50)) -> 0 | N74: 1 | P74: 2015 | Q74: 14.57 | R74: 0 | S74: 3.66 | T74: 0 | U74: 18.23 | V74: 0
A75: 10 | B75: 2016 | C75: 250 | D75: 0 | E75: 0 | F75: 0 | G75: 0 | H75: 70.4 | I75: 0 | J75: 0 | K75: 37.6 | L75: 358 | M75: =SUMIF(OFFSET(INDIRECT("Raw"&$C$4&"!$C$1"),$F$67,1,1,50),#REF!,OFFSET(INDIRECT("Raw"&$C$4&"!$C$1"),$E$67+$A75,1,1,50)) -> 0 | N75: 1 | P75: 2016 | Q75: 18.76 | R75: 0 | S75: 10.37 | T75: 0 | U75: 29.13 | V75: 0
A76: 11 | B76: 2017 | C76: 0 | D76: 0 | E76: 0 | F76: 0 | G76: 86.2 | H76: 1.09 | I76: 0 | J76: 0 | K76: 14.57 | L76: 101.86 | M76: =SUMIF(OFFSET(INDIRECT("Raw"&$C$4&"!$C$1"),$F$67,1,1,50),#REF!,OFFSET(INDIRECT("Raw"&$C$4&"!$C$1"),$E$67+$A76,1,1,50)) -> 0 | N76: 1 | P76: 2017 | Q76: 9.54 | R76: 0 | S76: 5.23 | T76: 0 | U76: 14.77 | V76: 0
A77: 12 | B77: 2018 | C77: 0 | D77: 0 | E77: 0 | F77: 0 | G77: 0 | H77: 36.38 | I77: 0 | J77: 0 | K77: 15.28 | L77: 51.66 | M77: =SUMIF(OFFSET(INDIRECT("Raw"&$C$4&"!$C$1"),$F$67,1,1,50),#REF!,OFFSET(INDIRECT("Raw"&$C$4&"!$C$1"),$E$67+$A77,1,1,50)) -> 0 | N77: 1 | P77: 2018 | Q77: 9.57 | R77: 0 | S77: 5.23 | T77: 0 | U77: 14.8 | V77: 0
A78: 13 | B78: 2019 | C78: 0 | D78: 0 | E78: 0 | F78: 0 | G78: 0 | H78: 14.52 | I78: 0 | J78: 0 | K78: 16.3 | L78: 30.82 | M78: =SUMIF(OFFSET(INDIRECT("Raw"&$C$4&"!$C$1"),$F$67,1,1,50),#REF!,OFFSET(INDIRECT("Raw"&$C$4&"!$C$1"),$E$67+$A78,1,1,50)) -> 0 | N78: 1 | P78: 2019 | Q78: 9.72 | R78: 0 | S78: 5.64 | T78: 0 | U78: 15.36 | V78: 0
A79: 14 | B79: 2020 | C79: 0 | D79: 0 | E79: 0 | F79: 0 | G79: 0 | H79: 0 | I79: 0 | J79: 0 | K79: 17.97 | L79: 17.97 | M79: =SUMIF(OFFSET(INDIRECT("Raw"&$C$4&"!$C$1"),$F$67,1,1,50),#REF!,OFFSET(INDIRECT("Raw"&$C$4&"!$C$1"),$E$67+$A79,1,1,50)) -> 0 | N79: 1 | P79: 2020 | Q79: 10.16 | R79: 0 | S79: 6.48 | T79: 0 | U79: 16.64 | V79: 0
A80: 15 | B80: 2021 | C80: 0 | D80: 0 | E80: 0 | F80: 0 | G80: 0 | H80: 0 | I80: 37.69 | J80: 0 | K80: 20.76 | L80: 58.45 | M80: =SUMIF(OFFSET(INDIRECT("Raw"&$C$4&"!$C$1"),$F$67,1,1,50),#REF!,OFFSET(INDIRECT("Raw"&$C$4&"!$C$1"),$E$67+$A80,1,1,50)) -> 0 | N80: 1 | P80: 2021 | Q80: 6.99 | R80: 0 | S80: 6.06 | T80: 0 | U80: 13.05 | V80: 0
A81: 16 | B81: 2022 | C81: 0 | D81: 0 | E81: 0 | F81: 0 | G81: 0 | H81: 0 | I81: 47.9 | J81: 0 | K81: 20.07 | L81: 67.97 | M81: =SUMIF(OFFSET(INDIRECT("Raw"&$C$4&"!$C$1"),$F$67,1,1,50),#REF!,OFFSET(INDIRECT("Raw"&$C$4&"!$C$1"),$E$67+$A81,1,1,50)) -> 0 | N81: 1 | P81: 2022 | Q81: 55.68 | R81: 0 | S81: 6.06 | T81: 0 | U81: 61.74 | V81: 0
A82: 17 | B82: 2023 | C82: 0 | D82: 0 | E82: 0 | F82: 0 | G82: 0 | H82: 0 | I82: 0 | J82: 0 | K82: 21.18 | L82: 21.18 | M82: =SUMIF(OFFSET(INDIRECT("Raw"&$C$4&"!$C$1"),$F$67,1,1,50),#REF!,OFFSET(INDIRECT("Raw"&$C$4&"!$C$1"),$E$67+$A82,1,1,50)) -> 0 | N82: 1 | P82: 2023 | Q82: 22.49 | R82: 0 | S82: 6.69 | T82: 0 | U82: 29.18 | V82: 0
A83: 18 | B83: 2024 | C83: 0 | D83: 0 | E83: 0 | F83: 0 | G83: 0 | H83: 0 | I83: 26.27 | J83: 0 | K83: 22.58 | L83: 48.85 | M83: =SUMIF(OFFSET(INDIRECT("Raw"&$C$4&"!$C$1"),$F$67,1,1,50),#REF!,OFFSET(INDIRECT("Raw"&$C$4&"!$C$1"),$E$67+$A83,1,1,50)) -> 0 | N83: 1 | P83: 2024 | Q83: 14.94 | R83: 0 | S83: 7.53 | T83: 0 | U83: 22.47 | V83: 0
A84: 19 | B84: 2025 | C84: 0 | D84: 0 | E84: 0 | F84: 0 | G84: 0 | H84: 0 | I84: 14.37 | J84: 0 | K84: 23.94 | L84: 38.31 | M84: =SUMIF(OFFSET(INDIRECT("Raw"&$C$4&"!$C$1"),$F$67,1,1,50),#REF!,OFFSET(INDIRECT("Raw"&$C$4&"!$C$1"),$E$67+$A84,1,1,50)) -> 0 | N84: 1 | P84: 2025 | Q84: 22.05 | R84: 0 | S84: 7.94 | T84: 0 | U84: 29.99 | V84: 0
A85: 20 | B85: 2026 | C85: 0 | D85: 0 | E85: 0 | F85: 0 | G85: 0 | H85: 0 | I85: 14.68 | J85: 0 | K85: 24.45 | L85: 39.13 | M85: =SUMIF(OFFSET(INDIRECT("Raw"&$C$4&"!$C$1"),$F$67,1,1,50),#REF!,OFFSET(INDIRECT("Raw"&$C$4&"!$C$1"),$E$67+$A85,1,1,50)) -> 0 | N85: 1 | P85: 2026 | Q85: 26.24 | R85: 0 | S85: 8.36 | T85: 0 | U85: 34.6 | V85: 0
A86: 21 | B86: 2027 | C86: 0 | D86: 0 | E86: 0 | F86: 0 | G86: 0 | H86: 0 | I86: 15.39 | J86: 0 | K86: 25.63 | L86: 41.02 | M86: =SUMIF(OFFSET(INDIRECT("Raw"&$C$4&"!$C$1"),$F$67,1,1,50),#REF!,OFFSET(INDIRECT("Raw"&$C$4&"!$C$1"),$E$67+$A86,1,1,50)) -> 0 | N86: 1 | P86: 2027 | Q86: 6.88 | R86: 0 | S86: 9.2 | T86: 0 | U86: 16.08 | V86: 0
A87: 22 | B87: 2028 | C87: 0 | D87: 0 | E87: 0 | F87: 0 | G87: 0 | H87: 0 | I87: 16.09 | J87: 146.85 | K87: 26.8 | L87: 189.74 | M87: =SUMIF(OFFSET(INDIRECT("Raw"&$C$4&"!$C$1"),$F$67,1,1,50),#REF!,OFFSET(INDIRECT("Raw"&$C$4&"!$C$1"),$E$67+$A87,1,1,50)) -> 0 | N87: 1 | P87: 2028 | Q87: 27.68 | R87: 0 | S87: 4.17 | T87: 0 | U87: 31.85 | V87: 0
A88: 23 | B88: 2029 | C88: 0 | D88: 0 | E88: 0 | F88: 0 | G88: 0 | H88: 0 | I88: 17.62 | J88: 217.28 | K88: 29.35 | L88: 264.25 | M88: =SUMIF(OFFSET(INDIRECT("Raw"&$C$4&"!$C$1"),$F$67,1,1,50),#REF!,OFFSET(INDIRECT("Raw"&$C$4&"!$C$1"),$E$67+$A88,1,1,50)) -> 0 | N88: 1 | P88: 2029 | Q88: 13.49 | R88: 0 | S88: 0 | T88: 0 | U88: 13.49 | V88: 0
A89: 24 | B89: 2030 | C89: 0 | D89: 0 | E89: 0 | F89: 0 | G89: 2.58 | H89: 0 | I89: 16 | J89: 158.17 | K89: 26.65 | L89: 203.4 | M89: =SUMIF(OFFSET(INDIRECT("Raw"&$C$4&"!$C$1"),$F$67,1,1,50),#REF!,OFFSET(INDIRECT("Raw"&$C$4&"!$C$1"),$E$67+$A89,1,1,50)) -> 0 | N89: 1 | P89: 2030 | Q89: 20.99 | R89: 0 | S89: 0 | T89: 0 | U89: 20.99 | V89: 0
A90: 25 | B90: 2031 | C90: 0 | D90: 0 | E90: 0 | F90: 0 | G90: 25.24 | H90: 0 | I90: 3.91 | J90: 10.91 | K90: 11.66 | L90: =SUM(C90:K90) -> 51.72 | M90: =SUMIF(OFFSET(INDIRECT("Raw"&$C$4&"!$C$1"),$F$67,1,1,50),#REF!,OFFSET(INDIRECT("Raw"&$C$4&"!$C$1"),$E$67+$A90,1,1,50)) -> 0 | N90: 1 | P90: 2031 | Q90: 25.82 | R90: 0 | S90: 0 | T90: 0 | U90: =SUM(Q90:T90) -> 25.82 | V90: 0
A91: 26 | B91: 2040 | C91: 0 | D91: 0 | E91: 0 | F91: 0 | G91: 0 | H91: 107.16 | I91: 414.2 | J91: 1100.48 | K91: 706.42 | L91: 2328.26 | M91: =SUMIF(OFFSET(INDIRECT("Raw"&$C$4&"!$C$1"),$F$67,1,1,50),#REF!,OFFSET(INDIRECT("Raw"&$C$4&"!$C$1"),$E$67+$A91,1,1,50)) -> 0 | N91: 9.5 | P91: 2040 | Q91: 345.705 | R91: 0 | S91: 16.055 | T91: 68.78 | U91: 430.54 | V91: 0
A92: 27 | B92: 2050 | C92: 0 | D92: 0 | E92: 817.9 | F92: 0 | G92: 0 | H92: 142.8 | I92: 295.8 | J92: 445 | K92: 460.6 | L92: 2162.1 | M92: =SUMIF(OFFSET(INDIRECT("Raw"&$C$4&"!$C$1"),$F$67,1,1,50),#REF!,OFFSET(INDIRECT("Raw"&$C$4&"!$C$1"),$E$67+$A92,1,1,50)) -> 0 | N92: 10 | P92: 2050 | Q92: 239.2 | R92: 0 | S92: 62.5 | T92: 2923.7 | U92: 3225.4 | V92: 0
C94: Primary Energy | L94: CO2 Emissions | O94: Demand
A95: English | C95: Biomass | D95: Coal | E95: Gas | F95: Nuclear | G95: Crude | H95: Diesel | I95: HFO
A96: French | C96: Biomass | D96: Charbon | E96: Gaz | F96: Nucleaire | G96: Petrol | H96: Diesel | I96: HFO
C97: =$C$4&"Primaire" -> SEwPrimaire | D97: =SUMIF(INDIRECT("Raw"&$C$4&"!$A$12:$A$540"),C97,INDIRECT("Raw"&$C$4&"!$B$12:$B$540")) -> 247 | E97: 4 | O97: =$C$4&"FinaleElc" -> SEwFinaleElc | P97: =SUMIF(INDIRECT("Raw"&$C$4&"!$A$12:$A$540"),O97,INDIRECT("Raw"&$C$4&"!$B$12:$B$540")) -> 478 | Q97: 3 | R97: =$C$4&"FinaleShp" -> SEwFinaleShp | S97: =SUMIF(INDIRECT("Raw"&$C$4&"!$A$12:$A$540"),R97,INDIRECT("Raw"&$C$4&"!$B$12:$B$540")) -> 511 | T97: 3
B98: emiss fact kt/PJ | C98: 0 | D98: 96.25 | E98: 56.12633181 | F98: 0 | G98: 73.33 | H98: 74.07 | I98: 80.67 | M98: =E98/8.76/3.6-RawCIw!F42 -> 0.009754306547
C99: =RawSEw!D5 -> Bio | D99: =RawSEw!E5 -> Coa | E99: =RawSEw!F5 -> Gas | F99: =RawSEw!G5 -> Nuc | G99: =RawSEw!H5 -> Cru | H99: =RawSEw!I5 -> Die | I99: =RawSEw!J5 -> HFO | L99: CO2 | O99: Ele | P99: Urb | Q99: Rur | R99: Ele | S99: Urb | T99: Rur
B100: PJ | C100: =OFFSET(C$95,lang,0) -> Biomass | D100: Coal | E100: Gas | F100: Nuclear | G100: Crude | H100: Diesel | I100: HFO | L100: kT | O100: Industry | P100: Urban | Q100: Rural | R100: Industry | S100: Urban | T100: Rural
A101: 4 | B101: =OFFSET(INDIRECT("Raw"&$C$4&"!$C$1"),$E$39+A101,0) -> 2010 | C101: =SUMIF(OFFSET(INDIRECT("Raw"&$C$4&"!$C$1"),$E$97,1,1,50),C$99,OFFSET(INDIRECT("Raw"&$C$4&"!$C$1"),$D$97+$A101,1,1,50))*8.76*3.6/1000 -> 0 | D101: 0 | E101: 3.38128992 | F101: 0 | G101: 0 | H101: 0.3768552 | I101: 19.93989744 | L101: =SUMPRODUCT($C$98:$I$98,C101:I101) -> 1826.244591 | O101: =SUMIF(OFFSET(INDIRECT("Raw"&$C$4&"!$C$1"),$Q$97,1,1,50),O$99,OFFSET(INDIRECT("Raw"&$C$4&"!$C$1"),$P$97+$A101,1,1,50))*8.76 -> 232.14 | P101: =SUMIF(OFFSET(INDIRECT("Raw"&$C$4&"!$C$1"),$Q$97,1,1,50),P$99,OFFSET(INDIRECT("Raw"&$C$4&"!$C$1"),$P$97+$A101,1,1,50))*8.76 -> 1657.392 | Q101: 35.916 | R101: =SUMIF(OFFSET(INDIRECT("Raw"&$C$4&"!$C$1"),$T$97,1,1,50),R$99,OFFSET(INDIRECT("Raw"&$C$4&"!$C$1"),$S$97+$A101,1,1,50))/-8.76 -> 235.7408676 | S101: =SUMIF(OFFSET(INDIRECT("Raw"&$C$4&"!$C$1"),$T$97,1,1,50),S$99,OFFSET(INDIRECT("Raw"&$C$4&"!$C$1"),$S$97+$A101,1,1,50))/-8.76 -> 309.2214612 | T101: 346.7374429
A102: =A101+1 -> 5 | B102: =OFFSET(INDIRECT("Raw"&$C$4&"!$C$1"),$E$39+A102,0) -> 2011 | C102: 0 | D102: 0 | E102: 3.38128992 | F102: 0 | G102: 0 | H102: 0.386316 | I102: 19.19186352 | L102: 1766.601456 | O102: =SUMIF(OFFSET(INDIRECT("Raw"&$C$4&"!$C$1"),$Q$97,1,1,50),O$99,OFFSET(INDIRECT("Raw"&$C$4&"!$C$1"),$P$97+$A102,1,1,50))*8.76 -> 296.088 | P102: 1742.364 | Q102: 42.048 | R102: =SUMIF(OFFSET(INDIRECT("Raw"&$C$4&"!$C$1"),$T$97,1,1,50),R$99,OFFSET(INDIRECT("Raw"&$C$4&"!$C$1"),$S$97+$A102,1,1,50))/-8.76 -> 206.7043379 | S102: 240.4452055 | T102: 259.760274
A103: =A102+1 -> 6 | B103: 2012 | C103: 0 | D103: 0 | E103: 3.38128992 | F103: 0 | G103: 0 | H103: 0.72122832 | I103: 21.33189648 | L103: 1964.044871 | O103: 389.82 | P103: 1938.588 | Q103: 51.684 | R103: 213.7317352 | S103: 283.5890411 | T103: 389.31621
A104: 7 | B104: 2013 | C104: 0 | D104: 0 | E104: 3.38128992 | F104: 0 | G104: 0 | H104: 0.86850144 | I104: 19.39747824 | L104: 1818.903871 | O104: 468.66 | P104: 2011.296 | Q104: 59.568 | R104: 187.4885845 | S104: 270.2454338 | T104: 491.1609589
A105: 8 | B105: 2014 | C105: 4.71652416 | D105: 0 | E105: 3.38128992 | F105: 0 | G105: 0 | H105: 0.79060752 | I105: 5.98584816 | L105: 731.2180701 | O105: 556.26 | P105: 2090.136 | Q105: 68.328 | R105: 161.5776256 | S105: 237.5525114 | T105: 141.3721461
A106: 9 | B106: 2015 | C106: 7.45700256 | D106: 0 | E106: 3.38128992 | F106: 0 | G106: 0 | H106: 0.87102432 | I106: 2.96469936 | L106: 493.4584688 | O106: 697.296 | P106: 2321.4 | Q106: 82.344 | R106: 160.9269406 | S106: 234.8984018 | T106: 155.0034247
A107: 10 | B107: 2016 | C107: 10.3800744 | D107: 20.25683424 | E107: 0.18984672 | F107: 0 | G107: 0 | H107: 0.9823464 | I107: 0 | L107: 2033.138093 | O107: 883.008 | P107: 2620.992 | Q107: 108.624 | R107: 135.5981735 | S107: 204.7271689 | T107: 196.3184932
A108: 11 | B108: 2017 | C108: 10.42548624 | D108: 20.25683424 | E108: 0.244404 | F108: 0 | G108: 0 | H108: 1.02113568 | I108: 0 | L108: 2039.073315 | O108: 1013.532 | P108: 2702.46 | Q108: 128.772 | R108: 135.4760274 | S108: 203.3892694 | T108: 199.8116438
A109: 12 | B109: 2018 | C109: 11.936376 | D109: 20.25683424 | E109: 0 | F109: 0 | G109: 0 | H109: 1.05992496 | I109: 0 | L109: 2028.228937 | O109: 1155.444 | P109: 2782.176 | Q109: 150.672 | R109: 136.2180365 | S109: 202.5913242 | T109: 200.7465753
A110: 13 | B110: 2019 | C110: 12.53934432 | D110: 20.25683424 | E110: 0 | F110: 0 | G110: 0 | H110: 1.09997568 | I110: 0 | L110: 2031.195494 | O110: 1310.496 | P110: 2862.768 | Q110: 174.324 | R110: 142.3150685 | S110: 207.8915525 | T110: 202.8721461
A111: 14 | B111: 2020 | C111: =SUMIF(OFFSET(INDIRECT("Raw"&$C$4&"!$C$1"),$E$97,1,1,50),C$99,OFFSET(INDIRECT("Raw"&$C$4&"!$C$1"),$D$97+$A111,1,1,50))*8.76*3.6/1000 -> 12.53934432 | D111: 20.25683424 | E111: 0 | F111: 0 | G111: 0 | H111: 1.14381072 | I111: 0 | L111: 2034.442356 | O111: 1482.192 | P111: 2948.616 | Q111: 201.48 | R111: 126.2420091 | S111: 188.5216895 | T111: 193.7751142
A112: 15 | B112: 2021 | C112: 12.53934432 | D112: 20.25683424 | E112: 0 | F112: 0 | G112: 0 | H112: 1.19899872 | I112: 0 | L112: 2038.530131 | O112: 1626.732 | P112: 3069.504 | Q112: 226.884 | R112: 132.2009132 | S112: 194.7659817 | T112: 194.9760274
A113: 16 | B113: 2022 | C113: 12.53934432 | D113: 20.25683424 | E113: 0 | F113: 0 | G113: 0 | H113: 1.2504024 | I113: 0 | L113: 2042.337601 | O113: 1774.776 | P113: 3179.88 | Q113: 252.288 | R113: 135.0376712 | S113: 198.0684932 | T113: 196.3059361
A114: 17 | B114: 2023 | C114: 12.53934432 | D114: 20.25683424 | E114: 0 | F114: 0 | G114: 0 | H114: 1.30432896 | I114: 0 | L114: 2046.331942 | O114: 1935.084 | P114: 3292.884 | Q114: 280.32 | R114: 130.880137 | S114: 193.8652968 | T114: 196.6381279
A115: 18 | B115: 2024 | C115: 12.53934432 | D115: 20.25683424 | E115: 0 | F115: 0 | G115: 0 | H115: 1.36109376 | I115: 0 | L115: 2050.53651 | O115: 2109.408 | P115: 3410.268 | Q115: 311.856 | R115: 135.5707763 | S115: 199.1952055 | T115: 198.4178082
A116: 19 | B116: 2025 | C116: 12.53934432 | D116: 20.25683424 | E116: 0 | F116: 0 | G116: 0 | H116: 1.42006608 | I116: 0 | L116: 2054.90459 | O116: 2298.624 | P116: 3531.156 | Q116: 345.144 | R116: 131.1152968 | S116: 194.7477169 | T116: 198.8892694
A117: 20 | B117: 2026 | C117: 12.53934432 | D117: 20.25683424 | E117: 0 | F117: 0 | G117: 0 | H117: 1.47935376 | I117: 0 | L117: 2059.296029 | O117: 2498.352 | P117: 3649.416 | Q117: 380.184 | R117: 131.8892694 | S117: 195.9212329 | T117: 200.2557078
A118: 21 | B118: 2027 | C118: 12.53934432 | D118: 20.25683424 | E118: 0 | F118: 0 | G118: 0 | H118: 1.45822464 | I118: 0 | L118: 2057.730995 | O118: 2711.22 | P118: 3766.8 | Q118: 418.728 | R118: 137.5776256 | S118: 202.7511416 | T118: 202.9646119
A119: 22 | B119: 2028 | C119: 12.53934432 | D119: 20.25683424 | E119: 0 | F119: 0 | G119: 0 | H119: 1.60108272 | I119: 0 | L119: 2068.312493 | O119: 2938.98 | P119: 3884.184 | Q119: 459.9 | R119: 140.6061644 | S119: 208.2260274 | T119: 215.1757991
A120: 23 | B120: 2029 | C120: 12.53934432 | D120: 20.25683424 | E120: 0 | F120: 0 | G120: 0 | H120: 1.63104192 | I120: 0 | L120: 2070.531571 | O120: 3181.632 | P120: 3999.816 | Q120: 503.7 | R120: 139.1221461 | S120: 206.4406393 | T120: 239.7305936
A121: 24 | B121: 2030 | C121: 12.53934432 | D121: 20.25683424 | E121: 0 | F121: 0 | G121: 0 | H121: 1.71650448 | I121: 0 | L121: 2076.861782 | O121: 3419.028 | P121: 4089.168 | Q121: 547.5 | R121: 133.6027397 | S121: 200.6244292 | T121: 240.4691781
A122: 25 | B122: 2031 | C122: 12.53934432 | D122: 20.25683424 | E122: 0 | F122: 0 | G122: 0 | H122: 1.80575136 | I122: 0 | L122: =SUMPRODUCT($C$98:$I$98,C122:I122) -> 2083.472299 | O122: 3596.856 | P122: 4302.036 | Q122: 575.532 | R122: 141.0673516 | S122: 213.4349315 | T122: 259.3333333
A123: 26 | B123: 2040 | C123: 11.2441608 | D123: 20.25683424 | E123: 0 | F123: 0 | G123: 0 | H123: 2.83098672 | I123: 0 | L123: 2159.411482 | O123: 5677.356 | P123: 6789.876 | Q123: 908.412 | R123: 133.4703196 | S123: 204.216895 | T123: 271.9417808
A124: 27 | B124: 2050 | C124: 10.38070512 | D124: 1.08893808 | E124: 26.63309808 | F124: 0 | G124: 0 | H124: 1.88837568 | I124: 0 | L124: 1739.500377 | O124: 9425.76 | P124: 11273.244 | Q124: 1508.472 | R124: 140.0924658 | S124: 204.9794521 | T124: 265.6438356
A127: Million $ | C127: Primary Energy Costs | L127: CO2 Costs
A128: English | C128: Biomass | D128: Coal | E128: Gas | F128: Nuclear | G128: Crude | H128: Diesel | I128: HFO
A129: French | C129: Biomass | D129: Charbon | E129: Gaz | F129: Nucleaire | G129: Petrol | H129: Diesel | I129: HFO
C130: =$C$4&"Fuel Costs" -> SEwFuel Costs | D130: =SUMIF(INDIRECT("Raw"&$C$4&"!$A$12:$A$550"),C130,INDIRECT("Raw"&$C$4&"!$B$12:$B$550")) -> 43 | E130: 4
C131: =OFFSET(C$95,lang,0) -> Biomass | D131: Coal | E131: Gas | F131: Nuclear | G131: Crude | H131: Diesel | I131: HFO | J131: Total
A132: 0 | B132: =OFFSET(INDIRECT("Raw"&$C$4&"!$C$1"),$D$130+A132,0) -> 2010 | C132: =SUMIF(OFFSET(INDIRECT("Raw"&$C$4&"!$C$1"),$E$130,1,1,50),C$99,OFFSET(INDIRECT("Raw"&$C$4&"!$C$1"),$D$130+$A132,1,1,50)) -> 0 | D132: =SUMIF(OFFSET(INDIRECT("Raw"&$C$4&"!$C$1"),$E$130,1,1,50),D$99,OFFSET(INDIRECT("Raw"&$C$4&"!$C$1"),$D$130+$A132,1,1,50)) -> 0 | E132: 37.20534 | F132: 0 | G132: 0 | H132: 8.25745 | I132: 257.34203 | J132: =SUM(C132:I132) -> 302.80482 | L132: =L101*OtherParams!C4 -> 0
A133: =A132+1 -> 1 | B133: =OFFSET(INDIRECT("Raw"&$C$4&"!$C$1"),$E$39+A133,0) -> 0 | C133: =SUMIF(OFFSET(INDIRECT("Raw"&$C$4&"!$C$1"),$E$130,1,1,50),C$99,OFFSET(INDIRECT("Raw"&$C$4&"!$C$1"),$D$130+$A133,1,1,50)) -> 0 | D133: 0 | E133: 37.20534 | F133: 0 | G133: 0 | H133: 8.46475 | I133: 247.68799 | J133: =SUM(C133:I133) -> 293.35808 | L133: =L102*OtherParams!C5 -> 0
A134: =A133+1 -> 2 | B134: 0 | C134: 0 | D134: 0 | E134: 38.0631 | F134: 0 | G134: 0 | H134: 16.44353 | I134: 286.400462 | J134: 340.907092 | L134: =L103*OtherParams!C6 -> 0
A135: 3 | B135: 0 | C135: 0 | D135: 0 | E135: 38.49198 | F135: 0 | G135: 0 | H135: 20.18682 | I135: 265.472844 | J135: 324.151644 | L135: =L104*OtherParams!C7 -> 0
A136: 4 | B136: 2010 | C136: 7.02932 | D136: 0 | E136: 38.92086 | F136: 0 | G136: 0 | H136: 18.72729 | I136: 83.478438 | J136: 148.155908 | L136: =L105*OtherParams!C8 -> 0
A137: 5 | B137: 2011 | C137: 11.11362 | D137: 0 | E137: 39.34974 | F137: 0 | G137: 0 | H137: 21.01882 | I137: 42.11648 | J137: 113.59866 | L137: =L106*OtherParams!C9 -> 0
A138: 6 | B138: 2012 | C138: 15.47005 | D138: 96.99334 | E138: 2.23342 | F138: 0 | G138: 0 | H138: 24.14125 | I138: 0 | J138: 138.83806 | L138: =L107*OtherParams!C10 -> 0
A139: 7 | B139: 2013 | C139: 15.53773 | D139: 97.63568 | E139: 2.90625 | F139: 0 | G139: 0 | H139: 25.54782 | I139: 0 | J139: 141.62748 | L139: =L108*OtherParams!C11 -> 0
A140: 8 | B140: 2014 | C140: 17.7895 | D140: 98.27802 | E140: 0 | F140: 0 | G140: 0 | H140: 26.98883 | I140: 0 | J140: 143.05635 | L140: =L109*OtherParams!C12 -> 0
A141: 9 | B141: 2015 | C141: 18.68814 | D141: 98.92036 | E141: 0 | F141: 0 | G141: 0 | H141: 28.49696 | I141: 0 | J141: 146.10546 | L141: =L110*OtherParams!C13 -> 0
A142: 10 | B142: 2016 | C142: 18.68814 | D142: 99.5627 | E142: 0 | F142: 0 | G142: 0 | H142: 30.1041 | I142: 0 | J142: 148.35494 | L142: =L111*OtherParams!C14 -> 0
A143: 11 | B143: 2017 | C143: 18.68814 | D143: 100.20504 | E143: 0 | F143: 0 | G143: 0 | H143: 31.9368 | I143: 0 | J143: 150.82998 | L143: =L112*OtherParams!C15 -> 0
A144: 12 | B144: 2018 | C144: 18.68814 | D144: 100.84738 | E144: 0 | F144: 0 | G144: 0 | H144: 33.7025 | I144: 0 | J144: 153.23802 | L144: =L113*OtherParams!C16 -> 0
A145: 13 | B145: 2019 | C145: 18.68814 | D145: 101.48972 | E145: 0 | F145: 0 | G145: 0 | H145: 35.5696 | I145: 0 | J145: 155.74746 | L145: =L114*OtherParams!C17 -> 0
A146: 14 | B146: 2020 | C146: 18.68814 | D146: 102.13206 | E146: 0 | F146: 0 | G146: 0 | H146: 37.5492 | I146: 0 | J146: 158.3694 | L146: =L115*OtherParams!C18 -> 0
A147: 15 | B147: 2021 | C147: 18.68814 | D147: 102.7744 | E147: 0 | F147: 0 | G147: 0 | H147: 39.6264 | I147: 0 | J147: 161.08894 | L147: =L116*OtherParams!C19 -> 0
A148: 16 | B148: 2022 | C148: 18.68814 | D148: 103.41674 | E148: 0 | F148: 0 | G148: 0 | H148: 41.7499 | I148: 0 | J148: 163.85478 | L148: =L117*OtherParams!C20 -> 0
A149: 17 | B149: 2023 | C149: 18.68814 | D149: 104.05908 | E149: 0 | F149: 0 | G149: 0 | H149: 41.616 | I149: 0 | J149: 164.36322 | L149: =L118*OtherParams!C21 -> 0
A150: 18 | B150: 2024 | C150: 18.68814 | D150: 104.70142 | E150: 0 | F150: 0 | G150: 0 | H150: 46.2007 | I150: 0 | J150: 169.59026 | L150: =L119*OtherParams!C22 -> 0
A151: 19 | B151: =OFFSET(INDIRECT("Raw"&$C$4&"!$C$1"),$E$39+A151,0) -> 2025 | C151: 18.68814 | D151: 105.34376 | E151: 0 | F151: 0 | G151: 0 | H151: 47.5824 | I151: 0 | J151: =SUM(C151:I151) -> 171.6143 | L151: =L120*OtherParams!C23 -> 0
A152: 20 | B152: 2026 | C152: 18.68814 | D152: 106.62844 | E152: 0 | F152: 0 | G152: 0 | H152: 50.72876 | I152: 0 | J152: 176.04534 | L152: =L121*OtherParams!C24 -> 0
A153: 21 | B153: 2027 | C153: 18.68814 | D153: 106.62844 | E153: 0 | F153: 0 | G153: 0 | H153: 53.36632 | I153: 0 | J153: 178.6829 | L153: =L122*OtherParams!C25 -> 0
A154: 22 | B154: 2028 | C154: 16.75785 | D154: 106.62844 | E154: 0 | F154: 0 | G154: 0 | H154: 83.66564 | I154: 0 | J154: 207.05193 | L154: =L123*OtherParams!C26 -> 0
A155: 23 | B155: 2029 | C155: 15.47099 | D155: 5.73198 | E155: 377.50491 | F155: 0 | G155: 0 | H155: 55.80816 | I155: 0 | J155: 454.51604 | L155: =L124*OtherParams!C27 -> 0
C159: Annual O&M Costs
A160: English | C160: Coal | D160: Oil | E160: Gas | F160: Nuclear | G160: Hydro | H160: Biomass | I160: Solar PV | J160: Solar Thermal | K160: Wind | L160: Total Cent. | M160: Imports | N160: Exports | O160: Net Imports | P160: dom. System dmd | Q160: Dist. Oil | R160: Dist. Biomass | S160: Mini Hydro | T160: Dist.Solar PV | U160: Total Decent
A161: French | C161: Charbon | D161: Petrole | E161: Gaz | F161: Nucleaire | G161: Hydro | H161: Biomasse | I161: Solaire PV | J161: Solaire Thermique | K161: Eolienne | L161: Total Cent. | M161: Imports | N161: Exports | O161: Imports Net | P161: dom. System dmd | Q161: Dist. Petrole | R161: Dist. Biomasse | S161: Mini Hydro | T161: Dist. Solaire PV | U161: Total Decent
C162: Cent. | D162: =$C$4&"Sec O&M Costs" -> SEwSec O&M Costs | E162: =SUMIF(INDIRECT("Raw"&$C$4&"!$A$12:$A$540"),D162,INDIRECT("Raw"&$C$4&"!$B$12:$B$540")) -> 72 | F162: 1 | M162: =C158&"FinaleElc" -> FinaleElc | N162: =SUMIF(INDIRECT("Raw"&$C$4&"!$A$12:$A$550"),M162,INDIRECT("Raw"&$C$4&"!$B$12:$B$550")) -> 0 | O162: 3 | Q162: Decent. | R162: =$C$4&"Ter O&M Costs" -> SEwTer O&M Costs | S162: =SUMIF(INDIRECT("Raw"&$C$4&"!$A$12:$A$540"),R162,INDIRECT("Raw"&$C$4&"!$B$12:$B$540")) -> 101 | T162: 2
A163: Million $ | C163: =OFFSET(C$6,lang,0) -> Coal | D163: Oil | E163: Gas | F163: Nuclear | G163: Hydro | H163: Biomass | I163: Solar PV | J163: Solar Thermal | K163: Wind | L163: Total Cent. | M163: Imports | N163: Exports | O163: Net Imports | P163: Total Cent. +net imp. | Q163: Dist. Oil | R163: Dist. Biomass | S163: Mini Hydro | T163: Dist.Solar PV | U163: Total Decent | V163: Total
A164: 0 | B164: =OFFSET(INDIRECT("Raw"&$C$4&"!$C$1"),$E$162+A164,0) -> 2010 | C164: =SUMIF(OFFSET(INDIRECT("Raw"&$C$4&"!$C$1"),$F$162,1,1,50),C$1,OFFSET(INDIRECT("Raw"&$C$4&"!$C$1"),$E$162+$A164,1,1,50)) -> 0 | D164: 26.64497881 | E164: 2.581894004 | F164: 0 | G164: 8.118589131 | H164: 0 | I164: 0 | J164: 0 | K164: 0 | L164: =SUM(C164:K164) -> 37.34546194 | M164: =SUMIF(TransRaw!$DD$169:$DP$169,$C$4,TransRaw!$DD170:$DP170) -> 1.110329452 | N164: =SUMIF(TransRaw!$DD$169:$DP$169,$C$4,TransRaw!$DD198:$DP198) -> 27.57521496 | O164: =M164-N164 -> -26.46488551 | P164: =L164+O164 -> 10.88057643 | Q164: =SUMIF(OFFSET(INDIRECT("Raw"&$C$4&"!$C$1"),$T$162,1,1,50),Q$1,OFFSET(INDIRECT("Raw"&$C$4&"!$C$1"),$S$162+$A164,1,1,50)) -> 0.541110456 | R164: =SUMIF(OFFSET(INDIRECT("Raw"&$C$4&"!$C$1"),$T$162,1,1,50),R$1,OFFSET(INDIRECT("Raw"&$C$4&"!$C$1"),$S$162+$A164,1,1,50)) -> 0 | S164: 0 | T164: 0.541110456 | U164: =SUM(Q164:T164) -> 1.082220912 | V164: =U164+P164 -> 11.96279734
A165: =A164+1 -> 1 | B165: =OFFSET(INDIRECT("Raw"&$C$4&"!$C$1"),$E$162+A165,0) -> 2011 | C165: 0 | D165: 25.02197229 | E165: 2.581894004 | F165: 0 | G165: 8.118589131 | H165: 0 | I165: 0 | J165: 0 | K165: 0 | L165: =SUM(C165:K165) -> 35.72245543 | M165: =SUMIF(TransRaw!$DD$169:$DP$169,$C$4,TransRaw!$DD171:$DP171) -> 3.781616715 | N165: =SUMIF(TransRaw!$DD$169:$DP$169,$C$4,TransRaw!$DD199:$DP199) -> 0 | O165: =M165-N165 -> 3.781616715 | P165: =L165+O165 -> 39.50407214 | Q165: =SUMIF(OFFSET(INDIRECT("Raw"&$C$4&"!$C$1"),$T$162,1,1,50),Q$1,OFFSET(INDIRECT("Raw"&$C$4&"!$C$1"),$S$162+$A165,1,1,50)) -> 0.485835732 | R165: 0 | S165: 0 | T165: 0.485835732 | U165: =SUM(Q165:T165) -> 0.971671464 | V165: =U165+P165 -> 40.47574361
A166: =A165+1 -> 2 | B166: 2012 | C166: 0 | D166: 27.07268829 | E166: 2.581894004 | F166: 0 | G166: 8.118589131 | H166: 0 | I166: 0 | J166: 0 | K166: 0 | L166: 37.77317143 | M166: =SUMIF(TransRaw!$DD$169:$DP$169,$C$4,TransRaw!$DD172:$DP172) -> 20.71734131 | N166: =SUMIF(TransRaw!$DD$169:$DP$169,$C$4,TransRaw!$DD200:$DP200) -> 0 | O166: 20.71734131 | P166: 58.49051274 | Q166: 1.064765736 | R166: 0 | S166: 0 | T166: 1.064765736 | U166: 2.129531472 | V166: 60.62004421
A167: 3 | B167: 2013 | C167: 0 | D167: 24.49219827 | E167: 2.581894004 | F167: 0 | G167: 8.136849131 | H167: 0 | I167: 0 | J167: 0 | K167: 0 | L167: 35.21094141 | M167: =SUMIF(TransRaw!$DD$169:$DP$169,$C$4,TransRaw!$DD173:$DP173) -> 57.33506921 | N167: =SUMIF(TransRaw!$DD$169:$DP$169,$C$4,TransRaw!$DD201:$DP201) -> 0 | O167: 57.33506921 | P167: 92.54601062 | Q167: 1.282955436 | R167: 0 | S167: 0 | T167: 1.282955436 | U167: 2.565910872 | V167: 95.11192149
A168: 4 | B168: 2014 | C168: 0 | D168: 22.38717027 | E168: 2.581894004 | F168: 0 | G168: 8.136849131 | H168: 9.291812205 | I168: 0 | J168: 0 | K168: 8.708431474 | L168: 51.10615709 | M168: =SUMIF(TransRaw!$DD$169:$DP$169,$C$4,TransRaw!$DD174:$DP174) -> 135.9787771 | N168: =SUMIF(TransRaw!$DD$169:$DP$169,$C$4,TransRaw!$DD202:$DP202) -> 0 | O168: 135.9787771 | P168: 187.0849342 | Q168: 1.166587596 | R168: 0 | S168: 0.263736 | T168: 1.430323596 | U168: 2.860647192 | V168: 189.9455814
A169: 5 | B169: 2015 | C169: 0 | D169: 22.38717027 | E169: 2.581894004 | F169: 0 | G169: 8.136849131 | H169: 15.08136052 | I169: 6.895402108 | J169: 0 | K169: 9.803398788 | L169: 64.88607482 | M169: =SUMIF(TransRaw!$DD$169:$DP$169,$C$4,TransRaw!$DD175:$DP175) -> 136.0061478 | N169: =SUMIF(TransRaw!$DD$169:$DP$169,$C$4,TransRaw!$DD203:$DP203) -> 0 | O169: 136.0061478 | P169: 200.8922227 | Q169: 1.285864632 | R169: 0 | S169: 0.3345408 | T169: 1.620405432 | U169: 3.240810864 | V169: 204.1330335
A170: 6 | B170: 2016 | C170: 5.8086684 | D170: 22.38717027 | E170: 2.581894004 | F170: 0 | G170: 8.136869131 | H170: 21.25839829 | I170: 6.895402108 | J170: 0 | K170: 11.21496808 | L170: 78.28337028 | M170: =SUMIF(TransRaw!$DD$169:$DP$169,$C$4,TransRaw!$DD176:$DP176) -> 0 | N170: =SUMIF(TransRaw!$DD$169:$DP$169,$C$4,TransRaw!$DD204:$DP204) -> 33.14112549 | O170: -33.14112549 | P170: 45.1422448 | Q170: 1.451688804 | R170: 0 | S170: 0.501336 | T170: 1.953024804 | U170: 3.906049608 | V170: 49.0482944
A171: 7 | B171: 2017 | C171: 5.8086684 | D171: 22.38717027 | E171: 2.581894004 | F171: 0 | G171: 8.168769131 | H171: 21.35307897 | I171: 6.895402108 | J171: 0 | K171: 11.76182604 | L171: 78.95680892 | M171: =SUMIF(TransRaw!$DD$169:$DP$169,$C$4,TransRaw!$DD177:$DP177) -> 0.08353855789 | N171: =SUMIF(TransRaw!$DD$169:$DP$169,$C$4,TransRaw!$DD205:$DP205) -> 29.42944054 | O171: -29.34590198 | P171: 49.61090694 | Q171: 1.506963528 | R171: 0 | S171: 0.5978016 | T171: 2.104765128 | U171: 4.209530256 | V171: 53.8204372
A172: 8 | B172: 2018 | C172: 5.8086684 | D172: 22.38717027 | E172: 2.581894004 | F172: 0 | G172: 8.168769131 | H172: 24.54592194 | I172: 6.895402108 | J172: 0 | K172: 12.33621461 | L172: 82.72404046 | M172: =SUMIF(TransRaw!$DD$169:$DP$169,$C$4,TransRaw!$DD178:$DP178) -> 3.27541137 | N172: =SUMIF(TransRaw!$DD$169:$DP$169,$C$4,TransRaw!$DD206:$DP206) -> 26.51578603 | O172: -23.24037466 | P172: 59.4836658 | Q172: 1.565147448 | R172: 0 | S172: 0.6994944 | T172: 2.264641848 | U172: 4.529283696 | V172: 64.01294949
A173: 9 | B173: 2019 | C173: 5.8086684 | D173: 19.68055825 | E173: 2.581894004 | F173: 0 | G173: 8.168789131 | H173: 25.82060444 | I173: 6.895402108 | J173: 0 | K173: 12.94814491 | L173: 81.90406125 | M173: =SUMIF(TransRaw!$DD$169:$DP$169,$C$4,TransRaw!$DD179:$DP179) -> 118.8835036 | N173: =SUMIF(TransRaw!$DD$169:$DP$169,$C$4,TransRaw!$DD207:$DP207) -> 120.0440713 | O173: -1.160567742 | P173: 80.74349351 | Q173: 1.623331368 | R173: 0 | S173: 0.8092656 | T173: 2.432596968 | U173: 4.865193936 | V173: 85.60868744
A174: 10 | B174: 2020 | C174: 5.8086684 | D174: 19.05278202 | E174: 2.581894004 | F174: 0 | G174: 8.168769131 | H174: 25.82060444 | I174: 6.895402108 | J174: 0 | K174: 13.62264478 | L174: 81.95076488 | M174: =SUMIF(TransRaw!$DD$169:$DP$169,$C$4,TransRaw!$DD180:$DP180) -> 74.55226664 | N174: =SUMIF(TransRaw!$DD$169:$DP$169,$C$4,TransRaw!$DD208:$DP208) -> 51.93209552 | O174: 22.62017112 | P174: 104.570936 | Q174: 1.690242876 | R174: 0 | S174: 0.9351936 | T174: 2.625436476 | U174: 5.250872952 | V174: 109.821809
A175: 11 | B175: 2021 | C175: 5.8086684 | D175: 19.05278202 | E175: 2.581894004 | F175: 0 | G175: 8.168769131 | H175: 25.82060444 | I175: 8.553678541 | J175: 0 | K175: 14.40101012 | L175: 84.38740665 | M175: =SUMIF(TransRaw!$DD$169:$DP$169,$C$4,TransRaw!$DD181:$DP181) -> 73.23976929 | N175: =SUMIF(TransRaw!$DD$169:$DP$169,$C$4,TransRaw!$DD209:$DP209) -> 31.4465635 | O175: 41.7932058 | P175: 126.1806124 | Q175: 1.768791168 | R175: 0 | S175: 1.0530432 | T175: 2.821834368 | U175: 5.643668736 | V175: 131.8242812
A176: 12 | B176: 2022 | C176: 5.8086684 | D176: 19.05278202 | E176: 2.581894004 | F176: 0 | G176: 8.168789131 | H176: 25.82060444 | I176: 10.65909108 | J176: 0 | K176: 15.15559902 | L176: 87.24742809 | M176: =SUMIF(TransRaw!$DD$169:$DP$169,$C$4,TransRaw!$DD182:$DP182) -> 56.33156207 | N176: =SUMIF(TransRaw!$DD$169:$DP$169,$C$4,TransRaw!$DD210:$DP210) -> 0 | O176: 56.33156207 | P176: 143.5789902 | Q176: 1.844430264 | R176: 0 | S176: 1.1708928 | T176: 3.015323064 | U176: 6.030646128 | V176: 149.6096363
A177: 13 | B177: 2023 | C177: 5.8086684 | D177: 19.05278202 | E177: 2.581894004 | F177: 0 | G177: 8.168769131 | H177: 25.81885109 | I177: 10.65909108 | J177: 0 | K177: 15.95023244 | L177: 88.04028817 | M177: =SUMIF(TransRaw!$DD$169:$DP$169,$C$4,TransRaw!$DD183:$DP183) -> 89.53972819 | N177: =SUMIF(TransRaw!$DD$169:$DP$169,$C$4,TransRaw!$DD211:$DP211) -> 0 | O177: 89.53972819 | P177: 177.5800164 | Q177: 1.925887752 | R177: 0 | S177: 1.3010976 | T177: 3.226985352 | U177: 6.453970704 | V177: 184.0339871
A178: 14 | B178: 2024 | C178: 5.8086684 | D178: 18.00648829 | E178: 2.581894004 | F178: 0 | G178: 8.168769131 | H178: 25.82060444 | I178: 11.81565968 | J178: 0 | K178: 16.7974243 | L178: 88.99950824 | M178: =SUMIF(TransRaw!$DD$169:$DP$169,$C$4,TransRaw!$DD184:$DP184) -> 117.3575645 | N178: =SUMIF(TransRaw!$DD$169:$DP$169,$C$4,TransRaw!$DD212:$DP212) -> 0 | O178: 117.3575645 | P178: 206.3570727 | Q178: 2.010254436 | R178: 0 | S178: 1.4474592 | T178: 3.457713636 | U178: 6.915427272 | V178: 213.2725
A179: 15 | B179: 2025 | C179: 5.8086684 | D179: 18.00648829 | E179: 0 | F179: 0 | G179: 8.168769131 | H179: 25.81885109 | I179: 12.44763551 | J179: 0 | K179: 17.69717458 | L179: 87.94758701 | M179: =SUMIF(TransRaw!$DD$169:$DP$169,$C$4,TransRaw!$DD185:$DP185) -> 149.7184584 | N179: =SUMIF(TransRaw!$DD$169:$DP$169,$C$4,TransRaw!$DD213:$DP213) -> 0 | O179: 149.7184584 | P179: 237.6660454 | Q179: 2.09462112 | R179: 0 | S179: 1.6018992 | T179: 3.69652032 | U179: 7.39304064 | V179: 245.059086
A180: 16 | B180: 2026 | C180: =SUMIF(OFFSET(INDIRECT("Raw"&$C$4&"!$C$1"),$F$162,1,1,50),C$1,OFFSET(INDIRECT("Raw"&$C$4&"!$C$1"),$E$162+$A180,1,1,50)) -> 5.8086684 | D180: 18.00648829 | E180: 0 | F180: 0 | G180: 8.168769131 | H180: 25.82060444 | I180: 13.09369438 | J180: 0 | K180: 18.61444434 | L180: 89.51266898 | M180: =SUMIF(TransRaw!$DD$169:$DP$169,$C$4,TransRaw!$DD186:$DP186) -> 189.793382 | N180: =SUMIF(TransRaw!$DD$169:$DP$169,$C$4,TransRaw!$DD214:$DP214) -> 0.5554485884 | O180: 189.2379334 | P180: 278.7506023 | Q180: 2.184806196 | R180: 0 | S180: 1.7644176 | T180: 3.949223796 | U180: 7.898447592 | V180: 286.6490499
A181: 17 | B181: 2027 | C181: 5.8086684 | D181: 16.65318228 | E181: 0 | F181: 0 | G181: 8.168789131 | H181: 25.82060444 | I181: 13.76967968 | J181: 0 | K181: 19.57676419 | L181: 89.79768812 | M181: =SUMIF(TransRaw!$DD$169:$DP$169,$C$4,TransRaw!$DD187:$DP187) -> 226.9220775 | N181: =SUMIF(TransRaw!$DD$169:$DP$169,$C$4,TransRaw!$DD215:$DP215) -> 0 | O181: 226.9220775 | P181: 316.7197656 | Q181: 2.15280504 | R181: 0 | S181: 1.943568 | T181: 4.09637304 | U181: 8.19274608 | V181: 324.9125117
A182: 18 | B182: 2028 | C182: 5.8086684 | D182: 16.65318228 | E182: 0 | F182: 0 | G182: 8.168769131 | H182: 25.82060444 | I182: 14.47735178 | J182: 10.30337454 | K182: 20.58288272 | L182: 101.8148333 | M182: =SUMIF(TransRaw!$DD$169:$DP$169,$C$4,TransRaw!$DD188:$DP188) -> 199.50176 | N182: =SUMIF(TransRaw!$DD$169:$DP$169,$C$4,TransRaw!$DD216:$DP216) -> 0 | O182: 199.50176 | P182: 301.3165933 | Q182: 2.362267152 | R182: 0 | S182: 2.0942064 | T182: 4.456473552 | U182: 8.912947104 | V182: 310.2295404
A183: 19 | B183: 2029 | C183: 5.8086684 | D183: 16.65318228 | E183: 0 | F183: 0 | G183: 8.168769131 | H183: 25.82060444 | I183: 15.25191827 | J183: 25.54814344 | K183: 21.68535839 | L183: 118.9366444 | M183: =SUMIF(TransRaw!$DD$169:$DP$169,$C$4,TransRaw!$DD189:$DP189) -> 143.30495 | N183: =SUMIF(TransRaw!$DD$169:$DP$169,$C$4,TransRaw!$DD217:$DP217) -> 0.1729343724 | O183: 143.1320156 | P183: 262.0686599 | Q183: 2.405905092 | R183: 0 | S183: 2.1878208 | T183: 4.593725892 | U183: 9.187451784 | V183: 271.2561117
A184: 20 | B184: 2030 | C184: 5.8086684 | D184: 16.65318228 | E184: 0 | F184: 0 | G184: 8.169329131 | H184: 25.82060444 | I184: 15.95606962 | J184: 36.64574052 | K184: 22.68521997 | L184: 131.7388144 | M184: =SUMIF(TransRaw!$DD$169:$DP$169,$C$4,TransRaw!$DD190:$DP190) -> 125.1032798 | N184: =SUMIF(TransRaw!$DD$169:$DP$169,$C$4,TransRaw!$DD218:$DP218) -> 14.58266184 | O184: 110.5206179 | P184: 242.2594323 | Q184: 2.533909716 | R184: 0 | S184: 2.2705056 | T184: 4.804415316 | U184: 9.608830632 | V184: 251.8682629
A185: 21 | B185: 2031 | C185: 5.8086684 | D185: 11.13169377 | E185: 0 | F185: 0 | G185: 8.215629131 | H185: 25.82060444 | I185: 16.81513427 | J185: 40.47404961 | K185: 23.90782919 | L185: 132.1736088 | M185: =SUMIF(TransRaw!$DD$169:$DP$169,$C$4,TransRaw!$DD191:$DP191) -> 123.894958 | N185: =SUMIF(TransRaw!$DD$169:$DP$169,$C$4,TransRaw!$DD219:$DP219) -> 24.22198579 | O185: 99.67297222 | P185: 231.846581 | Q185: 2.664823536 | R185: 0 | S185: 2.3232528 | T185: 4.988076336 | U185: 9.976152672 | V185: 241.8227337
A186: =A185+1 -> 22 | B186: 2040 | C186: 5.8086684 | D186: 0 | E186: 0 | F186: 0 | G186: 8.215629131 | H186: 23.48780444 | I186: 26.72606454 | J186: 131.3721501 | K186: 37.99724289 | L186: 233.6075595 | M186: =SUMIF(TransRaw!$DD$169:$DP$169,$C$4,TransRaw!$DD192:$DP192) -> 141.1918258 | N186: =SUMIF(TransRaw!$DD$169:$DP$169,$C$4,TransRaw!$DD220:$DP220) -> 153.0595119 | O186: -11.86768615 | P186: 221.7398734 | Q186: 4.177605456 | R186: 0 | S186: 2.461536 | T186: 11.75714146 | U186: 18.39628291 | V186: 240.1361563
A187: 23 | B187: 2050 | C187: 0.312294 | D187: 0 | E187: 10.28170858 | F187: 0 | G187: 8.215629131 | H187: 21.93260444 | I187: 32.81521335 | J187: 144.6882709 | K187: 46.65311593 | L187: 264.8988364 | M187: =SUMIF(TransRaw!$DD$169:$DP$169,$C$4,TransRaw!$DD193:$DP193) -> 162.0736061 | N187: =SUMIF(TransRaw!$DD$169:$DP$169,$C$4,TransRaw!$DD221:$DP221) -> 189.0955238 | O187: -27.02191768 | P187: 237.8769187 | Q187: 2.787009768 | R187: 0 | S187: 2.3779008 | T187: 24.47891057 | U187: 29.64382114 | V187: 267.5207398
C190: Annualized Investment Costs
A191: English | C191: Coal | D191: Oil | E191: Gas | F191: Nuclear | G191: Hydro | H191: Biomass | I191: Solar PV | J191: Solar Thermal | K191: Wind | L191: Total Cent. | M191: Imports | N191: Exports | O191: Net Imports | P191: dom. System dmd | Q191: Dist. Oil | R191: Dist. Biomass | S191: Mini Hydro | T191: Dist.Solar PV | U191: Total Decent
A192: French | C192: Charbon | D192: Petrole | E192: Gaz | F192: Nucleaire | G192: Hydro | H192: Biomasse | I192: Solaire PV | J192: Solaire Thermique | K192: Eolienne | L192: Total Cent. | M192: Imports | N192: Exports | O192: Imports Net | P192: dom. System dmd | Q192: Dist. Petrole | R192: Dist. Biomasse | S192: Mini Hydro | T192: Dist. Solaire PV | U192: Total Decent
C193: Cent. | D193: =$C$4&"Sec Annualized Investment Costs" -> SEwSec Annualized Investment Costs | E193: =SUMIF(INDIRECT("Raw"&$C$4&"!$A$12:$A$540"),D193,INDIRECT("Raw"&$C$4&"!$B$12:$B$540")) -> 188 | F193: 1 | M193: =C189&"FinaleElc" -> FinaleElc | N193: =SUMIF(INDIRECT("Raw"&$C$4&"!$A$12:$A$550"),M193,INDIRECT("Raw"&$C$4&"!$B$12:$B$550")) -> 0 | O193: 3 | Q193: Decent. | R193: =$C$4&"Ter Annualized Investment Costs" -> SEwTer Annualized Investment Costs | S193: =SUMIF(INDIRECT("Raw"&$C$4&"!$A$12:$A$540"),R193,INDIRECT("Raw"&$C$4&"!$B$12:$B$540")) -> 217 | T193: 2
A194: Million $ | C194: =OFFSET(C$6,lang,0) -> Coal | D194: Oil | E194: Gas | F194: Nuclear | G194: Hydro | H194: Biomass | I194: Solar PV | J194: Solar Thermal | K194: Wind | L194: Total Cent. | M194: Imports | N194: Exports | O194: Net Imports | P194: Total Imports/exports | Q194: Dist. Oil | R194: Dist. Biomass | S194: Mini Hydro | T194: Dist.Solar PV | U194: Total Decent | V194: Total
A195: 0 | B195: =OFFSET(INDIRECT("Raw"&$C$4&"!$C$1"),$E$162+A195,0) -> 2010 | C195: =SUMIF(OFFSET(INDIRECT("Raw"&$C$4&"!$C$1"),$F$193,1,1,50),C$1,OFFSET(INDIRECT("Raw"&$C$4&"!$C$1"),$E$193+$A195,1,1,50)) -> 0 | D195: =SUMIF(OFFSET(INDIRECT("Raw"&$C$4&"!$C$1"),$F$193,1,1,50),D$1,OFFSET(INDIRECT("Raw"&$C$4&"!$C$1"),$E$193+$A195,1,1,50)) -> 0 | E195: 0 | F195: 0 | G195: 0 | H195: 0 | I195: 0 | J195: 0 | K195: 0 | L195: =SUM(C195:K195) -> 0 | O195: =SUMIF(TransRaw!$DD$142:$DP$142,$C$4,TransRaw!$DD143:$DP143) -> 0 | P195: =L195+O195 -> 0 | Q195: =SUMIF(OFFSET(INDIRECT("Raw"&$C$4&"!$C$1"),$T$193,1,1,50),Q$1,OFFSET(INDIRECT("Raw"&$C$4&"!$C$1"),$S$193+$A195,1,1,50)) -> 0.4739585312 | R195: =SUMIF(OFFSET(INDIRECT("Raw"&$C$4&"!$C$1"),$T$193,1,1,50),R$1,OFFSET(INDIRECT("Raw"&$C$4&"!$C$1"),$S$193+$A195,1,1,50)) -> 0 | S195: 0 | T195: 0 | U195: =SUM(Q195:T195) -> 0.4739585312 | V195: =U195+P195 -> 0.4739585312
A196: =A195+1 -> 1 | B196: =OFFSET(INDIRECT("Raw"&$C$4&"!$C$1"),$E$162+A196,0) -> 2011 | C196: =SUMIF(OFFSET(INDIRECT("Raw"&$C$4&"!$C$1"),$F$193,1,1,50),C$1,OFFSET(INDIRECT("Raw"&$C$4&"!$C$1"),$E$193+$A196,1,1,50)) -> 0 | D196: 16.25182301 | E196: 0 | F196: 0 | G196: 0 | H196: 0 | I196: 0 | J196: 0 | K196: 0 | L196: =SUM(C196:K196) -> 16.25182301 | O196: =SUMIF(TransRaw!$DD$142:$DP$142,$C$4,TransRaw!$DD144:$DP144) -> 0 | P196: =L196+O196 -> 16.25182301 | Q196: =SUMIF(OFFSET(INDIRECT("Raw"&$C$4&"!$C$1"),$T$193,1,1,50),Q$1,OFFSET(INDIRECT("Raw"&$C$4&"!$C$1"),$S$193+$A196,1,1,50)) -> 0.4739585312 | R196: 0 | S196: 0 | T196: 0 | U196: =SUM(Q196:T196) -> 0.4739585312 | V196: =U196+P196 -> 16.72578154
A197: =A196+1 -> 2 | B197: 2012 | C197: 0 | D197: 20.35275031 | E197: 0 | F197: 0 | G197: 0 | H197: 0 | I197: 0 | J197: 0 | K197: 0 | L197: 20.35275031 | O197: =SUMIF(TransRaw!$DD$142:$DP$142,$C$4,TransRaw!$DD145:$DP145) -> 0 | P197: 20.35275031 | Q197: 5.506313043 | R197: 0 | S197: 0 | T197: 0 | U197: 5.506313043 | V197: 25.85906336
A198: 3 | B198: 2013 | C198: 0 | D198: 20.35275031 | E198: 0 | F198: 0 | G198: 3.300845696 | H198: 0 | I198: 0 | J198: 0 | K198: 0 | L198: 23.65359601 | O198: =SUMIF(TransRaw!$DD$142:$DP$142,$C$4,TransRaw!$DD146:$DP146) -> 0 | P198: 23.65359601 | Q198: 7.111425304 | R198: 0 | S198: 0 | T198: 0 | U198: 7.111425304 | V198: 30.76502131
A199: 4 | B199: 2014 | C199: 0 | D199: 20.35275031 | E199: 0 | F199: 0 | G199: 3.300845696 | H199: 28.81031283 | I199: 0 | J199: 0 | K199: 49.54745872 | L199: 102.0113676 | O199: =SUMIF(TransRaw!$DD$142:$DP$142,$C$4,TransRaw!$DD147:$DP147) -> 0 | P199: 102.0113676 | Q199: 7.901697412 | R199: 0 | S199: 4.909939446 | T199: 0 | U199: 12.81163686 | V199: 114.8230044
A200: 5 | B200: 2015 | C200: 0 | D200: 20.35275031 | E200: 0 | F200: 0 | G200: 3.300845696 | H200: 47.16706947 | I200: 28.1674921 | J200: 0 | K200: 55.64539596 | L200: 154.6335535 | O200: =SUMIF(TransRaw!$DD$142:$DP$142,$C$4,TransRaw!$DD148:$DP148) -> 0 | P200: 154.6335535 | Q200: 9.393182466 | R200: 0 | S200: 6.460687791 | T200: 0 | U200: 15.85387026 | V200: 170.4874238
A201: 6 | B201: 2016 | C201: 22.88243265 | D201: 20.35275031 | E201: 0 | F201: 0 | G201: 3.300845696 | H201: 66.37156091 | I201: 28.1674921 | J201: 0 | K201: 63.38652125 | L201: 204.4616029 | O201: =SUMIF(TransRaw!$DD$142:$DP$142,$C$4,TransRaw!$DD149:$DP149) -> 0 | P201: 204.4616029 | Q201: 11.31358464 | R201: 0 | S201: 10.81139163 | T201: 0 | U201: 22.12497626 | V201: 226.5865792
A202: 7 | B202: 2017 | C202: 22.88243265 | D202: 20.35275031 | E202: 0 | F202: 0 | G202: 26.72843298 | H202: 66.66308083 | I202: 28.1674921 | J202: 0 | K202: 66.33901592 | L202: 231.1332048 | O202: =SUMIF(TransRaw!$DD$142:$DP$142,$C$4,TransRaw!$DD150:$DP150) -> 14.93495142 | P202: 246.0681562 | Q202: 12.29016442 | R202: 0 | S202: 12.98389464 | T202: 0 | U202: 25.27405906 | V202: 271.3422153
A203: 8 | B203: 2018 | C203: 22.88243265 | D203: 20.35275031 | E203: 0 | F203: 0 | G203: 26.72843298 | H203: 76.19856487 | I203: 28.1674921 | J203: 0 | K203: 69.38589543 | L203: 243.7155683 | O203: =SUMIF(TransRaw!$DD$142:$DP$142,$C$4,TransRaw!$DD151:$DP151) -> 14.93495142 | P203: 258.6505198 | Q203: 13.2698152 | R203: 0 | S203: 15.13466913 | T203: 0 | U203: 28.40448434 | V203: 287.0550041
A204: 9 | B204: 2019 | C204: 22.88243265 | D204: 20.35275031 | E204: 0 | F204: 0 | G204: 26.72843298 | H204: 79.92681093 | I204: 28.1674921 | J204: 0 | K204: 72.58337136 | L204: 250.6412903 | O204: =SUMIF(TransRaw!$DD$142:$DP$142,$C$4,TransRaw!$DD152:$DP152) -> 14.93495142 | P204: 265.5762418 | Q204: 14.26482102 | R204: 0 | S204: 17.43061927 | T204: 0 | U204: 31.69544029 | V204: 297.2716821
A205: 10 | B205: 2020 | C205: 22.88243265 | D205: 20.35275031 | E205: 0 | F205: 0 | G205: 26.72843298 | H205: 79.92681093 | I205: 28.1674921 | J205: 0 | K205: 76.05023768 | L205: 254.1081567 | O205: =SUMIF(TransRaw!$DD$142:$DP$142,$C$4,TransRaw!$DD153:$DP153) -> 14.93495142 | P205: 269.0431081 | Q205: 14.83090972 | R205: 0 | S205: 20.04159767 | T205: 0 | U205: 34.87250739 | V205: 303.9156155
A206: 11 | B206: 2021 | C206: 22.88243265 | D206: 20.35275031 | E206: 0 | F206: 0 | G206: 26.72843298 | H206: 79.92681093 | I206: 34.20234993 | J206: 0 | K206: 80.01718242 | L206: 264.1099592 | O206: =SUMIF(TransRaw!$DD$142:$DP$142,$C$4,TransRaw!$DD154:$DP154) -> 14.93495142 | P206: 279.0449106 | Q206: 15.54645402 | R206: 0 | S206: 22.4599916 | T206: 0 | U206: 38.00644562 | V206: 317.0513563
A207: 12 | B207: 2022 | C207: 22.88243265 | D207: 20.35275031 | E207: 0 | F207: 0 | G207: 26.72843298 | H207: 79.92681093 | I207: 41.7627804 | J207: 0 | K207: 83.81536398 | L207: 275.4685713 | O207: =SUMIF(TransRaw!$DD$142:$DP$142,$C$4,TransRaw!$DD155:$DP155) -> 14.93495142 | P207: 290.4035227 | Q207: 16.21388591 | R207: 0 | S207: 24.85503114 | T207: 0 | U207: 41.06891704 | V207: 331.4724397
A208: 13 | B208: 2023 | C208: 22.88243265 | D208: 20.35275031 | E208: 0 | F208: 0 | G208: 26.72843298 | H208: 79.92681093 | I208: 41.7627804 | J208: 0 | K208: 87.78465395 | L208: 279.4378612 | O208: =SUMIF(TransRaw!$DD$142:$DP$142,$C$4,TransRaw!$DD156:$DP156) -> 14.93495142 | P208: 294.3728127 | Q208: 16.91100418 | R208: 0 | S208: 27.47327762 | T208: 0 | U208: 44.3842818 | V208: 338.7570945
A209: 14 | B209: 2024 | C209: 22.88243265 | D209: 20.35275031 | E209: 0 | F209: 0 | G209: 26.72843298 | H209: 79.92681093 | I209: 45.78936296 | J209: 0 | K209: 91.97478396 | L209: 287.6545738 | O209: =SUMIF(TransRaw!$DD$142:$DP$142,$C$4,TransRaw!$DD157:$DP157) -> 14.93495142 | P209: 302.5895252 | Q209: 17.65009286 | R209: 0 | S209: 30.39125298 | T209: 0 | U209: 48.04134584 | V209: 350.6308711
A210: 15 | B210: 2025 | C210: 22.88243265 | D210: 20.35275031 | E210: 0 | F210: 0 | G210: 26.72843298 | H210: 79.92681093 | I210: 47.95918065 | J210: 0 | K210: 96.37325494 | L210: 294.2228625 | O210: =SUMIF(TransRaw!$DD$142:$DP$142,$C$4,TransRaw!$DD158:$DP158) -> 14.93495142 | P210: 309.1578139 | Q210: 18.41579692 | R210: 0 | S210: 33.43750917 | T210: 0 | U210: 51.85330609 | V210: 361.01112
A211: 16 | B211: 2026 | C211: 22.88243265 | D211: 20.35275031 | E211: 0 | F211: 0 | G211: 26.72843298 | H211: 79.92681093 | I211: 50.14232978 | J211: 0 | K211: 100.8204579 | L211: 300.8532145 | O211: =SUMIF(TransRaw!$DD$142:$DP$142,$C$4,TransRaw!$DD159:$DP159) -> 14.93495142 | P211: 315.788166 | Q211: 19.18150099 | R211: 0 | S211: 36.61268407 | T211: 0 | U211: 55.79418505 | V211: 371.582351
... 36 more rows

Sheet RENewCap
C1: C | D1: O | E1: G | F1: N | G1: H | H1: B | I1: S | J1: T | K1: W | L1: Total | M1: O | N1: B | O1: H | P1: S
B2: RE | C2: 0 | D2: 0 | E2: 0 | F2: 0 | G2: 1 | H2: 1 | I2: 1 | J2: 1 | K2: 1 | M2: 0 | N2: 1 | O2: 1 | P2: 1
B3: =VLOOKUP($D$11,OtherParams!$B$29:$E$41,4,FALSE) -> Mali | I3: Burkina | J3: Cote d'Ivoire | K3: Gambia | L3: Ghana | M3: Niger | N3: Nigeria | O3: Senegal | P3: Sierra Leone | Q3: Togo/Benin
I4: 1 | J4: 2 | K4: 3 | L4: 4 | M4: 9 | N4: 10 | O4: 11 | P4: 12 | Q4: 13 | S4: 2030
C5: Electricity Energy Balance
A6: English | C6: Coal | D6: Oil | E6: Gas | F6: Nuclear | G6: Hydro | H6: Biomass | I6: Solar PV | J6: Solar Thermal | K6: Wind | L6: Total Cent. | M6: Dist. Oil | N6: Dist. Biomass | O6: Mini Hydro | P6: Dist.Solar PV | Q6: Total Decent
A7: French | C7: Charbon | D7: Petrole | E7: Gaz | F7: Nucleaire | G7: Hydro | H7: Biomasse | I7: Solaire PV | J7: Solaire Thermique | K7: Eolienne | L7: Total Cent. | M7: Dist. Petrole | N7: Dist. Biomasse | O7: Mini Hydro | P7: Dist. Solaire PV | Q7: Total Decent
C8: Cent. | M8: Decent.
A9: GWh | C9: =OFFSET(C$6,lang,0) -> Coal | D9: Oil | E9: Gas | F9: Nuclear | G9: Hydro | H9: Biomass | I9: Solar PV | J9: Solar Thermal | K9: Wind | L9: Total Cent. | M9: Dist. Oil | N9: Dist. Biomass | O9: Mini Hydro | P9: Dist.Solar PV | Q9: Total Decent
D11: 8 | E11: =VLOOKUP($D$11,OtherParams!$B$29:$E$41,3,FALSE) -> MAw
D12: =$E$11&"TerNewCap" -> MAwTerNewCap | E12: =SUMIF(INDIRECT("Raw"&$E$11&"!$A$12:$A$540"),D12,INDIRECT("Raw"&$E$11&"!$B$12:$B$540")) -> 445 | F12: 2
D13: =E11&"SecNewCap" -> MAwSecNewCap | E13: =SUMIF(INDIRECT("Raw"&$E$11&"!$A$12:$A$540"),D13,INDIRECT("Raw"&$E$11&"!$B$12:$B$540")) -> 412 | F13: 1
C15: =C16&C17 -> NC | D15: =D16&D17 -> NC | E15: NC | F15: NC | G15: RC | H15: RC | I15: RC | J15: RC | K15: RC | L15: TC | M15: NC | N15: RD | O15: RD | P15: RD | Q15: TD
C16: N | D16: N | E16: N | F16: N | G16: R | H16: R | I16: R | J16: R | K16: R | L16: T | M16: N | N16: R | O16: R | P16: R | Q16: T
C17: C | D17: C | E17: C | F17: C | G17: C | H17: C | I17: C | J17: C | K17: C | L17: C | M17: C | N17: D | O17: D | P17: D | Q17: D | X17: TC | Y17: RC | Z17: TD | AA17: RD
B18: 1 | C18: =VLOOKUP(B18,OtherParams!$B$29:$E$41,3,FALSE) -> BUw | D18: =VLOOKUP(C18,OtherParams!$D$29:$E$41,2,FALSE) -> Burkina | X18: Centralized | Z18: Distributed
A19: GWh | C19: =OFFSET(C$6,lang,0) -> Coal | D19: Oil | E19: Gas | F19: Nuclear | G19: Hydro | H19: Biomass | I19: Solar PV | J19: Solar Thermal | K19: Wind | L19: Total Cent. | M19: Dist. Oil | N19: Dist. Biomass | O19: Mini Hydro | P19: Dist.Solar PV | Q19: Total Decent | X19: Total | Y19: RE | Z19: Total | AA19: RE
A20: 4 | B20: =OFFSET(INDIRECT("Raw"&$E$11&"!$C$1"),$E$13+A20,0) -> 2010 | C20: =SUMIF(OFFSET(INDIRECT("Raw"&C18&"!$C$1"),$F$13,1,1,50),C$1,OFFSET(INDIRECT("Raw"&C18&"!$C$1"),$E$13+$A20,1,1,50))*1 -> 0 | D20: =SUMIF(OFFSET(INDIRECT("Raw"&C18&"!$C$1"),$F$13,1,1,50),D$1,OFFSET(INDIRECT("Raw"&C18&"!$C$1"),$E$13+$A20,1,1,50))*1 -> 0 | E20: =SUMIF(OFFSET(INDIRECT("Raw"&C18&"!$C$1"),$F$13,1,1,50),E$1,OFFSET(INDIRECT("Raw"&C18&"!$C$1"),$E$13+$A20,1,1,50))*1 -> 0 | F20: =SUMIF(OFFSET(INDIRECT("Raw"&C18&"!$C$1"),$F$13,1,1,50),F$1,OFFSET(INDIRECT("Raw"&C18&"!$C$1"),$E$13+$A20,1,1,50))*1 -> 0 | G20: =SUMIF(OFFSET(INDIRECT("Raw"&C18&"!$C$1"),$F$13,1,1,50),G$1,OFFSET(INDIRECT("Raw"&C18&"!$C$1"),$E$13+$A20,1,1,50))*1 -> 0 | H20: =SUMIF(OFFSET(INDIRECT("Raw"&C18&"!$C$1"),$F$13,1,1,50),H$1,OFFSET(INDIRECT("Raw"&C18&"!$C$1"),$E$13+$A20,1,1,50))*1 -> 0 | I20: =SUMIF(OFFSET(INDIRECT("Raw"&C18&"!$C$1"),$F$13,1,1,50),I$1,OFFSET(INDIRECT("Raw"&C18&"!$C$1"),$E$13+$A20,1,1,50))*1 -> 0 | J20: =SUMIF(OFFSET(INDIRECT("Raw"&C18&"!$C$1"),$F$13,1,1,50),J$1,OFFSET(INDIRECT("Raw"&C18&"!$C$1"),$E$13+$A20,1,1,50))*1 -> 0 | K20: =SUMIF(OFFSET(INDIRECT("Raw"&C18&"!$C$1"),$F$13,1,1,50),K$1,OFFSET(INDIRECT("Raw"&C18&"!$C$1"),$E$13+$A20,1,1,50))*1 -> 0 | L20: =SUM(C20:K20) -> 0 | M20: =SUMIF(OFFSET(INDIRECT("Raw"&C18&"!$C$1"),$F$12,1,1,50),M$1,OFFSET(INDIRECT("Raw"&C18&"!$C$1"),$E$12+$A20,1,1,50))*1 -> 1.19 | N20: =SUMIF(OFFSET(INDIRECT("Raw"&C18&"!$C$1"),$F$12,1,1,50),N$1,OFFSET(INDIRECT("Raw"&C18&"!$C$1"),$E$12+$A20,1,1,50))*1 -> 0 | O20: =SUMIF(OFFSET(INDIRECT("Raw"&C18&"!$C$1"),$F$12,1,1,50),O$1,OFFSET(INDIRECT("Raw"&C18&"!$C$1"),$E$12+$A20,1,1,50))*1 -> 0 | P20: =SUMIF(OFFSET(INDIRECT("Raw"&C18&"!$C$1"),$F$12,1,1,50),P$1,OFFSET(INDIRECT("Raw"&C18&"!$C$1"),$E$12+$A20,1,1,50))*1 -> 0 | Q20: =SUM(M20:P20) -> 1.19 | U20: =MATCH(V20,$B$1:$B$414,0) -> 44 | V20: BUw | W20: Burkina | X20: =SUMIF($C$15:$Q$15,X$17,OFFSET($C$1,$U20-1,0,1,15)) -> 844.16 | Y20: =SUMIF($C$15:$Q$15,Y$17,OFFSET($C$1,$U20-1,0,1,15)) -> 732.66 | Z20: 257.8 | AA20: 120.59
A21: =A20+1 -> 5 | B21: 2011 | C21: =SUMIF(OFFSET(INDIRECT("Raw"&C18&"!$C$1"),$F$13,1,1,50),C$1,OFFSET(INDIRECT("Raw"&C18&"!$C$1"),$E$13+$A21,1,1,50))*1 -> 0 | D21: =SUMIF(OFFSET(INDIRECT("Raw"&C18&"!$C$1"),$F$13,1,1,50),D$1,OFFSET(INDIRECT("Raw"&C18&"!$C$1"),$E$13+$A21,1,1,50))*1 -> 55.5 | E21: =SUMIF(OFFSET(INDIRECT("Raw"&C18&"!$C$1"),$F$13,1,1,50),E$1,OFFSET(INDIRECT("Raw"&C18&"!$C$1"),$E$13+$A21,1,1,50))*1 -> 0 | F21: =SUMIF(OFFSET(INDIRECT("Raw"&C18&"!$C$1"),$F$13,1,1,50),F$1,OFFSET(INDIRECT("Raw"&C18&"!$C$1"),$E$13+$A21,1,1,50))*1 -> 0 | G21: =SUMIF(OFFSET(INDIRECT("Raw"&C18&"!$C$1"),$F$13,1,1,50),G$1,OFFSET(INDIRECT("Raw"&C18&"!$C$1"),$E$13+$A21,1,1,50))*1 -> 0 | H21: =SUMIF(OFFSET(INDIRECT("Raw"&C18&"!$C$1"),$F$13,1,1,50),H$1,OFFSET(INDIRECT("Raw"&C18&"!$C$1"),$E$13+$A21,1,1,50))*1 -> 0 | I21: =SUMIF(OFFSET(INDIRECT("Raw"&C18&"!$C$1"),$F$13,1,1,50),I$1,OFFSET(INDIRECT("Raw"&C18&"!$C$1"),$E$13+$A21,1,1,50))*1 -> 0 | J21: =SUMIF(OFFSET(INDIRECT("Raw"&C18&"!$C$1"),$F$13,1,1,50),J$1,OFFSET(INDIRECT("Raw"&C18&"!$C$1"),$E$13+$A21,1,1,50))*1 -> 0 | K21: =SUMIF(OFFSET(INDIRECT("Raw"&C18&"!$C$1"),$F$13,1,1,50),K$1,OFFSET(INDIRECT("Raw"&C18&"!$C$1"),$E$13+$A21,1,1,50))*1 -> 0 | L21: 55.5 | M21: =SUMIF(OFFSET(INDIRECT("Raw"&C18&"!$C$1"),$F$12,1,1,50),M$1,OFFSET(INDIRECT("Raw"&C18&"!$C$1"),$E$12+$A21,1,1,50))*1 -> 0 | N21: =SUMIF(OFFSET(INDIRECT("Raw"&C18&"!$C$1"),$F$12,1,1,50),N$1,OFFSET(INDIRECT("Raw"&C18&"!$C$1"),$E$12+$A21,1,1,50))*1 -> 0 | O21: =SUMIF(OFFSET(INDIRECT("Raw"&C18&"!$C$1"),$F$12,1,1,50),O$1,OFFSET(INDIRECT("Raw"&C18&"!$C$1"),$E$12+$A21,1,1,50))*1 -> 0 | P21: =SUMIF(OFFSET(INDIRECT("Raw"&C18&"!$C$1"),$F$12,1,1,50),P$1,OFFSET(INDIRECT("Raw"&C18&"!$C$1"),$E$12+$A21,1,1,50))*1 -> 0 | Q21: 0 | U21: =MATCH(V21,$B$1:$B$414,0) -> 73 | V21: CIw | W21: Cote d'Ivoire | X21: =SUMIF($C$15:$Q$15,X$17,OFFSET($C$1,$U21-1,0,1,15)) -> 4104.29 | Y21: 1472.02 | Z21: 689.11 | AA21: 152.43
A22: =A21+1 -> 6 | B22: 2012 | C22: =SUMIF(OFFSET(INDIRECT("Raw"&C18&"!$C$1"),$F$13,1,1,50),C$1,OFFSET(INDIRECT("Raw"&C18&"!$C$1"),$E$13+$A22,1,1,50))*1 -> 0 | D22: =SUMIF(OFFSET(INDIRECT("Raw"&C18&"!$C$1"),$F$13,1,1,50),D$1,OFFSET(INDIRECT("Raw"&C18&"!$C$1"),$E$13+$A22,1,1,50))*1 -> 20 | E22: =SUMIF(OFFSET(INDIRECT("Raw"&C18&"!$C$1"),$F$13,1,1,50),E$1,OFFSET(INDIRECT("Raw"&C18&"!$C$1"),$E$13+$A22,1,1,50))*1 -> 0 | F22: =SUMIF(OFFSET(INDIRECT("Raw"&C18&"!$C$1"),$F$13,1,1,50),F$1,OFFSET(INDIRECT("Raw"&C18&"!$C$1"),$E$13+$A22,1,1,50))*1 -> 0 | G22: =SUMIF(OFFSET(INDIRECT("Raw"&C18&"!$C$1"),$F$13,1,1,50),G$1,OFFSET(INDIRECT("Raw"&C18&"!$C$1"),$E$13+$A22,1,1,50))*1 -> 0 | H22: =SUMIF(OFFSET(INDIRECT("Raw"&C18&"!$C$1"),$F$13,1,1,50),H$1,OFFSET(INDIRECT("Raw"&C18&"!$C$1"),$E$13+$A22,1,1,50))*1 -> 0 | I22: =SUMIF(OFFSET(INDIRECT("Raw"&C18&"!$C$1"),$F$13,1,1,50),I$1,OFFSET(INDIRECT("Raw"&C18&"!$C$1"),$E$13+$A22,1,1,50))*1 -> 0 | J22: =SUMIF(OFFSET(INDIRECT("Raw"&C18&"!$C$1"),$F$13,1,1,50),J$1,OFFSET(INDIRECT("Raw"&C18&"!$C$1"),$E$13+$A22,1,1,50))*1 -> 0 | K22: =SUMIF(OFFSET(INDIRECT("Raw"&C18&"!$C$1"),$F$13,1,1,50),K$1,OFFSET(INDIRECT("Raw"&C18&"!$C$1"),$E$13+$A22,1,1,50))*1 -> 0 | L22: 20 | M22: =SUMIF(OFFSET(INDIRECT("Raw"&C18&"!$C$1"),$F$12,1,1,50),M$1,OFFSET(INDIRECT("Raw"&C18&"!$C$1"),$E$12+$A22,1,1,50))*1 -> 4.38 | N22: =SUMIF(OFFSET(INDIRECT("Raw"&C18&"!$C$1"),$F$12,1,1,50),N$1,OFFSET(INDIRECT("Raw"&C18&"!$C$1"),$E$12+$A22,1,1,50))*1 -> 0 | O22: =SUMIF(OFFSET(INDIRECT("Raw"&C18&"!$C$1"),$F$12,1,1,50),O$1,OFFSET(INDIRECT("Raw"&C18&"!$C$1"),$E$12+$A22,1,1,50))*1 -> 0 | P22: =SUMIF(OFFSET(INDIRECT("Raw"&C18&"!$C$1"),$F$12,1,1,50),P$1,OFFSET(INDIRECT("Raw"&C18&"!$C$1"),$E$12+$A22,1,1,50))*1 -> 0 | Q22: 4.38 | U22: 102 | V22: GAw | W22: Gambia | X22: 250.42 | Y22: 177.95 | Z22: 91.48 | AA22: 36.26
A23: 7 | B23: 2013 | C23: =SUMIF(OFFSET(INDIRECT("Raw"&C18&"!$C$1"),$F$13,1,1,50),C$1,OFFSET(INDIRECT("Raw"&C18&"!$C$1"),$E$13+$A23,1,1,50))*1 -> 0 | D23: =SUMIF(OFFSET(INDIRECT("Raw"&C18&"!$C$1"),$F$13,1,1,50),D$1,OFFSET(INDIRECT("Raw"&C18&"!$C$1"),$E$13+$A23,1,1,50))*1 -> 36 | E23: =SUMIF(OFFSET(INDIRECT("Raw"&C18&"!$C$1"),$F$13,1,1,50),E$1,OFFSET(INDIRECT("Raw"&C18&"!$C$1"),$E$13+$A23,1,1,50))*1 -> 0 | F23: =SUMIF(OFFSET(INDIRECT("Raw"&C18&"!$C$1"),$F$13,1,1,50),F$1,OFFSET(INDIRECT("Raw"&C18&"!$C$1"),$E$13+$A23,1,1,50))*1 -> 0 | G23: =SUMIF(OFFSET(INDIRECT("Raw"&C18&"!$C$1"),$F$13,1,1,50),G$1,OFFSET(INDIRECT("Raw"&C18&"!$C$1"),$E$13+$A23,1,1,50))*1 -> 0 | H23: =SUMIF(OFFSET(INDIRECT("Raw"&C18&"!$C$1"),$F$13,1,1,50),H$1,OFFSET(INDIRECT("Raw"&C18&"!$C$1"),$E$13+$A23,1,1,50))*1 -> 0 | I23: =SUMIF(OFFSET(INDIRECT("Raw"&C18&"!$C$1"),$F$13,1,1,50),I$1,OFFSET(INDIRECT("Raw"&C18&"!$C$1"),$E$13+$A23,1,1,50))*1 -> 0 | J23: =SUMIF(OFFSET(INDIRECT("Raw"&C18&"!$C$1"),$F$13,1,1,50),J$1,OFFSET(INDIRECT("Raw"&C18&"!$C$1"),$E$13+$A23,1,1,50))*1 -> 0 | K23: =SUMIF(OFFSET(INDIRECT("Raw"&C18&"!$C$1"),$F$13,1,1,50),K$1,OFFSET(INDIRECT("Raw"&C18&"!$C$1"),$E$13+$A23,1,1,50))*1 -> 0 | L23: 36 | M23: =SUMIF(OFFSET(INDIRECT("Raw"&C18&"!$C$1"),$F$12,1,1,50),M$1,OFFSET(INDIRECT("Raw"&C18&"!$C$1"),$E$12+$A23,1,1,50))*1 -> 12.05 | N23: =SUMIF(OFFSET(INDIRECT("Raw"&C18&"!$C$1"),$F$12,1,1,50),N$1,OFFSET(INDIRECT("Raw"&C18&"!$C$1"),$E$12+$A23,1,1,50))*1 -> 0 | O23: =SUMIF(OFFSET(INDIRECT("Raw"&C18&"!$C$1"),$F$12,1,1,50),O$1,OFFSET(INDIRECT("Raw"&C18&"!$C$1"),$E$12+$A23,1,1,50))*1 -> 0 | P23: =SUMIF(OFFSET(INDIRECT("Raw"&C18&"!$C$1"),$F$12,1,1,50),P$1,OFFSET(INDIRECT("Raw"&C18&"!$C$1"),$E$12+$A23,1,1,50))*1 -> 0 | Q23: 12.05 | U23: 131 | V23: GHw | W23: Ghana | X23: 5329.29 | Y23: 3487.03 | Z23: 2768.21 | AA23: 1496.24
A24: 8 | B24: 2014 | C24: =SUMIF(OFFSET(INDIRECT("Raw"&C18&"!$C$1"),$F$13,1,1,50),C$1,OFFSET(INDIRECT("Raw"&C18&"!$C$1"),$E$13+$A24,1,1,50))*1 -> 0 | D24: =SUMIF(OFFSET(INDIRECT("Raw"&C18&"!$C$1"),$F$13,1,1,50),D$1,OFFSET(INDIRECT("Raw"&C18&"!$C$1"),$E$13+$A24,1,1,50))*1 -> 0 | E24: =SUMIF(OFFSET(INDIRECT("Raw"&C18&"!$C$1"),$F$13,1,1,50),E$1,OFFSET(INDIRECT("Raw"&C18&"!$C$1"),$E$13+$A24,1,1,50))*1 -> 0 | F24: =SUMIF(OFFSET(INDIRECT("Raw"&C18&"!$C$1"),$F$13,1,1,50),F$1,OFFSET(INDIRECT("Raw"&C18&"!$C$1"),$E$13+$A24,1,1,50))*1 -> 0 | G24: =SUMIF(OFFSET(INDIRECT("Raw"&C18&"!$C$1"),$F$13,1,1,50),G$1,OFFSET(INDIRECT("Raw"&C18&"!$C$1"),$E$13+$A24,1,1,50))*1 -> 0 | H24: =SUMIF(OFFSET(INDIRECT("Raw"&C18&"!$C$1"),$F$13,1,1,50),H$1,OFFSET(INDIRECT("Raw"&C18&"!$C$1"),$E$13+$A24,1,1,50))*1 -> 0 | I24: =SUMIF(OFFSET(INDIRECT("Raw"&C18&"!$C$1"),$F$13,1,1,50),I$1,OFFSET(INDIRECT("Raw"&C18&"!$C$1"),$E$13+$A24,1,1,50))*1 -> 0 | J24: =SUMIF(OFFSET(INDIRECT("Raw"&C18&"!$C$1"),$F$13,1,1,50),J$1,OFFSET(INDIRECT("Raw"&C18&"!$C$1"),$E$13+$A24,1,1,50))*1 -> 0 | K24: =SUMIF(OFFSET(INDIRECT("Raw"&C18&"!$C$1"),$F$13,1,1,50),K$1,OFFSET(INDIRECT("Raw"&C18&"!$C$1"),$E$13+$A24,1,1,50))*1 -> 28.67 | L24: 28.67 | M24: =SUMIF(OFFSET(INDIRECT("Raw"&C18&"!$C$1"),$F$12,1,1,50),M$1,OFFSET(INDIRECT("Raw"&C18&"!$C$1"),$E$12+$A24,1,1,50))*1 -> 11.07 | N24: =SUMIF(OFFSET(INDIRECT("Raw"&C18&"!$C$1"),$F$12,1,1,50),N$1,OFFSET(INDIRECT("Raw"&C18&"!$C$1"),$E$12+$A24,1,1,50))*1 -> 0 | O24: =SUMIF(OFFSET(INDIRECT("Raw"&C18&"!$C$1"),$F$12,1,1,50),O$1,OFFSET(INDIRECT("Raw"&C18&"!$C$1"),$E$12+$A24,1,1,50))*1 -> 3.62 | P24: =SUMIF(OFFSET(INDIRECT("Raw"&C18&"!$C$1"),$F$12,1,1,50),P$1,OFFSET(INDIRECT("Raw"&C18&"!$C$1"),$E$12+$A24,1,1,50))*1 -> 0 | Q24: 14.69 | U24: 160 | V24: GUw | W24: Guinea | X24: 3841.89 | Y24: 3615.09 | Z24: 244.83 | AA24: 121.26
A25: 9 | B25: 2015 | C25: =SUMIF(OFFSET(INDIRECT("Raw"&C18&"!$C$1"),$F$13,1,1,50),C$1,OFFSET(INDIRECT("Raw"&C18&"!$C$1"),$E$13+$A25,1,1,50))*1 -> 0 | D25: =SUMIF(OFFSET(INDIRECT("Raw"&C18&"!$C$1"),$F$13,1,1,50),D$1,OFFSET(INDIRECT("Raw"&C18&"!$C$1"),$E$13+$A25,1,1,50))*1 -> 0 | E25: =SUMIF(OFFSET(INDIRECT("Raw"&C18&"!$C$1"),$F$13,1,1,50),E$1,OFFSET(INDIRECT("Raw"&C18&"!$C$1"),$E$13+$A25,1,1,50))*1 -> 0 | F25: =SUMIF(OFFSET(INDIRECT("Raw"&C18&"!$C$1"),$F$13,1,1,50),F$1,OFFSET(INDIRECT("Raw"&C18&"!$C$1"),$E$13+$A25,1,1,50))*1 -> 0 | G25: =SUMIF(OFFSET(INDIRECT("Raw"&C18&"!$C$1"),$F$13,1,1,50),G$1,OFFSET(INDIRECT("Raw"&C18&"!$C$1"),$E$13+$A25,1,1,50))*1 -> 0 | H25: =SUMIF(OFFSET(INDIRECT("Raw"&C18&"!$C$1"),$F$13,1,1,50),H$1,OFFSET(INDIRECT("Raw"&C18&"!$C$1"),$E$13+$A25,1,1,50))*1 -> 0 | I25: =SUMIF(OFFSET(INDIRECT("Raw"&C18&"!$C$1"),$F$13,1,1,50),I$1,OFFSET(INDIRECT("Raw"&C18&"!$C$1"),$E$13+$A25,1,1,50))*1 -> 0 | J25: =SUMIF(OFFSET(INDIRECT("Raw"&C18&"!$C$1"),$F$13,1,1,50),J$1,OFFSET(INDIRECT("Raw"&C18&"!$C$1"),$E$13+$A25,1,1,50))*1 -> 0 | K25: =SUMIF(OFFSET(INDIRECT("Raw"&C18&"!$C$1"),$F$13,1,1,50),K$1,OFFSET(INDIRECT("Raw"&C18&"!$C$1"),$E$13+$A25,1,1,50))*1 -> 0 | L25: 0 | M25: =SUMIF(OFFSET(INDIRECT("Raw"&C18&"!$C$1"),$F$12,1,1,50),M$1,OFFSET(INDIRECT("Raw"&C18&"!$C$1"),$E$12+$A25,1,1,50))*1 -> 0 | N25: =SUMIF(OFFSET(INDIRECT("Raw"&C18&"!$C$1"),$F$12,1,1,50),N$1,OFFSET(INDIRECT("Raw"&C18&"!$C$1"),$E$12+$A25,1,1,50))*1 -> 0 | O25: =SUMIF(OFFSET(INDIRECT("Raw"&C18&"!$C$1"),$F$12,1,1,50),O$1,OFFSET(INDIRECT("Raw"&C18&"!$C$1"),$E$12+$A25,1,1,50))*1 -> 0.53 | P25: =SUMIF(OFFSET(INDIRECT("Raw"&C18&"!$C$1"),$F$12,1,1,50),P$1,OFFSET(INDIRECT("Raw"&C18&"!$C$1"),$E$12+$A25,1,1,50))*1 -> 0 | Q25: 0.53 | U25: 189 | V25: GBw | W25: Guinea-Bissau | X25: 299.81 | Y25: 156.27 | Z25: 66.17 | AA25: 21.33
A26: 10 | B26: 2016 | C26: =SUMIF(OFFSET(INDIRECT("Raw"&C18&"!$C$1"),$F$13,1,1,50),C$1,OFFSET(INDIRECT("Raw"&C18&"!$C$1"),$E$13+$A26,1,1,50))*1 -> 0 | D26: =SUMIF(OFFSET(INDIRECT("Raw"&C18&"!$C$1"),$F$13,1,1,50),D$1,OFFSET(INDIRECT("Raw"&C18&"!$C$1"),$E$13+$A26,1,1,50))*1 -> 0 | E26: =SUMIF(OFFSET(INDIRECT("Raw"&C18&"!$C$1"),$F$13,1,1,50),E$1,OFFSET(INDIRECT("Raw"&C18&"!$C$1"),$E$13+$A26,1,1,50))*1 -> 0 | F26: =SUMIF(OFFSET(INDIRECT("Raw"&C18&"!$C$1"),$F$13,1,1,50),F$1,OFFSET(INDIRECT("Raw"&C18&"!$C$1"),$E$13+$A26,1,1,50))*1 -> 0 | G26: =SUMIF(OFFSET(INDIRECT("Raw"&C18&"!$C$1"),$F$13,1,1,50),G$1,OFFSET(INDIRECT("Raw"&C18&"!$C$1"),$E$13+$A26,1,1,50))*1 -> 0 | H26: =SUMIF(OFFSET(INDIRECT("Raw"&C18&"!$C$1"),$F$13,1,1,50),H$1,OFFSET(INDIRECT("Raw"&C18&"!$C$1"),$E$13+$A26,1,1,50))*1 -> 0 | I26: =SUMIF(OFFSET(INDIRECT("Raw"&C18&"!$C$1"),$F$13,1,1,50),I$1,OFFSET(INDIRECT("Raw"&C18&"!$C$1"),$E$13+$A26,1,1,50))*1 -> 0 | J26: =SUMIF(OFFSET(INDIRECT("Raw"&C18&"!$C$1"),$F$13,1,1,50),J$1,OFFSET(INDIRECT("Raw"&C18&"!$C$1"),$E$13+$A26,1,1,50))*1 -> 0 | K26: =SUMIF(OFFSET(INDIRECT("Raw"&C18&"!$C$1"),$F$13,1,1,50),K$1,OFFSET(INDIRECT("Raw"&C18&"!$C$1"),$E$13+$A26,1,1,50))*1 -> 0 | L26: 0 | M26: =SUMIF(OFFSET(INDIRECT("Raw"&C18&"!$C$1"),$F$12,1,1,50),M$1,OFFSET(INDIRECT("Raw"&C18&"!$C$1"),$E$12+$A26,1,1,50))*1 -> 0.34 | N26: =SUMIF(OFFSET(INDIRECT("Raw"&C18&"!$C$1"),$F$12,1,1,50),N$1,OFFSET(INDIRECT("Raw"&C18&"!$C$1"),$E$12+$A26,1,1,50))*1 -> 0 | O26: =SUMIF(OFFSET(INDIRECT("Raw"&C18&"!$C$1"),$F$12,1,1,50),O$1,OFFSET(INDIRECT("Raw"&C18&"!$C$1"),$E$12+$A26,1,1,50))*1 -> 2.17 | P26: =SUMIF(OFFSET(INDIRECT("Raw"&C18&"!$C$1"),$F$12,1,1,50),P$1,OFFSET(INDIRECT("Raw"&C18&"!$C$1"),$E$12+$A26,1,1,50))*1 -> 0 | Q26: 2.51 | U26: 218 | V26: LIw | W26: Liberia | X26: 560.01 | Y26: 402.4 | Z26: 78.91 | AA26: 46.57
A27: 11 | B27: 2017 | C27: =SUMIF(OFFSET(INDIRECT("Raw"&C18&"!$C$1"),$F$13,1,1,50),C$1,OFFSET(INDIRECT("Raw"&C18&"!$C$1"),$E$13+$A27,1,1,50))*1 -> 0 | D27: =SUMIF(OFFSET(INDIRECT("Raw"&C18&"!$C$1"),$F$13,1,1,50),D$1,OFFSET(INDIRECT("Raw"&C18&"!$C$1"),$E$13+$A27,1,1,50))*1 -> 0 | E27: =SUMIF(OFFSET(INDIRECT("Raw"&C18&"!$C$1"),$F$13,1,1,50),E$1,OFFSET(INDIRECT("Raw"&C18&"!$C$1"),$E$13+$A27,1,1,50))*1 -> 0 | F27: =SUMIF(OFFSET(INDIRECT("Raw"&C18&"!$C$1"),$F$13,1,1,50),F$1,OFFSET(INDIRECT("Raw"&C18&"!$C$1"),$E$13+$A27,1,1,50))*1 -> 0 | G27: =SUMIF(OFFSET(INDIRECT("Raw"&C18&"!$C$1"),$F$13,1,1,50),G$1,OFFSET(INDIRECT("Raw"&C18&"!$C$1"),$E$13+$A27,1,1,50))*1 -> 0 | H27: =SUMIF(OFFSET(INDIRECT("Raw"&C18&"!$C$1"),$F$13,1,1,50),H$1,OFFSET(INDIRECT("Raw"&C18&"!$C$1"),$E$13+$A27,1,1,50))*1 -> 0 | I27: =SUMIF(OFFSET(INDIRECT("Raw"&C18&"!$C$1"),$F$13,1,1,50),I$1,OFFSET(INDIRECT("Raw"&C18&"!$C$1"),$E$13+$A27,1,1,50))*1 -> 0 | J27: =SUMIF(OFFSET(INDIRECT("Raw"&C18&"!$C$1"),$F$13,1,1,50),J$1,OFFSET(INDIRECT("Raw"&C18&"!$C$1"),$E$13+$A27,1,1,50))*1 -> 0 | K27: =SUMIF(OFFSET(INDIRECT("Raw"&C18&"!$C$1"),$F$13,1,1,50),K$1,OFFSET(INDIRECT("Raw"&C18&"!$C$1"),$E$13+$A27,1,1,50))*1 -> 0 | L27: 0 | M27: =SUMIF(OFFSET(INDIRECT("Raw"&C18&"!$C$1"),$F$12,1,1,50),M$1,OFFSET(INDIRECT("Raw"&C18&"!$C$1"),$E$12+$A27,1,1,50))*1 -> 0.53 | N27: =SUMIF(OFFSET(INDIRECT("Raw"&C18&"!$C$1"),$F$12,1,1,50),N$1,OFFSET(INDIRECT("Raw"&C18&"!$C$1"),$E$12+$A27,1,1,50))*1 -> 0 | O27: =SUMIF(OFFSET(INDIRECT("Raw"&C18&"!$C$1"),$F$12,1,1,50),O$1,OFFSET(INDIRECT("Raw"&C18&"!$C$1"),$E$12+$A27,1,1,50))*1 -> 2.56 | P27: =SUMIF(OFFSET(INDIRECT("Raw"&C18&"!$C$1"),$F$12,1,1,50),P$1,OFFSET(INDIRECT("Raw"&C18&"!$C$1"),$E$12+$A27,1,1,50))*1 -> 0 | Q27: 3.09 | U27: 247 | V27: MAw | W27: Mali | X27: 1116.97 | Y27: 908.9 | Z27: 243.2 | AA27: 153.44
A28: 12 | B28: 2018 | C28: =SUMIF(OFFSET(INDIRECT("Raw"&C18&"!$C$1"),$F$13,1,1,50),C$1,OFFSET(INDIRECT("Raw"&C18&"!$C$1"),$E$13+$A28,1,1,50))*1 -> 0 | D28: =SUMIF(OFFSET(INDIRECT("Raw"&C18&"!$C$1"),$F$13,1,1,50),D$1,OFFSET(INDIRECT("Raw"&C18&"!$C$1"),$E$13+$A28,1,1,50))*1 -> 0 | E28: =SUMIF(OFFSET(INDIRECT("Raw"&C18&"!$C$1"),$F$13,1,1,50),E$1,OFFSET(INDIRECT("Raw"&C18&"!$C$1"),$E$13+$A28,1,1,50))*1 -> 0 | F28: =SUMIF(OFFSET(INDIRECT("Raw"&C18&"!$C$1"),$F$13,1,1,50),F$1,OFFSET(INDIRECT("Raw"&C18&"!$C$1"),$E$13+$A28,1,1,50))*1 -> 0 | G28: =SUMIF(OFFSET(INDIRECT("Raw"&C18&"!$C$1"),$F$13,1,1,50),G$1,OFFSET(INDIRECT("Raw"&C18&"!$C$1"),$E$13+$A28,1,1,50))*1 -> 0 | H28: =SUMIF(OFFSET(INDIRECT("Raw"&C18&"!$C$1"),$F$13,1,1,50),H$1,OFFSET(INDIRECT("Raw"&C18&"!$C$1"),$E$13+$A28,1,1,50))*1 -> 0 | I28: =SUMIF(OFFSET(INDIRECT("Raw"&C18&"!$C$1"),$F$13,1,1,50),I$1,OFFSET(INDIRECT("Raw"&C18&"!$C$1"),$E$13+$A28,1,1,50))*1 -> 0 | J28: =SUMIF(OFFSET(INDIRECT("Raw"&C18&"!$C$1"),$F$13,1,1,50),J$1,OFFSET(INDIRECT("Raw"&C18&"!$C$1"),$E$13+$A28,1,1,50))*1 -> 0 | K28: =SUMIF(OFFSET(INDIRECT("Raw"&C18&"!$C$1"),$F$13,1,1,50),K$1,OFFSET(INDIRECT("Raw"&C18&"!$C$1"),$E$13+$A28,1,1,50))*1 -> 0 | L28: 0 | M28: =SUMIF(OFFSET(INDIRECT("Raw"&C18&"!$C$1"),$F$12,1,1,50),M$1,OFFSET(INDIRECT("Raw"&C18&"!$C$1"),$E$12+$A28,1,1,50))*1 -> 3.68 | N28: =SUMIF(OFFSET(INDIRECT("Raw"&C18&"!$C$1"),$F$12,1,1,50),N$1,OFFSET(INDIRECT("Raw"&C18&"!$C$1"),$E$12+$A28,1,1,50))*1 -> 0 | O28: =SUMIF(OFFSET(INDIRECT("Raw"&C18&"!$C$1"),$F$12,1,1,50),O$1,OFFSET(INDIRECT("Raw"&C18&"!$C$1"),$E$12+$A28,1,1,50))*1 -> 1.55 | P28: =SUMIF(OFFSET(INDIRECT("Raw"&C18&"!$C$1"),$F$12,1,1,50),P$1,OFFSET(INDIRECT("Raw"&C18&"!$C$1"),$E$12+$A28,1,1,50))*1 -> 0 | Q28: 5.23 | U28: 276 | V28: NIw | W28: Niger | X28: 736.95 | Y28: 532.07 | Z28: 99.92 | AA28: 45.37
A29: 13 | B29: 2019 | C29: =SUMIF(OFFSET(INDIRECT("Raw"&C18&"!$C$1"),$F$13,1,1,50),C$1,OFFSET(INDIRECT("Raw"&C18&"!$C$1"),$E$13+$A29,1,1,50))*1 -> 0 | D29: =SUMIF(OFFSET(INDIRECT("Raw"&C18&"!$C$1"),$F$13,1,1,50),D$1,OFFSET(INDIRECT("Raw"&C18&"!$C$1"),$E$13+$A29,1,1,50))*1 -> 0 | E29: =SUMIF(OFFSET(INDIRECT("Raw"&C18&"!$C$1"),$F$13,1,1,50),E$1,OFFSET(INDIRECT("Raw"&C18&"!$C$1"),$E$13+$A29,1,1,50))*1 -> 0 | F29: =SUMIF(OFFSET(INDIRECT("Raw"&C18&"!$C$1"),$F$13,1,1,50),F$1,OFFSET(INDIRECT("Raw"&C18&"!$C$1"),$E$13+$A29,1,1,50))*1 -> 0 | G29: =SUMIF(OFFSET(INDIRECT("Raw"&C18&"!$C$1"),$F$13,1,1,50),G$1,OFFSET(INDIRECT("Raw"&C18&"!$C$1"),$E$13+$A29,1,1,50))*1 -> 0 | H29: =SUMIF(OFFSET(INDIRECT("Raw"&C18&"!$C$1"),$F$13,1,1,50),H$1,OFFSET(INDIRECT("Raw"&C18&"!$C$1"),$E$13+$A29,1,1,50))*1 -> 0 | I29: =SUMIF(OFFSET(INDIRECT("Raw"&C18&"!$C$1"),$F$13,1,1,50),I$1,OFFSET(INDIRECT("Raw"&C18&"!$C$1"),$E$13+$A29,1,1,50))*1 -> 0 | J29: =SUMIF(OFFSET(INDIRECT("Raw"&C18&"!$C$1"),$F$13,1,1,50),J$1,OFFSET(INDIRECT("Raw"&C18&"!$C$1"),$E$13+$A29,1,1,50))*1 -> 0 | K29: =SUMIF(OFFSET(INDIRECT("Raw"&C18&"!$C$1"),$F$13,1,1,50),K$1,OFFSET(INDIRECT("Raw"&C18&"!$C$1"),$E$13+$A29,1,1,50))*1 -> 0 | L29: 0 | M29: =SUMIF(OFFSET(INDIRECT("Raw"&C18&"!$C$1"),$F$12,1,1,50),M$1,OFFSET(INDIRECT("Raw"&C18&"!$C$1"),$E$12+$A29,1,1,50))*1 -> 5.44 | N29: =SUMIF(OFFSET(INDIRECT("Raw"&C18&"!$C$1"),$F$12,1,1,50),N$1,OFFSET(INDIRECT("Raw"&C18&"!$C$1"),$E$12+$A29,1,1,50))*1 -> 0 | O29: =SUMIF(OFFSET(INDIRECT("Raw"&C18&"!$C$1"),$F$12,1,1,50),O$1,OFFSET(INDIRECT("Raw"&C18&"!$C$1"),$E$12+$A29,1,1,50))*1 -> 1.82 | P29: =SUMIF(OFFSET(INDIRECT("Raw"&C18&"!$C$1"),$F$12,1,1,50),P$1,OFFSET(INDIRECT("Raw"&C18&"!$C$1"),$E$12+$A29,1,1,50))*1 -> 0 | Q29: 7.26 | U29: 305 | V29: NGw | W29: Nigeria | X29: 35706.72 | Y29: 16831.48 | Z29: 7711.78 | AA29: 2761.08
A30: 14 | B30: 2020 | C30: =SUMIF(OFFSET(INDIRECT("Raw"&C18&"!$C$1"),$F$13,1,1,50),C$1,OFFSET(INDIRECT("Raw"&C18&"!$C$1"),$E$13+$A30,1,1,50))*1 -> 0 | D30: =SUMIF(OFFSET(INDIRECT("Raw"&C18&"!$C$1"),$F$13,1,1,50),D$1,OFFSET(INDIRECT("Raw"&C18&"!$C$1"),$E$13+$A30,1,1,50))*1 -> 0 | E30: =SUMIF(OFFSET(INDIRECT("Raw"&C18&"!$C$1"),$F$13,1,1,50),E$1,OFFSET(INDIRECT("Raw"&C18&"!$C$1"),$E$13+$A30,1,1,50))*1 -> 0 | F30: =SUMIF(OFFSET(INDIRECT("Raw"&C18&"!$C$1"),$F$13,1,1,50),F$1,OFFSET(INDIRECT("Raw"&C18&"!$C$1"),$E$13+$A30,1,1,50))*1 -> 0 | G30: =SUMIF(OFFSET(INDIRECT("Raw"&C18&"!$C$1"),$F$13,1,1,50),G$1,OFFSET(INDIRECT("Raw"&C18&"!$C$1"),$E$13+$A30,1,1,50))*1 -> 0 | H30: =SUMIF(OFFSET(INDIRECT("Raw"&C18&"!$C$1"),$F$13,1,1,50),H$1,OFFSET(INDIRECT("Raw"&C18&"!$C$1"),$E$13+$A30,1,1,50))*1 -> 12.31 | I30: =SUMIF(OFFSET(INDIRECT("Raw"&C18&"!$C$1"),$F$13,1,1,50),I$1,OFFSET(INDIRECT("Raw"&C18&"!$C$1"),$E$13+$A30,1,1,50))*1 -> 0 | J30: =SUMIF(OFFSET(INDIRECT("Raw"&C18&"!$C$1"),$F$13,1,1,50),J$1,OFFSET(INDIRECT("Raw"&C18&"!$C$1"),$E$13+$A30,1,1,50))*1 -> 0 | K30: =SUMIF(OFFSET(INDIRECT("Raw"&C18&"!$C$1"),$F$13,1,1,50),K$1,OFFSET(INDIRECT("Raw"&C18&"!$C$1"),$E$13+$A30,1,1,50))*1 -> 0 | L30: 12.31 | M30: =SUMIF(OFFSET(INDIRECT("Raw"&C18&"!$C$1"),$F$12,1,1,50),M$1,OFFSET(INDIRECT("Raw"&C18&"!$C$1"),$E$12+$A30,1,1,50))*1 -> 11.99 | N30: =SUMIF(OFFSET(INDIRECT("Raw"&C18&"!$C$1"),$F$12,1,1,50),N$1,OFFSET(INDIRECT("Raw"&C18&"!$C$1"),$E$12+$A30,1,1,50))*1 -> 0 | O30: =SUMIF(OFFSET(INDIRECT("Raw"&C18&"!$C$1"),$F$12,1,1,50),O$1,OFFSET(INDIRECT("Raw"&C18&"!$C$1"),$E$12+$A30,1,1,50))*1 -> 3.01 | P30: =SUMIF(OFFSET(INDIRECT("Raw"&C18&"!$C$1"),$F$12,1,1,50),P$1,OFFSET(INDIRECT("Raw"&C18&"!$C$1"),$E$12+$A30,1,1,50))*1 -> 0 | Q30: 15 | U30: 334 | V30: SEw | W30: Senegal | X30: 2303.14 | Y30: 1873.14 | Z30: 471.03 | AA30: 104.09
A31: 15 | B31: 2021 | C31: =SUMIF(OFFSET(INDIRECT("Raw"&C18&"!$C$1"),$F$13,1,1,50),C$1,OFFSET(INDIRECT("Raw"&C18&"!$C$1"),$E$13+$A31,1,1,50))*1 -> 0 | D31: =SUMIF(OFFSET(INDIRECT("Raw"&C18&"!$C$1"),$F$13,1,1,50),D$1,OFFSET(INDIRECT("Raw"&C18&"!$C$1"),$E$13+$A31,1,1,50))*1 -> 0 | E31: =SUMIF(OFFSET(INDIRECT("Raw"&C18&"!$C$1"),$F$13,1,1,50),E$1,OFFSET(INDIRECT("Raw"&C18&"!$C$1"),$E$13+$A31,1,1,50))*1 -> 0 | F31: =SUMIF(OFFSET(INDIRECT("Raw"&C18&"!$C$1"),$F$13,1,1,50),F$1,OFFSET(INDIRECT("Raw"&C18&"!$C$1"),$E$13+$A31,1,1,50))*1 -> 0 | G31: =SUMIF(OFFSET(INDIRECT("Raw"&C18&"!$C$1"),$F$13,1,1,50),G$1,OFFSET(INDIRECT("Raw"&C18&"!$C$1"),$E$13+$A31,1,1,50))*1 -> 0 | H31: =SUMIF(OFFSET(INDIRECT("Raw"&C18&"!$C$1"),$F$13,1,1,50),H$1,OFFSET(INDIRECT("Raw"&C18&"!$C$1"),$E$13+$A31,1,1,50))*1 -> 25.11 | I31: =SUMIF(OFFSET(INDIRECT("Raw"&C18&"!$C$1"),$F$13,1,1,50),I$1,OFFSET(INDIRECT("Raw"&C18&"!$C$1"),$E$13+$A31,1,1,50))*1 -> 0 | J31: =SUMIF(OFFSET(INDIRECT("Raw"&C18&"!$C$1"),$F$13,1,1,50),J$1,OFFSET(INDIRECT("Raw"&C18&"!$C$1"),$E$13+$A31,1,1,50))*1 -> 0 | K31: =SUMIF(OFFSET(INDIRECT("Raw"&C18&"!$C$1"),$F$13,1,1,50),K$1,OFFSET(INDIRECT("Raw"&C18&"!$C$1"),$E$13+$A31,1,1,50))*1 -> 0 | L31: 25.11 | M31: =SUMIF(OFFSET(INDIRECT("Raw"&C18&"!$C$1"),$F$12,1,1,50),M$1,OFFSET(INDIRECT("Raw"&C18&"!$C$1"),$E$12+$A31,1,1,50))*1 -> 3.55 | N31: =SUMIF(OFFSET(INDIRECT("Raw"&C18&"!$C$1"),$F$12,1,1,50),N$1,OFFSET(INDIRECT("Raw"&C18&"!$C$1"),$E$12+$A31,1,1,50))*1 -> 0 | O31: =SUMIF(OFFSET(INDIRECT("Raw"&C18&"!$C$1"),$F$12,1,1,50),O$1,OFFSET(INDIRECT("Raw"&C18&"!$C$1"),$E$12+$A31,1,1,50))*1 -> 2.93 | P31: =SUMIF(OFFSET(INDIRECT("Raw"&C18&"!$C$1"),$F$12,1,1,50),P$1,OFFSET(INDIRECT("Raw"&C18&"!$C$1"),$E$12+$A31,1,1,50))*1 -> 0 | Q31: 6.48 | U31: 363 | V31: SIw | W31: Sierra Leone | X31: 1419.71 | Y31: 1184.64 | Z31: 257.83 | AA31: 119.51
A32: 16 | B32: 2022 | C32: =SUMIF(OFFSET(INDIRECT("Raw"&C18&"!$C$1"),$F$13,1,1,50),C$1,OFFSET(INDIRECT("Raw"&C18&"!$C$1"),$E$13+$A32,1,1,50))*1 -> 0 | D32: =SUMIF(OFFSET(INDIRECT("Raw"&C18&"!$C$1"),$F$13,1,1,50),D$1,OFFSET(INDIRECT("Raw"&C18&"!$C$1"),$E$13+$A32,1,1,50))*1 -> 0 | E32: =SUMIF(OFFSET(INDIRECT("Raw"&C18&"!$C$1"),$F$13,1,1,50),E$1,OFFSET(INDIRECT("Raw"&C18&"!$C$1"),$E$13+$A32,1,1,50))*1 -> 0 | F32: =SUMIF(OFFSET(INDIRECT("Raw"&C18&"!$C$1"),$F$13,1,1,50),F$1,OFFSET(INDIRECT("Raw"&C18&"!$C$1"),$E$13+$A32,1,1,50))*1 -> 0 | G32: =SUMIF(OFFSET(INDIRECT("Raw"&C18&"!$C$1"),$F$13,1,1,50),G$1,OFFSET(INDIRECT("Raw"&C18&"!$C$1"),$E$13+$A32,1,1,50))*1 -> 0 | H32: =SUMIF(OFFSET(INDIRECT("Raw"&C18&"!$C$1"),$F$13,1,1,50),H$1,OFFSET(INDIRECT("Raw"&C18&"!$C$1"),$E$13+$A32,1,1,50))*1 -> 28.45 | I32: =SUMIF(OFFSET(INDIRECT("Raw"&C18&"!$C$1"),$F$13,1,1,50),I$1,OFFSET(INDIRECT("Raw"&C18&"!$C$1"),$E$13+$A32,1,1,50))*1 -> 0 | J32: =SUMIF(OFFSET(INDIRECT("Raw"&C18&"!$C$1"),$F$13,1,1,50),J$1,OFFSET(INDIRECT("Raw"&C18&"!$C$1"),$E$13+$A32,1,1,50))*1 -> 0 | K32: =SUMIF(OFFSET(INDIRECT("Raw"&C18&"!$C$1"),$F$13,1,1,50),K$1,OFFSET(INDIRECT("Raw"&C18&"!$C$1"),$E$13+$A32,1,1,50))*1 -> 0 | L32: 28.45 | M32: =SUMIF(OFFSET(INDIRECT("Raw"&C18&"!$C$1"),$F$12,1,1,50),M$1,OFFSET(INDIRECT("Raw"&C18&"!$C$1"),$E$12+$A32,1,1,50))*1 -> 2.7 | N32: =SUMIF(OFFSET(INDIRECT("Raw"&C18&"!$C$1"),$F$12,1,1,50),N$1,OFFSET(INDIRECT("Raw"&C18&"!$C$1"),$E$12+$A32,1,1,50))*1 -> 0 | O32: =SUMIF(OFFSET(INDIRECT("Raw"&C18&"!$C$1"),$F$12,1,1,50),O$1,OFFSET(INDIRECT("Raw"&C18&"!$C$1"),$E$12+$A32,1,1,50))*1 -> 1.65 | P32: =SUMIF(OFFSET(INDIRECT("Raw"&C18&"!$C$1"),$F$12,1,1,50),P$1,OFFSET(INDIRECT("Raw"&C18&"!$C$1"),$E$12+$A32,1,1,50))*1 -> 0 | Q32: 4.35 | U32: 392 | V32: TBw | W32: Togo/Benin | X32: 1991.6 | Y32: 1370.23 | Z32: 579.13 | AA32: 221.9
A33: 17 | B33: 2023 | C33: =SUMIF(OFFSET(INDIRECT("Raw"&C18&"!$C$1"),$F$13,1,1,50),C$1,OFFSET(INDIRECT("Raw"&C18&"!$C$1"),$E$13+$A33,1,1,50))*1 -> 0 | D33: =SUMIF(OFFSET(INDIRECT("Raw"&C18&"!$C$1"),$F$13,1,1,50),D$1,OFFSET(INDIRECT("Raw"&C18&"!$C$1"),$E$13+$A33,1,1,50))*1 -> 0 | E33: =SUMIF(OFFSET(INDIRECT("Raw"&C18&"!$C$1"),$F$13,1,1,50),E$1,OFFSET(INDIRECT("Raw"&C18&"!$C$1"),$E$13+$A33,1,1,50))*1 -> 0 | F33: =SUMIF(OFFSET(INDIRECT("Raw"&C18&"!$C$1"),$F$13,1,1,50),F$1,OFFSET(INDIRECT("Raw"&C18&"!$C$1"),$E$13+$A33,1,1,50))*1 -> 0 | G33: =SUMIF(OFFSET(INDIRECT("Raw"&C18&"!$C$1"),$F$13,1,1,50),G$1,OFFSET(INDIRECT("Raw"&C18&"!$C$1"),$E$13+$A33,1,1,50))*1 -> 0 | H33: =SUMIF(OFFSET(INDIRECT("Raw"&C18&"!$C$1"),$F$13,1,1,50),H$1,OFFSET(INDIRECT("Raw"&C18&"!$C$1"),$E$13+$A33,1,1,50))*1 -> 17.4 | I33: =SUMIF(OFFSET(INDIRECT("Raw"&C18&"!$C$1"),$F$13,1,1,50),I$1,OFFSET(INDIRECT("Raw"&C18&"!$C$1"),$E$13+$A33,1,1,50))*1 -> 0 | J33: =SUMIF(OFFSET(INDIRECT("Raw"&C18&"!$C$1"),$F$13,1,1,50),J$1,OFFSET(INDIRECT("Raw"&C18&"!$C$1"),$E$13+$A33,1,1,50))*1 -> 0 | K33: =SUMIF(OFFSET(INDIRECT("Raw"&C18&"!$C$1"),$F$13,1,1,50),K$1,OFFSET(INDIRECT("Raw"&C18&"!$C$1"),$E$13+$A33,1,1,50))*1 -> 0 | L33: 17.4 | M33: =SUMIF(OFFSET(INDIRECT("Raw"&C18&"!$C$1"),$F$12,1,1,50),M$1,OFFSET(INDIRECT("Raw"&C18&"!$C$1"),$E$12+$A33,1,1,50))*1 -> 21.35 | N33: =SUMIF(OFFSET(INDIRECT("Raw"&C18&"!$C$1"),$F$12,1,1,50),N$1,OFFSET(INDIRECT("Raw"&C18&"!$C$1"),$E$12+$A33,1,1,50))*1 -> 0 | O33: =SUMIF(OFFSET(INDIRECT("Raw"&C18&"!$C$1"),$F$12,1,1,50),O$1,OFFSET(INDIRECT("Raw"&C18&"!$C$1"),$E$12+$A33,1,1,50))*1 -> 3.11 | P33: =SUMIF(OFFSET(INDIRECT("Raw"&C18&"!$C$1"),$F$12,1,1,50),P$1,OFFSET(INDIRECT("Raw"&C18&"!$C$1"),$E$12+$A33,1,1,50))*1 -> 0 | Q33: 24.46 | W33: Total | X33: =SUM(X20:X32) -> 58504.96 | Y33: =SUM(Y20:Y32) -> 32743.88 | Z33: 13559.4 | AA33: 5400.07
A34: 18 | B34: 2024 | C34: =SUMIF(OFFSET(INDIRECT("Raw"&C18&"!$C$1"),$F$13,1,1,50),C$1,OFFSET(INDIRECT("Raw"&C18&"!$C$1"),$E$13+$A34,1,1,50))*1 -> 0 | D34: =SUMIF(OFFSET(INDIRECT("Raw"&C18&"!$C$1"),$F$13,1,1,50),D$1,OFFSET(INDIRECT("Raw"&C18&"!$C$1"),$E$13+$A34,1,1,50))*1 -> 0 | E34: =SUMIF(OFFSET(INDIRECT("Raw"&C18&"!$C$1"),$F$13,1,1,50),E$1,OFFSET(INDIRECT("Raw"&C18&"!$C$1"),$E$13+$A34,1,1,50))*1 -> 0 | F34: =SUMIF(OFFSET(INDIRECT("Raw"&C18&"!$C$1"),$F$13,1,1,50),F$1,OFFSET(INDIRECT("Raw"&C18&"!$C$1"),$E$13+$A34,1,1,50))*1 -> 0 | G34: =SUMIF(OFFSET(INDIRECT("Raw"&C18&"!$C$1"),$F$13,1,1,50),G$1,OFFSET(INDIRECT("Raw"&C18&"!$C$1"),$E$13+$A34,1,1,50))*1 -> 0 | H34: =SUMIF(OFFSET(INDIRECT("Raw"&C18&"!$C$1"),$F$13,1,1,50),H$1,OFFSET(INDIRECT("Raw"&C18&"!$C$1"),$E$13+$A34,1,1,50))*1 -> 22.27 | I34: =SUMIF(OFFSET(INDIRECT("Raw"&C18&"!$C$1"),$F$13,1,1,50),I$1,OFFSET(INDIRECT("Raw"&C18&"!$C$1"),$E$13+$A34,1,1,50))*1 -> 90.62 | J34: =SUMIF(OFFSET(INDIRECT("Raw"&C18&"!$C$1"),$F$13,1,1,50),J$1,OFFSET(INDIRECT("Raw"&C18&"!$C$1"),$E$13+$A34,1,1,50))*1 -> 0 | K34: =SUMIF(OFFSET(INDIRECT("Raw"&C18&"!$C$1"),$F$13,1,1,50),K$1,OFFSET(INDIRECT("Raw"&C18&"!$C$1"),$E$13+$A34,1,1,50))*1 -> 0 | L34: 112.89 | M34: =SUMIF(OFFSET(INDIRECT("Raw"&C18&"!$C$1"),$F$12,1,1,50),M$1,OFFSET(INDIRECT("Raw"&C18&"!$C$1"),$E$12+$A34,1,1,50))*1 -> 12.49 | N34: =SUMIF(OFFSET(INDIRECT("Raw"&C18&"!$C$1"),$F$12,1,1,50),N$1,OFFSET(INDIRECT("Raw"&C18&"!$C$1"),$E$12+$A34,1,1,50))*1 -> 0 | O34: =SUMIF(OFFSET(INDIRECT("Raw"&C18&"!$C$1"),$F$12,1,1,50),O$1,OFFSET(INDIRECT("Raw"&C18&"!$C$1"),$E$12+$A34,1,1,50))*1 -> 3.5 | P34: =SUMIF(OFFSET(INDIRECT("Raw"&C18&"!$C$1"),$F$12,1,1,50),P$1,OFFSET(INDIRECT("Raw"&C18&"!$C$1"),$E$12+$A34,1,1,50))*1 -> 0 | Q34: 15.99 | Y34: =(Y33+AA33)/(X33+Z33) -> 0.5293039444
A35: 19 | B35: 2025 | C35: =SUMIF(OFFSET(INDIRECT("Raw"&C18&"!$C$1"),$F$13,1,1,50),C$1,OFFSET(INDIRECT("Raw"&C18&"!$C$1"),$E$13+$A35,1,1,50))*1 -> 0 | D35: =SUMIF(OFFSET(INDIRECT("Raw"&C18&"!$C$1"),$F$13,1,1,50),D$1,OFFSET(INDIRECT("Raw"&C18&"!$C$1"),$E$13+$A35,1,1,50))*1 -> 0 | E35: =SUMIF(OFFSET(INDIRECT("Raw"&C18&"!$C$1"),$F$13,1,1,50),E$1,OFFSET(INDIRECT("Raw"&C18&"!$C$1"),$E$13+$A35,1,1,50))*1 -> 0 | F35: =SUMIF(OFFSET(INDIRECT("Raw"&C18&"!$C$1"),$F$13,1,1,50),F$1,OFFSET(INDIRECT("Raw"&C18&"!$C$1"),$E$13+$A35,1,1,50))*1 -> 0 | G35: =SUMIF(OFFSET(INDIRECT("Raw"&C18&"!$C$1"),$F$13,1,1,50),G$1,OFFSET(INDIRECT("Raw"&C18&"!$C$1"),$E$13+$A35,1,1,50))*1 -> 0 | H35: =SUMIF(OFFSET(INDIRECT("Raw"&C18&"!$C$1"),$F$13,1,1,50),H$1,OFFSET(INDIRECT("Raw"&C18&"!$C$1"),$E$13+$A35,1,1,50))*1 -> 30.27 | I35: =SUMIF(OFFSET(INDIRECT("Raw"&C18&"!$C$1"),$F$13,1,1,50),I$1,OFFSET(INDIRECT("Raw"&C18&"!$C$1"),$E$13+$A35,1,1,50))*1 -> 6.1 | J35: =SUMIF(OFFSET(INDIRECT("Raw"&C18&"!$C$1"),$F$13,1,1,50),J$1,OFFSET(INDIRECT("Raw"&C18&"!$C$1"),$E$13+$A35,1,1,50))*1 -> 0 | K35: =SUMIF(OFFSET(INDIRECT("Raw"&C18&"!$C$1"),$F$13,1,1,50),K$1,OFFSET(INDIRECT("Raw"&C18&"!$C$1"),$E$13+$A35,1,1,50))*1 -> 0 | L35: 36.37 | M35: =SUMIF(OFFSET(INDIRECT("Raw"&C18&"!$C$1"),$F$12,1,1,50),M$1,OFFSET(INDIRECT("Raw"&C18&"!$C$1"),$E$12+$A35,1,1,50))*1 -> 5.87 | N35: =SUMIF(OFFSET(INDIRECT("Raw"&C18&"!$C$1"),$F$12,1,1,50),N$1,OFFSET(INDIRECT("Raw"&C18&"!$C$1"),$E$12+$A35,1,1,50))*1 -> 0 | O35: =SUMIF(OFFSET(INDIRECT("Raw"&C18&"!$C$1"),$F$12,1,1,50),O$1,OFFSET(INDIRECT("Raw"&C18&"!$C$1"),$E$12+$A35,1,1,50))*1 -> 4.08 | P35: =SUMIF(OFFSET(INDIRECT("Raw"&C18&"!$C$1"),$F$12,1,1,50),P$1,OFFSET(INDIRECT("Raw"&C18&"!$C$1"),$E$12+$A35,1,1,50))*1 -> 0 | Q35: 9.95
A36: 20 | B36: 2026 | C36: =SUMIF(OFFSET(INDIRECT("Raw"&C18&"!$C$1"),$F$13,1,1,50),C$1,OFFSET(INDIRECT("Raw"&C18&"!$C$1"),$E$13+$A36,1,1,50))*1 -> 0 | D36: =SUMIF(OFFSET(INDIRECT("Raw"&C18&"!$C$1"),$F$13,1,1,50),D$1,OFFSET(INDIRECT("Raw"&C18&"!$C$1"),$E$13+$A36,1,1,50))*1 -> 0 | E36: =SUMIF(OFFSET(INDIRECT("Raw"&C18&"!$C$1"),$F$13,1,1,50),E$1,OFFSET(INDIRECT("Raw"&C18&"!$C$1"),$E$13+$A36,1,1,50))*1 -> 0 | F36: =SUMIF(OFFSET(INDIRECT("Raw"&C18&"!$C$1"),$F$13,1,1,50),F$1,OFFSET(INDIRECT("Raw"&C18&"!$C$1"),$E$13+$A36,1,1,50))*1 -> 0 | G36: =SUMIF(OFFSET(INDIRECT("Raw"&C18&"!$C$1"),$F$13,1,1,50),G$1,OFFSET(INDIRECT("Raw"&C18&"!$C$1"),$E$13+$A36,1,1,50))*1 -> 0 | H36: =SUMIF(OFFSET(INDIRECT("Raw"&C18&"!$C$1"),$F$13,1,1,50),H$1,OFFSET(INDIRECT("Raw"&C18&"!$C$1"),$E$13+$A36,1,1,50))*1 -> 22.49 | I36: =SUMIF(OFFSET(INDIRECT("Raw"&C18&"!$C$1"),$F$13,1,1,50),I$1,OFFSET(INDIRECT("Raw"&C18&"!$C$1"),$E$13+$A36,1,1,50))*1 -> 6.21 | J36: =SUMIF(OFFSET(INDIRECT("Raw"&C18&"!$C$1"),$F$13,1,1,50),J$1,OFFSET(INDIRECT("Raw"&C18&"!$C$1"),$E$13+$A36,1,1,50))*1 -> 0 | K36: =SUMIF(OFFSET(INDIRECT("Raw"&C18&"!$C$1"),$F$13,1,1,50),K$1,OFFSET(INDIRECT("Raw"&C18&"!$C$1"),$E$13+$A36,1,1,50))*1 -> 0 | L36: 28.7 | M36: =SUMIF(OFFSET(INDIRECT("Raw"&C18&"!$C$1"),$F$12,1,1,50),M$1,OFFSET(INDIRECT("Raw"&C18&"!$C$1"),$E$12+$A36,1,1,50))*1 -> 6.39 | N36: =SUMIF(OFFSET(INDIRECT("Raw"&C18&"!$C$1"),$F$12,1,1,50),N$1,OFFSET(INDIRECT("Raw"&C18&"!$C$1"),$E$12+$A36,1,1,50))*1 -> 0 | O36: =SUMIF(OFFSET(INDIRECT("Raw"&C18&"!$C$1"),$F$12,1,1,50),O$1,OFFSET(INDIRECT("Raw"&C18&"!$C$1"),$E$12+$A36,1,1,50))*1 -> 6.89 | P36: =SUMIF(OFFSET(INDIRECT("Raw"&C18&"!$C$1"),$F$12,1,1,50),P$1,OFFSET(INDIRECT("Raw"&C18&"!$C$1"),$E$12+$A36,1,1,50))*1 -> 0 | Q36: 13.28
A37: 21 | B37: 2027 | C37: =SUMIF(OFFSET(INDIRECT("Raw"&C18&"!$C$1"),$F$13,1,1,50),C$1,OFFSET(INDIRECT("Raw"&C18&"!$C$1"),$E$13+$A37,1,1,50))*1 -> 0 | D37: =SUMIF(OFFSET(INDIRECT("Raw"&C18&"!$C$1"),$F$13,1,1,50),D$1,OFFSET(INDIRECT("Raw"&C18&"!$C$1"),$E$13+$A37,1,1,50))*1 -> 0 | E37: =SUMIF(OFFSET(INDIRECT("Raw"&C18&"!$C$1"),$F$13,1,1,50),E$1,OFFSET(INDIRECT("Raw"&C18&"!$C$1"),$E$13+$A37,1,1,50))*1 -> 0 | F37: =SUMIF(OFFSET(INDIRECT("Raw"&C18&"!$C$1"),$F$13,1,1,50),F$1,OFFSET(INDIRECT("Raw"&C18&"!$C$1"),$E$13+$A37,1,1,50))*1 -> 0 | G37: =SUMIF(OFFSET(INDIRECT("Raw"&C18&"!$C$1"),$F$13,1,1,50),G$1,OFFSET(INDIRECT("Raw"&C18&"!$C$1"),$E$13+$A37,1,1,50))*1 -> 0 | H37: =SUMIF(OFFSET(INDIRECT("Raw"&C18&"!$C$1"),$F$13,1,1,50),H$1,OFFSET(INDIRECT("Raw"&C18&"!$C$1"),$E$13+$A37,1,1,50))*1 -> 0 | I37: =SUMIF(OFFSET(INDIRECT("Raw"&C18&"!$C$1"),$F$13,1,1,50),I$1,OFFSET(INDIRECT("Raw"&C18&"!$C$1"),$E$13+$A37,1,1,50))*1 -> 6.96 | J37: =SUMIF(OFFSET(INDIRECT("Raw"&C18&"!$C$1"),$F$13,1,1,50),J$1,OFFSET(INDIRECT("Raw"&C18&"!$C$1"),$E$13+$A37,1,1,50))*1 -> 97.59 | K37: =SUMIF(OFFSET(INDIRECT("Raw"&C18&"!$C$1"),$F$13,1,1,50),K$1,OFFSET(INDIRECT("Raw"&C18&"!$C$1"),$E$13+$A37,1,1,50))*1 -> 0 | L37: 104.55 | M37: =SUMIF(OFFSET(INDIRECT("Raw"&C18&"!$C$1"),$F$12,1,1,50),M$1,OFFSET(INDIRECT("Raw"&C18&"!$C$1"),$E$12+$A37,1,1,50))*1 -> 5.39 | N37: =SUMIF(OFFSET(INDIRECT("Raw"&C18&"!$C$1"),$F$12,1,1,50),N$1,OFFSET(INDIRECT("Raw"&C18&"!$C$1"),$E$12+$A37,1,1,50))*1 -> 0 | O37: =SUMIF(OFFSET(INDIRECT("Raw"&C18&"!$C$1"),$F$12,1,1,50),O$1,OFFSET(INDIRECT("Raw"&C18&"!$C$1"),$E$12+$A37,1,1,50))*1 -> 2.25 | P37: =SUMIF(OFFSET(INDIRECT("Raw"&C18&"!$C$1"),$F$12,1,1,50),P$1,OFFSET(INDIRECT("Raw"&C18&"!$C$1"),$E$12+$A37,1,1,50))*1 -> 0 | Q37: 7.64
A38: 22 | B38: 2028 | C38: =SUMIF(OFFSET(INDIRECT("Raw"&C18&"!$C$1"),$F$13,1,1,50),C$1,OFFSET(INDIRECT("Raw"&C18&"!$C$1"),$E$13+$A38,1,1,50))*1 -> 0 | D38: =SUMIF(OFFSET(INDIRECT("Raw"&C18&"!$C$1"),$F$13,1,1,50),D$1,OFFSET(INDIRECT("Raw"&C18&"!$C$1"),$E$13+$A38,1,1,50))*1 -> 0 | E38: =SUMIF(OFFSET(INDIRECT("Raw"&C18&"!$C$1"),$F$13,1,1,50),E$1,OFFSET(INDIRECT("Raw"&C18&"!$C$1"),$E$13+$A38,1,1,50))*1 -> 0 | F38: =SUMIF(OFFSET(INDIRECT("Raw"&C18&"!$C$1"),$F$13,1,1,50),F$1,OFFSET(INDIRECT("Raw"&C18&"!$C$1"),$E$13+$A38,1,1,50))*1 -> 0 | G38: =SUMIF(OFFSET(INDIRECT("Raw"&C18&"!$C$1"),$F$13,1,1,50),G$1,OFFSET(INDIRECT("Raw"&C18&"!$C$1"),$E$13+$A38,1,1,50))*1 -> 0 | H38: =SUMIF(OFFSET(INDIRECT("Raw"&C18&"!$C$1"),$F$13,1,1,50),H$1,OFFSET(INDIRECT("Raw"&C18&"!$C$1"),$E$13+$A38,1,1,50))*1 -> 0 | I38: =SUMIF(OFFSET(INDIRECT("Raw"&C18&"!$C$1"),$F$13,1,1,50),I$1,OFFSET(INDIRECT("Raw"&C18&"!$C$1"),$E$13+$A38,1,1,50))*1 -> 6.29 | J38: =SUMIF(OFFSET(INDIRECT("Raw"&C18&"!$C$1"),$F$13,1,1,50),J$1,OFFSET(INDIRECT("Raw"&C18&"!$C$1"),$E$13+$A38,1,1,50))*1 -> 107.84 | K38: =SUMIF(OFFSET(INDIRECT("Raw"&C18&"!$C$1"),$F$13,1,1,50),K$1,OFFSET(INDIRECT("Raw"&C18&"!$C$1"),$E$13+$A38,1,1,50))*1 -> 0 | L38: 114.13 | M38: =SUMIF(OFFSET(INDIRECT("Raw"&C18&"!$C$1"),$F$12,1,1,50),M$1,OFFSET(INDIRECT("Raw"&C18&"!$C$1"),$E$12+$A38,1,1,50))*1 -> 8.88 | N38: =SUMIF(OFFSET(INDIRECT("Raw"&C18&"!$C$1"),$F$12,1,1,50),N$1,OFFSET(INDIRECT("Raw"&C18&"!$C$1"),$E$12+$A38,1,1,50))*1 -> 0 | O38: =SUMIF(OFFSET(INDIRECT("Raw"&C18&"!$C$1"),$F$12,1,1,50),O$1,OFFSET(INDIRECT("Raw"&C18&"!$C$1"),$E$12+$A38,1,1,50))*1 -> 5.25 | P38: =SUMIF(OFFSET(INDIRECT("Raw"&C18&"!$C$1"),$F$12,1,1,50),P$1,OFFSET(INDIRECT("Raw"&C18&"!$C$1"),$E$12+$A38,1,1,50))*1 -> 0 | Q38: 14.13
A39: 23 | B39: 2029 | C39: =SUMIF(OFFSET(INDIRECT("Raw"&C18&"!$C$1"),$F$13,1,1,50),C$1,OFFSET(INDIRECT("Raw"&C18&"!$C$1"),$E$13+$A39,1,1,50))*1 -> 0 | D39: =SUMIF(OFFSET(INDIRECT("Raw"&C18&"!$C$1"),$F$13,1,1,50),D$1,OFFSET(INDIRECT("Raw"&C18&"!$C$1"),$E$13+$A39,1,1,50))*1 -> 0 | E39: =SUMIF(OFFSET(INDIRECT("Raw"&C18&"!$C$1"),$F$13,1,1,50),E$1,OFFSET(INDIRECT("Raw"&C18&"!$C$1"),$E$13+$A39,1,1,50))*1 -> 0 | F39: =SUMIF(OFFSET(INDIRECT("Raw"&C18&"!$C$1"),$F$13,1,1,50),F$1,OFFSET(INDIRECT("Raw"&C18&"!$C$1"),$E$13+$A39,1,1,50))*1 -> 0 | G39: =SUMIF(OFFSET(INDIRECT("Raw"&C18&"!$C$1"),$F$13,1,1,50),G$1,OFFSET(INDIRECT("Raw"&C18&"!$C$1"),$E$13+$A39,1,1,50))*1 -> 0 | H39: =SUMIF(OFFSET(INDIRECT("Raw"&C18&"!$C$1"),$F$13,1,1,50),H$1,OFFSET(INDIRECT("Raw"&C18&"!$C$1"),$E$13+$A39,1,1,50))*1 -> 0 | I39: =SUMIF(OFFSET(INDIRECT("Raw"&C18&"!$C$1"),$F$13,1,1,50),I$1,OFFSET(INDIRECT("Raw"&C18&"!$C$1"),$E$13+$A39,1,1,50))*1 -> 0 | J39: =SUMIF(OFFSET(INDIRECT("Raw"&C18&"!$C$1"),$F$13,1,1,50),J$1,OFFSET(INDIRECT("Raw"&C18&"!$C$1"),$E$13+$A39,1,1,50))*1 -> 120.27 | K39: =SUMIF(OFFSET(INDIRECT("Raw"&C18&"!$C$1"),$F$13,1,1,50),K$1,OFFSET(INDIRECT("Raw"&C18&"!$C$1"),$E$13+$A39,1,1,50))*1 -> 0 | L39: 120.27 | M39: =SUMIF(OFFSET(INDIRECT("Raw"&C18&"!$C$1"),$F$12,1,1,50),M$1,OFFSET(INDIRECT("Raw"&C18&"!$C$1"),$E$12+$A39,1,1,50))*1 -> 10.89 | N39: =SUMIF(OFFSET(INDIRECT("Raw"&C18&"!$C$1"),$F$12,1,1,50),N$1,OFFSET(INDIRECT("Raw"&C18&"!$C$1"),$E$12+$A39,1,1,50))*1 -> 0 | O39: =SUMIF(OFFSET(INDIRECT("Raw"&C18&"!$C$1"),$F$12,1,1,50),O$1,OFFSET(INDIRECT("Raw"&C18&"!$C$1"),$E$12+$A39,1,1,50))*1 -> 5.64 | P39: =SUMIF(OFFSET(INDIRECT("Raw"&C18&"!$C$1"),$F$12,1,1,50),P$1,OFFSET(INDIRECT("Raw"&C18&"!$C$1"),$E$12+$A39,1,1,50))*1 -> 0 | Q39: 16.53
A40: 24 | B40: 2030 | C40: =SUMIF(OFFSET(INDIRECT("Raw"&C18&"!$C$1"),$F$13,1,1,50),C$1,OFFSET(INDIRECT("Raw"&C18&"!$C$1"),$E$13+$A40,1,1,50))*1 -> 0 | D40: =SUMIF(OFFSET(INDIRECT("Raw"&C18&"!$C$1"),$F$13,1,1,50),D$1,OFFSET(INDIRECT("Raw"&C18&"!$C$1"),$E$13+$A40,1,1,50))*1 -> 0 | E40: =SUMIF(OFFSET(INDIRECT("Raw"&C18&"!$C$1"),$F$13,1,1,50),E$1,OFFSET(INDIRECT("Raw"&C18&"!$C$1"),$E$13+$A40,1,1,50))*1 -> 0 | F40: =SUMIF(OFFSET(INDIRECT("Raw"&C18&"!$C$1"),$F$13,1,1,50),F$1,OFFSET(INDIRECT("Raw"&C18&"!$C$1"),$E$13+$A40,1,1,50))*1 -> 0 | G40: =SUMIF(OFFSET(INDIRECT("Raw"&C18&"!$C$1"),$F$13,1,1,50),G$1,OFFSET(INDIRECT("Raw"&C18&"!$C$1"),$E$13+$A40,1,1,50))*1 -> 0 | H40: =SUMIF(OFFSET(INDIRECT("Raw"&C18&"!$C$1"),$F$13,1,1,50),H$1,OFFSET(INDIRECT("Raw"&C18&"!$C$1"),$E$13+$A40,1,1,50))*1 -> 0 | I40: =SUMIF(OFFSET(INDIRECT("Raw"&C18&"!$C$1"),$F$13,1,1,50),I$1,OFFSET(INDIRECT("Raw"&C18&"!$C$1"),$E$13+$A40,1,1,50))*1 -> 0 | J40: =SUMIF(OFFSET(INDIRECT("Raw"&C18&"!$C$1"),$F$13,1,1,50),J$1,OFFSET(INDIRECT("Raw"&C18&"!$C$1"),$E$13+$A40,1,1,50))*1 -> 103.81 | K40: =SUMIF(OFFSET(INDIRECT("Raw"&C18&"!$C$1"),$F$13,1,1,50),K$1,OFFSET(INDIRECT("Raw"&C18&"!$C$1"),$E$13+$A40,1,1,50))*1 -> 0 | L40: 103.81 | M40: =SUMIF(OFFSET(INDIRECT("Raw"&C18&"!$C$1"),$F$12,1,1,50),M$1,OFFSET(INDIRECT("Raw"&C18&"!$C$1"),$E$12+$A40,1,1,50))*1 -> 9.03 | N40: =SUMIF(OFFSET(INDIRECT("Raw"&C18&"!$C$1"),$F$12,1,1,50),N$1,OFFSET(INDIRECT("Raw"&C18&"!$C$1"),$E$12+$A40,1,1,50))*1 -> 0 | O40: =SUMIF(OFFSET(INDIRECT("Raw"&C18&"!$C$1"),$F$12,1,1,50),O$1,OFFSET(INDIRECT("Raw"&C18&"!$C$1"),$E$12+$A40,1,1,50))*1 -> 6.03 | P40: =SUMIF(OFFSET(INDIRECT("Raw"&C18&"!$C$1"),$F$12,1,1,50),P$1,OFFSET(INDIRECT("Raw"&C18&"!$C$1"),$E$12+$A40,1,1,50))*1 -> 64 | Q40: 79.06
A41: 25 | B41: 2031 | C41: =SUMIF(OFFSET(INDIRECT("Raw"&C18&"!$C$1"),$F$13,1,1,50),C$1,OFFSET(INDIRECT("Raw"&C18&"!$C$1"),$E$13+$A41,1,1,50))*1 -> 0 | D41: =SUMIF(OFFSET(INDIRECT("Raw"&C18&"!$C$1"),$F$13,1,1,50),D$1,OFFSET(INDIRECT("Raw"&C18&"!$C$1"),$E$13+$A41,1,1,50))*1 -> 0 | E41: =SUMIF(OFFSET(INDIRECT("Raw"&C18&"!$C$1"),$F$13,1,1,50),E$1,OFFSET(INDIRECT("Raw"&C18&"!$C$1"),$E$13+$A41,1,1,50))*1 -> 0 | F41: =SUMIF(OFFSET(INDIRECT("Raw"&C18&"!$C$1"),$F$13,1,1,50),F$1,OFFSET(INDIRECT("Raw"&C18&"!$C$1"),$E$13+$A41,1,1,50))*1 -> 0 | G41: =SUMIF(OFFSET(INDIRECT("Raw"&C18&"!$C$1"),$F$13,1,1,50),G$1,OFFSET(INDIRECT("Raw"&C18&"!$C$1"),$E$13+$A41,1,1,50))*1 -> 0 | H41: =SUMIF(OFFSET(INDIRECT("Raw"&C18&"!$C$1"),$F$13,1,1,50),H$1,OFFSET(INDIRECT("Raw"&C18&"!$C$1"),$E$13+$A41,1,1,50))*1 -> 0 | I41: =SUMIF(OFFSET(INDIRECT("Raw"&C18&"!$C$1"),$F$13,1,1,50),I$1,OFFSET(INDIRECT("Raw"&C18&"!$C$1"),$E$13+$A41,1,1,50))*1 -> 0 | J41: =SUMIF(OFFSET(INDIRECT("Raw"&C18&"!$C$1"),$F$13,1,1,50),J$1,OFFSET(INDIRECT("Raw"&C18&"!$C$1"),$E$13+$A41,1,1,50))*1 -> 14.83 | K41: =SUMIF(OFFSET(INDIRECT("Raw"&C18&"!$C$1"),$F$13,1,1,50),K$1,OFFSET(INDIRECT("Raw"&C18&"!$C$1"),$E$13+$A41,1,1,50))*1 -> 0.64 | L41: 15.47 | M41: =SUMIF(OFFSET(INDIRECT("Raw"&C18&"!$C$1"),$F$12,1,1,50),M$1,OFFSET(INDIRECT("Raw"&C18&"!$C$1"),$E$12+$A41,1,1,50))*1 -> 4.74 | N41: =SUMIF(OFFSET(INDIRECT("Raw"&C18&"!$C$1"),$F$12,1,1,50),N$1,OFFSET(INDIRECT("Raw"&C18&"!$C$1"),$E$12+$A41,1,1,50))*1 -> 0 | O41: =SUMIF(OFFSET(INDIRECT("Raw"&C18&"!$C$1"),$F$12,1,1,50),O$1,OFFSET(INDIRECT("Raw"&C18&"!$C$1"),$E$12+$A41,1,1,50))*1 -> 0.78 | P41: =SUMIF(OFFSET(INDIRECT("Raw"&C18&"!$C$1"),$F$12,1,1,50),P$1,OFFSET(INDIRECT("Raw"&C18&"!$C$1"),$E$12+$A41,1,1,50))*1 -> 38.59 | Q41: 44.11
A42: 26 | B42: 2040 | C42: =SUMIF(OFFSET(INDIRECT("Raw"&C18&"!$C$1"),$F$13,1,1,50),C$1,OFFSET(INDIRECT("Raw"&C18&"!$C$1"),$E$13+$A42,1,1,50))*1 -> 0 | D42: =SUMIF(OFFSET(INDIRECT("Raw"&C18&"!$C$1"),$F$13,1,1,50),D$1,OFFSET(INDIRECT("Raw"&C18&"!$C$1"),$E$13+$A42,1,1,50))*1 -> 0 | E42: =SUMIF(OFFSET(INDIRECT("Raw"&C18&"!$C$1"),$F$13,1,1,50),E$1,OFFSET(INDIRECT("Raw"&C18&"!$C$1"),$E$13+$A42,1,1,50))*1 -> 0 | F42: =SUMIF(OFFSET(INDIRECT("Raw"&C18&"!$C$1"),$F$13,1,1,50),F$1,OFFSET(INDIRECT("Raw"&C18&"!$C$1"),$E$13+$A42,1,1,50))*1 -> 0 | G42: =SUMIF(OFFSET(INDIRECT("Raw"&C18&"!$C$1"),$F$13,1,1,50),G$1,OFFSET(INDIRECT("Raw"&C18&"!$C$1"),$E$13+$A42,1,1,50))*1 -> 0 | H42: =SUMIF(OFFSET(INDIRECT("Raw"&C18&"!$C$1"),$F$13,1,1,50),H$1,OFFSET(INDIRECT("Raw"&C18&"!$C$1"),$E$13+$A42,1,1,50))*1 -> 0 | I42: =SUMIF(OFFSET(INDIRECT("Raw"&C18&"!$C$1"),$F$13,1,1,50),I$1,OFFSET(INDIRECT("Raw"&C18&"!$C$1"),$E$13+$A42,1,1,50))*1 -> 5.31 | J42: =SUMIF(OFFSET(INDIRECT("Raw"&C18&"!$C$1"),$F$13,1,1,50),J$1,OFFSET(INDIRECT("Raw"&C18&"!$C$1"),$E$13+$A42,1,1,50))*1 -> 48.28 | K42: =SUMIF(OFFSET(INDIRECT("Raw"&C18&"!$C$1"),$F$13,1,1,50),K$1,OFFSET(INDIRECT("Raw"&C18&"!$C$1"),$E$13+$A42,1,1,50))*1 -> 2.68 | L42: 56.27 | M42: =SUMIF(OFFSET(INDIRECT("Raw"&C18&"!$C$1"),$F$12,1,1,50),M$1,OFFSET(INDIRECT("Raw"&C18&"!$C$1"),$E$12+$A42,1,1,50))*1 -> 3.14 | N42: =SUMIF(OFFSET(INDIRECT("Raw"&C18&"!$C$1"),$F$12,1,1,50),N$1,OFFSET(INDIRECT("Raw"&C18&"!$C$1"),$E$12+$A42,1,1,50))*1 -> 0 | O42: =SUMIF(OFFSET(INDIRECT("Raw"&C18&"!$C$1"),$F$12,1,1,50),O$1,OFFSET(INDIRECT("Raw"&C18&"!$C$1"),$E$12+$A42,1,1,50))*1 -> 5.7 | P42: =SUMIF(OFFSET(INDIRECT("Raw"&C18&"!$C$1"),$F$12,1,1,50),P$1,OFFSET(INDIRECT("Raw"&C18&"!$C$1"),$E$12+$A42,1,1,50))*1 -> 81.3 | Q42: 90.14
A43: 27 | B43: 2050 | C43: =SUMIF(OFFSET(INDIRECT("Raw"&C18&"!$C$1"),$F$13,1,1,50),C$1,OFFSET(INDIRECT("Raw"&C18&"!$C$1"),$E$13+$A43,1,1,50))*1 -> 0 | D43: =SUMIF(OFFSET(INDIRECT("Raw"&C18&"!$C$1"),$F$13,1,1,50),D$1,OFFSET(INDIRECT("Raw"&C18&"!$C$1"),$E$13+$A43,1,1,50))*1 -> 0 | E43: =SUMIF(OFFSET(INDIRECT("Raw"&C18&"!$C$1"),$F$13,1,1,50),E$1,OFFSET(INDIRECT("Raw"&C18&"!$C$1"),$E$13+$A43,1,1,50))*1 -> 0 | F43: =SUMIF(OFFSET(INDIRECT("Raw"&C18&"!$C$1"),$F$13,1,1,50),F$1,OFFSET(INDIRECT("Raw"&C18&"!$C$1"),$E$13+$A43,1,1,50))*1 -> 0 | G43: =SUMIF(OFFSET(INDIRECT("Raw"&C18&"!$C$1"),$F$13,1,1,50),G$1,OFFSET(INDIRECT("Raw"&C18&"!$C$1"),$E$13+$A43,1,1,50))*1 -> 0 | H43: =SUMIF(OFFSET(INDIRECT("Raw"&C18&"!$C$1"),$F$13,1,1,50),H$1,OFFSET(INDIRECT("Raw"&C18&"!$C$1"),$E$13+$A43,1,1,50))*1 -> 13.62 | I43: =SUMIF(OFFSET(INDIRECT("Raw"&C18&"!$C$1"),$F$13,1,1,50),I$1,OFFSET(INDIRECT("Raw"&C18&"!$C$1"),$E$13+$A43,1,1,50))*1 -> 25.89 | J43: =SUMIF(OFFSET(INDIRECT("Raw"&C18&"!$C$1"),$F$13,1,1,50),J$1,OFFSET(INDIRECT("Raw"&C18&"!$C$1"),$E$13+$A43,1,1,50))*1 -> 147.81 | K43: =SUMIF(OFFSET(INDIRECT("Raw"&C18&"!$C$1"),$F$13,1,1,50),K$1,OFFSET(INDIRECT("Raw"&C18&"!$C$1"),$E$13+$A43,1,1,50))*1 -> 0.13 | L43: 187.45 | M43: =SUMIF(OFFSET(INDIRECT("Raw"&C18&"!$C$1"),$F$12,1,1,50),M$1,OFFSET(INDIRECT("Raw"&C18&"!$C$1"),$E$12+$A43,1,1,50))*1 -> 5.79 | N43: =SUMIF(OFFSET(INDIRECT("Raw"&C18&"!$C$1"),$F$12,1,1,50),N$1,OFFSET(INDIRECT("Raw"&C18&"!$C$1"),$E$12+$A43,1,1,50))*1 -> 0 | O43: =SUMIF(OFFSET(INDIRECT("Raw"&C18&"!$C$1"),$F$12,1,1,50),O$1,OFFSET(INDIRECT("Raw"&C18&"!$C$1"),$E$12+$A43,1,1,50))*1 -> 5.59 | P43: =SUMIF(OFFSET(INDIRECT("Raw"&C18&"!$C$1"),$F$12,1,1,50),P$1,OFFSET(INDIRECT("Raw"&C18&"!$C$1"),$E$12+$A43,1,1,50))*1 -> 124.86 | Q43: 136.24
B44: =C18 -> BUw | C44: =SUM(C20:C40) -> 0 | D44: =SUM(D20:D40) -> 111.5 | E44: 0 | F44: 0 | G44: 0 | H44: 158.3 | I44: 116.18 | J44: 429.51 | K44: 28.67 | L44: 844.16 | M44: 137.21 | N44: 0 | O44: 56.59 | P44: 64 | Q44: 257.8
B47: =B18+1 -> 2 | C47: =VLOOKUP(B47,OtherParams!$B$29:$E$41,3,FALSE) -> CIw | D47: =VLOOKUP(C47,OtherParams!$D$29:$E$41,2,FALSE) -> Cote d'Ivoire
A48: GWh | C48: =OFFSET(C$6,lang,0) -> Coal | D48: Oil | E48: Gas | F48: Nuclear | G48: Hydro | H48: Biomass | I48: Solar PV | J48: Solar Thermal | K48: Wind | L48: Total Cent. | M48: Dist. Oil | N48: Dist. Biomass | O48: Mini Hydro | P48: Dist.Solar PV | Q48: Total Decent
A49: 4 | B49: =OFFSET(INDIRECT("Raw"&$E$11&"!$C$1"),$E$13+A49,0) -> 2010 | C49: =SUMIF(OFFSET(INDIRECT("Raw"&C47&"!$C$1"),$F$13,1,1,50),C$1,OFFSET(INDIRECT("Raw"&C47&"!$C$1"),$E$13+$A49,1,1,50))*1 -> 0 | D49: =SUMIF(OFFSET(INDIRECT("Raw"&C47&"!$C$1"),$F$13,1,1,50),D$1,OFFSET(INDIRECT("Raw"&C47&"!$C$1"),$E$13+$A49,1,1,50))*1 -> 0 | E49: =SUMIF(OFFSET(INDIRECT("Raw"&C47&"!$C$1"),$F$13,1,1,50),E$1,OFFSET(INDIRECT("Raw"&C47&"!$C$1"),$E$13+$A49,1,1,50))*1 -> 0 | F49: =SUMIF(OFFSET(INDIRECT("Raw"&C47&"!$C$1"),$F$13,1,1,50),F$1,OFFSET(INDIRECT("Raw"&C47&"!$C$1"),$E$13+$A49,1,1,50))*1 -> 0 | G49: =SUMIF(OFFSET(INDIRECT("Raw"&C47&"!$C$1"),$F$13,1,1,50),G$1,OFFSET(INDIRECT("Raw"&C47&"!$C$1"),$E$13+$A49,1,1,50))*1 -> 0 | H49: =SUMIF(OFFSET(INDIRECT("Raw"&C47&"!$C$1"),$F$13,1,1,50),H$1,OFFSET(INDIRECT("Raw"&C47&"!$C$1"),$E$13+$A49,1,1,50))*1 -> 0 | I49: =SUMIF(OFFSET(INDIRECT("Raw"&C47&"!$C$1"),$F$13,1,1,50),I$1,OFFSET(INDIRECT("Raw"&C47&"!$C$1"),$E$13+$A49,1,1,50))*1 -> 0 | J49: =SUMIF(OFFSET(INDIRECT("Raw"&C47&"!$C$1"),$F$13,1,1,50),J$1,OFFSET(INDIRECT("Raw"&C47&"!$C$1"),$E$13+$A49,1,1,50))*1 -> 0 | K49: =SUMIF(OFFSET(INDIRECT("Raw"&C47&"!$C$1"),$F$13,1,1,50),K$1,OFFSET(INDIRECT("Raw"&C47&"!$C$1"),$E$13+$A49,1,1,50))*1 -> 0 | L49: =SUM(C49:K49) -> 0 | M49: =SUMIF(OFFSET(INDIRECT("Raw"&C47&"!$C$1"),$F$12,1,1,50),M$1,OFFSET(INDIRECT("Raw"&C47&"!$C$1"),$E$12+$A49,1,1,50))*1 -> 0 | N49: =SUMIF(OFFSET(INDIRECT("Raw"&C47&"!$C$1"),$F$12,1,1,50),N$1,OFFSET(INDIRECT("Raw"&C47&"!$C$1"),$E$12+$A49,1,1,50))*1 -> 0 | O49: =SUMIF(OFFSET(INDIRECT("Raw"&C47&"!$C$1"),$F$12,1,1,50),O$1,OFFSET(INDIRECT("Raw"&C47&"!$C$1"),$E$12+$A49,1,1,50))*1 -> 0 | P49: =SUMIF(OFFSET(INDIRECT("Raw"&C47&"!$C$1"),$F$12,1,1,50),P$1,OFFSET(INDIRECT("Raw"&C47&"!$C$1"),$E$12+$A49,1,1,50))*1 -> 0 | Q49: =SUM(M49:P49) -> 0
A50: =A49+1 -> 5 | B50: 2011 | C50: =SUMIF(OFFSET(INDIRECT("Raw"&C47&"!$C$1"),$F$13,1,1,50),C$1,OFFSET(INDIRECT("Raw"&C47&"!$C$1"),$E$13+$A50,1,1,50))*1 -> 0 | D50: =SUMIF(OFFSET(INDIRECT("Raw"&C47&"!$C$1"),$F$13,1,1,50),D$1,OFFSET(INDIRECT("Raw"&C47&"!$C$1"),$E$13+$A50,1,1,50))*1 -> 0 | E50: =SUMIF(OFFSET(INDIRECT("Raw"&C47&"!$C$1"),$F$13,1,1,50),E$1,OFFSET(INDIRECT("Raw"&C47&"!$C$1"),$E$13+$A50,1,1,50))*1 -> 0 | F50: =SUMIF(OFFSET(INDIRECT("Raw"&C47&"!$C$1"),$F$13,1,1,50),F$1,OFFSET(INDIRECT("Raw"&C47&"!$C$1"),$E$13+$A50,1,1,50))*1 -> 0 | G50: =SUMIF(OFFSET(INDIRECT("Raw"&C47&"!$C$1"),$F$13,1,1,50),G$1,OFFSET(INDIRECT("Raw"&C47&"!$C$1"),$E$13+$A50,1,1,50))*1 -> 0 | H50: =SUMIF(OFFSET(INDIRECT("Raw"&C47&"!$C$1"),$F$13,1,1,50),H$1,OFFSET(INDIRECT("Raw"&C47&"!$C$1"),$E$13+$A50,1,1,50))*1 -> 0 | I50: =SUMIF(OFFSET(INDIRECT("Raw"&C47&"!$C$1"),$F$13,1,1,50),I$1,OFFSET(INDIRECT("Raw"&C47&"!$C$1"),$E$13+$A50,1,1,50))*1 -> 0 | J50: =SUMIF(OFFSET(INDIRECT("Raw"&C47&"!$C$1"),$F$13,1,1,50),J$1,OFFSET(INDIRECT("Raw"&C47&"!$C$1"),$E$13+$A50,1,1,50))*1 -> 0 | K50: =SUMIF(OFFSET(INDIRECT("Raw"&C47&"!$C$1"),$F$13,1,1,50),K$1,OFFSET(INDIRECT("Raw"&C47&"!$C$1"),$E$13+$A50,1,1,50))*1 -> 0 | L50: 0 | M50: =SUMIF(OFFSET(INDIRECT("Raw"&C47&"!$C$1"),$F$12,1,1,50),M$1,OFFSET(INDIRECT("Raw"&C47&"!$C$1"),$E$12+$A50,1,1,50))*1 -> 31.4 | N50: =SUMIF(OFFSET(INDIRECT("Raw"&C47&"!$C$1"),$F$12,1,1,50),N$1,OFFSET(INDIRECT("Raw"&C47&"!$C$1"),$E$12+$A50,1,1,50))*1 -> 0 | O50: =SUMIF(OFFSET(INDIRECT("Raw"&C47&"!$C$1"),$F$12,1,1,50),O$1,OFFSET(INDIRECT("Raw"&C47&"!$C$1"),$E$12+$A50,1,1,50))*1 -> 0 | P50: =SUMIF(OFFSET(INDIRECT("Raw"&C47&"!$C$1"),$F$12,1,1,50),P$1,OFFSET(INDIRECT("Raw"&C47&"!$C$1"),$E$12+$A50,1,1,50))*1 -> 0 | Q50: 31.4
A51: =A50+1 -> 6 | B51: 2012 | C51: =SUMIF(OFFSET(INDIRECT("Raw"&C47&"!$C$1"),$F$13,1,1,50),C$1,OFFSET(INDIRECT("Raw"&C47&"!$C$1"),$E$13+$A51,1,1,50))*1 -> 0 | D51: =SUMIF(OFFSET(INDIRECT("Raw"&C47&"!$C$1"),$F$13,1,1,50),D$1,OFFSET(INDIRECT("Raw"&C47&"!$C$1"),$E$13+$A51,1,1,50))*1 -> 0 | E51: =SUMIF(OFFSET(INDIRECT("Raw"&C47&"!$C$1"),$F$13,1,1,50),E$1,OFFSET(INDIRECT("Raw"&C47&"!$C$1"),$E$13+$A51,1,1,50))*1 -> 0 | F51: =SUMIF(OFFSET(INDIRECT("Raw"&C47&"!$C$1"),$F$13,1,1,50),F$1,OFFSET(INDIRECT("Raw"&C47&"!$C$1"),$E$13+$A51,1,1,50))*1 -> 0 | G51: =SUMIF(OFFSET(INDIRECT("Raw"&C47&"!$C$1"),$F$13,1,1,50),G$1,OFFSET(INDIRECT("Raw"&C47&"!$C$1"),$E$13+$A51,1,1,50))*1 -> 0 | H51: =SUMIF(OFFSET(INDIRECT("Raw"&C47&"!$C$1"),$F$13,1,1,50),H$1,OFFSET(INDIRECT("Raw"&C47&"!$C$1"),$E$13+$A51,1,1,50))*1 -> 0 | I51: =SUMIF(OFFSET(INDIRECT("Raw"&C47&"!$C$1"),$F$13,1,1,50),I$1,OFFSET(INDIRECT("Raw"&C47&"!$C$1"),$E$13+$A51,1,1,50))*1 -> 0 | J51: =SUMIF(OFFSET(INDIRECT("Raw"&C47&"!$C$1"),$F$13,1,1,50),J$1,OFFSET(INDIRECT("Raw"&C47&"!$C$1"),$E$13+$A51,1,1,50))*1 -> 0 | K51: =SUMIF(OFFSET(INDIRECT("Raw"&C47&"!$C$1"),$F$13,1,1,50),K$1,OFFSET(INDIRECT("Raw"&C47&"!$C$1"),$E$13+$A51,1,1,50))*1 -> 0 | L51: 0 | M51: =SUMIF(OFFSET(INDIRECT("Raw"&C47&"!$C$1"),$F$12,1,1,50),M$1,OFFSET(INDIRECT("Raw"&C47&"!$C$1"),$E$12+$A51,1,1,50))*1 -> 85.85 | N51: =SUMIF(OFFSET(INDIRECT("Raw"&C47&"!$C$1"),$F$12,1,1,50),N$1,OFFSET(INDIRECT("Raw"&C47&"!$C$1"),$E$12+$A51,1,1,50))*1 -> 0 | O51: =SUMIF(OFFSET(INDIRECT("Raw"&C47&"!$C$1"),$F$12,1,1,50),O$1,OFFSET(INDIRECT("Raw"&C47&"!$C$1"),$E$12+$A51,1,1,50))*1 -> 0 | P51: =SUMIF(OFFSET(INDIRECT("Raw"&C47&"!$C$1"),$F$12,1,1,50),P$1,OFFSET(INDIRECT("Raw"&C47&"!$C$1"),$E$12+$A51,1,1,50))*1 -> 0 | Q51: 85.85
A52: 7 | B52: 2013 | C52: =SUMIF(OFFSET(INDIRECT("Raw"&C47&"!$C$1"),$F$13,1,1,50),C$1,OFFSET(INDIRECT("Raw"&C47&"!$C$1"),$E$13+$A52,1,1,50))*1 -> 0 | D52: =SUMIF(OFFSET(INDIRECT("Raw"&C47&"!$C$1"),$F$13,1,1,50),D$1,OFFSET(INDIRECT("Raw"&C47&"!$C$1"),$E$13+$A52,1,1,50))*1 -> 0 | E52: =SUMIF(OFFSET(INDIRECT("Raw"&C47&"!$C$1"),$F$13,1,1,50),E$1,OFFSET(INDIRECT("Raw"&C47&"!$C$1"),$E$13+$A52,1,1,50))*1 -> 530 | F52: =SUMIF(OFFSET(INDIRECT("Raw"&C47&"!$C$1"),$F$13,1,1,50),F$1,OFFSET(INDIRECT("Raw"&C47&"!$C$1"),$E$13+$A52,1,1,50))*1 -> 0 | G52: =SUMIF(OFFSET(INDIRECT("Raw"&C47&"!$C$1"),$F$13,1,1,50),G$1,OFFSET(INDIRECT("Raw"&C47&"!$C$1"),$E$13+$A52,1,1,50))*1 -> 0 | H52: =SUMIF(OFFSET(INDIRECT("Raw"&C47&"!$C$1"),$F$13,1,1,50),H$1,OFFSET(INDIRECT("Raw"&C47&"!$C$1"),$E$13+$A52,1,1,50))*1 -> 0 | I52: =SUMIF(OFFSET(INDIRECT("Raw"&C47&"!$C$1"),$F$13,1,1,50),I$1,OFFSET(INDIRECT("Raw"&C47&"!$C$1"),$E$13+$A52,1,1,50))*1 -> 0 | J52: =SUMIF(OFFSET(INDIRECT("Raw"&C47&"!$C$1"),$F$13,1,1,50),J$1,OFFSET(INDIRECT("Raw"&C47&"!$C$1"),$E$13+$A52,1,1,50))*1 -> 0 | K52: =SUMIF(OFFSET(INDIRECT("Raw"&C47&"!$C$1"),$F$13,1,1,50),K$1,OFFSET(INDIRECT("Raw"&C47&"!$C$1"),$E$13+$A52,1,1,50))*1 -> 0 | L52: 530 | M52: =SUMIF(OFFSET(INDIRECT("Raw"&C47&"!$C$1"),$F$12,1,1,50),M$1,OFFSET(INDIRECT("Raw"&C47&"!$C$1"),$E$12+$A52,1,1,50))*1 -> 0 | N52: =SUMIF(OFFSET(INDIRECT("Raw"&C47&"!$C$1"),$F$12,1,1,50),N$1,OFFSET(INDIRECT("Raw"&C47&"!$C$1"),$E$12+$A52,1,1,50))*1 -> 0 | O52: =SUMIF(OFFSET(INDIRECT("Raw"&C47&"!$C$1"),$F$12,1,1,50),O$1,OFFSET(INDIRECT("Raw"&C47&"!$C$1"),$E$12+$A52,1,1,50))*1 -> 0 | P52: =SUMIF(OFFSET(INDIRECT("Raw"&C47&"!$C$1"),$F$12,1,1,50),P$1,OFFSET(INDIRECT("Raw"&C47&"!$C$1"),$E$12+$A52,1,1,50))*1 -> 0 | Q52: 0
A53: 8 | B53: 2014 | C53: =SUMIF(OFFSET(INDIRECT("Raw"&C47&"!$C$1"),$F$13,1,1,50),C$1,OFFSET(INDIRECT("Raw"&C47&"!$C$1"),$E$13+$A53,1,1,50))*1 -> 0 | D53: =SUMIF(OFFSET(INDIRECT("Raw"&C47&"!$C$1"),$F$13,1,1,50),D$1,OFFSET(INDIRECT("Raw"&C47&"!$C$1"),$E$13+$A53,1,1,50))*1 -> 0 | E53: =SUMIF(OFFSET(INDIRECT("Raw"&C47&"!$C$1"),$F$13,1,1,50),E$1,OFFSET(INDIRECT("Raw"&C47&"!$C$1"),$E$13+$A53,1,1,50))*1 -> 372 | F53: =SUMIF(OFFSET(INDIRECT("Raw"&C47&"!$C$1"),$F$13,1,1,50),F$1,OFFSET(INDIRECT("Raw"&C47&"!$C$1"),$E$13+$A53,1,1,50))*1 -> 0 | G53: =SUMIF(OFFSET(INDIRECT("Raw"&C47&"!$C$1"),$F$13,1,1,50),G$1,OFFSET(INDIRECT("Raw"&C47&"!$C$1"),$E$13+$A53,1,1,50))*1 -> 0 | H53: =SUMIF(OFFSET(INDIRECT("Raw"&C47&"!$C$1"),$F$13,1,1,50),H$1,OFFSET(INDIRECT("Raw"&C47&"!$C$1"),$E$13+$A53,1,1,50))*1 -> 0 | I53: =SUMIF(OFFSET(INDIRECT("Raw"&C47&"!$C$1"),$F$13,1,1,50),I$1,OFFSET(INDIRECT("Raw"&C47&"!$C$1"),$E$13+$A53,1,1,50))*1 -> 0 | J53: =SUMIF(OFFSET(INDIRECT("Raw"&C47&"!$C$1"),$F$13,1,1,50),J$1,OFFSET(INDIRECT("Raw"&C47&"!$C$1"),$E$13+$A53,1,1,50))*1 -> 0 | K53: =SUMIF(OFFSET(INDIRECT("Raw"&C47&"!$C$1"),$F$13,1,1,50),K$1,OFFSET(INDIRECT("Raw"&C47&"!$C$1"),$E$13+$A53,1,1,50))*1 -> 0 | L53: 372 | M53: =SUMIF(OFFSET(INDIRECT("Raw"&C47&"!$C$1"),$F$12,1,1,50),M$1,OFFSET(INDIRECT("Raw"&C47&"!$C$1"),$E$12+$A53,1,1,50))*1 -> 26.73 | N53: =SUMIF(OFFSET(INDIRECT("Raw"&C47&"!$C$1"),$F$12,1,1,50),N$1,OFFSET(INDIRECT("Raw"&C47&"!$C$1"),$E$12+$A53,1,1,50))*1 -> 0 | O53: =SUMIF(OFFSET(INDIRECT("Raw"&C47&"!$C$1"),$F$12,1,1,50),O$1,OFFSET(INDIRECT("Raw"&C47&"!$C$1"),$E$12+$A53,1,1,50))*1 -> 24.92 | P53: =SUMIF(OFFSET(INDIRECT("Raw"&C47&"!$C$1"),$F$12,1,1,50),P$1,OFFSET(INDIRECT("Raw"&C47&"!$C$1"),$E$12+$A53,1,1,50))*1 -> 0 | Q53: 51.65
A54: 9 | B54: 2015 | C54: =SUMIF(OFFSET(INDIRECT("Raw"&C47&"!$C$1"),$F$13,1,1,50),C$1,OFFSET(INDIRECT("Raw"&C47&"!$C$1"),$E$13+$A54,1,1,50))*1 -> 0 | D54: =SUMIF(OFFSET(INDIRECT("Raw"&C47&"!$C$1"),$F$13,1,1,50),D$1,OFFSET(INDIRECT("Raw"&C47&"!$C$1"),$E$13+$A54,1,1,50))*1 -> 0 | E54: =SUMIF(OFFSET(INDIRECT("Raw"&C47&"!$C$1"),$F$13,1,1,50),E$1,OFFSET(INDIRECT("Raw"&C47&"!$C$1"),$E$13+$A54,1,1,50))*1 -> 261 | F54: =SUMIF(OFFSET(INDIRECT("Raw"&C47&"!$C$1"),$F$13,1,1,50),F$1,OFFSET(INDIRECT("Raw"&C47&"!$C$1"),$E$13+$A54,1,1,50))*1 -> 0 | G54: =SUMIF(OFFSET(INDIRECT("Raw"&C47&"!$C$1"),$F$13,1,1,50),G$1,OFFSET(INDIRECT("Raw"&C47&"!$C$1"),$E$13+$A54,1,1,50))*1 -> 0 | H54: =SUMIF(OFFSET(INDIRECT("Raw"&C47&"!$C$1"),$F$13,1,1,50),H$1,OFFSET(INDIRECT("Raw"&C47&"!$C$1"),$E$13+$A54,1,1,50))*1 -> 0 | I54: =SUMIF(OFFSET(INDIRECT("Raw"&C47&"!$C$1"),$F$13,1,1,50),I$1,OFFSET(INDIRECT("Raw"&C47&"!$C$1"),$E$13+$A54,1,1,50))*1 -> 0 | J54: =SUMIF(OFFSET(INDIRECT("Raw"&C47&"!$C$1"),$F$13,1,1,50),J$1,OFFSET(INDIRECT("Raw"&C47&"!$C$1"),$E$13+$A54,1,1,50))*1 -> 0 | K54: =SUMIF(OFFSET(INDIRECT("Raw"&C47&"!$C$1"),$F$13,1,1,50),K$1,OFFSET(INDIRECT("Raw"&C47&"!$C$1"),$E$13+$A54,1,1,50))*1 -> 0 | L54: 261 | M54: =SUMIF(OFFSET(INDIRECT("Raw"&C47&"!$C$1"),$F$12,1,1,50),M$1,OFFSET(INDIRECT("Raw"&C47&"!$C$1"),$E$12+$A54,1,1,50))*1 -> 23.78 | N54: =SUMIF(OFFSET(INDIRECT("Raw"&C47&"!$C$1"),$F$12,1,1,50),N$1,OFFSET(INDIRECT("Raw"&C47&"!$C$1"),$E$12+$A54,1,1,50))*1 -> 0 | O54: =SUMIF(OFFSET(INDIRECT("Raw"&C47&"!$C$1"),$F$12,1,1,50),O$1,OFFSET(INDIRECT("Raw"&C47&"!$C$1"),$E$12+$A54,1,1,50))*1 -> 3.42 | P54: =SUMIF(OFFSET(INDIRECT("Raw"&C47&"!$C$1"),$F$12,1,1,50),P$1,OFFSET(INDIRECT("Raw"&C47&"!$C$1"),$E$12+$A54,1,1,50))*1 -> 0 | Q54: 27.2
A55: 10 | B55: 2016 | C55: =SUMIF(OFFSET(INDIRECT("Raw"&C47&"!$C$1"),$F$13,1,1,50),C$1,OFFSET(INDIRECT("Raw"&C47&"!$C$1"),$E$13+$A55,1,1,50))*1 -> 0 | D55: =SUMIF(OFFSET(INDIRECT("Raw"&C47&"!$C$1"),$F$13,1,1,50),D$1,OFFSET(INDIRECT("Raw"&C47&"!$C$1"),$E$13+$A55,1,1,50))*1 -> 0 | E55: =SUMIF(OFFSET(INDIRECT("Raw"&C47&"!$C$1"),$F$13,1,1,50),E$1,OFFSET(INDIRECT("Raw"&C47&"!$C$1"),$E$13+$A55,1,1,50))*1 -> 1150 | F55: =SUMIF(OFFSET(INDIRECT("Raw"&C47&"!$C$1"),$F$13,1,1,50),F$1,OFFSET(INDIRECT("Raw"&C47&"!$C$1"),$E$13+$A55,1,1,50))*1 -> 0 | G55: =SUMIF(OFFSET(INDIRECT("Raw"&C47&"!$C$1"),$F$13,1,1,50),G$1,OFFSET(INDIRECT("Raw"&C47&"!$C$1"),$E$13+$A55,1,1,50))*1 -> 0 | H55: =SUMIF(OFFSET(INDIRECT("Raw"&C47&"!$C$1"),$F$13,1,1,50),H$1,OFFSET(INDIRECT("Raw"&C47&"!$C$1"),$E$13+$A55,1,1,50))*1 -> 0 | I55: =SUMIF(OFFSET(INDIRECT("Raw"&C47&"!$C$1"),$F$13,1,1,50),I$1,OFFSET(INDIRECT("Raw"&C47&"!$C$1"),$E$13+$A55,1,1,50))*1 -> 0 | J55: =SUMIF(OFFSET(INDIRECT("Raw"&C47&"!$C$1"),$F$13,1,1,50),J$1,OFFSET(INDIRECT("Raw"&C47&"!$C$1"),$E$13+$A55,1,1,50))*1 -> 0 | K55: =SUMIF(OFFSET(INDIRECT("Raw"&C47&"!$C$1"),$F$13,1,1,50),K$1,OFFSET(INDIRECT("Raw"&C47&"!$C$1"),$E$13+$A55,1,1,50))*1 -> 0 | L55: 1150 | M55: =SUMIF(OFFSET(INDIRECT("Raw"&C47&"!$C$1"),$F$12,1,1,50),M$1,OFFSET(INDIRECT("Raw"&C47&"!$C$1"),$E$12+$A55,1,1,50))*1 -> 23.2 | N55: =SUMIF(OFFSET(INDIRECT("Raw"&C47&"!$C$1"),$F$12,1,1,50),N$1,OFFSET(INDIRECT("Raw"&C47&"!$C$1"),$E$12+$A55,1,1,50))*1 -> 0 | O55: =SUMIF(OFFSET(INDIRECT("Raw"&C47&"!$C$1"),$F$12,1,1,50),O$1,OFFSET(INDIRECT("Raw"&C47&"!$C$1"),$E$12+$A55,1,1,50))*1 -> 7.54 | P55: =SUMIF(OFFSET(INDIRECT("Raw"&C47&"!$C$1"),$F$12,1,1,50),P$1,OFFSET(INDIRECT("Raw"&C47&"!$C$1"),$E$12+$A55,1,1,50))*1 -> 0 | Q55: 30.74
A56: 11 | B56: 2017 | C56: =SUMIF(OFFSET(INDIRECT("Raw"&C47&"!$C$1"),$F$13,1,1,50),C$1,OFFSET(INDIRECT("Raw"&C47&"!$C$1"),$E$13+$A56,1,1,50))*1 -> 0 | D56: =SUMIF(OFFSET(INDIRECT("Raw"&C47&"!$C$1"),$F$13,1,1,50),D$1,OFFSET(INDIRECT("Raw"&C47&"!$C$1"),$E$13+$A56,1,1,50))*1 -> 0 | E56: =SUMIF(OFFSET(INDIRECT("Raw"&C47&"!$C$1"),$F$13,1,1,50),E$1,OFFSET(INDIRECT("Raw"&C47&"!$C$1"),$E$13+$A56,1,1,50))*1 -> 319.27 | F56: =SUMIF(OFFSET(INDIRECT("Raw"&C47&"!$C$1"),$F$13,1,1,50),F$1,OFFSET(INDIRECT("Raw"&C47&"!$C$1"),$E$13+$A56,1,1,50))*1 -> 0 | G56: =SUMIF(OFFSET(INDIRECT("Raw"&C47&"!$C$1"),$F$13,1,1,50),G$1,OFFSET(INDIRECT("Raw"&C47&"!$C$1"),$E$13+$A56,1,1,50))*1 -> 0 | H56: =SUMIF(OFFSET(INDIRECT("Raw"&C47&"!$C$1"),$F$13,1,1,50),H$1,OFFSET(INDIRECT("Raw"&C47&"!$C$1"),$E$13+$A56,1,1,50))*1 -> 0 | I56: =SUMIF(OFFSET(INDIRECT("Raw"&C47&"!$C$1"),$F$13,1,1,50),I$1,OFFSET(INDIRECT("Raw"&C47&"!$C$1"),$E$13+$A56,1,1,50))*1 -> 0 | J56: =SUMIF(OFFSET(INDIRECT("Raw"&C47&"!$C$1"),$F$13,1,1,50),J$1,OFFSET(INDIRECT("Raw"&C47&"!$C$1"),$E$13+$A56,1,1,50))*1 -> 0 | K56: =SUMIF(OFFSET(INDIRECT("Raw"&C47&"!$C$1"),$F$13,1,1,50),K$1,OFFSET(INDIRECT("Raw"&C47&"!$C$1"),$E$13+$A56,1,1,50))*1 -> 0 | L56: 319.27 | M56: =SUMIF(OFFSET(INDIRECT("Raw"&C47&"!$C$1"),$F$12,1,1,50),M$1,OFFSET(INDIRECT("Raw"&C47&"!$C$1"),$E$12+$A56,1,1,50))*1 -> 24.31 | N56: =SUMIF(OFFSET(INDIRECT("Raw"&C47&"!$C$1"),$F$12,1,1,50),N$1,OFFSET(INDIRECT("Raw"&C47&"!$C$1"),$E$12+$A56,1,1,50))*1 -> 0 | O56: =SUMIF(OFFSET(INDIRECT("Raw"&C47&"!$C$1"),$F$12,1,1,50),O$1,OFFSET(INDIRECT("Raw"&C47&"!$C$1"),$E$12+$A56,1,1,50))*1 -> 7.15 | P56: =SUMIF(OFFSET(INDIRECT("Raw"&C47&"!$C$1"),$F$12,1,1,50),P$1,OFFSET(INDIRECT("Raw"&C47&"!$C$1"),$E$12+$A56,1,1,50))*1 -> 0 | Q56: 31.46
A57: 12 | B57: 2018 | C57: =SUMIF(OFFSET(INDIRECT("Raw"&C47&"!$C$1"),$F$13,1,1,50),C$1,OFFSET(INDIRECT("Raw"&C47&"!$C$1"),$E$13+$A57,1,1,50))*1 -> 0 | D57: =SUMIF(OFFSET(INDIRECT("Raw"&C47&"!$C$1"),$F$13,1,1,50),D$1,OFFSET(INDIRECT("Raw"&C47&"!$C$1"),$E$13+$A57,1,1,50))*1 -> 0 | E57: =SUMIF(OFFSET(INDIRECT("Raw"&C47&"!$C$1"),$F$13,1,1,50),E$1,OFFSET(INDIRECT("Raw"&C47&"!$C$1"),$E$13+$A57,1,1,50))*1 -> 0 | F57: =SUMIF(OFFSET(INDIRECT("Raw"&C47&"!$C$1"),$F$13,1,1,50),F$1,OFFSET(INDIRECT("Raw"&C47&"!$C$1"),$E$13+$A57,1,1,50))*1 -> 0 | G57: =SUMIF(OFFSET(INDIRECT("Raw"&C47&"!$C$1"),$F$13,1,1,50),G$1,OFFSET(INDIRECT("Raw"&C47&"!$C$1"),$E$13+$A57,1,1,50))*1 -> 0 | H57: =SUMIF(OFFSET(INDIRECT("Raw"&C47&"!$C$1"),$F$13,1,1,50),H$1,OFFSET(INDIRECT("Raw"&C47&"!$C$1"),$E$13+$A57,1,1,50))*1 -> 0 | I57: =SUMIF(OFFSET(INDIRECT("Raw"&C47&"!$C$1"),$F$13,1,1,50),I$1,OFFSET(INDIRECT("Raw"&C47&"!$C$1"),$E$13+$A57,1,1,50))*1 -> 0 | J57: =SUMIF(OFFSET(INDIRECT("Raw"&C47&"!$C$1"),$F$13,1,1,50),J$1,OFFSET(INDIRECT("Raw"&C47&"!$C$1"),$E$13+$A57,1,1,50))*1 -> 0 | K57: =SUMIF(OFFSET(INDIRECT("Raw"&C47&"!$C$1"),$F$13,1,1,50),K$1,OFFSET(INDIRECT("Raw"&C47&"!$C$1"),$E$13+$A57,1,1,50))*1 -> 0 | L57: 0 | M57: =SUMIF(OFFSET(INDIRECT("Raw"&C47&"!$C$1"),$F$12,1,1,50),M$1,OFFSET(INDIRECT("Raw"&C47&"!$C$1"),$E$12+$A57,1,1,50))*1 -> 27.61 | N57: =SUMIF(OFFSET(INDIRECT("Raw"&C47&"!$C$1"),$F$12,1,1,50),N$1,OFFSET(INDIRECT("Raw"&C47&"!$C$1"),$E$12+$A57,1,1,50))*1 -> 0 | O57: =SUMIF(OFFSET(INDIRECT("Raw"&C47&"!$C$1"),$F$12,1,1,50),O$1,OFFSET(INDIRECT("Raw"&C47&"!$C$1"),$E$12+$A57,1,1,50))*1 -> 1.08 | P57: =SUMIF(OFFSET(INDIRECT("Raw"&C47&"!$C$1"),$F$12,1,1,50),P$1,OFFSET(INDIRECT("Raw"&C47&"!$C$1"),$E$12+$A57,1,1,50))*1 -> 0 | Q57: 28.69
A58: 13 | B58: 2019 | C58: =SUMIF(OFFSET(INDIRECT("Raw"&C47&"!$C$1"),$F$13,1,1,50),C$1,OFFSET(INDIRECT("Raw"&C47&"!$C$1"),$E$13+$A58,1,1,50))*1 -> 0 | D58: =SUMIF(OFFSET(INDIRECT("Raw"&C47&"!$C$1"),$F$13,1,1,50),D$1,OFFSET(INDIRECT("Raw"&C47&"!$C$1"),$E$13+$A58,1,1,50))*1 -> 0 | E58: =SUMIF(OFFSET(INDIRECT("Raw"&C47&"!$C$1"),$F$13,1,1,50),E$1,OFFSET(INDIRECT("Raw"&C47&"!$C$1"),$E$13+$A58,1,1,50))*1 -> 0 | F58: =SUMIF(OFFSET(INDIRECT("Raw"&C47&"!$C$1"),$F$13,1,1,50),F$1,OFFSET(INDIRECT("Raw"&C47&"!$C$1"),$E$13+$A58,1,1,50))*1 -> 0 | G58: =SUMIF(OFFSET(INDIRECT("Raw"&C47&"!$C$1"),$F$13,1,1,50),G$1,OFFSET(INDIRECT("Raw"&C47&"!$C$1"),$E$13+$A58,1,1,50))*1 -> 0 | H58: =SUMIF(OFFSET(INDIRECT("Raw"&C47&"!$C$1"),$F$13,1,1,50),H$1,OFFSET(INDIRECT("Raw"&C47&"!$C$1"),$E$13+$A58,1,1,50))*1 -> 0 | I58: =SUMIF(OFFSET(INDIRECT("Raw"&C47&"!$C$1"),$F$13,1,1,50),I$1,OFFSET(INDIRECT("Raw"&C47&"!$C$1"),$E$13+$A58,1,1,50))*1 -> 0 | J58: =SUMIF(OFFSET(INDIRECT("Raw"&C47&"!$C$1"),$F$13,1,1,50),J$1,OFFSET(INDIRECT("Raw"&C47&"!$C$1"),$E$13+$A58,1,1,50))*1 -> 0 | K58: =SUMIF(OFFSET(INDIRECT("Raw"&C47&"!$C$1"),$F$13,1,1,50),K$1,OFFSET(INDIRECT("Raw"&C47&"!$C$1"),$E$13+$A58,1,1,50))*1 -> 0 | L58: 0 | M58: =SUMIF(OFFSET(INDIRECT("Raw"&C47&"!$C$1"),$F$12,1,1,50),M$1,OFFSET(INDIRECT("Raw"&C47&"!$C$1"),$E$12+$A58,1,1,50))*1 -> 25.17 | N58: =SUMIF(OFFSET(INDIRECT("Raw"&C47&"!$C$1"),$F$12,1,1,50),N$1,OFFSET(INDIRECT("Raw"&C47&"!$C$1"),$E$12+$A58,1,1,50))*1 -> 0 | O58: =SUMIF(OFFSET(INDIRECT("Raw"&C47&"!$C$1"),$F$12,1,1,50),O$1,OFFSET(INDIRECT("Raw"&C47&"!$C$1"),$E$12+$A58,1,1,50))*1 -> 4.7 | P58: =SUMIF(OFFSET(INDIRECT("Raw"&C47&"!$C$1"),$F$12,1,1,50),P$1,OFFSET(INDIRECT("Raw"&C47&"!$C$1"),$E$12+$A58,1,1,50))*1 -> 0 | Q58: 29.87
A59: 14 | B59: 2020 | C59: =SUMIF(OFFSET(INDIRECT("Raw"&C47&"!$C$1"),$F$13,1,1,50),C$1,OFFSET(INDIRECT("Raw"&C47&"!$C$1"),$E$13+$A59,1,1,50))*1 -> 0 | D59: =SUMIF(OFFSET(INDIRECT("Raw"&C47&"!$C$1"),$F$13,1,1,50),D$1,OFFSET(INDIRECT("Raw"&C47&"!$C$1"),$E$13+$A59,1,1,50))*1 -> 0 | E59: =SUMIF(OFFSET(INDIRECT("Raw"&C47&"!$C$1"),$F$13,1,1,50),E$1,OFFSET(INDIRECT("Raw"&C47&"!$C$1"),$E$13+$A59,1,1,50))*1 -> 0 | F59: =SUMIF(OFFSET(INDIRECT("Raw"&C47&"!$C$1"),$F$13,1,1,50),F$1,OFFSET(INDIRECT("Raw"&C47&"!$C$1"),$E$13+$A59,1,1,50))*1 -> 0 | G59: =SUMIF(OFFSET(INDIRECT("Raw"&C47&"!$C$1"),$F$13,1,1,50),G$1,OFFSET(INDIRECT("Raw"&C47&"!$C$1"),$E$13+$A59,1,1,50))*1 -> 0 | H59: =SUMIF(OFFSET(INDIRECT("Raw"&C47&"!$C$1"),$F$13,1,1,50),H$1,OFFSET(INDIRECT("Raw"&C47&"!$C$1"),$E$13+$A59,1,1,50))*1 -> 0 | I59: =SUMIF(OFFSET(INDIRECT("Raw"&C47&"!$C$1"),$F$13,1,1,50),I$1,OFFSET(INDIRECT("Raw"&C47&"!$C$1"),$E$13+$A59,1,1,50))*1 -> 0 | J59: =SUMIF(OFFSET(INDIRECT("Raw"&C47&"!$C$1"),$F$13,1,1,50),J$1,OFFSET(INDIRECT("Raw"&C47&"!$C$1"),$E$13+$A59,1,1,50))*1 -> 0 | K59: =SUMIF(OFFSET(INDIRECT("Raw"&C47&"!$C$1"),$F$13,1,1,50),K$1,OFFSET(INDIRECT("Raw"&C47&"!$C$1"),$E$13+$A59,1,1,50))*1 -> 0 | L59: 0 | M59: =SUMIF(OFFSET(INDIRECT("Raw"&C47&"!$C$1"),$F$12,1,1,50),M$1,OFFSET(INDIRECT("Raw"&C47&"!$C$1"),$E$12+$A59,1,1,50))*1 -> 10.03 | N59: =SUMIF(OFFSET(INDIRECT("Raw"&C47&"!$C$1"),$F$12,1,1,50),N$1,OFFSET(INDIRECT("Raw"&C47&"!$C$1"),$E$12+$A59,1,1,50))*1 -> 0 | O59: =SUMIF(OFFSET(INDIRECT("Raw"&C47&"!$C$1"),$F$12,1,1,50),O$1,OFFSET(INDIRECT("Raw"&C47&"!$C$1"),$E$12+$A59,1,1,50))*1 -> 3.11 | P59: =SUMIF(OFFSET(INDIRECT("Raw"&C47&"!$C$1"),$F$12,1,1,50),P$1,OFFSET(INDIRECT("Raw"&C47&"!$C$1"),$E$12+$A59,1,1,50))*1 -> 0 | Q59: 13.14
A60: 15 | B60: 2021 | C60: =SUMIF(OFFSET(INDIRECT("Raw"&C47&"!$C$1"),$F$13,1,1,50),C$1,OFFSET(INDIRECT("Raw"&C47&"!$C$1"),$E$13+$A60,1,1,50))*1 -> 0 | D60: =SUMIF(OFFSET(INDIRECT("Raw"&C47&"!$C$1"),$F$13,1,1,50),D$1,OFFSET(INDIRECT("Raw"&C47&"!$C$1"),$E$13+$A60,1,1,50))*1 -> 0 | E60: =SUMIF(OFFSET(INDIRECT("Raw"&C47&"!$C$1"),$F$13,1,1,50),E$1,OFFSET(INDIRECT("Raw"&C47&"!$C$1"),$E$13+$A60,1,1,50))*1 -> 0 | F60: =SUMIF(OFFSET(INDIRECT("Raw"&C47&"!$C$1"),$F$13,1,1,50),F$1,OFFSET(INDIRECT("Raw"&C47&"!$C$1"),$E$13+$A60,1,1,50))*1 -> 0 | G60: =SUMIF(OFFSET(INDIRECT("Raw"&C47&"!$C$1"),$F$13,1,1,50),G$1,OFFSET(INDIRECT("Raw"&C47&"!$C$1"),$E$13+$A60,1,1,50))*1 -> 0 | H60: =SUMIF(OFFSET(INDIRECT("Raw"&C47&"!$C$1"),$F$13,1,1,50),H$1,OFFSET(INDIRECT("Raw"&C47&"!$C$1"),$E$13+$A60,1,1,50))*1 -> 0 | I60: =SUMIF(OFFSET(INDIRECT("Raw"&C47&"!$C$1"),$F$13,1,1,50),I$1,OFFSET(INDIRECT("Raw"&C47&"!$C$1"),$E$13+$A60,1,1,50))*1 -> 0 | J60: =SUMIF(OFFSET(INDIRECT("Raw"&C47&"!$C$1"),$F$13,1,1,50),J$1,OFFSET(INDIRECT("Raw"&C47&"!$C$1"),$E$13+$A60,1,1,50))*1 -> 0 | K60: =SUMIF(OFFSET(INDIRECT("Raw"&C47&"!$C$1"),$F$13,1,1,50),K$1,OFFSET(INDIRECT("Raw"&C47&"!$C$1"),$E$13+$A60,1,1,50))*1 -> 0 | L60: 0 | M60: =SUMIF(OFFSET(INDIRECT("Raw"&C47&"!$C$1"),$F$12,1,1,50),M$1,OFFSET(INDIRECT("Raw"&C47&"!$C$1"),$E$12+$A60,1,1,50))*1 -> 45.38 | N60: =SUMIF(OFFSET(INDIRECT("Raw"&C47&"!$C$1"),$F$12,1,1,50),N$1,OFFSET(INDIRECT("Raw"&C47&"!$C$1"),$E$12+$A60,1,1,50))*1 -> 0 | O60: =SUMIF(OFFSET(INDIRECT("Raw"&C47&"!$C$1"),$F$12,1,1,50),O$1,OFFSET(INDIRECT("Raw"&C47&"!$C$1"),$E$12+$A60,1,1,50))*1 -> 10.8 | P60: =SUMIF(OFFSET(INDIRECT("Raw"&C47&"!$C$1"),$F$12,1,1,50),P$1,OFFSET(INDIRECT("Raw"&C47&"!$C$1"),$E$12+$A60,1,1,50))*1 -> 0 | Q60: 56.18
A61: 16 | B61: 2022 | C61: =SUMIF(OFFSET(INDIRECT("Raw"&C47&"!$C$1"),$F$13,1,1,50),C$1,OFFSET(INDIRECT("Raw"&C47&"!$C$1"),$E$13+$A61,1,1,50))*1 -> 0 | D61: =SUMIF(OFFSET(INDIRECT("Raw"&C47&"!$C$1"),$F$13,1,1,50),D$1,OFFSET(INDIRECT("Raw"&C47&"!$C$1"),$E$13+$A61,1,1,50))*1 -> 0 | E61: =SUMIF(OFFSET(INDIRECT("Raw"&C47&"!$C$1"),$F$13,1,1,50),E$1,OFFSET(INDIRECT("Raw"&C47&"!$C$1"),$E$13+$A61,1,1,50))*1 -> 0 | F61: =SUMIF(OFFSET(INDIRECT("Raw"&C47&"!$C$1"),$F$13,1,1,50),F$1,OFFSET(INDIRECT("Raw"&C47&"!$C$1"),$E$13+$A61,1,1,50))*1 -> 0 | G61: =SUMIF(OFFSET(INDIRECT("Raw"&C47&"!$C$1"),$F$13,1,1,50),G$1,OFFSET(INDIRECT("Raw"&C47&"!$C$1"),$E$13+$A61,1,1,50))*1 -> 0 | H61: =SUMIF(OFFSET(INDIRECT("Raw"&C47&"!$C$1"),$F$13,1,1,50),H$1,OFFSET(INDIRECT("Raw"&C47&"!$C$1"),$E$13+$A61,1,1,50))*1 -> 0 | I61: =SUMIF(OFFSET(INDIRECT("Raw"&C47&"!$C$1"),$F$13,1,1,50),I$1,OFFSET(INDIRECT("Raw"&C47&"!$C$1"),$E$13+$A61,1,1,50))*1 -> 0 | J61: =SUMIF(OFFSET(INDIRECT("Raw"&C47&"!$C$1"),$F$13,1,1,50),J$1,OFFSET(INDIRECT("Raw"&C47&"!$C$1"),$E$13+$A61,1,1,50))*1 -> 0 | K61: =SUMIF(OFFSET(INDIRECT("Raw"&C47&"!$C$1"),$F$13,1,1,50),K$1,OFFSET(INDIRECT("Raw"&C47&"!$C$1"),$E$13+$A61,1,1,50))*1 -> 0 | L61: 0 | M61: =SUMIF(OFFSET(INDIRECT("Raw"&C47&"!$C$1"),$F$12,1,1,50),M$1,OFFSET(INDIRECT("Raw"&C47&"!$C$1"),$E$12+$A61,1,1,50))*1 -> 100.26 | N61: =SUMIF(OFFSET(INDIRECT("Raw"&C47&"!$C$1"),$F$12,1,1,50),N$1,OFFSET(INDIRECT("Raw"&C47&"!$C$1"),$E$12+$A61,1,1,50))*1 -> 0 | O61: =SUMIF(OFFSET(INDIRECT("Raw"&C47&"!$C$1"),$F$12,1,1,50),O$1,OFFSET(INDIRECT("Raw"&C47&"!$C$1"),$E$12+$A61,1,1,50))*1 -> 7.53 | P61: =SUMIF(OFFSET(INDIRECT("Raw"&C47&"!$C$1"),$F$12,1,1,50),P$1,OFFSET(INDIRECT("Raw"&C47&"!$C$1"),$E$12+$A61,1,1,50))*1 -> 0 | Q61: 107.79
A62: 17 | B62: 2023 | C62: =SUMIF(OFFSET(INDIRECT("Raw"&C47&"!$C$1"),$F$13,1,1,50),C$1,OFFSET(INDIRECT("Raw"&C47&"!$C$1"),$E$13+$A62,1,1,50))*1 -> 0 | D62: =SUMIF(OFFSET(INDIRECT("Raw"&C47&"!$C$1"),$F$13,1,1,50),D$1,OFFSET(INDIRECT("Raw"&C47&"!$C$1"),$E$13+$A62,1,1,50))*1 -> 0 | E62: =SUMIF(OFFSET(INDIRECT("Raw"&C47&"!$C$1"),$F$13,1,1,50),E$1,OFFSET(INDIRECT("Raw"&C47&"!$C$1"),$E$13+$A62,1,1,50))*1 -> 0 | F62: =SUMIF(OFFSET(INDIRECT("Raw"&C47&"!$C$1"),$F$13,1,1,50),F$1,OFFSET(INDIRECT("Raw"&C47&"!$C$1"),$E$13+$A62,1,1,50))*1 -> 0 | G62: =SUMIF(OFFSET(INDIRECT("Raw"&C47&"!$C$1"),$F$13,1,1,50),G$1,OFFSET(INDIRECT("Raw"&C47&"!$C$1"),$E$13+$A62,1,1,50))*1 -> 0 | H62: =SUMIF(OFFSET(INDIRECT("Raw"&C47&"!$C$1"),$F$13,1,1,50),H$1,OFFSET(INDIRECT("Raw"&C47&"!$C$1"),$E$13+$A62,1,1,50))*1 -> 0 | I62: =SUMIF(OFFSET(INDIRECT("Raw"&C47&"!$C$1"),$F$13,1,1,50),I$1,OFFSET(INDIRECT("Raw"&C47&"!$C$1"),$E$13+$A62,1,1,50))*1 -> 0 | J62: =SUMIF(OFFSET(INDIRECT("Raw"&C47&"!$C$1"),$F$13,1,1,50),J$1,OFFSET(INDIRECT("Raw"&C47&"!$C$1"),$E$13+$A62,1,1,50))*1 -> 0 | K62: =SUMIF(OFFSET(INDIRECT("Raw"&C47&"!$C$1"),$F$13,1,1,50),K$1,OFFSET(INDIRECT("Raw"&C47&"!$C$1"),$E$13+$A62,1,1,50))*1 -> 0 | L62: 0 | M62: =SUMIF(OFFSET(INDIRECT("Raw"&C47&"!$C$1"),$F$12,1,1,50),M$1,OFFSET(INDIRECT("Raw"&C47&"!$C$1"),$E$12+$A62,1,1,50))*1 -> 2.1 | N62: =SUMIF(OFFSET(INDIRECT("Raw"&C47&"!$C$1"),$F$12,1,1,50),N$1,OFFSET(INDIRECT("Raw"&C47&"!$C$1"),$E$12+$A62,1,1,50))*1 -> 0 | O62: =SUMIF(OFFSET(INDIRECT("Raw"&C47&"!$C$1"),$F$12,1,1,50),O$1,OFFSET(INDIRECT("Raw"&C47&"!$C$1"),$E$12+$A62,1,1,50))*1 -> 2.68 | P62: =SUMIF(OFFSET(INDIRECT("Raw"&C47&"!$C$1"),$F$12,1,1,50),P$1,OFFSET(INDIRECT("Raw"&C47&"!$C$1"),$E$12+$A62,1,1,50))*1 -> 0 | Q62: 4.78
A63: 18 | B63: 2024 | C63: =SUMIF(OFFSET(INDIRECT("Raw"&C47&"!$C$1"),$F$13,1,1,50),C$1,OFFSET(INDIRECT("Raw"&C47&"!$C$1"),$E$13+$A63,1,1,50))*1 -> 0 | D63: =SUMIF(OFFSET(INDIRECT("Raw"&C47&"!$C$1"),$F$13,1,1,50),D$1,OFFSET(INDIRECT("Raw"&C47&"!$C$1"),$E$13+$A63,1,1,50))*1 -> 0 | E63: =SUMIF(OFFSET(INDIRECT("Raw"&C47&"!$C$1"),$F$13,1,1,50),E$1,OFFSET(INDIRECT("Raw"&C47&"!$C$1"),$E$13+$A63,1,1,50))*1 -> 0 | F63: =SUMIF(OFFSET(INDIRECT("Raw"&C47&"!$C$1"),$F$13,1,1,50),F$1,OFFSET(INDIRECT("Raw"&C47&"!$C$1"),$E$13+$A63,1,1,50))*1 -> 0 | G63: =SUMIF(OFFSET(INDIRECT("Raw"&C47&"!$C$1"),$F$13,1,1,50),G$1,OFFSET(INDIRECT("Raw"&C47&"!$C$1"),$E$13+$A63,1,1,50))*1 -> 0 | H63: =SUMIF(OFFSET(INDIRECT("Raw"&C47&"!$C$1"),$F$13,1,1,50),H$1,OFFSET(INDIRECT("Raw"&C47&"!$C$1"),$E$13+$A63,1,1,50))*1 -> 0 | I63: =SUMIF(OFFSET(INDIRECT("Raw"&C47&"!$C$1"),$F$13,1,1,50),I$1,OFFSET(INDIRECT("Raw"&C47&"!$C$1"),$E$13+$A63,1,1,50))*1 -> 80.12 | J63: =SUMIF(OFFSET(INDIRECT("Raw"&C47&"!$C$1"),$F$13,1,1,50),J$1,OFFSET(INDIRECT("Raw"&C47&"!$C$1"),$E$13+$A63,1,1,50))*1 -> 0 | K63: =SUMIF(OFFSET(INDIRECT("Raw"&C47&"!$C$1"),$F$13,1,1,50),K$1,OFFSET(INDIRECT("Raw"&C47&"!$C$1"),$E$13+$A63,1,1,50))*1 -> 0 | L63: 80.12 | M63: =SUMIF(OFFSET(INDIRECT("Raw"&C47&"!$C$1"),$F$12,1,1,50),M$1,OFFSET(INDIRECT("Raw"&C47&"!$C$1"),$E$12+$A63,1,1,50))*1 -> 2.21 | N63: =SUMIF(OFFSET(INDIRECT("Raw"&C47&"!$C$1"),$F$12,1,1,50),N$1,OFFSET(INDIRECT("Raw"&C47&"!$C$1"),$E$12+$A63,1,1,50))*1 -> 0 | O63: =SUMIF(OFFSET(INDIRECT("Raw"&C47&"!$C$1"),$F$12,1,1,50),O$1,OFFSET(INDIRECT("Raw"&C47&"!$C$1"),$E$12+$A63,1,1,50))*1 -> 14.05 | P63: =SUMIF(OFFSET(INDIRECT("Raw"&C47&"!$C$1"),$F$12,1,1,50),P$1,OFFSET(INDIRECT("Raw"&C47&"!$C$1"),$E$12+$A63,1,1,50))*1 -> 0 | Q63: 16.26
A64: 19 | B64: 2025 | C64: =SUMIF(OFFSET(INDIRECT("Raw"&C47&"!$C$1"),$F$13,1,1,50),C$1,OFFSET(INDIRECT("Raw"&C47&"!$C$1"),$E$13+$A64,1,1,50))*1 -> 0 | D64: =SUMIF(OFFSET(INDIRECT("Raw"&C47&"!$C$1"),$F$13,1,1,50),D$1,OFFSET(INDIRECT("Raw"&C47&"!$C$1"),$E$13+$A64,1,1,50))*1 -> 0 | E64: =SUMIF(OFFSET(INDIRECT("Raw"&C47&"!$C$1"),$F$13,1,1,50),E$1,OFFSET(INDIRECT("Raw"&C47&"!$C$1"),$E$13+$A64,1,1,50))*1 -> 0 | F64: =SUMIF(OFFSET(INDIRECT("Raw"&C47&"!$C$1"),$F$13,1,1,50),F$1,OFFSET(INDIRECT("Raw"&C47&"!$C$1"),$E$13+$A64,1,1,50))*1 -> 0 | G64: =SUMIF(OFFSET(INDIRECT("Raw"&C47&"!$C$1"),$F$13,1,1,50),G$1,OFFSET(INDIRECT("Raw"&C47&"!$C$1"),$E$13+$A64,1,1,50))*1 -> 0 | H64: =SUMIF(OFFSET(INDIRECT("Raw"&C47&"!$C$1"),$F$13,1,1,50),H$1,OFFSET(INDIRECT("Raw"&C47&"!$C$1"),$E$13+$A64,1,1,50))*1 -> 0 | I64: =SUMIF(OFFSET(INDIRECT("Raw"&C47&"!$C$1"),$F$13,1,1,50),I$1,OFFSET(INDIRECT("Raw"&C47&"!$C$1"),$E$13+$A64,1,1,50))*1 -> 0 | J64: =SUMIF(OFFSET(INDIRECT("Raw"&C47&"!$C$1"),$F$13,1,1,50),J$1,OFFSET(INDIRECT("Raw"&C47&"!$C$1"),$E$13+$A64,1,1,50))*1 -> 0 | K64: =SUMIF(OFFSET(INDIRECT("Raw"&C47&"!$C$1"),$F$13,1,1,50),K$1,OFFSET(INDIRECT("Raw"&C47&"!$C$1"),$E$13+$A64,1,1,50))*1 -> 0 | L64: 0 | M64: =SUMIF(OFFSET(INDIRECT("Raw"&C47&"!$C$1"),$F$12,1,1,50),M$1,OFFSET(INDIRECT("Raw"&C47&"!$C$1"),$E$12+$A64,1,1,50))*1 -> 2.43 | N64: =SUMIF(OFFSET(INDIRECT("Raw"&C47&"!$C$1"),$F$12,1,1,50),N$1,OFFSET(INDIRECT("Raw"&C47&"!$C$1"),$E$12+$A64,1,1,50))*1 -> 0 | O64: =SUMIF(OFFSET(INDIRECT("Raw"&C47&"!$C$1"),$F$12,1,1,50),O$1,OFFSET(INDIRECT("Raw"&C47&"!$C$1"),$E$12+$A64,1,1,50))*1 -> 2.68 | P64: =SUMIF(OFFSET(INDIRECT("Raw"&C47&"!$C$1"),$F$12,1,1,50),P$1,OFFSET(INDIRECT("Raw"&C47&"!$C$1"),$E$12+$A64,1,1,50))*1 -> 0 | Q64: 5.11
